Workbook

Sheet Title and instructions
C2: Feasibility Study Appendix:
C3: Schedule of Accommodation (SoA) tool (Secondary) version 8.3
C4: December 2023
B6: DOCUMENT CONTROL
B8: Tool Version | C8: Amendments | D8: Status | E8: Date | F8: Author
B9: 7.4 | C9: Area Data summary worksheets, Contractors ADS codes, ADS templates and FF&E library removed. Updated versions of these sheets now in SS1 School-specific SoA and ADS template v7.4. | D9: n/a | E9: 2019-05-02 | F9: BWI
B10: 8.1 | C10: Version 7.4 revised to use new Uniclass names and codes and to incorporate changes to Annex 1A and 1B for the 2021 Output Specification. Rationalisation of some furnished space types, including food room and workshop 1 of 2. | D10: n/a | E10: 2021-04-19 | F10: BWI
B11: 8.2 (P01) | C11: Amended to be accessible. Revised ADS codes to match SS1 of the 2021 Output Specification, as well as other corrections including all spaces listed on Individual spaces worksheet, updated curriculum models used to identify number of spaces. Additional plant room options added. | D11: S2 | E11: 2022-03-31 | F11: BWI
B12: 8.3 (C01) | C12: Plant spaces amended and number of blocks added. Additional rows added to allow for faith rooms, exams office and ablutions rooms if needed. Net capacity amended to match 2023 method. Other minor amendments including cell colours. | D12: A | E12: 2023-12-15 | F12: BWI
B14: School-Specific Document
B15: [Insert Project Code and Scheme Name here in title sheet]
B16: Revision | C16: Amendments | D16: Status | E16: Date | F16: Author
B17: P01 | C17: Employer's Representative to add amendments made to document (SoA tool Version: 8.3) here and rename file to make project specific. | D17: S2 | E17: YYYY-MM-DD | F17: ABC
B21: Contents
B22: Worksheet | C22: Description
B23: Title and Instructions | C23: Sheet sets out information about this resource information about the file (name, revision, status, document owner, document originator and revision history) and list of contents including descriptions. As well as instructions on how to use the document.
B24: Secondary SoA | C24: Tool create School-Specific Schedule of Accommodation (SoA) based on age range and number of pupil places - Tool Version 8.3
B25: Existing Spaces | C25: Sheet for identifying and recording all existing spaces in existing school buildings
B26: Individual Spaces | C26: Macro-created list of each individual space in the Secondary SoA
B27: Project SoA | C27: School-Specific Project Schedule of Accommodation (SoA) based on Individual spaces within the Works
B28: Prog Assums | C28: Sheet used for document calculations including drop-down lists
B29: Data Library | C29: Sheet used for document calculations, with data matching SS1
B31: Summary
B32: This document is a tool to create a Schedule of Accommodation (SoA) for any secondary school, and a Project SoA for a related project
B33: Review Date | C33: Review dates for this document will be at 6-month intervals.
B34: Who is this publication for? | C34: This document is for technical professionals involved in the design and construction of school premises, to inform a School-specific Project SoA as part of the Employer’s Requirements of the DfE Construction Framework. It may also be used as the basis of similar documentation for other procurement routes.
B35: Uniclass Codes | C35: This document captures Uniclass codes for the management of exchange of information. To access all codes and associated titles reference should be made to Refer to Uniclass | NBS (thenbs.com) for a description of Uniclass codes.
B37: Notes
B38: 001 | C38: The Secondary SoA worksheet in this tool will create a Schedule of Accommodation (SoA) for any mainstream Secondary school that recommends the number type and size of spaces based on typical curriculum requirements, within the area ranges specified in BB103. Various adjustments can be made, using drop-down lists in any white cell, to suit the individual requirements of the school, as long as the total area of each category and the net capacity (in cell V5) are within the minimum and maximum range shown. The original recommendations remain unchanged in columns AI and AK.
B39: 002 | C39: As set out in the instructions, the further worksheets offer options to list and check the existing spaces and to create a list of every individual space in the school. This can then be used to identify a Project SoA of all spaces in any project for new build, remodelling or refurbishment. This Project SoA can then be migrated to the School-specific SoA and ADS template in the Output Specification to provide the Employers Requirements for a projects, including Area Data Sheets.
B40: 003 | C40: Use rows 17 to 21 to insert the name of the project and start a version log. More rows can be inserted below if needed.
B41: 004 | C41: Where the school is to retain existing buildings, the appropriate designation should be chosen in cell AG8 and either: - use the minimum recommended sizes for new build projects, with the net and gross area at the minimum, and note the difference between this and the actual size of spaces, which may be smaller or larger (e.g. in column DV); or - match the sizes of the existing spaces in the SoA to their actual size, and note that the net and gross areas will be between the minimum and maximum recommended.
B42: 005 | C42: This Secondary SoA tool will recommend possible areas for supplementary area where additionally resourced places for special educational needs (SEN) are identified, assuming that the SEN pupils will be taught in a specially resourced provision (SRP) or provide additional pupil places in a unit within the school. These recommendations are indicative, based on BB104.
B43: 006 | C43: For all-age schools use two separate SoA tools, (the Secondary SoA and the Primary SoA) for the respective component parts of the school.
B44: 007 | C44: The Technical Advisor should input the Scheme specific name into the Document Table (e.g., SRP1001-SchoolName) in cell B18. Subsequent Revisions to this template by the Employer’s Representative and Contractor should be recorded within the revisions table and follow the incremental revisioning as defined within National Annex of BS EN ISO 19650-2.
B46: Instructions
C47: These instructions are colour coded to match the worksheet tabs in both this SoA tool and the SoA and ADS template, and cover the following steps:
C48: This SoA tool covers items 1 to 4 from the red Secondary SoA to the green Project Brief. The SoA template in Annexe SS1 of School-Specific Brief covers the items 4 to 6.
B49: 1. | C49: Whether or not the options below are used, the first task is to Create the school specific SoA.
B50: 2. | C50: Where several spaces or buildings are to be retained, the Existing Spaces and Secondary SoA worksheets can be used to Compare Existing Spaces
B51: 3. | C51: Once the SoA has been finalised, the macro in the Individual Spaces worksheet can be used to Create the schedule of individual spaces
B52: 4. | C52: If this version of the SoA is used as a contract document, the next 4 worksheets can be used to Create the Project SoA and Area Data summary worksheets, for architectural and M&E requirements as well as fittings, furniture and equipment (FF&E).
B53: 5. | C53: The worksheets and the Contractors ADS codes in the School-specific SoA and ADS template offer the opportunity for the Contractor to complete SoA (at ITT and CP stages)
B54: 6. | C54: If individual Area Data Sheets (ADSs) are required, the ADS template in the School-specific SoA and ADS can be used. This tool then has macros, with buttons on the top right of this sheet, to create ADSs for each space on the Project SoA.
C55: The final 2 worksheets provide Programme Assumptions (including all drop down lists) and a data library of all generic requirements for all relevant space types. Like this title and instruction sheet, they are locked and for reference only.
B57: 1. Create the school specific SoA
C58: The Secondary SoA worksheet will automatically list a typical ‘best practice’ set of teaching spaces, and their support spaces, based on the inserted number of places, age range, curriculum model and any supplementary SEN places. This can be adjusted to best suit the school's needs with various drop-down lists in column AG.
B59: 1.1 | C59: Create an initial SoA based on the age and number of pupil places. In the ‘Secondary SoA’ worksheet:
B60: 1.1.1 | C60: Ensure the age range is correct. If the age range is not 11-16 or 11-18, fill in the ‘age range’ box by selecting from the drop-down menu (row 2, column K).
B61: 1.1.2 | C61: Identify pupil places. Fill in the number of pupil places per age range (rows 5 and 6, column K) to be accommodated (not the number on roll).
C62: Column O, rows 5 and 6 are updated automatically; row 8, column K is updated automatically.
B63: 1.1.3 | C63: Select the type of any additionally resourced SEN provision from the drop-down menu in row 12, column D, before filling in the number of additionally resourced SEN places (row 12, column K).
C64: An indicative 'Supplementary Area' for any additionally resourced SEN places will be automatically allocated in column Y, under the related headings. If an SRP is chosen, the places are deemed to be included in the 'Total Mainstream Places', so the total supplementary area will be smaller than if a unit is chosen, when the pupil places will be additional and those pupils will be more likely to spend most of their time in a home-base classroom in the unit. The recommended areas are based on the minimum recommended in BB104 and should be tested in relation to the specific provision planned by the school.
B65: 1.1.4 | C65: Type of site and buildings: Select the area and type of site (row 4, column AD and AG) from the drop-down menus provided. Check the number of storeys (row 6, column AG), and select a different number from the drop down list if appropriate.
C66: The area of the site and number of split sites can have a minor effect on the net capacity in some cases. Buildings on confined sites may need to be multi-storey and this may require more circulation area. This will be allowed for if more than 2-storeys is chosen under the number of storeys.
B68: 1.2 | C68: Choose the right options to suit some school-specific requirements. In the ‘Secondary SoA’ tab:
B69: 1.2.1 | C69: Identify retained buildings. From the corresponding drop-down menu (row 8, column AG), select if any buildings are to be retained or refurbished.
C70: If the selection includes retained or refurbished buildings, 'white' cells (i.e. with no colour fill) will appear where information can be entered in relation to existing spaces to be incorporated in the new school. The options for space types in the drop-down lists in column D (see 1.3) will also include additional spaces that may be found in existing school buildings. See also the second of the 'Notes' above.
C71: If retained spaces are to be incorporated in this SoA for the whole school, pick from the drop down list above and, for each type of space:
C72: In column O, select from the drop down menus provided and, in column AA (Area of Retained Spaces), enter the corresponding area.
C73: When 'retained' or 'refurb'ed' is chosen in column O, the area in columns S and Y will automatically be shown in column AA. When 'some retained' is chosen (for instance where some stores are in existing buildings and other would need to be new), the appropriate area should be inserted into column AA manually.
C74: When existing space types are chosen from the drop down lists in column D, column 0 will automatically identify the space as 'retained', although it may still be amended to 'refurb'ed'.
C75: If the number of retained spaces is small, this simple approach may be sufficient to identify the existing spaces. If the number of retained or refurbished spaces is more complex, see '2. Compare Existing Spaces' below.
B76: 1.2.2 | C76: Select the type of curriculum from the drop-down menus provided in row 12, column AG, which most closely matches that of the school.
C77: This amends the number of rooms slightly, within the same total number, so for instance an academic curriculum will have more classrooms and science spaces recommended while a vocational curriculum will have more extra design technology spaces. The exact differences can be seen in hidden columns DG to DJ.
B78: 1.2.3 | C78: Select options for classrooms, hall, science, dining and reception office(s) from the drop-down menus provided in rows 19, 31, 67 and 111, column AG.
C79: The classroom options will recommend different ways of providing these spaces. The default option of all 'standard except post-16' will suit new schools using the Standard Spaces in the 2021 Output Specification, while the alternative options may be more suitable for schools with existing larger or smaller classrooms: 'some extensive' will allow around 25% of the classrooms to be 'extensive' (as described in BB103) to allow for a wider range of activities or groups, at the expense of area in large spaces such as dining, while 'some variable' option allows a wider range of group sizes within a typical year cohort, providing a few rooms for up to 26 and a few for up to 34.
C80: The hall option allows for halls with or without bleacher seating, although bleacher seating is recommended in any school over 900 places, and this will be amended automatically based on the number of places. The bleacher seating store and capacity of the hall are also effected.
C81: The science option will recommend different ways of providing these spaces, including 3 specialist labs (for chemistry, biology and physics), suitable for schools with large sixth forms, or science studios shared between 2 larger general labs.
C82: The dining options allow for a range of dining scenarios, based on all pupils dining, with around a third eating traditional hot meals in about 20 minutes and two-thirds eating cold or 'grab and go' meals in 10 to 15 minutes. If a separate dining area is chosen, this may typically serve hot meals and some cold, while others go elsewhere (such as the hall) unless the net area is above the minimum recommended, or the school is larger than about 1350 pupils. Choosing to dine in the main hall or having a split lunch can allow more space in smaller schools, and will generally suggest a larger sports hall (up to 4 courts).
C83: The number of reception desks in the general office relates to the public face, off the main entrance and the option of second desk for pupil access. If there is a separate office for finance and pupil services, this desk is assumed to be associated with that office.
B85: 1.3 | C85: Adjust the types of spaces, if necessary, to suit further school-specific requirements.
C86: The schedule of teaching and learning spaces recommended by the tool is based on best practice and educational advice and typical teaching practice, and this will generally suit the requirements of most schools. In some cases, there may be more unusual options required by the school, such as photography or engineering, that need to be accommodated with specialist facilities. In such cases, and where the school wish to continue to offer the course, the appropriate spaces can be chosen from the drop-down list in column D. Spaces should generally be the standard size pre-set in the SoA, unless existing spaces are to be retained.
B87: 1.3.1 | C87: Use ’curriculum analysis (optional)' sheet to confirm numbers of spaces in exceptional circumstances.
C88: The general principle is that the spaces required in the SoA tool will be assumed (at least at feasibility stage) to be what is appropriate for a school of the chosen age range and number of places, with the curriculum model chosen and the minor adjustments above. In exceptional cases, such as a vocational curriculum or where this does not match what the school feels it requires, a curriculum analysis can be used to check the SoA. In these cases, the appropriate skills are required, for instance from a Design Advisor, to ensure a complete analysis is achieved.
C89: If used, under 'current timetable' at the top of this sheet, the school should provide the information on their existing timetable and numbers on roll. Ensure that the number of 'periods in cycle', row 8 column AK, is correct.
C90: These figures will automatically be transferred to the ’11-18 CA (future linked)’ table lower down in this sheet, provided that the activities above have been completed.
C91: Then, in the 'future timetable' table at the bottom of this sheet, the pupil numbers (numbers in cohort for each year, in row 4) can be amended to match the planned number of pupil places and any planned curriculum changes.
C92: If the number of pupil places in Y7 is amended, for instance if the school is enlarging, the 11-16 figures will automatically be updated, and the other year groups will be updated to match.
C93: Check that the utilisation (bottom right, column AP) is within the range of utilisation factors assumed for the age range (top right, columns AR and AT). If this is not the case, the number and size of groups should be adjusted, ensuring they can realistically be delivered.
C94: Where the curriculum analysis has been used, the total number of places (row 8, column K) should match the curriculum analysis figures automatically transferred from the ’11-18 CA (future linked)’ table in 'curriculum analysis (optional)' spreadsheet.
B96: 1.4 | C96: Checks and balances. In the ‘Secondary SoA’ tab:
C97: The 'white' cells in columns S and U can be used to adjust the provision as necessary, to suit specific aspects of the school's pedagogy where the recommendation in columns AI and AK do not provide the spaces required by the school.
C98: Skill and judgement is needed to make the necessary adjustments so that the resulting SoA satisfies the school’s curriculum requirements, but stays within the recommended ranges in Building Bulletin 103 and does not become too specific to one style of management or organisation. Many space types are standard, as required in the Output Specification or Building Bulletin 103, and should not be adjusted (such as interview room off entrance and MI room), while some are more flexible and can be adjusted to suit the schools needs.
C99: It is particularly important that:
B100: 1.4.1 | C100: the total number of spaces for each subject-type (such as general teaching, science or art) should be the same or similar (+ or - one) as those in column AK;
B101: 1.4.2 | C101: the net capacity (row 5, column V) should match the number of mainstream places planned;
B102: 1.4.3 | C102: the total area of each category of space (different coloured) should be within the minimum and maximum range;
B103: 1.4.4 | C103: the spaces in the SoA should be coordinated with the space uses described in the School-specific Brief (SSB).
B105: Where several spaces or buildings are to be retained:
B106: 2. Compare Existing Spaces
C107: The Existing Spaces sheet, linked to columns to the right of column EY, allows the spaces in the existing school buildings to be compared with the SoA tool recommendation for a new build school, to see what spaces are needed or where refurbishment or new build can be considered.
C108: To use this element of the tool effectively, you will need a detailed schedule of the current accommodation. This may be from cleaners' schedules or recent asbestos surveys, but would ideally be from a net capacity assessment and/or an Asset Management Plan, along with existing plans. A walk around the school will help assist if things have changed or the schedule is somewhat out of date.
B109: 2.1 | C109: List the existing spaces. In the Existing Spaces sheet:
B110: 2.1.1 | C110: In column B and C, list each block or building, using EFA or other codes, and a letter to identify whether they are: S: Selected as a block to be upgraded or replaced due to its condition (e.g. in SRP, a 'Target' or 'Additional' block) U: Untouched, so to be kept but not due to be upgraded X: To be demolished, where the condition is such that this is the only option.
B111: 2.1.2 | C111: In columns G to N, in rows 25 down, insert the room number, block (using the names in the list above, from a drop-down list if preferred) and name of each space, and its net and non-net area. The number in column F will be allocated automatically.
C112: The net, or usable, area of the building is described in Building Bulletin 103 and will include classrooms, halls, offices and stores. Non-net area includes circulation, toilets and plant area. In some spaces, there may be 'essential access' to other spaces, so the total area of the space will include net and non-net area. This may be measured or estimated as: 85% (for instance in corridors wider than 2.5m where there is room for lockers etc. at one side); 50% (for instance in a shared resource or reception area with essential circulation through them); 15% ( for instance in halls or classrooms with single circulation route through them).
B113: 2.1.3 | C113: In columns P to U, in rows 25 down, insert a number or symbol (e.g. '1') to indicate which category of space the spaces falls into. This can only be one type of net area, but may include non-net area as well (as above).
B114: 2.1.4 | C114: Click on the macro button 'Insert Block refs' at the top of column E, and the block reference in column AB will be inserted automatically, based on the block chosen in column G.
B115: 2.1.5 | C115: Check the total areas and numbers of spaces in rows 4 to 12. This can give a useful indication as to whether the existing overall area of each category of space is within the minimum and maximum range recommended in the Building Bulletin 103 for the size and age range of school.
B116: 2.1.6 | C116: Click on the macro button 'Sort Table' at the top of columns Q to T, and the spaces listed will be sorted automatically, based on the choices in columns P to AB, so that spaces in Selected (or successful) blocks are listed first, then Untouched (or unsuccessful), then demolished, each in order of the six categories of space. This allows them to be more easily compared to the master Secondary SoA (see 2.2).
B117: 2.1.7 | C117: Finally, click on the macro button 'Transfer Table' at the top of columns U to AB, and the spaces listed will be automatically listed in columns to the right of column EY on the master Secondary SoA sheet, ready to be compared.
B119: 2.2 | C119: Compare existing spaces to SoA. In the Secondary SoA sheet:
B120: 2.2.1 | C120: In columns to the right of column EY, the existing spaces will be listed. Rows 2 to 6 indicate the space name, coloured to match the chosen category of space. Rows 6 to 13 indicate the room number and block, coloured to match whether the block is selected, or successful (S), untouched, or unsuccessful (U), or to be demolished (X). Row 15 sets whether the space is to be kept (untouched) , refurbished or remodelled. Initially, these should default to 'kept'.
B121: 2.2.2 | C121: In the relevant 'white' cells in the columns to the right of column EY, insert the net area of the space, as shown in row 11, where the space matches a space type listed in the net area of the SoA in column D. And/or insert the non-net area, as shown in row 12, where the space matches a space type listed in the non-net areas of the SoA in column D. The area will automatically be taken away from the figure in row 11 or 12.
B122: 2.2.3 | C122: The key at the top of columns EK to ET shows the colours that each cell may become, when compared to the SoA area. Green is within the area range that is recommended, while amber shows the area is 'restrictive' which can be acceptable for existing spaces but will restrict the types of activities that can be accommodated. for the group size. Red indicates that the space is too small and may be better identified as a smaller type of space, such as group room. These options are shown in column AD in the Prog Assums sheet.
B123: 2.2.4 | C123: The pink areas of columns ER to EU show the total number of the spaces listed as 'kept' in row 2. The yellow areas of columns DS to DV then show the differences between the columns totals in columns DY to EU and the number and size of space recommended in the SoA.
B124: 2.2.5 | C124: At this stage, if all the spaces, including those due for demolition, are identified to be kept, this gives a useful first analysis of the existing spaces. If the current school is the same capacity as that recommended in the SoA, there should be a very similar set of spaces. If some existing spaces are different to those on the SoA, it may be that some adjustment of the SoA is necessary (as 1.3 above).
C125: When all data has been entered some issues can be considered, comparing the recommended SoA with the school under consideration, and the spaces of any Selected (or successful) blocks. These include:
C126: a) Are the spaces in the successful blocks unique or are they duplicated elsewhere in the school?
C127: b) Are any spaces under or over provided throughout the school?
C128: c) Are spaces of the correct size? Too large, so they could be divided to make additional room? Or, too small that may require amalgamation?
C129: d) Are individual blocks or the school sized differently from that expected?
B131: 2.3 | C131: Identify work required to each space. In the Secondary SoA sheet:
C132: If the project involves a range of spaces that may be new, remodelled or refurbished, columns DY to EU can be usefully used to identify the work required in each space. This can then be transferred to the Individual Spaces sheet. it can also identify the spaces that are to be provided new in a project when these do not include all the spaces recommended - for instance if a sports hall is recommended but would need to be in a later phase.
B133: 2.3.1 | C133: If using this feature, delete any spaces that are to be demolished from the columns to the right of EY. Then use the drop-down options in row 2 to identify the work for each space as 'keep', 'refurb' or 'remodel' (where internal walls are to be altered). Ensure all spaces have their area included against a space in the SoA. Those spaces identified as 'keep' will remain totalled in the pink columns ER to EU. Those identified as 'refurb' will be totalled in the pink columns EK to EN. Those identified as 'remodel' will not automatically be totalled in the blue columns EE to EH, as they are likely to be different sizes when remodelled. However, the total remodelled area is collated in row 214, so it can be used as a check in column EH.
B134: 2.3.2 | C134: Identify the number and size of spaces to be provided in new build in columns DY to EB, matching the area in the SoA but remembering that this may not include all space recommended in the SoA (as discussed above). Similarly, identify the number and size of spaces to be provided in remodelled area in columns EE to EH, matching the area in the SoA The total area to be remodelled should then be similar to that in cell EH214 if the remodelled spaces have been identified in column to the right of EY.
B135: 2.3.3 | C135: The spaces listed in columns DY to EN should include all spaces on the SoA that are to be included in the project. Those in columns ER to EU will be those existing and untouched. The difference in the number of spaces should then generally be zero in column DU. The area may vary when it is existing.
B137: Once the SoA has been finalised:
B138: 3. Create the schedule of individual spaces
B139: 3.1 | C139: Prepare schedule of spaces. In the Individual Spaces sheet:
B140: 3.1.1 | C140: Once the SoA has been agreed, press the 'Generate' button located in cell A1. This will automatically produce a schedule of individual spaces, allocating unique code/ reference numbers to each space, based on the SoA in the Secondary SoA sheet.
B141: 3.1.2 | C141: Column I allows the users to allocate room names and information associated with the proposed space as a record. These are retained with the proposed space when further iterations of the Secondary SoA are created. If a space is removed then the associated information will be lost with it.
B142: 3.1.3 | C142: The following number allocation will be applied to the spaces listed:
C143: Basic teaching areas | D143: 1000
C144: Large Spaces | D144: 2000
C145: Learning Resource Areas | D145: 3000
C146: Staff and Administration Areas | D146: 4000
C147: Storage (teaching and non-teaching) | D147: 5000
C148: Non-net areas | D148: 6000
C149: Unallocated | D149: 7000
B150: 3.1.4 | C150: Column O should show whether the space has been designated as New, Remodel, Refurbish or Keep (as existing). if so, the schedule can be filtered to list the spaces in this order, and those in the first 3 of these designations will usually be the spaces within the project. These can be transferred to the Project SoA. The remainder will be as existing. However if there is no designation these spaces will still be shown as long as they are included in the Secondary SoA. There may also be spaces listed at the bottom of the schedule that are 'unallocated' because they are not included in the Secondary SoA but are listed in the existing spaces columns. These should not include any major spaces, but may include small offices or stores additional to the needs of the SoA.
C151: Note that any space that is not listed on the SoA will be deemed 'unallocated' and will be listed at the end. To ensure that any existing space is listed on the Individual Spaces, check that it is listed on the SoA with a number of spaces more than zero and a recommended area, before pressing the 'Generate' button. Also note the Individual Spaces sheets automatically provide columns for Contractors to insert areas and comments (in columns K to M), but these can be ignored or deleted as the Contractor should use the Project SoA to insert the proposed areas and other information.
B153: If the School-specific SoA and ADS is to be used as a contract document (Annex SS1 of the SSB):
B154: 4. Create the Project SoA and migrate to the School-specific SoA and SoA
C155: The Project SoA provides the Employers Requirement schedule of accommodation required within the project. It is then replicated in the arch, M&E and FF&E area data summaries on the School-specific SoA and ADS (Annex SS1 of the SSB). This worksheets should therefore be completed on this SoA tool before migrating to the School-specific SoA and ADS template.
C156: When complete, the Project SoA should list every space required to be refurbished, remodelled or providing in new build, with no extra rows. It should include all circulation and plant areas, not automatically listed in the Individual Spaces. Where more rows are required, more can be copied and pasted as necessary.
C157: Ensure that the Project SoA to be migrated does not include any rows not required (with blanks in column D or marked #REF!), but does include the breakdown of plant and circulation area (including the correct number of stairs and lifts), the area of partition walls and the total net and gross area of new build. Amend or delete these rows as necessary to match the requirements of the project, and add more totals if there is refurbishment or remodelling, in the Project SoA before migrating to the School-specific SoA and ADS template.
B158: 4.1 | C158: Continue to create and amend the area data summary worksheets in the School-specific SoA and ADS template

Sheet Secondary SoA
D1: SCHEDULE OF ACCOMMODATION FOR ANY MAINSTREAM SECONDARY SCHOOL | AK1: Version 8.3 November 2023 | AQ1: Technical notes (not for printing) | CP1: NET CAPACITY ASSESSMENT CALCULATIONS | EY1: 1 | EZ1: 2 | FA1: 3 | FB1: 4 | FC1: 5 | FD1: 6 | FE1: 7 | FF1: 8 | FG1: 9 | FH1: 10 | FI1: 11 | FJ1: 12 | FK1: 13 | FL1: 14 | FM1: 15 | FN1: 16 | FO1: 17 | FP1: 18 | FQ1: 19 | FR1: 20 | FS1: 21 | FT1: 22 | FU1: 23 | FV1: 24 | FW1: 25 | FX1: 26 | FY1: 27 | FZ1: 28 | GA1: 29 | GB1: 30 | GC1: 31 | GD1: 32 | GE1: 33 | GF1: 34 | GG1: 35 | GH1: 36 | GI1: 37 | GJ1: 38 | GK1: 39 | GL1: 40 | GM1: 41 | GN1: 42 | GO1: 43 | GP1: 44 | GQ1: 45 | GR1: 46 | GS1: 47 | GT1: 48 | GU1: 49 | GV1: 50 | GW1: 51 | GX1: 52 | GY1: 53 | GZ1: 54 | HA1: 55 | HB1: 56 | HC1: 57 | HD1: 58 | HE1: 59 | HF1: 60 | HG1: 61 | HH1: 62 | HI1: 63 | HJ1: 64 | HK1: 65 | HL1: 66 | HM1: 67 | HN1: 68 | HO1: 69 | HP1: 70 | HQ1: 71 | HR1: 72 | HS1: 73 | HT1: 74 | HU1: 75 | HV1: 76 | HW1: 77 | HX1: 78 | HY1: 79 | HZ1: 80 | IA1: 81 | IB1: 82 | IC1: 83 | ID1: 84 | IE1: 85 | IF1: 86 | IG1: 87 | IH1: 88 | II1: 89 | IJ1: 90 | IK1: 91 | IL1: 92 | IM1: 93 | IN1: 94 | IO1: 95 | IP1: 96 | IQ1: 97 | IR1: 98 | IS1: 99 | IT1: 100 | IU1: 101 | IV1: 102 | IW1: 103 | IX1: 104 | IY1: 105 | IZ1: 106 | JA1: 107 | JB1: 108 | JC1: 109 | JD1: 110 | JE1: 111 | JF1: 112 | JG1: 113 | JH1: 114 | JI1: 115 | JJ1: 116 | JK1: 117 | JL1: 118 | JM1: 119 | JN1: 120 | JO1: 121 | JP1: 122 | JQ1: 123 | JR1: 124 | JS1: 125 | JT1: 126 | JU1: 127 | JV1: 128 | JW1: 129 | JX1: 130 | JY1: 131 | JZ1: 132 | KA1: 133 | KB1: 134 | KC1: 135 | KD1: 136 | KE1: 137 | KF1: 138 | KG1: 139 | KH1: 140 | KI1: 141 | KJ1: 142 | KK1: 143 | KL1: 144 | KM1: 145 | KN1: 146 | KO1: 147 | KP1: 148 | KQ1: 149 | KR1: 150 | KS1: 151 | KT1: 152 | KU1: 153 | KV1: 154 | KW1: 155 | KX1: 156 | KY1: 157 | KZ1: 158 | LA1: 159 | LB1: 160 | LC1: 161 | LD1: 162 | LE1: 163 | LF1: 164 | LG1: 165 | LH1: 166 | LI1: 167 | LJ1: 168 | LK1: 169 | LL1: 170 | LM1: 171 | LN1: 172 | LO1: 173 | LP1: 174 | LQ1: 175 | LR1: 176 | LS1: 177 | LT1: 178 | LU1: 179 | LV1: 180 | LW1: 181 | LX1: 182 | LY1: 183 | LZ1: 184 | MA1: 185 | MB1: 186 | MC1: 187 | MD1: 188 | ME1: 189 | MF1: 190 | MG1: 191 | MH1: 192 | MI1: 193 | MJ1: 194 | MK1: 195 | ML1: 196 | MM1: 197 | MN1: 198 | MO1: 199 | MP1: 200 | MQ1: 201 | MR1: 202 | MS1: 203 | MT1: 204 | MU1: 205 | MV1: 206 | MW1: 207 | MX1: 208 | MY1: 209 | MZ1: 210 | NA1: 211 | NB1: 212 | NC1: 213 | ND1: 214 | NE1: 215 | NF1: 216 | NG1: 217 | NH1: 218 | NI1: 219 | NJ1: 220 | NK1: 221 | NL1: 222 | NM1: 223 | NN1: 224 | NO1: 225 | NP1: 226 | NQ1: 227 | NR1: 228 | NS1: 229 | NT1: 230 | NU1: 231 | NV1: 232 | NW1: 233 | NX1: 234 | NY1: 235 | NZ1: 236 | OA1: 237 | OB1: 238 | OC1: 239 | OD1: 240 | OE1: 241 | OF1: 242 | OG1: 243 | OH1: 244 | OI1: 245 | OJ1: 246 | OK1: 247 | OL1: 248 | OM1: 249 | ON1: 250 | OO1: 251 | OP1: 252 | OQ1: 253 | OR1: 254 | OS1: 255 | OT1: 256 | OU1: 257 | OV1: 258 | OW1: 259 | OX1: 260 | OY1: 261 | OZ1: 262 | PA1: 263 | PB1: 264 | PC1: 265 | PD1: 266 | PE1: 267 | PF1: 268 | PG1: 269 | PH1: 270 | PI1: 271 | PJ1: 272 | PK1: 273 | PL1: 274 | PM1: 275 | PN1: 276 | PO1: 277 | PP1: 278 | PQ1: 279 | PR1: 280 | PS1: 281 | PT1: 282 | PU1: 283 | PV1: 284 | PW1: 285 | PX1: 286 | PY1: 287 | PZ1: 288 | QA1: 289 | QB1: 290 | QC1: 291 | QD1: 292 | QE1: 293 | QF1: 294 | QG1: 295 | QH1: 296 | QI1: 297 | QJ1: 298 | QK1: 299 | QL1: 300 | QM1: 301 | QN1: 302 | QO1: 303 | QP1: 304 | QQ1: 305 | QR1: 306 | QS1: 307 | QT1: 308 | QU1: 309 | QV1: 310 | QW1: 311 | QX1: 312 | QY1: 313 | QZ1: 314 | RA1: 315 | RB1: 316 | RC1: 317 | RD1: 318 | RE1: 319 | RF1: 320 | RG1: 321 | RH1: 322 | RI1: 323 | RJ1: 324 | RK1: 325 | RL1: 326 | RM1: 327 | RN1: 328 | RO1: 329 | RP1: 330 | RQ1: 331 | RR1: 332 | RS1: 333 | RT1: 334 | RU1: 335 | RV1: 336 | RW1: 337 | RX1: 338 | RY1: 339 | RZ1: 340 | SA1: 341 | SB1: 342 | SC1: 343 | SD1: 344 | SE1: 345 | SF1: 346 | SG1: 347 | SH1: 348 | SI1: 349 | SJ1: 350 | SK1: 351 | SL1: 352 | SM1: 353 | SN1: 354 | SO1: 355 | SP1: 356 | SQ1: 357 | SR1: 358 | SS1: 359 | ST1: 360 | SU1: 361 | SV1: 362 | SW1: 363 | SX1: 364 | SY1: 365 | SZ1: 366 | TA1: 367 | TB1: 368 | TC1: 369 | TD1: 370 | TE1: 371 | TF1: 372 | TG1: 373 | TH1: 374 | TI1: 375 | TJ1: 376 | TK1: 377 | TL1: 378 | TM1: 379 | TN1: 380 | TO1: 381 | TP1: 382 | TQ1: 383 | TR1: 384 | TS1: 385 | TT1: 386 | TU1: 387 | TV1: 388 | TW1: 389 | TX1: 390 | TY1: 391 | TZ1: 392 | UA1: 393 | UB1: 394 | UC1: 395 | UD1: 396 | UE1: 397 | UF1: 398 | UG1: 399 | UH1: 400 | UI1: 401 | UJ1: 402 | UK1: 403 | UL1: 404 | UM1: 405 | UN1: 406 | UO1: 407 | UP1: 408 | UQ1: 409 | UR1: 410 | US1: 411 | UT1: 412 | UU1: 413 | UV1: 414 | UW1: 415 | UX1: 416 | UY1: 417 | UZ1: 418 | VA1: 419 | VB1: 420 | VC1: 421 | VD1: 422 | VE1: 423 | VF1: 424 | VG1: 425 | VH1: 426 | VI1: 427 | VJ1: 428 | VK1: 429 | VL1: 430 | VM1: 431 | VN1: 432 | VO1: 433 | VP1: 434 | VQ1: 435 | VR1: 436 | VS1: 437 | VT1: 438 | VU1: 439 | VV1: 440 | VW1: 441 | VX1: 442 | VY1: 443 | VZ1: 444 | WA1: 445 | WB1: 446 | WC1: 447 | WD1: 448 | WE1: 449 | WF1: 450 | WG1: 451 | WH1: 452 | WI1: 453 | WJ1: 454 | WK1: 455 | WL1: 456 | WM1: 457 | WN1: 458 | WO1: 459 | WP1: 460 | WQ1: 461 | WR1: 462 | WS1: 463 | WT1: 464 | WU1: 465 | WV1: 466 | WW1: 467 | WX1: 468 | WY1: 469 | WZ1: 470 | XA1: 471 | XB1: 472 | XC1: 473 | XD1: 474 | XE1: 475 | XF1: 476 | XG1: 477 | XH1: 478 | XI1: 479 | XJ1: 480 | XK1: 481 | XL1: 482 | XM1: 483 | XN1: 484 | XO1: 485 | XP1: 486 | XQ1: 487 | XR1: 488 | XS1: 489 | XT1: 490 | XU1: 491 | XV1: 492 | XW1: 493 | XX1: 494 | XY1: 495 | XZ1: 496 | YA1: 497 | YB1: 498 | YC1: 499 | YD1: 500
J2: age range | K2: 11-18 | R2: school name | S2: ='Title and instructions'!B15 -> [Insert Project Code and Scheme Name here in title sheet] | AF2: date | AI2: as a check, if new: | AU2: years | AV2: places | AW2: group size | AY2: yr groups | AZ2: places/ yr | BC2: contractor name | BM2: Optional SoA by suite: identifying which spaces are in each suite of spaces | DA2: =MAXA(1,ROUNDDOWN(K5/150,0)) -> 6 | DB2: FE 11-16 | DF2: 1 | DG2: 1 | DH2: 1 | DI2: 1 | DJ2: 1 | DK2: 1 | DL2: 1 | DM2: 1 | DS2: =IF(SUM(DU17:DU67)=0,"OK: proposed basic teaching spaces sufficient",IF(COUNTIF(DU17:DU67,">0")>0,"NOTE: overprovision in proposed basic teaching spaces","NOTE: proposed basic teaching spaces insufficient")) -> NOTE: proposed basic teaching spaces insufficient | EK2: KEY to formatting of existing spaces cells: | EY2: Keep | EZ2: Keep | FA2: Keep | FB2: Keep | FC2: Keep | FD2: Keep | FE2: Keep | FF2: Keep | FG2: Keep | FH2: Keep | FI2: Keep | FJ2: Keep | FK2: Keep | FL2: Keep | FM2: Keep | FN2: Keep | FO2: Keep | FP2: Keep | FQ2: Keep | FR2: Keep | FS2: Keep | FT2: Keep | FU2: Keep | FV2: Keep | FW2: Keep | FX2: Keep | FY2: Keep | FZ2: Keep | GA2: Keep | GB2: Keep | GC2: Keep | GD2: Keep | GE2: Keep | GF2: Keep | GG2: Keep | GH2: Keep | GI2: Keep | GJ2: Keep | GK2: Keep | GL2: Keep | GM2: Keep | GN2: Keep | GO2: Keep | GP2: Keep | GQ2: Keep | GR2: Keep | GS2: Keep | GT2: Keep | GU2: Keep | GV2: Keep | GW2: Keep | GX2: Keep | GY2: Keep | GZ2: Keep | HA2: Keep | HB2: Keep | HC2: Keep | HD2: Keep | HE2: Keep | HF2: Keep | HG2: Keep | HH2: Keep | HI2: Keep | HJ2: Keep | HK2: Keep | HL2: Keep | HM2: Keep | HN2: Keep | HO2: Keep | HP2: Keep | HQ2: Keep | HR2: Keep | HS2: Keep | HT2: Keep | HU2: Keep | HV2: Keep | HW2: Keep | HX2: Keep | HY2: Keep | HZ2: Keep | IA2: Keep | IB2: Keep | IC2: Keep | ID2: Keep | IE2: Keep | IF2: Keep | IG2: Keep | IH2: Keep | II2: Keep | IJ2: Keep | IK2: Keep | IL2: Keep | IM2: Keep | IN2: Keep | IO2: Keep | IP2: Keep | IQ2: Keep | IR2: Keep | IS2: Keep | IT2: Keep | IU2: Keep | IV2: Keep | IW2: Keep | IX2: Keep | IY2: Keep | IZ2: Keep | JA2: Keep | JB2: Keep | JC2: Keep | JD2: Keep | JE2: Keep | JF2: Keep | JG2: Keep | JH2: Keep | JI2: Keep | JJ2: Keep | JK2: Keep | JL2: Keep | JM2: Keep | JN2: Keep | JO2: Keep | JP2: Keep | JQ2: Keep | JR2: Keep | JS2: Keep | JT2: Keep | JU2: Keep | JV2: Keep | JW2: Keep | JX2: Keep | JY2: Keep | JZ2: Keep | KA2: Keep | KB2: Keep | KC2: Keep | KD2: Keep | KE2: Keep | KF2: Keep | KG2: Keep | KH2: Keep | KI2: Keep | KJ2: Keep | KK2: Keep | KL2: Keep | KM2: Keep | KN2: Keep | KO2: Keep | KP2: Keep | KQ2: Keep | KR2: Keep | KS2: Keep | KT2: Keep | KU2: Keep | KV2: Keep | KW2: Keep | KX2: Keep | KY2: Keep | KZ2: Keep | LA2: Keep | LB2: Keep | LC2: Keep | LD2: Keep | LE2: Keep | LF2: Keep | LG2: Keep | LH2: Keep | LI2: Keep | LJ2: Keep | LK2: Keep | LL2: Keep | LM2: Keep | LN2: Keep | LO2: Keep | LP2: Keep | LQ2: Keep | LR2: Keep | LS2: Keep | LT2: Keep | LU2: Keep | LV2: Keep | LW2: Keep | LX2: Keep | LY2: Keep | LZ2: Keep | MA2: Keep | MB2: Keep | MC2: Keep | MD2: Keep | ME2: Keep | MF2: Keep | MG2: Keep | MH2: Keep | MI2: Keep | MJ2: Keep | MK2: Keep | ML2: Keep | MM2: Keep | MN2: Keep | MO2: Keep | MP2: Keep | MQ2: Keep | MR2: Keep | MS2: Keep | MT2: Keep | MU2: Keep | MV2: Keep | MW2: Keep | MX2: Keep | MY2: Keep | MZ2: Keep | NA2: Keep | NB2: Keep | NC2: Keep | ND2: Keep | NE2: Keep | NF2: Keep | NG2: Keep | NH2: Keep | NI2: Keep | NJ2: Keep | NK2: Keep | NL2: Keep | NM2: Keep | NN2: Keep | NO2: Keep | NP2: Keep | NQ2: Keep | NR2: Keep | NS2: Keep | NT2: Keep | NU2: Keep | NV2: Keep | NW2: Keep | NX2: Keep | NY2: Keep | NZ2: Keep | OA2: Keep | OB2: Keep | OC2: Keep | OD2: Keep | OE2: Keep | OF2: Keep | OG2: Keep | OH2: Keep | OI2: Keep | OJ2: Keep | OK2: Keep | OL2: Keep | OM2: Keep | ON2: Keep | OO2: Keep | OP2: Keep | OQ2: Keep | OR2: Keep | OS2: Keep | OT2: Keep | OU2: Keep | OV2: Keep | OW2: Keep | OX2: Keep | OY2: Keep | OZ2: Keep | PA2: Keep | PB2: Keep | PC2: Keep | PD2: Keep | PE2: Keep | PF2: Keep | PG2: Keep | PH2: Keep | PI2: Keep | PJ2: Keep | PK2: Keep | PL2: Keep | PM2: Keep | PN2: Keep | PO2: Keep | PP2: Keep | PQ2: Keep | PR2: Keep | PS2: Keep | PT2: Keep | PU2: Keep | PV2: Keep | PW2: Keep | PX2: Keep | PY2: Keep | PZ2: Keep | QA2: Keep | QB2: Keep | QC2: Keep | QD2: Keep | QE2: Keep | QF2: Keep | QG2: Keep | QH2: Keep | QI2: Keep | QJ2: Keep | QK2: Keep | QL2: Keep | QM2: Keep | QN2: Keep | QO2: Keep | QP2: Keep | QQ2: Keep | QR2: Keep | QS2: Keep | QT2: Keep | QU2: Keep | QV2: Keep | QW2: Keep | QX2: Keep | QY2: Keep | QZ2: Keep | RA2: Keep | RB2: Keep | RC2: Keep | RD2: Keep | RE2: Keep | RF2: Keep | RG2: Keep | RH2: Keep | RI2: Keep | RJ2: Keep | RK2: Keep | RL2: Keep | RM2: Keep | RN2: Keep | RO2: Keep | RP2: Keep | RQ2: Keep | RR2: Keep | RS2: Keep | RT2: Keep | RU2: Keep | RV2: Keep | RW2: Keep | RX2: Keep | RY2: Keep | RZ2: Keep | SA2: Keep | SB2: Keep | SC2: Keep | SD2: Keep | SE2: Keep | SF2: Keep | SG2: Keep | SH2: Keep | SI2: Keep | SJ2: Keep | SK2: Keep | SL2: Keep | SM2: Keep | SN2: Keep | SO2: Keep | SP2: Keep | SQ2: Keep | SR2: Keep | SS2: Keep | ST2: Keep | SU2: Keep | SV2: Keep | SW2: Keep | SX2: Keep | SY2: Keep | SZ2: Keep | TA2: Keep | TB2: Keep | TC2: Keep | TD2: Keep | TE2: Keep | TF2: Keep | TG2: Keep | TH2: Keep | TI2: Keep | TJ2: Keep | TK2: Keep | TL2: Keep | TM2: Keep | TN2: Keep | TO2: Keep | TP2: Keep | TQ2: Keep | TR2: Keep | TS2: Keep | TT2: Keep | TU2: Keep | TV2: Keep | TW2: Keep | TX2: Keep | TY2: Keep | TZ2: Keep | UA2: Keep | UB2: Keep | UC2: Keep | UD2: Keep | UE2: Keep | UF2: Keep | UG2: Keep | UH2: Keep | UI2: Keep | UJ2: Keep | UK2: Keep | UL2: Keep | UM2: Keep | UN2: Keep | UO2: Keep | UP2: Keep | UQ2: Keep | UR2: Keep | US2: Keep | UT2: Keep | UU2: Keep | UV2: Keep | UW2: Keep | UX2: Keep | UY2: Keep | UZ2: Keep | VA2: Keep | VB2: Keep | VC2: Keep | VD2: Keep | VE2: Keep | VF2: Keep | VG2: Keep | VH2: Keep | VI2: Keep | VJ2: Keep | VK2: Keep | VL2: Keep | VM2: Keep | VN2: Keep | VO2: Keep | VP2: Keep | VQ2: Keep | VR2: Keep | VS2: Keep | VT2: Keep | VU2: Keep | VV2: Keep | VW2: Keep | VX2: Keep | VY2: Keep | VZ2: Keep | WA2: Keep | WB2: Keep | WC2: Keep | WD2: Keep | WE2: Keep | WF2: Keep | WG2: Keep | WH2: Keep | WI2: Keep | WJ2: Keep | WK2: Keep | WL2: Keep | WM2: Keep | WN2: Keep | WO2: Keep | WP2: Keep | WQ2: Keep | WR2: Keep | WS2: Keep | WT2: Keep | WU2: Keep | WV2: Keep | WW2: Keep | WX2: Keep | WY2: Keep | WZ2: Keep | XA2: Keep | XB2: Keep | XC2: Keep | XD2: Keep | XE2: Keep | XF2: Keep | XG2: Keep | XH2: Keep | XI2: Keep | XJ2: Keep | XK2: Keep | XL2: Keep | XM2: Keep | XN2: Keep | XO2: Keep | XP2: Keep | XQ2: Keep | XR2: Keep | XS2: Keep | XT2: Keep | XU2: Keep | XV2: Keep | XW2: Keep | XX2: Keep | XY2: Keep | XZ2: Keep | YA2: Keep | YB2: Keep | YC2: Keep | YD2: Keep
K3: =IF(O6=2,IF(K6>0,"","check age range and places"),IF(O6=0,IF(K6>0,"check age range and places",""))) ->  | O3: years | DS3: =IF(SUM(DU69:DU72)=0,"OK: proposed large spaces sufficient",IF(COUNTIF(DU69:DU72,">0")>0,"NOTE: overprovision in proposed large spaces","NOTE: proposed large spaces insufficient")) -> NOTE: proposed large spaces insufficient | EM3: Below Minimum Possible Area
C4: 6 | D4: FE | S4: 2023 net capacity | Z4: site: | AA4: sufficient | AF4: no. of blocks: | AG4: 2 | AJ4: net capacity | AN4: site | AO4: =VLOOKUP(AA4,'Prog Assums'!B6:D14,3,FALSE) -> OK | AT4: KS2 | AU4: =VLOOKUP(K$2,'Prog Assums'!E$5:J$17,3,FALSE) -> 0 | AV4: =IF(K4>0,(K4/(AS5+AS6+AY4))*AY4,0) -> 0 | AW4: =IF(AV4>0,ROUND(AZ4/ROUNDUP(AZ4/30,0),1),0) -> 0 | AX4: =IF(AV4>0,ROUND(AZ4/ROUNDUP(AZ4/30,0),1),0) -> 0 | AY4: =VLOOKUP(K2,'Prog Assums'!E6:K17,3,FALSE) -> 0 | AZ4: =AV4/AY4 ->  | BG4: Design SoA | BO4: =BO15 -> Mathematics | BQ4: =BQ15 -> English | BS4: =BS15 -> MFL | BU4: =BU15 -> Humanities | BW4: =BW15 -> ICT and Business Studies | BY4: =BY15 -> Science | CA4: =CA15 -> DT/ Art | CC4: =CC15 -> Perf arts, hall and dining | CE4: =CE15 -> Sports/ PE | CG4: =CG15 -> Admin | CI4: =CI15 -> - | CK4: =CK15 -> Balance | DA4: =MAXA(1,ROUNDDOWN(K8/150,0)) -> 7 | DB4: FE total | DD4: =IF(K4>0,1,0) -> 0 | DS4: =IF(SUM(DU76:DU94)=0,"OK: proposed learning resource spaces sufficient",IF(COUNTIF(DU76:DU94,">0")>0,"NOTE: overprovision in proposed learning resource spaces","NOTE: proposed learning resource spaces insufficient")) -> NOTE: proposed learning resource spaces insufficient | EM4: Between Restric-tive and Minimum
A5: =C$6*C$4*(AU5+AU6) -> 900 | C5: classes of | J5: 11 to 16 places | K5: =A5 -> 900 | O5: =AY5+AY6 -> 5 | U5: for SoA below = | V5: =IF(K8<V8,IF(K8>S8,K8,S8),V8) -> 1125 | Y5: =IF(V5<K8,"WARNING: under capacity",IF(V5>K8+10,"NOTE: over capacity","")) ->  | AI5: for recommended | AN5: sites | AO5: =VLOOKUP(AA4,'Prog Assums'!B6:D14,2,FALSE) -> 1 | AT5: KS3 | AU5: =VLOOKUP(K$2,'Prog Assums'!E$5:J$17,4,FALSE) -> 3 | AV5: =IF(K5>0,(K5/(AY5+AY6))*AY5,0) -> 540 | AW5: =IF(AV5>0,ROUND(AZ5/ROUNDUP(AZ5/27,0),1),0) -> 25.7 | AX5: =IF(AV5>0,ROUND(AZ5/ROUND(AZ5/20,0),1),0) -> 20 | AY5: =VLOOKUP(K2,'Prog Assums'!E6:K17,4,FALSE) -> 3 | AZ5: =AV5/AY5 -> 180 | BG5: based on SoA by individual | CQ5: utilisation factor | CR5: =VLOOKUP(K2,'Prog Assums'!E6:L17,8,FALSE) -> 0.71 | CT5: 2023 NCA of SoA | CX5: 2023 NCA of recom'd SoA | DD5: =IF(K5>0,1,0) -> 1 | DF5: =IF(K5>0,1,0) -> 1 | DG5: =IF(K5>0,1,0) -> 1 | DH5: =IF(K5>0,1,0) -> 1 | DI5: =IF(K5>0,1,0) -> 1 | DJ5: =IF($K$6>0,1,0) -> 1 | DK5: =IF($K$6>0,1,0) -> 1 | DL5: 1 | DM5: 1 | DS5: =IF(SUM(DU104:DU129)=0,"OK: proposed staff and admin spaces sufficient",IF(COUNTIF(DU104:DU129,">0")>0,"NOTE: overprovision in proposed staff and admin spaces","NOTE: proposed staff and admin spaces insufficient")) -> NOTE: proposed staff and admin spaces insufficient | EM5: Restrictive
A6: =ROUND(C$6*C$4*A8*AU8,0) -> 225 | C6: 30 | J6: 16 to 19 places | K6: =A6 -> 225 | O6: =AY8 -> 2 | U6: within a potential range of: | AF6: number of storeys: | AG6: =IF(K8<601,"2-storey","3-storey") -> 3-storey | AI6: SoA below: | AK6: =IF(K8<AK8,IF(K8>AI8,K8,AI8),AK8) -> 1125 | AN6: storeys | AO6: =VLOOKUP(AG6,'Prog Assums'!B18:C24,2,FALSE) -> 3 | AT6: KS4 | AU6: =VLOOKUP(K$2,'Prog Assums'!E$5:J$17,5,FALSE) -> 2 | AV6: =IF(K5>0,(K5/(AY5+AY6))*AY6,0) -> 360 | AW6: =IF(AV6>0,ROUND(AZ6/ROUND(AZ6/24,0),1),0) -> 22.5 | AX6: =IF(AV6>0,ROUND(AZ6/ROUND(AZ6/20,0),1),0) -> 20 | AY6: =VLOOKUP(K2,'Prog Assums'!E6:K17,5,FALSE) -> 2 | AZ6: =AV6/AY6 -> 180 | BG6: space showing area of | DE6: =IF(K8>200,IF(K6>0,1,0),0) -> 1 | DS6: =IF(SUM(DU132:DU164)=0,"OK: proposed storage spaces sufficient",IF(COUNTIF(DV132:DV164,">0")>0,"NOTE: overprovision in proposed storage spaces","NOTE: proposed storage spaces insufficient")) -> NOTE: proposed storage spaces insufficient | EM6: OK
EY7: GT
A8: =IF(O6>0,62.5%,0) -> 0.625 | J8: Total Mainstream Places | K8: =K5+K6 -> 1125 | S8: =CV10 -> 1093 | U8: to | V8: =CT10 -> 1215 | AF8: existing buildings to be: | AG8: some retained | AI8: =CZ10 -> 1093 | AJ8: to | AK8: =CX10 -> 1215 | AN8: buildings | AO8: =VLOOKUP(AG8,'Prog Assums'!B28:C33,2,FALSE) -> extg | AT8: KS5 | AU8: =VLOOKUP(K$2,'Prog Assums'!E$5:J$17,6,FALSE) -> 2 | AV8: =K6 -> 225 | AW8: =IF(AV8>0,ROUND(AZ8/ROUND(AZ8/18,0),1),0) -> 18.8 | AX8: =IF(AV8>0,ROUND(AZ8/ROUND(AZ8/12,0),1),0) -> 12.5 | AY8: =VLOOKUP(K2,'Prog Assums'!E6:K17,6,FALSE) -> 2 | AZ8: =AV8/AY8 -> 112.5 | BG8: each space as designed | CQ8: area of sites | CR8: =AO4 -> OK | CT8: net capacity | CX8: net capacity | EM8: Extensive | EY8: E.g. AA
CT9: max | CV9: min | CX9: max | CZ9: min | EM9: Above Maximum Possible Area | EY9: 101
AA10: =IF(AC168="OK",AF166,AC168) -> 0 | AB10: =IF(AC168="OK","float if rec'd net","over rec'd net") -> float if rec'd net | AF10: =IF(AC214="OK","not",AC214) -> not | AG10: over rec'd gross | AI10: recommended | AN10: =VLOOKUP(AG67,'Prog Assums'!B98:E103,2,FALSE) -> both | AW10: max percentage of curriculum that can be | CQ10: number of sites | CR10: =AO5 -> 1 | CT10: =MAXA(CT14,CU14) -> 1215 | CV10: =ROUNDDOWN(CT10*0.9,0) -> 1093 | CX10: =MAXA(CX14,CY14) -> 1215 | CZ10: =ROUNDDOWN(CX10*0.9,0) -> 1093 | EX10: Block ref - | EY10: S
D11: Additionally resourced places for: | AW11: accommodated at frequency of use shown, | EX11: Net Area - | EY11: =56-SUM(INDIRECT(ADDRESS(ROW()+3, COLUMN())):INDIRECT(ADDRESS(ROW()+148, COLUMN()))) -> 56
D12: - | L12: SEN | Q12: =IF(K8>1900,"NOTE manual amendments needed for large schools","") ->  | AD12: curriculum | AG12: C: typical | AN12: =IF(AO12="unit",0,IF(AO12="SRP",0,100)) -> 100 | AO12: =IF(K14>0,VLOOKUP(D12,'Prog Assums'!B82:D94,3,FALSE),"") -> 0 | AW12: with average group size as listed to left | CM12: availability priority category | CN12: consequential unavailability | CQ12: workplaces included | CT12: =SUM(CU19:CU60)+SUM(CU64:CU67)+SUM(CU76:CU94) -> 1772 | CU12: =SUM(CU19:CU164) -> 1966 | CV12: =SUM(CV19:CV164) -> 397.5 | CW12: =IF(CR8="tight",50)+(CR10*75) -> 75 | CX12: =SUM(CY19:CY60)+SUM(CY64:CY67)+SUM(CY76:CY94) -> 1772 | CY12: =SUM(CY19:CY164) -> 1966 | CZ12: =SUM(CZ19:CZ164) -> 396 | DB12: recommended numbers | DF12: 11 to 16 spaces | DJ12: 16 to 19 spaces | EX12: Non Net Area - | EY12: =-SUM(INDIRECT(ADDRESS(ROW()+151, COLUMN())):INDIRECT(ADDRESS(ROW()+170, COLUMN()))) -> 0
J14: curriculum analysis data | K14: =IF('curriculum analysis (optional)'!AO73>0,"linked", "manual") -> manual | CQ14: total x utilisation | CT14: =ROUNDDOWN((CT12-60)*$CR5,0) -> 1215 | CU14: =ROUNDDOWN((CU12-$CW12)*0.7*$CR5,0) -> 939 | CX14: =ROUNDDOWN((CX12-60)*$CR5,0) -> 1215 | CY14: =ROUNDDOWN((CY12-$CW12)*0.7*$CR5,0) -> 939 | DB14: based on 'rule of thumb' | DU14: Difference | EA14: New Build Works | EG14: Remodelling Works | EM14: Refurbishment Works | ET14: Keep (as existing)
A15: Parent ADS code | C15: Final ADS code | D15: Space type | O15: existing or new (new if blank) | Q15: max. group size | S15: average area of space (m2) | U15: TOTAL no. of spaces | V15: TOTAL AREA (m2) | W15: NON-NET AREA (m2) | Y15: SUPP AREA (m2) | AA15: AREA OF RE-TAINED SPACES | AI15: area of space (m2) | AK15: no. of spaces (& total supp area) | AN15: storage or prep req'd | AP15: max group size | AQ15: min for min group | AR15: max for max group | AS15: Total recom'd area (m2) | AT15: Total SEN area (m2) | AU15: space size code | AV15: likely average group size | AW15: max part of curriculum accommodated | BC15: notes | BE15: average area of space (m2) | BG15: TOTAL no. of spaces | BH15: TOTAL AREA (incl supp) | BJ15: Area differ-ence | BK15: no. of spaces differ-ence | BM15: Total | BO15: Mathematics | BQ15: English | BS15: MFL | BU15: Humanities | BW15: ICT and Business Studies | BY15: Science | CA15: DT/ Art | CC15: Perf arts, hall and dining | CE15: Sports/ PE | CG15: Admin | CI15: =D12 -> - | CK15: Balance | CQ15: formula per work place | CR15: formula to be sub-tracted | CS15: work places per room | CT15: basic work places per room | CU15: total basic work places | CV15: total re-source work places | CW15: basic work place allow-ance | CX15: basic work places per room | CY15: total basic work places | CZ15: total re-source work places | DA15: max group size | DB15: area | DC15: 4 to 10 spaces | DD15: 11 to 16 spaces | DE15: sixth form spaces | DF15: ='Prog Assums'!B45 -> A: vocational | DG15: ='Prog Assums'!B46 -> B: music/ sports | DH15: ='Prog Assums'!B47 -> C: typical | DI15: ='Prog Assums'!B48 -> D: academic | DJ15: ='Prog Assums'!B45 -> A: vocational | DK15: ='Prog Assums'!B46 -> B: music/ sports | DL15: ='Prog Assums'!B47 -> C: typical | DM15: ='Prog Assums'!B48 -> D: academic | DN15: ='Prog Assums'!AE4 -> min possible area | DO15: ='Prog Assums'!AF4 -> Min rec'd Area if restrictive (or 10%) | DP15: ='Prog Assums'!AG4 -> Min rec'd Area if standard | DQ15: ='Prog Assums'!AH4 -> Min rec'd Area if extensive | DR15: ='Prog Assums'!AI4 -> max possible area | DS15: average area of space (m2) | DU15: TOTAL no. of spaces | DV15: TOTAL AREA (m2) | DY15: average area of space (m2) | EA15: TOTAL no. of spaces | EB15: TOTAL AREA (m2) | EE15: average area of space (m2) | EG15: TOTAL no. of spaces | EH15: TOTAL AREA (m2) | EK15: average area of space (m2) | EM15: TOTAL no. of spaces | EN15: TOTAL AREA (m2) | ER15: average area of space (m2) | ET15: TOTAL no. of spaces | EU15: TOTAL AREA (m2) | EY15: classroom
D17: Basic Teaching Area | DB17: area
D18: General teaching spaces | AW18: =AW19+AW26+AW31+AW38+AW43+AW49+AW58 -> 1.01679619 | AX18: of curriculum indoors | DC18: =DC20+DC21 -> 0 | DD18: =HLOOKUP($AG$12,$DF$15:$DI$74,4,FALSE) -> 24 | DE18: =HLOOKUP($AG$12,$DJ$15:$DM$74,4,FALSE) -> 6 | DF18: =ROUNDUP(($K$5*3.5/150),0) -> 21 | DG18: =ROUNDUP(($K$5*4/150)-DG5,0) -> 23 | DH18: =ROUNDUP(($K$5*4/150),0) -> 24 | DI18: =ROUNDUP(($K$5*4/150)+DI5,0) -> 25 | DJ18: =ROUNDUP(($K$6*3.5/150),0) -> 6 | DK18: =ROUNDUP(($K$6*4/150),0) -> 6 | DL18: =ROUNDUP(($K$6*4/150),0) -> 6 | DM18: =ROUNDUP(($K$6*4/150)+DM5,0) -> 7
D19: Classrooms | K19: ='curriculum analysis (optional)'!AO110 -> 0 | U19: =U20+U21+U22+U23+U24 -> 30 | AC19: classroom options | AG19: all standard except post-16 | AK19: =AK20+AK21+AK22+AK23+AK24 -> 30 | AV19: =((AW$4*AY$4)+(AV$5/AY$5/DA$2)+(AW$5*(AY$5-1))+(AW$6*AY$6)+(AW$8*AY$8))/(AY$4+AY$5+AY$6+AY$8) -> 23.42857143 | AW19: =(U19*AV19*0.9)/K$8 -> 0.5622857143 | AX19: of curriculum @ 90% use | BG19: =BG20+BG21+BG22+BG24 -> 30 | DU19: =SUM(EA19,EG19,EM19,ET19)-U19 -> -30 | EA19: =SUM(EA20:EA24) -> 0 | EB19: =SUM(EB20:EB24) -> 0 | EG19: =SUM(EG20:EG24) -> 0 | EH19: =SUM(EH20:EH24) -> 0 | EM19: =SUM(EM20:EM24) -> 0 | EN19: =SUM(EN20:EN24) -> 0 | ET19: =SUM(ET20:ET24) -> 0 | EU19: =SUM(EU20:EU24) -> 0
A20: =VLOOKUP($D20,'Prog Assums'!$N$5:$AM$294,10, FALSE) -> CLA02 | C20: =VLOOKUP($D20,'Prog Assums'!$N$5:$AM$294,8, FALSE) -> CLA02 | D20: Seminar rooms | M20: =IF(D20="","",_xlfn.XLOOKUP(D20,'Prog Assums'!$N$7:$N$221,'Prog Assums'!$AQ$7:$AQ$221,"")) -> Seminar room | N20: =CONCATENATE(M20,S20) -> Seminar room41 | Q20: =IF(S20>0,ROUND((S20-VLOOKUP(AU20,'Prog Assums'!$E$38:$I$54,2,FALSE))/VLOOKUP(AU20,'Prog Assums'!$E$38:$I$54,3,FALSE),0),"") -> 22 | S20: =VLOOKUP(D20,'Prog Assums'!N$5:U$271,5,FALSE) -> 41 | U20: =AK20 -> 3 | V20: =MAXA(0,(S20*U20)-Y20) -> 123 | AA20: =IF(O20="retained",V20+Y20,IF(O20="refurb'ed",V20+Y20,0)) -> 0 | AC20: =IF(D20="-",0,VLOOKUP(D20,'Prog Assums'!N$5:X$271,11,FALSE)) -> 41 | AD20: =IF(D20="-","","m2 minimum size for 30 pupils") -> m2 minimum size for 30 pupils | AI20: =IF(AK20>0,41,0) -> 41 | AK20: =DD20+DE20+DC20 -> 3 | AN20: =IF(U20>0,VLOOKUP(D20,'Prog Assums'!$N$6:$S$169,6,FALSE),0) -> 1 | AO20: =IF(O20="existing","E","") ->  | AP20: 22 | AQ20: =VLOOKUP(D20,'Prog Assums'!N$5:U$271,5,FALSE) -> 41 | AR20: =ROUNDUP(VLOOKUP(AU20,'Prog Assums'!$E$38:$I$54,4,FALSE)+(AP20*VLOOKUP(AU20,'Prog Assums'!$E$38:$I$54,5,FALSE)),0) -> 47 | AS20: =MAXA((AI20*AK20)-AT20,0) -> 123 | AU20: C | BE20: =IF(ISERROR(AVERAGEIF('Individual Spaces'!F:F,'Secondary SoA'!$N20,'Individual Spaces'!K:K))=TRUE,"",AVERAGEIF('Individual Spaces'!F:F,'Secondary SoA'!$N20,'Individual Spaces'!K:K)) ->  | BG20: =COUNTIF('Individual Spaces'!F:F,'Secondary SoA'!$N20) -> 3 | BH20: =IF(ISERROR(BE20*BG20)=TRUE,"",BE20*BG20) ->  | BJ20: =IF(ISERROR(BH20-Y20-V20)=TRUE,"",BH20-Y20-V20) ->  | BK20: =BG20-U20 -> 0 | BM20: =SUM(BO20:CK20) -> 3 | BO20: =ROUNDUP($U20/3,0) -> 1 | BQ20: =ROUNDUP($U20/3,0) -> 1 | BS20: =ROUND($U$20/3,0) -> 1 | CM20: =IF($S20>0,VLOOKUP($D20,'Prog Assums'!$N$5:$AM$294,12, FALSE),"") -> 41m2 for 22 | CN20: =IF($S20>0,VLOOKUP($D20,'Prog Assums'!$N$5:$AM$294,13, FALSE),"") -> B | CQ20: =IF(S20>90,2.5,1.5) -> 1.5 | CR20: =IF(S20>90,-20,4) -> 4 | CS20: =IF(U20=0,0,MAXA(1,ROUNDUP((S20/CQ20)-CR20,0))) -> 24 | CT20: =IF(CS20>14,IF(CS20<31,CS20,ROUNDDOWN(CS20/30,0)*30),0) -> 24 | CU20: =IF(S20>0,(V20/S20)*CT20,0) -> 72 | CV20: =IF(CS20>0,(V20/S20)*CS20,0)-CU20 -> 0 | CW20: =IF(AK20=0,0,MAXA(1,ROUNDUP((AI20/CQ20)-CR20,0))) -> 24 | CX20: =IF(CW20>14,IF(CW20<31,CW20,ROUNDDOWN(CW20/30,0)*30),0) -> 24 | CY20: =IF(AK20>0,(AS20/AI20)*CX20,0) -> 72 | CZ20: =IF(CW20>0,(AS20/AI20)*CW20,0)-CY20 -> 0 | DA20: 20 | DE20: =ROUNDDOWN(DE18/2,0) -> 3 | DJ20: =ROUNDDOWN(DJ18/2,0) -> 3 | DK20: =ROUNDDOWN(DK18/2,0) -> 3 | DL20: 3 | DM20: 3 | DN20: =VLOOKUP($C20,'Prog Assums'!$U$5:$AI$293,11,FALSE) -> 25 | DO20: =VLOOKUP($C20,'Prog Assums'!$U$5:$AI$293,12,FALSE) -> 36.9 | DP20: =IF(VLOOKUP($C20,'Prog Assums'!$U$5:$AI$293,13,FALSE)="AS SOA",$AI20,VLOOKUP($C20,'Prog Assums'!$U$5:$AI$293,13,FALSE)) -> 41 | DQ20: =VLOOKUP($C20,'Prog Assums'!$U$5:$AI$293,14,FALSE) -> 46.8 | DR20: =VLOOKUP($C20,'Prog Assums'!$U$5:$AI$293,15,FALSE) -> 50 | DS20: =IF(ISERROR((SUM($EB20,$EH20,$EN20,$EU20)/SUM($EA20,$EG20,$EM20,$ET20)-$S20))=TRUE,0,IF($U20=0,0,(SUM($EB20,$EH20,$EN20,$EU20)/SUM($EA20,$EG20,$EM20,$ET20)-$S20))) -> 0 | DU20: -3 | DV20: =SUM($EU20,$EN20,$EH20,$EB20)-$V20-$Y20 -> -123 | DY20: 0 | EB20: =EA20*DY20 -> 0 | EE20: 0 | EG20: 0 | EH20: =EG20*EE20 -> 0 | EK20: =IF(EN20>0,SUM(EN20/EM20),0) -> 0 | EM20: =COUNTIFS($EY$2:$YD$2,"Refurb",$EY20:$YD20,">0") -> 0 | EN20: =SUMIF($EY$2:$YD$2,"Refurb",$EY20:$YD20) -> 0 | ER20: =IF(EU20>0,SUM(EU20/ET20),0) -> 0 | ET20: =COUNTIFS($EY$2:$YD$2,'Prog Assums'!$B$130,$EY20:$YD20,">0") -> 0 | EU20: =SUMIF($EY$2:$YD$2,'Prog Assums'!$B$130,$EY20:$YD20) -> 0
A21: =VLOOKUP($D21,'Prog Assums'!$N$5:$AM$294,10, FALSE) -> CLA12 | C21: =VLOOKUP($D21,'Prog Assums'!$N$5:$AM$294,8, FALSE) -> CLA12 | D21: Classrooms (general) | M21: =IF(D21="","",_xlfn.XLOOKUP(D21,'Prog Assums'!$N$7:$N$221,'Prog Assums'!$AQ$7:$AQ$221,"")) -> Classrooms (general) | N21: =CONCATENATE(M21,S21) -> Classrooms (general)55 | Q21: =IF(S21>0,ROUND((S21-VLOOKUP(AU21,'Prog Assums'!$E$38:$I$54,2,FALSE))/VLOOKUP(AU21,'Prog Assums'!$E$38:$I$54,3,FALSE),0),"") -> 30 | S21: =VLOOKUP(D21,'Prog Assums'!N$5:U$271,5,FALSE) -> 55 | U21: =AK21 -> 27 | V21: =MAXA(0,(S21*U21)-Y21) -> 1485 | AA21: =IF(O21="retained",V21+Y21,IF(O21="refurb'ed",V21+Y21,0)) -> 0 | AC21: =IF(D21="-",0,VLOOKUP(D21,'Prog Assums'!N$5:X$271,11,FALSE)) -> 55 | AD21: m2 minimum size for 30 pupils | AI21: =IF(AK21>0,55,0) -> 55 | AK21: =DD21+DE21+DC21-AK22-AK23 -> 27 | AN21: =IF(U21>0,VLOOKUP(D21,'Prog Assums'!$N$6:$S$169,6,FALSE),0) -> 1 | AO21: =IF(O21="existing","E","") ->  | AP21: 30 | AQ21: =VLOOKUP(D21,'Prog Assums'!N$5:U$271,5,FALSE) -> 55 | AR21: =ROUNDUP(VLOOKUP(AU21,'Prog Assums'!$E$38:$I$54,4,FALSE)+(AP21*VLOOKUP(AU21,'Prog Assums'!$E$38:$I$54,5,FALSE)),0) -> 62 | AS21: =MAXA((AI21*AK21)-AT21,0) -> 1485 | AU21: C | BE21: =IF(ISERROR(AVERAGEIF('Individual Spaces'!F:F,'Secondary SoA'!$N21,'Individual Spaces'!K:K))=TRUE,"",AVERAGEIF('Individual Spaces'!F:F,'Secondary SoA'!$N21,'Individual Spaces'!K:K)) ->  | BG21: =COUNTIF('Individual Spaces'!F:F,'Secondary SoA'!$N21) -> 27 | BH21: =IF(ISERROR(BE21*BG21)=TRUE,"",BE21*BG21) ->  | BJ21: =IF(ISERROR(BH21-Y21-V21)=TRUE,"",BH21-Y21-V21) ->  | BK21: 0 | BM21: =SUM(BO21:CK21) -> 27 | BO21: =ROUND(K8/150,0)+1-BO20 -> 8 | BQ21: =ROUND(K8/150,0)+1-BQ20 -> 8 | BS21: =ROUNDDOWN((U19-BO21-BQ21)/2,0)-BS20 -> 6 | BU21: =MAXA(0,U21-BO21-BQ21-BS21) -> 5 | CM21: =IF($S21>0,VLOOKUP($D21,'Prog Assums'!$N$5:$AM$294,12, FALSE),"") -> 55m2 for 30 | CN21: =IF($S21>0,VLOOKUP($D21,'Prog Assums'!$N$5:$AM$294,13, FALSE),"") -> B | CQ21: =IF(S21>90,2.5,1.5) -> 1.5 | CR21: =IF(S21>90,-20,4) -> 4 | CS21: =IF(U21=0,0,MAXA(1,ROUNDUP((S21/CQ21)-CR21,0))) -> 33 | CT21: =IF(CS21>14,IF(CS21<31,CS21,ROUNDDOWN(CS21/30,0)*30),0) -> 30 | CU21: =IF(S21>0,(V21/S21)*CT21,0) -> 810 | CV21: =IF(CS21>0,(V21/S21)*CS21,0)-CU21 -> 81 | CW21: =IF(AK21=0,0,MAXA(1,ROUNDUP((AI21/CQ21)-CR21,0))) -> 33 | CX21: =IF(CW21>14,IF(CW21<31,CW21,ROUNDDOWN(CW21/30,0)*30),0) -> 30 | CY21: =IF(AK21>0,(AS21/AI21)*CX21,0) -> 810 | CZ21: =IF(CW21>0,(AS21/AI21)*CW21,0)-CY21 -> 81 | DA21: 30 | DD21: =DD18 -> 24 | DE21: =DE18-DE20 -> 3 | DF21: =DF18 -> 21 | DG21: =DG18 -> 23 | DH21: 24 | DI21: 25 | DJ21: =DJ18-DJ20 -> 3 | DK21: =DK18-DK20 -> 3 | DL21: 3 | DM21: 4 | DN21: =VLOOKUP($C21,'Prog Assums'!$U$5:$AI$293,11,FALSE) -> 25 | DO21: =VLOOKUP($C21,'Prog Assums'!$U$5:$AI$293,12,FALSE) -> 49.5 | DP21: =IF(VLOOKUP($C21,'Prog Assums'!$U$5:$AI$293,13,FALSE)="AS SOA",$AI21,VLOOKUP($C21,'Prog Assums'!$U$5:$AI$293,13,FALSE)) -> 55 | DQ21: =VLOOKUP($C21,'Prog Assums'!$U$5:$AI$293,14,FALSE) -> 62 | DR21: =VLOOKUP($C21,'Prog Assums'!$U$5:$AI$293,15,FALSE) -> 95 | DS21: =IF(ISERROR((SUM($EB21,$EH21,$EN21,$EU21)/SUM($EA21,$EG21,$EM21,$ET21)-$S21))=TRUE,0,IF($U21=0,0,(SUM($EB21,$EH21,$EN21,$EU21)/SUM($EA21,$EG21,$EM21,$ET21)-$S21))) -> 0 | DU21: -27 | DV21: =SUM($EU21,$EN21,$EH21,$EB21)-$V21-$Y21 -> -1485 | DY21: 0 | EB21: =EA21*DY21 -> 0 | EE21: 0 | EH21: =EG21*EE21 -> 0 | EK21: =IF(EN21>0,SUM(EN21/EM21),0) -> 0 | EM21: =COUNTIFS($EY$2:$YD$2,"Refurb",$EY21:$YD21,">0") -> 0 | EN21: =SUMIF($EY$2:$YD$2,"Refurb",$EY21:$YD21) -> 0 | ER21: =IF(EU21>0,SUM(EU21/ET21),0) -> 0 | ET21: =COUNTIFS($EY$2:$YD$2,'Prog Assums'!$B$130,$EY21:$YD21,">0") -> 0 | EU21: =SUMIF($EY$2:$YD$2,'Prog Assums'!$B$130,$EY21:$YD21) -> 0
A22: =VLOOKUP($D22,'Prog Assums'!$N$5:$AM$294,10, FALSE) -> - | C22: =VLOOKUP($D22,'Prog Assums'!$N$5:$AM$294,8, FALSE) -> - | D22: =IF(AG19="some extensive","Classrooms (extensive)",IF(AG19="some variable","Classrooms (larger group)","-")) -> - | M22: =IF(D22="","",_xlfn.XLOOKUP(D22,'Prog Assums'!$N$7:$N$221,'Prog Assums'!$AQ$7:$AQ$221,"")) -> - | N22: =CONCATENATE(M22,S22) -> -0 | O22: =IF(VLOOKUP(D22,'Prog Assums'!N$6:V$92,9,FALSE)>0,"retained","") ->  | Q22: =IF(S22>0,ROUND((S22-VLOOKUP(AU22,'Prog Assums'!$E$38:$I$54,2,FALSE))/VLOOKUP(AU22,'Prog Assums'!$E$38:$I$54,3,FALSE),0),"") ->  | S22: =VLOOKUP(D22,'Prog Assums'!N$5:U$271,5,FALSE) -> 0 | U22: 0 | V22: 0 | AA22: 0 | AC22: =IF(D22="-",0,VLOOKUP(D22,'Prog Assums'!N$5:X$271,11,FALSE)) -> 0 | AD22: =IF(D22="-","","m2 minimum size for 30 pupils") ->  | AI22: =IF(AK22>0,62,0) -> 0 | AK22: =IF(AG$19="some extensive",ROUND((DD$21+DE$21+DC$21)/4,0),IF(AG$19="some variable",AK23,0)) -> 0 | AN22: =IF(U22>0,VLOOKUP(D22,'Prog Assums'!$N$6:$S$169,6,FALSE),0) -> 0 | AP22: =ROUNDDOWN((AQ22-VLOOKUP(AU22,'Prog Assums'!$E$38:$I$54,2,FALSE))/VLOOKUP(AU22,'Prog Assums'!$E$38:$I$54,3,FALSE),0) ->  | AQ22: =VLOOKUP(D22,'Prog Assums'!N$5:U$271,5,FALSE) -> 0 | AR22: =ROUNDUP(VLOOKUP(AU22,'Prog Assums'!$E$38:$I$54,4,FALSE)+(AP22*VLOOKUP(AU22,'Prog Assums'!$E$38:$I$54,5,FALSE)),0) ->  | AS22: 0 | AU22: =VLOOKUP(D22,'Prog Assums'!$N$6:$O$22,2,FALSE) -> - | BE22: =IF(ISERROR(AVERAGEIF('Individual Spaces'!F:F,'Secondary SoA'!$N22,'Individual Spaces'!K:K))=TRUE,"",AVERAGEIF('Individual Spaces'!F:F,'Secondary SoA'!$N22,'Individual Spaces'!K:K)) ->  | BG22: =COUNTIF('Individual Spaces'!F:F,'Secondary SoA'!$N22) -> 0 | BH22: =IF(ISERROR(BE22*BG22)=TRUE,"",BE22*BG22) ->  | BJ22: =IF(ISERROR(BH22-Y22-V22)=TRUE,"",BH22-Y22-V22) ->  | BK22: 0 | BM22: =SUM(BO22:CK22) -> 0 | CM22: =IF($S22>0,VLOOKUP($D22,'Prog Assums'!$N$5:$AM$294,12, FALSE),"") ->  | CN22: =IF($S22>0,VLOOKUP($D22,'Prog Assums'!$N$5:$AM$294,13, FALSE),"") ->  | CQ22: =VLOOKUP(D22,'Prog Assums'!$N$6:$Q$229,3,0) -> 0 | CR22: =VLOOKUP(D22,'Prog Assums'!$N$6:$Q$229,4,0) -> 0 | CS22: 0 | CT22: =IF(CS22>14,IF(CS22<31,CS22,ROUNDDOWN(CS22/30,0)*30),0) -> 0 | CU22: =IF(S22>0,(V22/S22)*CT22,0) -> 0 | CV22: =IF(CS22>0,(V22/S22)*CS22,0)-CU22 -> 0 | CW22: =IF(AK22=0,0,MAXA(1,ROUNDUP((AI22/CQ22)-CR22,0))) -> 0 | CX22: =IF(CW22>14,IF(CW22<31,CW22,ROUNDDOWN(CW22/30,0)*30),0) -> 0 | CY22: =IF(AK22>0,(AS22/AI22)*CX22,0) -> 0 | CZ22: =IF(CW22>0,(AS22/AI22)*CW22,0)-CY22 -> 0 | DA22: 30 | DN22: =VLOOKUP($C22,'Prog Assums'!$U$5:$AI$293,11,FALSE) -> 0 | DO22: =VLOOKUP($C22,'Prog Assums'!$U$5:$AI$293,12,FALSE) -> 0 | DP22: =IF(VLOOKUP($C22,'Prog Assums'!$U$5:$AI$293,13,FALSE)="AS SOA",$AI22,VLOOKUP($C22,'Prog Assums'!$U$5:$AI$293,13,FALSE)) -> 0 | DQ22: =VLOOKUP($C22,'Prog Assums'!$U$5:$AI$293,14,FALSE) -> 0 | DR22: =VLOOKUP($C22,'Prog Assums'!$U$5:$AI$293,15,FALSE) -> 0 | DS22: =IF(ISERROR((SUM($EB22,$EH22,$EN22,$EU22)/SUM($EA22,$EG22,$EM22,$ET22)-$S22))=TRUE,0,IF($U22=0,0,(SUM($EB22,$EH22,$EN22,$EU22)/SUM($EA22,$EG22,$EM22,$ET22)-$S22))) -> 0 | DU22: 0 | DV22: =SUM($EU22,$EN22,$EH22,$EB22)-$V22-$Y22 -> 0 | DY22: 0 | EB22: =EA22*DY22 -> 0 | EE22: 0 | EH22: =EG22*EE22 -> 0 | EK22: =IF(EN22>0,SUM(EN22/EM22),0) -> 0 | EM22: =COUNTIFS($EY$2:$YD$2,"Refurb",$EY22:$YD22,">0") -> 0 | EN22: =SUMIF($EY$2:$YD$2,"Refurb",$EY22:$YD22) -> 0 | ER22: =IF(EU22>0,SUM(EU22/ET22),0) -> 0 | ET22: =COUNTIFS($EY$2:$YD$2,'Prog Assums'!$B$130,$EY22:$YD22,">0") -> 0 | EU22: =SUMIF($EY$2:$YD$2,'Prog Assums'!$B$130,$EY22:$YD22) -> 0
A23: =VLOOKUP($D23,'Prog Assums'!$N$5:$AM$294,10, FALSE) -> - | C23: =VLOOKUP($D23,'Prog Assums'!$N$5:$AM$294,8, FALSE) -> - | D23: =IF(AG19="some variable","Classrooms (smaller group)","-") -> - | M23: =IF(D23="","",_xlfn.XLOOKUP(D23,'Prog Assums'!$N$7:$N$221,'Prog Assums'!$AQ$7:$AQ$221,"")) -> - | N23: =CONCATENATE(M23,S23) -> -0 | O23: =IF(VLOOKUP(D23,'Prog Assums'!N$6:V$92,9,FALSE)>0,"retained","") ->  | Q23: =IF(S23>0,ROUND((S23-VLOOKUP(AU23,'Prog Assums'!$E$38:$I$54,2,FALSE))/VLOOKUP(AU23,'Prog Assums'!$E$38:$I$54,3,FALSE),0),"") ->  | S23: =VLOOKUP(D23,'Prog Assums'!N$5:U$271,5,FALSE) -> 0 | U23: =AK23 -> 0 | V23: =MAXA(0,(S23*U23)-Y23) -> 0 | AA23: 0 | AC23: =IF(D23="-",0,VLOOKUP(D23,'Prog Assums'!N$5:X$271,11,FALSE)) -> 0 | AD23: =IF(D23="-","","m2 minimum size for 30 pupils") ->  | AI23: =IF(AK23>0,48,0) -> 0 | AK23: =IF(AG$19="some variable",ROUND((DD$21+DE$21+DC$21)/8,0),0) -> 0 | AN23: =IF(U23>0,VLOOKUP(D23,'Prog Assums'!$N$6:$S$169,6,FALSE),0) -> 0 | AP23: =ROUNDDOWN((AQ23-VLOOKUP(AU23,'Prog Assums'!$E$38:$I$54,2,FALSE))/VLOOKUP(AU23,'Prog Assums'!$E$38:$I$54,3,FALSE),0) ->  | AQ23: =VLOOKUP(D23,'Prog Assums'!N$5:U$271,5,FALSE) -> 0 | AR23: =ROUNDUP(VLOOKUP(AU23,'Prog Assums'!$E$38:$I$54,4,FALSE)+(AP23*VLOOKUP(AU23,'Prog Assums'!$E$38:$I$54,5,FALSE)),0) ->  | AS23: 0 | AU23: =VLOOKUP(D23,'Prog Assums'!$N$6:$O$22,2,FALSE) -> - | BE23: =IF(ISERROR(AVERAGEIF('Individual Spaces'!F:F,'Secondary SoA'!$N23,'Individual Spaces'!K:K))=TRUE,"",AVERAGEIF('Individual Spaces'!F:F,'Secondary SoA'!$N23,'Individual Spaces'!K:K)) ->  | BG23: =COUNTIF('Individual Spaces'!F:F,'Secondary SoA'!$N23) -> 0 | BH23: =IF(ISERROR(BE23*BG23)=TRUE,"",BE23*BG23) ->  | BJ23: =IF(ISERROR(BH23-Y23-V23)=TRUE,"",BH23-Y23-V23) ->  | BK23: 0 | BM23: =SUM(BO23:CK23) -> 0 | CM23: =IF($S23>0,VLOOKUP($D23,'Prog Assums'!$N$5:$AM$294,12, FALSE),"") ->  | CN23: =IF($S23>0,VLOOKUP($D23,'Prog Assums'!$N$5:$AM$294,13, FALSE),"") ->  | CQ23: =VLOOKUP(D23,'Prog Assums'!$N$6:$Q$229,3,0) -> 0 | CR23: =VLOOKUP(D23,'Prog Assums'!$N$6:$Q$229,4,0) -> 0 | CS23: 0 | CT23: =IF(CS23>14,IF(CS23<31,CS23,ROUNDDOWN(CS23/30,0)*30),0) -> 0 | CU23: =IF(S23>0,(V23/S23)*CT23,0) -> 0 | CV23: =IF(CS23>0,(V23/S23)*CS23,0)-CU23 -> 0 | CW23: 0 | CX23: =IF(CW23>14,IF(CW23<31,CW23,ROUNDDOWN(CW23/30,0)*30),0) -> 0 | CY23: =IF(AK23>0,(AS23/AI23)*CX23,0) -> 0 | CZ23: =IF(CW23>0,(AS23/AI23)*CW23,0)-CY23 -> 0 | DA23: 31 | DN23: =VLOOKUP($C23,'Prog Assums'!$U$5:$AI$293,11,FALSE) -> 0 | DO23: =VLOOKUP($C23,'Prog Assums'!$U$5:$AI$293,12,FALSE) -> 0 | DP23: =IF(VLOOKUP($C23,'Prog Assums'!$U$5:$AI$293,13,FALSE)="AS SOA",$AI23,VLOOKUP($C23,'Prog Assums'!$U$5:$AI$293,13,FALSE)) -> 0 | DQ23: =VLOOKUP($C23,'Prog Assums'!$U$5:$AI$293,14,FALSE) -> 0 | DR23: =VLOOKUP($C23,'Prog Assums'!$U$5:$AI$293,15,FALSE) -> 0 | DS23: =IF(ISERROR((SUM($EB23,$EH23,$EN23,$EU23)/SUM($EA23,$EG23,$EM23,$ET23)-$S23))=TRUE,0,IF($U23=0,0,(SUM($EB23,$EH23,$EN23,$EU23)/SUM($EA23,$EG23,$EM23,$ET23)-$S23))) -> 0 | DU23: 0 | DV23: =SUM($EU23,$EN23,$EH23,$EB23)-$V23-$Y23 -> 0 | DY23: 0 | EA23: 0 | EB23: =EA23*DY23 -> 0 | EE23: 0 | EG23: 0 | EH23: =EG23*EE23 -> 0 | EK23: =IF(EN23>0,SUM(EN23/EM23),0) -> 0 | EM23: =COUNTIFS($EY$2:$YD$2,"Refurb",$EY23:$YD23,">0") -> 0 | EN23: =SUMIF($EY$2:$YD$2,"Refurb",$EY23:$YD23) -> 0 | ER23: =IF(EU23>0,SUM(EU23/ET23),0) -> 0 | ET23: =COUNTIFS($EY$2:$YD$2,'Prog Assums'!$B$130,$EY23:$YD23,">0") -> 0 | EU23: =SUMIF($EY$2:$YD$2,'Prog Assums'!$B$130,$EY23:$YD23) -> 0
A24: =VLOOKUP($D24,'Prog Assums'!$N$5:$AM$294,10, FALSE) -> - | C24: =VLOOKUP($D24,'Prog Assums'!$N$5:$AM$294,8, FALSE) -> - | D24: =IF(AO12="unit","Secondary SEN classrooms (ambulant)","-") -> - | M24: =IF(D24="","",_xlfn.XLOOKUP(D24,'Prog Assums'!$N$7:$N$221,'Prog Assums'!$AQ$7:$AQ$221,"")) -> - | N24: =CONCATENATE(M24,S24) -> -0 | O24: =IF(VLOOKUP(D24,'Prog Assums'!N$6:V$92,9,FALSE)>0,"retained","") ->  | Q24: =IF(S24>0,ROUNDDOWN((S24-VLOOKUP(AU24,'Prog Assums'!$E$38:$I$54,2,FALSE))/VLOOKUP(AU24,'Prog Assums'!$E$38:$I$54,3,FALSE),0),"") ->  | S24: =AI24 -> 0 | U24: =AK24 -> 0 | V24: 0 | Y24: =IF(D24="Secondary SEN classrooms (ambulant)",S24*U24,0) -> 0 | AA24: 0 | AC24: =IF(D24="-",0,VLOOKUP(D24,'Prog Assums'!N$5:X$271,11,FALSE)) -> 0 | AI24: =IF(AO12="unit",(ROUNDUP(DB24/7,0)*7)-1,0) -> 0 | AK24: =IF(AO12="unit",ROUNDUP(K12/10,0),0) -> 0 | AN24: =IF(U24>0,VLOOKUP(D24,'Prog Assums'!$N$6:$S$169,6,FALSE),0) -> 0 | AP24: =ROUNDDOWN((AQ24-VLOOKUP(AU24,'Prog Assums'!$E$38:$I$54,2,FALSE))/VLOOKUP(AU24,'Prog Assums'!$E$38:$I$54,3,FALSE),0) ->  | AQ24: =DB24 -> 0 | AR24: =AQ24+10 -> 10 | AS24: =IF(K12>0,MAXA((AI24*AK24)-AT24,0),0) -> 0 | AT24: =AK24*AI24 -> 0 | AU24: =VLOOKUP(D24,'Prog Assums'!$N$6:$O$22,2,FALSE) -> - | BE24: =IF(ISERROR(AVERAGEIF('Individual Spaces'!F:F,'Secondary SoA'!$N24,'Individual Spaces'!K:K))=TRUE,"",AVERAGEIF('Individual Spaces'!F:F,'Secondary SoA'!$N24,'Individual Spaces'!K:K)) ->  | BG24: =COUNTIF('Individual Spaces'!F:F,'Secondary SoA'!$N24) -> 0 | BH24: =IF(ISERROR(BE24*BG24)=TRUE,"",BE24*BG24) ->  | BJ24: =IF(ISERROR(BH24-Y24-V24)=TRUE,"",BH24-Y24-V24) ->  | BK24: 0 | BM24: =SUM(BO24:CK24) -> 0 | CI24: =U24 -> 0 | CM24: =IF($S24>0,VLOOKUP($D24,'Prog Assums'!$N$5:$AM$294,12, FALSE),"") ->  | CN24: =IF($S24>0,VLOOKUP($D24,'Prog Assums'!$N$5:$AM$294,13, FALSE),"") ->  | CQ24: =VLOOKUP(D24,'Prog Assums'!$N$6:$Q$229,3,0) -> 0 | CR24: =VLOOKUP(D24,'Prog Assums'!$N$6:$Q$229,4,0) -> 0 | CS24: 0 | CT24: =IF(CS24>14,IF(CS24<31,CS24,ROUNDDOWN(CS24/30,0)*30),0) -> 0 | CU24: =IF(S24>0,(V24/S24)*CT24,0) -> 0 | CV24: =IF(CS24>0,(V24/S24)*CS24,0)-CU24 -> 0 | CW24: 0 | CX24: =IF(CW24>14,IF(CW24<31,CW24,ROUNDDOWN(CW24/30,0)*30),0) -> 0 | CY24: =IF(AK24>0,(AS24/AI24)*CX24,0) -> 0 | CZ24: =IF(CW24>0,(AS24/AI24)*CW24,0)-CY24 -> 0 | DB24: =IF(AO12="unit",ROUNDUP(K12*5.5,0)/AK24,0) -> 0 | DC24: SEN | DN24: =VLOOKUP($C24,'Prog Assums'!$U$5:$AI$293,11,FALSE) -> 0 | DO24: =VLOOKUP($C24,'Prog Assums'!$U$5:$AI$293,12,FALSE) -> 0 | DP24: =IF(VLOOKUP($C24,'Prog Assums'!$U$5:$AI$293,13,FALSE)="AS SOA",$AI24,VLOOKUP($C24,'Prog Assums'!$U$5:$AI$293,13,FALSE)) -> 0 | DQ24: =VLOOKUP($C24,'Prog Assums'!$U$5:$AI$293,14,FALSE) -> 0 | DR24: =VLOOKUP($C24,'Prog Assums'!$U$5:$AI$293,15,FALSE) -> 0 | DS24: =IF(ISERROR((SUM($EB24,$EH24,$EN24,$EU24)/SUM($EA24,$EG24,$EM24,$ET24)-$S24))=TRUE,0,IF($U24=0,0,(SUM($EB24,$EH24,$EN24,$EU24)/SUM($EA24,$EG24,$EM24,$ET24)-$S24))) -> 0 | DU24: 0 | DV24: =SUM($EU24,$EN24,$EH24,$EB24)-$V24-$Y24 -> 0 | DY24: 0 | EA24: 0 | EB24: =EA24*DY24 -> 0 | EE24: 0 | EG24: 0 | EH24: =EG24*EE24 -> 0 | EK24: =IF(EN24>0,SUM(EN24/EM24),0) -> 0 | EM24: =COUNTIFS($EY$2:$YD$2,"Refurb",$EY24:$YD24,">0") -> 0 | EN24: =SUMIF($EY$2:$YD$2,"Refurb",$EY24:$YD24) -> 0 | ER24: =IF(EU24>0,SUM(EU24/ET24),0) -> 0 | ET24: =COUNTIFS($EY$2:$YD$2,'Prog Assums'!$B$130,$EY24:$YD24,">0") -> 0 | EU24: =SUMIF($EY$2:$YD$2,'Prog Assums'!$B$130,$EY24:$YD24) -> 0
EN25: =SUM(ER25:FZ25) -> 0 | EU25: =SUM(EY25:GG25) -> 0
D26: ICT/ business studies | K26: ='curriculum analysis (optional)'!AO114 -> 0 | U26: =U27+U28+U29 -> 4 | AK26: =AK27+AK28+AK29 -> 4 | AV26: =((AW$4*AY$4)+(AW$5*AY$5)+(AW$6*AY$6)+(AW$8*AY$8))/(AY$4+AY$5+AY$6+AY$8) -> 22.81428571 | AW26: =(U26*AV26*0.9)/K$8 -> 0.07300571429 | AX26: of curriculum @ 90% use | BG26: =BG27+BG28+BG29 -> 4 | DC26: =IF(K12>0,ROUND(1+(K12/50),0),0) -> 0 | DD26: =SUM(DD27:DD30) -> 2 | DE26: =SUM(DE27:DE30) -> 2 | DF26: =MAXA(0,ROUNDDOWN($K$5/300,0)) -> 3 | DG26: =MAXA(0,ROUNDDOWN($K$5/300,0)) -> 3 | DH26: =MAXA(0,ROUNDDOWN($K$5/300,0)-DH5) -> 2 | DI26: =MAXA(0,ROUNDDOWN(($K$5/300),0)) -> 3 | DJ26: =MAXA(0,ROUNDDOWN($K$6/100,0)) -> 2 | DK26: =MAXA(0,ROUNDDOWN($K$6/100,0)) -> 2 | DL26: =MAXA(0,ROUNDDOWN($K$6/100,0)) -> 2 | DM26: =MAXA(0,ROUNDDOWN($K$6/100,0)+DM5) -> 3 | DU26: =SUM(EA26,EG26,EM26,ET26)-U26 -> -4 | EA26: =SUM(EA27:EA29) -> 0 | EB26: =SUM(EB27:EB29) -> 0 | EG26: =SUM(EG27:EG29) -> 0 | EH26: =SUM(EH27:EH29) -> 0 | EM26: =SUM(EM27:EM29) -> 0 | EN26: =SUM(EN27:EN29) -> 0 | ET26: =SUM(ET27:ET29) -> 0 | EU26: =SUM(EU27:EU29) -> 0
A27: =VLOOKUP($D27,'Prog Assums'!$N$5:$AM$294,10, FALSE) -> CLA32 | C27: =VLOOKUP($D27,'Prog Assums'!$N$5:$AM$294,8, FALSE) -> CLA32 | D27: ICT-rich classrooms | M27: =IF(D27="","",_xlfn.XLOOKUP(D27,'Prog Assums'!$N$7:$N$221,'Prog Assums'!$AQ$7:$AQ$221,"")) -> ICT-rich classroom | N27: =CONCATENATE(M27,S27) -> ICT-rich classroom69 | Q27: =ROUNDDOWN((S27-VLOOKUP(AU27,'Prog Assums'!$E$38:$I$54,2,FALSE))/VLOOKUP(AU27,'Prog Assums'!$E$38:$I$54,3,FALSE),0) -> 33 | S27: =VLOOKUP(D27,'Prog Assums'!N$5:U$271,5,FALSE) -> 69 | U27: =AK27 -> 3 | V27: 207 | AA27: 0 | AC27: =IF(D27="-",0,VLOOKUP(D27,'Prog Assums'!N$5:X$271,11,FALSE)) -> 62 | AD27: =IF(D27="-","","m2 minimum size for 30 pupils") -> m2 minimum size for 30 pupils | AI27: =IF(AK27>0,69,0) -> 69 | AK27: =DD27+DE27+DC27 -> 3 | AN27: =IF(U27>0,VLOOKUP(D27,'Prog Assums'!$N$6:$S$169,6,FALSE),0) -> 0.5 | AP27: =ROUNDDOWN((AQ27-VLOOKUP(AU27,'Prog Assums'!$E$38:$I$54,2,FALSE))/VLOOKUP(AU27,'Prog Assums'!$E$38:$I$54,3,FALSE),0) -> 33 | AQ27: =VLOOKUP(D27,'Prog Assums'!N$5:U$271,5,FALSE) -> 69 | AR27: =ROUNDUP(VLOOKUP(AU27,'Prog Assums'!$E$38:$I$54,4,FALSE)+(AP27*VLOOKUP(AU27,'Prog Assums'!$E$38:$I$54,5,FALSE)),0) -> 76 | AS27: 207 | AU27: D | BE27: =IF(ISERROR(AVERAGEIF('Individual Spaces'!F:F,'Secondary SoA'!$N27,'Individual Spaces'!K:K))=TRUE,"",AVERAGEIF('Individual Spaces'!F:F,'Secondary SoA'!$N27,'Individual Spaces'!K:K)) ->  | BG27: =COUNTIF('Individual Spaces'!F:F,'Secondary SoA'!$N27) -> 3 | BH27: =IF(ISERROR(BE27*BG27)=TRUE,"",BE27*BG27) ->  | BJ27: =IF(ISERROR(BH27-Y27-V27)=TRUE,"",BH27-Y27-V27) ->  | BK27: 0 | BM27: =SUM(BO27:CK27) -> 3 | BW27: =U27 -> 3 | CM27: =IF($S27>0,VLOOKUP($D27,'Prog Assums'!$N$5:$AM$294,12, FALSE),"") -> 62m2 for 30 | CN27: =IF($S27>0,VLOOKUP($D27,'Prog Assums'!$N$5:$AM$294,13, FALSE),"") -> C | CQ27: =VLOOKUP(D27,'Prog Assums'!$N$6:$Q$229,3,0) -> 2 | CR27: =VLOOKUP(D27,'Prog Assums'!$N$6:$Q$229,4,0) -> 4 | CS27: =IF(S27=0,0,MAXA(1,ROUNDUP((S27/CQ27)-CR27,0))) -> 31 | CT27: =IF(CS27>14,IF(CS27<31,CS27,ROUNDDOWN(CS27/30,0)*30),0) -> 30 | CU27: =IF(S27>0,(V27/S27)*CT27,0) -> 90 | CV27: =IF(CS27>0,(V27/S27)*CS27,0)-CU27 -> 3 | CW27: =IF(AK27=0,0,MAXA(1,ROUNDUP((AI27/CQ27)-CR27,0))) -> 31 | CX27: =IF(CW27>14,IF(CW27<31,CW27,ROUNDDOWN(CW27/30,0)*30),0) -> 30 | CY27: =IF(AK27>0,(AS27/AI27)*CX27,0) -> 90 | CZ27: =IF(CW27>0,(AS27/AI27)*CW27,0)-CY27 -> 3 | DD27: =HLOOKUP($AG$12,$DF$15:$DI$74,13,FALSE) -> 2 | DE27: =HLOOKUP($AG$12,$DJ$15:$DM$74,13,FALSE) -> 1 | DF27: =MAXA(DF26-DF28,0) -> 2 | DG27: =DG26 -> 3 | DH27: =DH26 -> 2 | DI27: =DI26 -> 3 | DJ27: =MAXA(DJ26-DJ28,0) -> 1 | DK27: =MAXA(DK26-DK28,0) -> 1 | DL27: 1 | DM27: 2 | DN27: =VLOOKUP($C27,'Prog Assums'!$U$5:$AI$293,11,FALSE) -> 45 | DO27: =VLOOKUP($C27,'Prog Assums'!$U$5:$AI$293,12,FALSE) -> 55 | DP27: =IF(VLOOKUP($C27,'Prog Assums'!$U$5:$AI$293,13,FALSE)="AS SOA",$AI27,VLOOKUP($C27,'Prog Assums'!$U$5:$AI$293,13,FALSE)) -> 62 | DQ27: =VLOOKUP($C27,'Prog Assums'!$U$5:$AI$293,14,FALSE) -> 69 | DR27: =VLOOKUP($C27,'Prog Assums'!$U$5:$AI$293,15,FALSE) -> 125 | DS27: =IF(ISERROR((SUM($EB27,$EH27,$EN27,$EU27)/SUM($EA27,$EG27,$EM27,$ET27)-$S27))=TRUE,0,IF($U27=0,0,(SUM($EB27,$EH27,$EN27,$EU27)/SUM($EA27,$EG27,$EM27,$ET27)-$S27))) -> 0 | DU27: =SUM(EA27,EG27,EM27,ET27)-U27 -> -3 | DV27: =SUM($EU27,$EN27,$EH27,$EB27)-$V27-$Y27 -> -207 | DY27: 0 | EA27: 0 | EB27: =EA27*DY27 -> 0 | EE27: 0 | EG27: 0 | EH27: =EG27*EE27 -> 0 | EK27: =IF(EN27>0,SUM(EN27/EM27),0) -> 0 | EM27: =COUNTIFS($EY$2:$YD$2,"Refurb",$EY27:$YD27,">0") -> 0 | EN27: =SUMIF($EY$2:$YD$2,"Refurb",$EY27:$YD27) -> 0 | ER27: =IF(EU27>0,SUM(EU27/ET27),0) -> 0 | ET27: =COUNTIFS($EY$2:$YD$2,'Prog Assums'!$B$130,$EY27:$YD27,">0") -> 0 | EU27: =SUMIF($EY$2:$YD$2,'Prog Assums'!$B$130,$EY27:$YD27) -> 0
A28: =VLOOKUP($D28,'Prog Assums'!$N$5:$AM$294,10, FALSE) -> CLA32 | C28: =VLOOKUP($D28,'Prog Assums'!$N$5:$AM$294,8, FALSE) -> CLA42 | D28: =IF(AK28>0,"ICT-rich classrooms (business studies)","-") -> ICT-rich classrooms (business studies) | M28: =IF(D28="","",_xlfn.XLOOKUP(D28,'Prog Assums'!$N$7:$N$221,'Prog Assums'!$AQ$7:$AQ$221,"")) -> ICT-rich classroom (business studies) | N28: =CONCATENATE(M28,S28) -> ICT-rich classroom (business studies)69 | O28: =IF(VLOOKUP(D28,'Prog Assums'!N$6:V$92,9,FALSE)>0,"retained","") ->  | Q28: =IF(S28>0,ROUNDDOWN((S28-VLOOKUP(AU28,'Prog Assums'!$E$38:$I$54,2,FALSE))/VLOOKUP(AU28,'Prog Assums'!$E$38:$I$54,3,FALSE),0),"") -> 33 | S28: =VLOOKUP(D28,'Prog Assums'!N$5:U$271,5,FALSE) -> 69 | U28: =AK28 -> 1 | V28: 69 | AA28: 0 | AC28: =IF(D28="-",0,VLOOKUP(D28,'Prog Assums'!N$5:X$271,11,FALSE)) -> 62 | AD28: m2 minimum size for 30 pupils | AI28: =IF(AK28>0,69,0) -> 69 | AK28: =DD28+DE28+DC28 -> 1 | AN28: =IF(U28>0,VLOOKUP(D28,'Prog Assums'!$N$6:$S$169,6,FALSE),0) -> 0.5 | AP28: =ROUNDDOWN((AQ28-VLOOKUP(AU28,'Prog Assums'!$E$38:$I$54,2,FALSE))/VLOOKUP(AU28,'Prog Assums'!$E$38:$I$54,3,FALSE),0) -> 33 | AQ28: =VLOOKUP(D28,'Prog Assums'!N$5:U$271,5,FALSE) -> 69 | AR28: =ROUNDUP(VLOOKUP(AU28,'Prog Assums'!$E$38:$I$54,4,FALSE)+(AP28*VLOOKUP(AU28,'Prog Assums'!$E$38:$I$54,5,FALSE)),0) -> 76 | AS28: 69 | AU28: =VLOOKUP(D28,'Prog Assums'!$N$25:$O$34,2,FALSE) -> D | BE28: =IF(ISERROR(AVERAGEIF('Individual Spaces'!F:F,'Secondary SoA'!$N28,'Individual Spaces'!K:K))=TRUE,"",AVERAGEIF('Individual Spaces'!F:F,'Secondary SoA'!$N28,'Individual Spaces'!K:K)) ->  | BG28: =COUNTIF('Individual Spaces'!F:F,'Secondary SoA'!$N28) -> 1 | BH28: =IF(ISERROR(BE28*BG28)=TRUE,"",BE28*BG28) ->  | BJ28: =IF(ISERROR(BH28-Y28-V28)=TRUE,"",BH28-Y28-V28) ->  | BK28: 0 | BM28: =SUM(BO28:CK28) -> 1 | BW28: =U28 -> 1 | CM28: =IF($S28>0,VLOOKUP($D28,'Prog Assums'!$N$5:$AM$294,12, FALSE),"") -> 62m2 for 30 | CN28: =IF($S28>0,VLOOKUP($D28,'Prog Assums'!$N$5:$AM$294,13, FALSE),"") -> C | CQ28: =VLOOKUP(D28,'Prog Assums'!$N$6:$Q$229,3,0) -> 2 | CR28: =VLOOKUP(D28,'Prog Assums'!$N$6:$Q$229,4,0) -> 4 | CS28: 31 | CT28: =IF(CS28>14,IF(CS28<31,CS28,ROUNDDOWN(CS28/30,0)*30),0) -> 30 | CU28: =IF(S28>0,(V28/S28)*CT28,0) -> 30 | CV28: =IF(CS28>0,(V28/S28)*CS28,0)-CU28 -> 1 | CW28: 31 | CX28: 30 | CY28: 30 | CZ28: 1 | DA28: 30 | DD28: =HLOOKUP($AG$12,$DF$15:$DI$74,14,FALSE) -> 0 | DE28: =HLOOKUP($AG$12,$DJ$15:$DM$74,14,FALSE) -> 1 | DF28: =IF(DF26>0,DF5,0) -> 1 | DJ28: =IF(DJ26>0,DJ5,0) -> 1 | DK28: =IF(DK26>0,DK5,0) -> 1 | DL28: 1 | DM28: 1 | DN28: =VLOOKUP($C28,'Prog Assums'!$U$5:$AI$293,11,FALSE) -> 45 | DO28: =VLOOKUP($C28,'Prog Assums'!$U$5:$AI$293,12,FALSE) -> 55 | DP28: =IF(VLOOKUP($C28,'Prog Assums'!$U$5:$AI$293,13,FALSE)="AS SOA",$AI28,VLOOKUP($C28,'Prog Assums'!$U$5:$AI$293,13,FALSE)) -> 62 | DQ28: =VLOOKUP($C28,'Prog Assums'!$U$5:$AI$293,14,FALSE) -> 69 | DR28: =VLOOKUP($C28,'Prog Assums'!$U$5:$AI$293,15,FALSE) -> 125 | DS28: =IF(ISERROR((SUM($EB28,$EH28,$EN28,$EU28)/SUM($EA28,$EG28,$EM28,$ET28)-$S28))=TRUE,0,IF($U28=0,0,(SUM($EB28,$EH28,$EN28,$EU28)/SUM($EA28,$EG28,$EM28,$ET28)-$S28))) -> 0 | DU28: =SUM(EA28,EG28,EM28,ET28)-U28 -> -1 | DV28: =SUM($EU28,$EN28,$EH28,$EB28)-$V28-$Y28 -> -69 | DY28: 0 | EB28: =EA28*DY28 -> 0 | EE28: 0 | EG28: 0 | EH28: =EG28*EE28 -> 0 | EK28: =IF(EN28>0,SUM(EN28/EM28),0) -> 0 | EM28: =COUNTIFS($EY$2:$YD$2,"Refurb",$EY28:$YD28,">0") -> 0 | EN28: =SUMIF($EY$2:$YD$2,"Refurb",$EY28:$YD28) -> 0 | ER28: =IF(EU28>0,SUM(EU28/ET28),0) -> 0 | ET28: =COUNTIFS($EY$2:$YD$2,'Prog Assums'!$B$130,$EY28:$YD28,">0") -> 0 | EU28: =SUMIF($EY$2:$YD$2,'Prog Assums'!$B$130,$EY28:$YD28) -> 0
A29: =VLOOKUP($D29,'Prog Assums'!$N$5:$AM$294,10, FALSE) -> - | C29: =VLOOKUP($D29,'Prog Assums'!$N$5:$AM$294,8, FALSE) -> - | D29: - | M29: =IF(D29="","",_xlfn.XLOOKUP(D29,'Prog Assums'!$N$7:$N$221,'Prog Assums'!$AQ$7:$AQ$221,"")) -> - | N29: =CONCATENATE(M29,S29) -> -0 | O29: =IF(VLOOKUP(D29,'Prog Assums'!N$6:V$92,9,FALSE)>0,"retained","") ->  | Q29: =IF(S29>0,ROUNDDOWN((S29-VLOOKUP(AU29,'Prog Assums'!$E$38:$I$54,2,FALSE))/VLOOKUP(AU29,'Prog Assums'!$E$38:$I$54,3,FALSE),0),"") ->  | S29: =VLOOKUP(D29,'Prog Assums'!N$5:U$271,5,FALSE) -> 0 | U29: =AK29 -> 0 | V29: 0 | AA29: 0 | AC29: =IF(D29="-",0,VLOOKUP(D29,'Prog Assums'!N$5:X$271,11,FALSE)) -> 0 | AD29: =IF(D29="-","","m2 minimum size for 30 pupils") ->  | AN29: =IF(U29>0,VLOOKUP(D29,'Prog Assums'!$N$6:$S$169,6,FALSE),0) -> 0 | AP29: =ROUNDDOWN((AQ29-VLOOKUP(AU29,'Prog Assums'!$E$38:$I$54,2,FALSE))/VLOOKUP(AU29,'Prog Assums'!$E$38:$I$54,3,FALSE),0) ->  | AQ29: =VLOOKUP(D29,'Prog Assums'!N$5:U$271,5,FALSE) -> 0 | AR29: =ROUNDUP(VLOOKUP(AU29,'Prog Assums'!$E$38:$I$54,4,FALSE)+(AP29*VLOOKUP(AU29,'Prog Assums'!$E$38:$I$54,5,FALSE)),0) ->  | AS29: 0 | AU29: =VLOOKUP(D29,'Prog Assums'!$N$25:$O$34,2,FALSE) -> 0 | BE29: =IF(ISERROR(AVERAGEIF('Individual Spaces'!F:F,'Secondary SoA'!$N29,'Individual Spaces'!K:K))=TRUE,"",AVERAGEIF('Individual Spaces'!F:F,'Secondary SoA'!$N29,'Individual Spaces'!K:K)) ->  | BG29: =COUNTIF('Individual Spaces'!F:F,'Secondary SoA'!$N29) -> 0 | BH29: =IF(ISERROR(BE29*BG29)=TRUE,"",BE29*BG29) ->  | BJ29: =IF(ISERROR(BH29-Y29-V29)=TRUE,"",BH29-Y29-V29) ->  | BK29: 0 | BM29: =SUM(BO29:CK29) -> 0 | BW29: =U29 -> 0 | CM29: =IF($S29>0,VLOOKUP($D29,'Prog Assums'!$N$5:$AM$294,12, FALSE),"") ->  | CN29: =IF($S29>0,VLOOKUP($D29,'Prog Assums'!$N$5:$AM$294,13, FALSE),"") ->  | CQ29: =VLOOKUP(D29,'Prog Assums'!$N$6:$Q$229,3,0) -> 0 | CR29: =VLOOKUP(D29,'Prog Assums'!$N$6:$Q$229,4,0) -> 0 | CS29: 0 | CT29: =IF(CS29>14,IF(CS29<31,CS29,ROUNDDOWN(CS29/30,0)*30),0) -> 0 | CU29: =IF(S29>0,(V29/S29)*CT29,0) -> 0 | CV29: =IF(CS29>0,(V29/S29)*CS29,0)-CU29 -> 0 | CW29: 0 | CX29: 0 | CY29: 0 | CZ29: 0 | DN29: =VLOOKUP($C29,'Prog Assums'!$U$5:$AI$293,11,FALSE) -> 0 | DO29: =VLOOKUP($C29,'Prog Assums'!$U$5:$AI$293,12,FALSE) -> 0 | DP29: =IF(VLOOKUP($C29,'Prog Assums'!$U$5:$AI$293,13,FALSE)="AS SOA",$AI29,VLOOKUP($C29,'Prog Assums'!$U$5:$AI$293,13,FALSE)) -> 0 | DQ29: =VLOOKUP($C29,'Prog Assums'!$U$5:$AI$293,14,FALSE) -> 0 | DR29: =VLOOKUP($C29,'Prog Assums'!$U$5:$AI$293,15,FALSE) -> 0 | DS29: =IF(ISERROR((SUM($EB29,$EH29,$EN29,$EU29)/SUM($EA29,$EG29,$EM29,$ET29)-$S29))=TRUE,0,IF($U29=0,0,(SUM($EB29,$EH29,$EN29,$EU29)/SUM($EA29,$EG29,$EM29,$ET29)-$S29))) -> 0 | DU29: =SUM(EA29,EG29,EM29,ET29)-U29 -> 0 | DV29: =SUM($EU29,$EN29,$EH29,$EB29)-$V29-$Y29 -> 0 | DY29: 0 | EA29: 0 | EB29: =EA29*DY29 -> 0 | EE29: 0 | EG29: 0 | EH29: =EG29*EE29 -> 0 | EK29: =IF(EN29>0,SUM(EN29/EM29),0) -> 0 | EM29: =COUNTIFS($EY$2:$YD$2,"Refurb",$EY29:$YD29,">0") -> 0 | EN29: =SUMIF($EY$2:$YD$2,"Refurb",$EY29:$YD29) -> 0 | ER29: =IF(EU29>0,SUM(EU29/ET29),0) -> 0 | ET29: =COUNTIFS($EY$2:$YD$2,'Prog Assums'!$B$130,$EY29:$YD29,">0") -> 0 | EU29: =SUMIF($EY$2:$YD$2,'Prog Assums'!$B$130,$EY29:$YD29) -> 0
D30: Practical learning spaces
D31: Science | K31: ='curriculum analysis (optional)'!AO122 -> 0 | U31: =U32+U33+U34+U35+U36 -> 10 | AC31: science options | AG31: all standard labs + post-16 | AK31: =AK32+AK33+AK34+AK35+AK36 -> 10 | AV31: =((AW$4*AY$4)+((AV$5/DA$2)*2/3)+(AW$5*(AY$5*1/3))+(AW$6*AY$6)+(AW$8*AY$8))/(AY$4+AY$5+AY$6+AY$8) -> 24.04285714 | AW31: =(U31*AV31*0.85)/K$8 -> 0.1816571429 | AX31: of curriculum @ 85% use | BG31: =BG32+BG33+BG34+BG36 -> 10 | DC31: =DC32+DC33 -> 0 | DD31: =SUM(DD32:DD35) -> 7 | DE31: =SUM(DE32:DE35) -> 3 | DF31: =ROUND($K$5/150,0)+IF(K8>800,DF5,0) -> 7 | DG31: =ROUND($K$5/150,0) -> 6 | DH31: =ROUND(($K$5/150),0)+DH5 -> 7 | DI31: =ROUND(($K$5/150),0)+DI5 -> 7 | DJ31: =ROUND(($K$6/151),0)+DJ5 -> 2 | DK31: =ROUND($K$6/150,0) -> 2 | DL31: =ROUND(($K$6/150),0)+DL5 -> 3 | DM31: =ROUND($K$6/150,0) -> 2 | DU31: =SUM(EA31,EG31,EM31,ET31)-U31 -> -10 | EA31: =SUM(EA32:EA36) -> 0 | EB31: =SUM(EB32:EB36) -> 0 | EG31: =SUM(EG32:EG36) -> 0 | EH31: =SUM(EH32:EH36) -> 0 | EM31: =SUM(EM32:EM36) -> 0 | EN31: =SUM(EN32:EN36) -> 0 | ET31: =SUM(ET32:ET36) -> 0 | EU31: =SUM(EU32:EU36) -> 0
A32: =VLOOKUP($D32,'Prog Assums'!$N$5:$AM$294,10, FALSE) -> SCI02 | C32: =VLOOKUP($D32,'Prog Assums'!$N$5:$AM$294,8, FALSE) -> SCI02 | D32: Science studios | M32: =IF(D32="","",_xlfn.XLOOKUP(D32,'Prog Assums'!$N$7:$N$221,'Prog Assums'!$AQ$7:$AQ$221,"")) -> Science studio | N32: =CONCATENATE(M32,S32) -> Science studio69 | Q32: =IF(S32>0,ROUNDDOWN((S32-VLOOKUP(AU32,'Prog Assums'!$E$38:$I$54,2,FALSE))/VLOOKUP(AU32,'Prog Assums'!$E$38:$I$54,3,FALSE),0),"") -> 30 | S32: =VLOOKUP(D32,'Prog Assums'!N$5:U$271,5,FALSE) -> 69 | U32: =AK32 -> 0 | V32: 0 | AA32: 0 | AC32: =IF(D32="-",0,VLOOKUP(D32,'Prog Assums'!N$5:X$271,11,FALSE)) -> 69 | AD32: =IF(D32="-","","m2 minimum size for 30 pupils") -> m2 minimum size for 30 pupils | AI32: =IF(AK32>0,69,0) -> 0 | AK32: =IF(AG31="1 studio for every 2 spec labs",ROUNDDOWN((DD31+DE31+DC31)*0.34,0),0) -> 0 | AN32: =IF(U32>0,VLOOKUP(D32,'Prog Assums'!$N$6:$S$169,6,FALSE),0) -> 0 | AP32: 30 | AQ32: =VLOOKUP(D32,'Prog Assums'!N$5:U$271,5,FALSE) -> 69 | AR32: =ROUNDUP(VLOOKUP(AU32,'Prog Assums'!$E$38:$I$54,4,FALSE)+(AP32*VLOOKUP(AU32,'Prog Assums'!$E$38:$I$54,5,FALSE)),0) -> 76 | AS32: 0 | AU32: E | BE32: =IF(ISERROR(AVERAGEIF('Individual Spaces'!F:F,'Secondary SoA'!$N32,'Individual Spaces'!K:K))=TRUE,"",AVERAGEIF('Individual Spaces'!F:F,'Secondary SoA'!$N32,'Individual Spaces'!K:K)) ->  | BG32: =COUNTIF('Individual Spaces'!F:F,'Secondary SoA'!$N32) -> 0 | BH32: =IF(ISERROR(BE32*BG32)=TRUE,"",BE32*BG32) ->  | BJ32: =IF(ISERROR(BH32-Y32-V32)=TRUE,"",BH32-Y32-V32) ->  | BK32: 0 | BM32: =SUM(BO32:CK32) -> 0 | BY32: =U32 -> 0 | CM32: =IF($S32>0,VLOOKUP($D32,'Prog Assums'!$N$5:$AM$294,12, FALSE),"") -> 69m2 for 30 | CN32: =IF($S32>0,VLOOKUP($D32,'Prog Assums'!$N$5:$AM$294,13, FALSE),"") -> D | CQ32: =VLOOKUP(D32,'Prog Assums'!$N$6:$Q$229,3,0) -> 2.5 | CR32: =VLOOKUP(D32,'Prog Assums'!$N$6:$Q$229,4,0) -> 4 | CS32: 24 | CT32: =IF(CS32>14,IF(CS32<31,CS32,ROUNDDOWN(CS32/30,0)*30),0) -> 24 | CU32: =IF(S32>0,(V32/S32)*CT32,0) -> 0 | CV32: =IF(CS32>0,(V32/S32)*CS32,0)-CU32 -> 0 | CW32: =IF(AK32=0,0,MAXA(1,ROUNDUP((AI32/CQ32)-CR32,0))) -> 0 | CX32: =IF(CW32>14,IF(CW32<31,CW32,ROUNDDOWN(CW32/30,0)*30),0) -> 0 | CY32: =IF(AK32>0,(AS32/AI32)*CX32,0) -> 0 | CZ32: =IF(CW32>0,(AS32/AI32)*CW32,0)-CY32 -> 0 | DA32: 30 | DD32: =HLOOKUP($AG$12,$DF$15:$DI$74,18,FALSE) -> 2 | DF32: 0 | DG32: =ROUNDDOWN(DG31/3,0) -> 2 | DH32: =ROUNDDOWN(DH31/3,0) -> 2 | DI32: =ROUNDDOWN(DI31/3,0) -> 2 | DN32: =VLOOKUP($C32,'Prog Assums'!$U$5:$AI$293,11,FALSE) -> 45 | DO32: =VLOOKUP($C32,'Prog Assums'!$U$5:$AI$293,12,FALSE) -> 62 | DP32: =IF(VLOOKUP($C32,'Prog Assums'!$U$5:$AI$293,13,FALSE)="AS SOA",$AI32,VLOOKUP($C32,'Prog Assums'!$U$5:$AI$293,13,FALSE)) -> 69 | DQ32: =VLOOKUP($C32,'Prog Assums'!$U$5:$AI$293,14,FALSE) -> 76 | DR32: =VLOOKUP($C32,'Prog Assums'!$U$5:$AI$293,15,FALSE) -> 125 | DS32: =IF(ISERROR((SUM($EB32,$EH32,$EN32,$EU32)/SUM($EA32,$EG32,$EM32,$ET32)-$S32))=TRUE,0,IF($U32=0,0,(SUM($EB32,$EH32,$EN32,$EU32)/SUM($EA32,$EG32,$EM32,$ET32)-$S32))) -> 0 | DU32: 0 | DV32: =SUM($EU32,$EN32,$EH32,$EB32)-$V32-$Y32 -> 0 | DY32: 0 | EA32: 0 | EB32: =EA32*DY32 -> 0 | EE32: 0 | EG32: 0 | EH32: =EG32*EE32 -> 0 | EK32: =IF(EN32>0,SUM(EN32/EM32),0) -> 0 | EM32: =COUNTIFS($EY$2:$YD$2,"Refurb",$EY32:$YD32,">0") -> 0 | EN32: =SUMIF($EY$2:$YD$2,"Refurb",$EY32:$YD32) -> 0 | ER32: =IF(EU32>0,SUM(EU32/ET32),0) -> 0 | ET32: =COUNTIFS($EY$2:$YD$2,'Prog Assums'!$B$130,$EY32:$YD32,">0") -> 0 | EU32: =SUMIF($EY$2:$YD$2,'Prog Assums'!$B$130,$EY32:$YD32) -> 0
A33: =VLOOKUP($D33,'Prog Assums'!$N$5:$AM$294,10, FALSE) -> SCI05 | C33: =VLOOKUP($D33,'Prog Assums'!$N$5:$AM$294,8, FALSE) -> SCI05 | D33: Science laboratories | M33: =IF(D33="","",_xlfn.XLOOKUP(D33,'Prog Assums'!$N$7:$N$221,'Prog Assums'!$AQ$7:$AQ$221,"")) -> Science laboratory | N33: =CONCATENATE(M33,S33) -> Science laboratory83 | Q33: =IF(S33>0,ROUNDDOWN((S33-VLOOKUP(AU33,'Prog Assums'!$E$38:$I$54,2,FALSE))/VLOOKUP(AU33,'Prog Assums'!$E$38:$I$54,3,FALSE),0),"") -> 30 | S33: =VLOOKUP(D33,'Prog Assums'!N$5:U$271,5,FALSE) -> 83 | U33: =AK33 -> 7 | V33: 581 | AA33: 0 | AC33: =IF(D33="-",0,VLOOKUP(D33,'Prog Assums'!N$5:X$271,11,FALSE)) -> 83 | AD33: =IF(D33="-","","m2 minimum size for 30 pupils") -> m2 minimum size for 30 pupils | AI33: =IF(AK33>0,83,0) -> 83 | AK33: =DD31+DE31+DC31-AK32-AK34-AK35-AK36 -> 7 | AN33: =IF(U33>0,VLOOKUP(D33,'Prog Assums'!$N$6:$S$169,6,FALSE),0) -> 10 | AP33: 30 | AQ33: =VLOOKUP(D33,'Prog Assums'!N$5:U$271,5,FALSE) -> 83 | AR33: =ROUNDUP(VLOOKUP(AU33,'Prog Assums'!$E$38:$I$54,4,FALSE)+(AP33*VLOOKUP(AU33,'Prog Assums'!$E$38:$I$54,5,FALSE)),0) -> 97 | AS33: 581 | AU33: F | BE33: =IF(ISERROR(AVERAGEIF('Individual Spaces'!F:F,'Secondary SoA'!$N33,'Individual Spaces'!K:K))=TRUE,"",AVERAGEIF('Individual Spaces'!F:F,'Secondary SoA'!$N33,'Individual Spaces'!K:K)) ->  | BG33: =COUNTIF('Individual Spaces'!F:F,'Secondary SoA'!$N33) -> 7 | BH33: =IF(ISERROR(BE33*BG33)=TRUE,"",BE33*BG33) ->  | BJ33: =IF(ISERROR(BH33-Y33-V33)=TRUE,"",BH33-Y33-V33) ->  | BK33: 0 | BM33: =SUM(BO33:CK33) -> 7 | BY33: =U33 -> 7 | CM33: =IF($S33>0,VLOOKUP($D33,'Prog Assums'!$N$5:$AM$294,12, FALSE),"") -> 90m2 for 30 | CN33: =IF($S33>0,VLOOKUP($D33,'Prog Assums'!$N$5:$AM$294,13, FALSE),"") -> E1 | CQ33: =VLOOKUP(D33,'Prog Assums'!$N$6:$Q$229,3,0) -> 2.5 | CR33: =VLOOKUP(D33,'Prog Assums'!$N$6:$Q$229,4,0) -> 4 | CS33: 30 | CT33: =IF(CS33>14,IF(CS33<31,CS33,ROUNDDOWN(CS33/30,0)*30),0) -> 30 | CU33: =IF(S33>0,(V33/S33)*CT33,0) -> 210 | CV33: =IF(CS33>0,(V33/S33)*CS33,0)-CU33 -> 0 | CW33: 30 | CX33: 30 | CY33: 210 | CZ33: 0 | DA33: 30 | DD33: =HLOOKUP($AG$12,$DF$15:$DI$74,19,FALSE) -> 2 | DF33: =DF31-DF32 -> 7 | DG33: =DG32 -> 2 | DH33: =DH32 -> 2 | DI33: =DI32 -> 2 | DN33: =VLOOKUP($C33,'Prog Assums'!$U$5:$AI$293,11,FALSE) -> 45 | DO33: =VLOOKUP($C33,'Prog Assums'!$U$5:$AI$293,12,FALSE) -> 74.7 | DP33: =IF(VLOOKUP($C33,'Prog Assums'!$U$5:$AI$293,13,FALSE)="AS SOA",$AI33,VLOOKUP($C33,'Prog Assums'!$U$5:$AI$293,13,FALSE)) -> 83 | DQ33: =VLOOKUP($C33,'Prog Assums'!$U$5:$AI$293,14,FALSE) -> 90 | DR33: =VLOOKUP($C33,'Prog Assums'!$U$5:$AI$293,15,FALSE) -> 90 | DS33: =IF(ISERROR((SUM($EB33,$EH33,$EN33,$EU33)/SUM($EA33,$EG33,$EM33,$ET33)-$S33))=TRUE,0,IF($U33=0,0,(SUM($EB33,$EH33,$EN33,$EU33)/SUM($EA33,$EG33,$EM33,$ET33)-$S33))) -> 0 | DU33: -7 | DV33: =SUM($EU33,$EN33,$EH33,$EB33)-$V33-$Y33 -> -581 | DY33: 0 | EB33: =EA33*DY33 -> 0 | EE33: 0 | EG33: 0 | EH33: =EG33*EE33 -> 0 | EK33: =IF(EN33>0,SUM(EN33/EM33),0) -> 0 | EM33: =COUNTIFS($EY$2:$YD$2,"Refurb",$EY33:$YD33,">0") -> 0 | EN33: =SUMIF($EY$2:$YD$2,"Refurb",$EY33:$YD33) -> 0 | ER33: =IF(EU33>0,SUM(EU33/ET33),0) -> 0 | ET33: =COUNTIFS($EY$2:$YD$2,'Prog Assums'!$B$130,$EY33:$YD33,">0") -> 0 | EU33: =SUMIF($EY$2:$YD$2,'Prog Assums'!$B$130,$EY33:$YD33) -> 0
A34: =VLOOKUP($D34,'Prog Assums'!$N$5:$AM$294,10, FALSE) -> SCI05 | C34: =VLOOKUP($D34,'Prog Assums'!$N$5:$AM$294,8, FALSE) -> SCI11 | D34: =IF(AG$31="3 specialist labs","Science laboratories (chemistry)","Science laboratories (specialist)") -> Science laboratories (specialist) | M34: =IF(D34="","",_xlfn.XLOOKUP(D34,'Prog Assums'!$N$7:$N$221,'Prog Assums'!$AQ$7:$AQ$221,"")) -> Science laboratory (specialist) | N34: =CONCATENATE(M34,S34) -> Science laboratory (specialist)97 | O34: =IF(VLOOKUP(D34,'Prog Assums'!N$6:V$92,9,FALSE)>0,"retained","") ->  | Q34: =IF(S34>0,ROUNDDOWN((S34-VLOOKUP(AU34,'Prog Assums'!$E$38:$I$54,2,FALSE))/VLOOKUP(AU34,'Prog Assums'!$E$38:$I$54,3,FALSE),0),"") -> 32 | S34: =VLOOKUP(D34,'Prog Assums'!N$5:U$271,5,FALSE) -> 97 | U34: =AK34 -> 3 | V34: 291 | AA34: 0 | AC34: =IF(D34="-",0,VLOOKUP(D34,'Prog Assums'!N$5:X$271,11,FALSE)) -> 90 | AD34: m2 minimum size for 30 pupils | AI34: =IF(AK$34>0,97,0) -> 97 | AK34: =IF(AG$31="1 studio for every 2 spec labs",AK32*2,IF(AG31="3 specialist labs",1,DE34)) -> 3 | AN34: =IF(U34>0,VLOOKUP(D34,'Prog Assums'!$N$6:$S$169,6,FALSE),0) -> 12 | AP34: =ROUNDDOWN((AQ34-VLOOKUP(AU34,'Prog Assums'!$E$38:$I$54,2,FALSE))/VLOOKUP(AU34,'Prog Assums'!$E$38:$I$54,3,FALSE),0) -> 32 | AQ34: =VLOOKUP(D34,'Prog Assums'!N$5:U$271,5,FALSE) -> 97 | AR34: =ROUNDUP(VLOOKUP(AU34,'Prog Assums'!$E$38:$I$54,4,FALSE)+(AP34*VLOOKUP(AU34,'Prog Assums'!$E$38:$I$54,5,FALSE)),0) -> 103 | AS34: 291 | AU34: =VLOOKUP(D34,'Prog Assums'!$N$37:$O$48,2,FALSE) -> F1 | BE34: =IF(ISERROR(AVERAGEIF('Individual Spaces'!F:F,'Secondary SoA'!$N34,'Individual Spaces'!K:K))=TRUE,"",AVERAGEIF('Individual Spaces'!F:F,'Secondary SoA'!$N34,'Individual Spaces'!K:K)) ->  | BG34: =COUNTIF('Individual Spaces'!F:F,'Secondary SoA'!$N34) -> 3 | BH34: =IF(ISERROR(BE34*BG34)=TRUE,"",BE34*BG34) ->  | BJ34: =IF(ISERROR(BH34-Y34-V34)=TRUE,"",BH34-Y34-V34) ->  | BK34: 0 | BM34: =SUM(BO34:CK34) -> 3 | BY34: =U34 -> 3 | CM34: =IF($S34>0,VLOOKUP($D34,'Prog Assums'!$N$5:$AM$294,12, FALSE),"") -> 90m2 for 30 | CN34: =IF($S34>0,VLOOKUP($D34,'Prog Assums'!$N$5:$AM$294,13, FALSE),"") -> F | CQ34: =VLOOKUP(D34,'Prog Assums'!$N$6:$Q$229,3,0) -> 2.5 | CR34: =VLOOKUP(D34,'Prog Assums'!$N$6:$Q$229,4,0) -> 4 | CS34: 35 | CT34: =IF(CS34>14,IF(CS34<31,CS34,ROUNDDOWN(CS34/30,0)*30),0) -> 30 | CU34: =IF(S34>0,(V34/S34)*CT34,0) -> 90 | CV34: =IF(CS34>0,(V34/S34)*CS34,0)-CU34 -> 15 | CW34: 35 | CX34: 30 | CY34: 90 | CZ34: 15 | DD34: =HLOOKUP($AG$12,$DF$15:$DI$74,20,FALSE) -> 3 | DE34: =HLOOKUP($AG$12,$DJ$15:$DM$74,20,FALSE) -> 3 | DG34: =DG31-DG32-DG33 -> 2 | DH34: =DH31-DH32-DH33 -> 3 | DI34: =DI31-DI32-DI33 -> 3 | DJ34: =DJ31 -> 2 | DK34: =DK31 -> 2 | DL34: 3 | DM34: 2 | DN34: =VLOOKUP($C34,'Prog Assums'!$U$5:$AI$293,11,FALSE) -> 45 | DO34: =VLOOKUP($C34,'Prog Assums'!$U$5:$AI$293,12,FALSE) -> 81 | DP34: =IF(VLOOKUP($C34,'Prog Assums'!$U$5:$AI$293,13,FALSE)="AS SOA",$AI34,VLOOKUP($C34,'Prog Assums'!$U$5:$AI$293,13,FALSE)) -> 90 | DQ34: =VLOOKUP($C34,'Prog Assums'!$U$5:$AI$293,14,FALSE) -> 97 | DR34: =VLOOKUP($C34,'Prog Assums'!$U$5:$AI$293,15,FALSE) -> 150 | DS34: =IF(ISERROR((SUM($EB34,$EH34,$EN34,$EU34)/SUM($EA34,$EG34,$EM34,$ET34)-$S34))=TRUE,0,IF($U34=0,0,(SUM($EB34,$EH34,$EN34,$EU34)/SUM($EA34,$EG34,$EM34,$ET34)-$S34))) -> 0 | DU34: -3 | DV34: =SUM($EU34,$EN34,$EH34,$EB34)-$V34-$Y34 -> -291 | DY34: 0 | EB34: =EA34*DY34 -> 0 | EE34: 0 | EG34: 0 | EH34: =EG34*EE34 -> 0 | EK34: =IF(EN34>0,SUM(EN34/EM34),0) -> 0 | EM34: =COUNTIFS($EY$2:$YD$2,"Refurb",$EY34:$YD34,">0") -> 0 | EN34: =SUMIF($EY$2:$YD$2,"Refurb",$EY34:$YD34) -> 0 | ER34: =IF(EU34>0,SUM(EU34/ET34),0) -> 0 | ET34: =COUNTIFS($EY$2:$YD$2,'Prog Assums'!$B$130,$EY34:$YD34,">0") -> 0 | EU34: =SUMIF($EY$2:$YD$2,'Prog Assums'!$B$130,$EY34:$YD34) -> 0
A35: =VLOOKUP($D35,'Prog Assums'!$N$5:$AM$294,10, FALSE) -> - | C35: =VLOOKUP($D35,'Prog Assums'!$N$5:$AM$294,8, FALSE) -> - | D35: =IF(AG$31="3 specialist labs","Science laboratories (biology)","-") -> - | M35: =IF(D35="","",_xlfn.XLOOKUP(D35,'Prog Assums'!$N$7:$N$221,'Prog Assums'!$AQ$7:$AQ$221,"")) -> - | N35: =CONCATENATE(M35,S35) -> -0 | O35: =IF(VLOOKUP(D35,'Prog Assums'!N$6:V$92,9,FALSE)>0,"retained","") ->  | Q35: =IF(S35>0,ROUNDDOWN((S35-VLOOKUP(AU35,'Prog Assums'!$E$38:$I$54,2,FALSE))/VLOOKUP(AU35,'Prog Assums'!$E$38:$I$54,3,FALSE),0),"") ->  | S35: =VLOOKUP(D35,'Prog Assums'!N$5:U$271,5,FALSE) -> 0 | U35: =AK35 -> 0 | V35: 0 | AA35: 0 | AC35: =IF(D35="-",0,VLOOKUP(D35,'Prog Assums'!N$5:X$271,11,FALSE)) -> 0 | AI35: =IF(AG$31="3 specialist labs",90,0) -> 0 | AK35: =IF(AG$31="3 specialist labs",1,0) -> 0 | AN35: =IF(U35>0,VLOOKUP(D35,'Prog Assums'!$N$6:$S$169,6,FALSE),0) -> 0 | AP35: =ROUNDDOWN((AQ35-VLOOKUP(AU35,'Prog Assums'!$E$38:$I$54,2,FALSE))/VLOOKUP(AU35,'Prog Assums'!$E$38:$I$54,3,FALSE),0) ->  | AQ35: =VLOOKUP(D35,'Prog Assums'!N$5:U$271,5,FALSE) -> 0 | AR35: =ROUNDUP(VLOOKUP(AU35,'Prog Assums'!$E$38:$I$54,4,FALSE)+(AP35*VLOOKUP(AU35,'Prog Assums'!$E$38:$I$54,5,FALSE)),0) ->  | AS35: =MAXA((AI35*AK35)-AT35,0) -> 0 | AU35: =VLOOKUP(D35,'Prog Assums'!$N$37:$O$48,2,FALSE) -> 0 | BE35: =IF(ISERROR(AVERAGEIF('Individual Spaces'!F:F,'Secondary SoA'!$N35,'Individual Spaces'!K:K))=TRUE,"",AVERAGEIF('Individual Spaces'!F:F,'Secondary SoA'!$N35,'Individual Spaces'!K:K)) ->  | BG35: =COUNTIF('Individual Spaces'!F:F,'Secondary SoA'!$N35) -> 0 | BH35: =IF(ISERROR(BE35*BG35)=TRUE,"",BE35*BG35) ->  | BJ35: =IF(ISERROR(BH35-Y35-V35)=TRUE,"",BH35-Y35-V35) ->  | BK35: 0 | BM35: =SUM(BO35:CK35) -> 0 | CM35: =IF($S35>0,VLOOKUP($D35,'Prog Assums'!$N$5:$AM$294,12, FALSE),"") ->  | CN35: =IF($S35>0,VLOOKUP($D35,'Prog Assums'!$N$5:$AM$294,13, FALSE),"") ->  | CQ35: =VLOOKUP(D35,'Prog Assums'!$N$6:$Q$229,3,0) -> 0 | CR35: =VLOOKUP(D35,'Prog Assums'!$N$6:$Q$229,4,0) -> 0 | CS35: 0 | CT35: =IF(CS35>14,IF(CS35<31,CS35,ROUNDDOWN(CS35/30,0)*30),0) -> 0 | CU35: =IF(S35>0,(V35/S35)*CT35,0) -> 0 | CV35: =IF(CS35>0,(V35/S35)*CS35,0)-CU35 -> 0 | CW35: 0 | CX35: 0 | CY35: 0 | CZ35: 0 | DN35: =VLOOKUP($C35,'Prog Assums'!$U$5:$AI$293,11,FALSE) -> 0 | DO35: =VLOOKUP($C35,'Prog Assums'!$U$5:$AI$293,12,FALSE) -> 0 | DP35: =IF(VLOOKUP($C35,'Prog Assums'!$U$5:$AI$293,13,FALSE)="AS SOA",$AI35,VLOOKUP($C35,'Prog Assums'!$U$5:$AI$293,13,FALSE)) -> 0 | DQ35: =VLOOKUP($C35,'Prog Assums'!$U$5:$AI$293,14,FALSE) -> 0 | DR35: =VLOOKUP($C35,'Prog Assums'!$U$5:$AI$293,15,FALSE) -> 0 | DS35: =IF(ISERROR((SUM($EB35,$EH35,$EN35,$EU35)/SUM($EA35,$EG35,$EM35,$ET35)-$S35))=TRUE,0,IF($U35=0,0,(SUM($EB35,$EH35,$EN35,$EU35)/SUM($EA35,$EG35,$EM35,$ET35)-$S35))) -> 0 | DU35: 0 | DV35: =SUM($EU35,$EN35,$EH35,$EB35)-$V35-$Y35 -> 0 | DY35: 0 | EA35: 0 | EB35: =EA35*DY35 -> 0 | EE35: 0 | EG35: 0 | EH35: =EG35*EE35 -> 0 | EK35: =IF(EN35>0,SUM(EN35/EM35),0) -> 0 | EM35: =COUNTIFS($EY$2:$YD$2,"Refurb",$EY35:$YD35,">0") -> 0 | EN35: =SUMIF($EY$2:$YD$2,"Refurb",$EY35:$YD35) -> 0 | ER35: =IF(EU35>0,SUM(EU35/ET35),0) -> 0 | ET35: =COUNTIFS($EY$2:$YD$2,'Prog Assums'!$B$130,$EY35:$YD35,">0") -> 0 | EU35: =SUMIF($EY$2:$YD$2,'Prog Assums'!$B$130,$EY35:$YD35) -> 0
A36: =VLOOKUP($D36,'Prog Assums'!$N$5:$AM$294,10, FALSE) -> - | C36: =VLOOKUP($D36,'Prog Assums'!$N$5:$AM$294,8, FALSE) -> - | D36: =IF(AG$31="3 specialist labs","Science laboratories (physics)","-") -> - | M36: =IF(D36="","",_xlfn.XLOOKUP(D36,'Prog Assums'!$N$7:$N$221,'Prog Assums'!$AQ$7:$AQ$221,"")) -> - | N36: =CONCATENATE(M36,S36) -> -0 | O36: =IF(VLOOKUP(D36,'Prog Assums'!N$6:V$92,9,FALSE)>0,"retained","") ->  | Q36: =IF(S36>0,ROUNDDOWN((S36-VLOOKUP(AU36,'Prog Assums'!$E$38:$I$54,2,FALSE))/VLOOKUP(AU36,'Prog Assums'!$E$38:$I$54,3,FALSE),0),"") ->  | S36: =VLOOKUP(D36,'Prog Assums'!N$5:U$271,5,FALSE) -> 0 | U36: =AK36 -> 0 | V36: 0 | AA36: 0 | AC36: =IF(D36="-",0,VLOOKUP(D36,'Prog Assums'!N$5:X$271,11,FALSE)) -> 0 | AI36: =IF(AG$31="3 specialist labs",90,0) -> 0 | AK36: =IF(AG$31="3 specialist labs",1,0) -> 0 | AN36: =IF(U36>0,VLOOKUP(D36,'Prog Assums'!$N$6:$S$169,6,FALSE),0) -> 0 | AP36: =ROUNDDOWN((AQ36-VLOOKUP(AU36,'Prog Assums'!$E$38:$I$54,2,FALSE))/VLOOKUP(AU36,'Prog Assums'!$E$38:$I$54,3,FALSE),0) ->  | AQ36: =VLOOKUP(D36,'Prog Assums'!N$5:U$271,5,FALSE) -> 0 | AR36: =ROUNDUP(VLOOKUP(AU36,'Prog Assums'!$E$38:$I$54,4,FALSE)+(AP36*VLOOKUP(AU36,'Prog Assums'!$E$38:$I$54,5,FALSE)),0) ->  | AS36: 0 | AU36: =VLOOKUP(D36,'Prog Assums'!$N$37:$O$48,2,FALSE) -> 0 | BE36: =IF(ISERROR(AVERAGEIF('Individual Spaces'!F:F,'Secondary SoA'!$N36,'Individual Spaces'!K:K))=TRUE,"",AVERAGEIF('Individual Spaces'!F:F,'Secondary SoA'!$N36,'Individual Spaces'!K:K)) ->  | BG36: =COUNTIF('Individual Spaces'!F:F,'Secondary SoA'!$N36) -> 0 | BH36: =IF(ISERROR(BE36*BG36)=TRUE,"",BE36*BG36) ->  | BJ36: =IF(ISERROR(BH36-Y36-V36)=TRUE,"",BH36-Y36-V36) ->  | BK36: 0 | BM36: =SUM(BO36:CK36) -> 0 | BY36: =U36 -> 0 | CM36: =IF($S36>0,VLOOKUP($D36,'Prog Assums'!$N$5:$AM$294,12, FALSE),"") ->  | CN36: =IF($S36>0,VLOOKUP($D36,'Prog Assums'!$N$5:$AM$294,13, FALSE),"") ->  | CQ36: =VLOOKUP(D36,'Prog Assums'!$N$6:$Q$229,3,0) -> 0 | CR36: =VLOOKUP(D36,'Prog Assums'!$N$6:$Q$229,4,0) -> 0 | CS36: 0 | CT36: =IF(CS36>14,IF(CS36<31,CS36,ROUNDDOWN(CS36/30,0)*30),0) -> 0 | CU36: =IF(S36>0,(V36/S36)*CT36,0) -> 0 | CV36: =IF(CS36>0,(V36/S36)*CS36,0)-CU36 -> 0 | CW36: 0 | CX36: 0 | CY36: 0 | CZ36: 0 | DN36: =VLOOKUP($C36,'Prog Assums'!$U$5:$AI$293,11,FALSE) -> 0 | DO36: =VLOOKUP($C36,'Prog Assums'!$U$5:$AI$293,12,FALSE) -> 0 | DP36: =IF(VLOOKUP($C36,'Prog Assums'!$U$5:$AI$293,13,FALSE)="AS SOA",$AI36,VLOOKUP($C36,'Prog Assums'!$U$5:$AI$293,13,FALSE)) -> 0 | DQ36: =VLOOKUP($C36,'Prog Assums'!$U$5:$AI$293,14,FALSE) -> 0 | DR36: =VLOOKUP($C36,'Prog Assums'!$U$5:$AI$293,15,FALSE) -> 0 | DS36: =IF(ISERROR((SUM($EB36,$EH36,$EN36,$EU36)/SUM($EA36,$EG36,$EM36,$ET36)-$S36))=TRUE,0,IF($U36=0,0,(SUM($EB36,$EH36,$EN36,$EU36)/SUM($EA36,$EG36,$EM36,$ET36)-$S36))) -> 0 | DU36: 0 | DV36: =SUM($EU36,$EN36,$EH36,$EB36)-$V36-$Y36 -> 0 | DY36: 0 | EA36: 0 | EB36: =EA36*DY36 -> 0 | EE36: 0 | EG36: 0 | EH36: =EG36*EE36 -> 0 | EK36: =IF(EN36>0,SUM(EN36/EM36),0) -> 0 | EM36: =COUNTIFS($EY$2:$YD$2,"Refurb",$EY36:$YD36,">0") -> 0 | EN36: =SUMIF($EY$2:$YD$2,"Refurb",$EY36:$YD36) -> 0 | ER36: =IF(EU36>0,SUM(EU36/ET36),0) -> 0 | ET36: =COUNTIFS($EY$2:$YD$2,'Prog Assums'!$B$130,$EY36:$YD36,">0") -> 0 | EU36: =SUMIF($EY$2:$YD$2,'Prog Assums'!$B$130,$EY36:$YD36) -> 0
EN37: =SUM(ER37:FZ37) -> 0 | EU37: =SUM(EY37:GG37) -> 0
D38: Art | K38: ='curriculum analysis (optional)'!AO129 -> 0 | U38: =U39+U40+U41 -> 3 | AK38: =AK39+AK40+AK41 -> 3 | AV38: =((AW$4*AY$4)+(AV$5/AY$5/DA$2)+(AW$5*(AY$5-1))+(AW$6*AY$6)+(AW$8*AY$8))/(AY$4+AY$5+AY$6+AY$8) -> 23.42857143 | AW38: =(U38*AV38*0.8)/K$8 -> 0.04998095238 | AX38: of curriculum @ 80% use | BG38: =BG39+BG40+BG41 -> 3 | DC38: =DC39+DC41 -> 0 | DD38: =SUM(DD39:DD42) -> 2 | DE38: =SUM(DE39:DE42) -> 1 | DF38: =IF(ROUND($K$5/299,0)<2,DF5,ROUND($K$5/301,0)) -> 3 | DG38: =IF(ROUND($K$5/301,0)<2,DG5,ROUND($K$5/301,0)-DG5) -> 2 | DH38: =IF(ROUND($K$5/301,0)<2,DH5,ROUND($K$5/301,0)-DH5) -> 2 | DI38: =IF(ROUND($K$5/301,0)<2,DI5,ROUND($K$5/301,0)-DI5) -> 2 | DJ38: =IF(ROUND($K$6/301,0)<2,DJ5,ROUND($K$6/301,0)) -> 1 | DK38: =IF(ROUND($K$6/301,0)<2,DK5,ROUND($K$6/301,0)+DK5) -> 1 | DL38: =IF(ROUND($K$6/301,0)<2,DL5,ROUND($K$6/301,0)) -> 1 | DM38: =IF(ROUND($K$6/301,0)<2,DM5,ROUND($K$6/301,0)-DM5) -> 1 | DU38: =SUM(EA38,EG38,EM38,ET38)-U38 -> -3 | EA38: =SUM(EA39:EA41) -> 0 | EB38: =SUM(EB39:EB41) -> 0 | EG38: =SUM(EG39:EG41) -> 0 | EH38: =SUM(EH39:EH41) -> 0 | EM38: =SUM(EM39:EM41) -> 0 | EN38: =SUM(EN39:EN41) -> 0 | ET38: =SUM(ET39:ET41) -> 0 | EU38: =SUM(EU39:EU41) -> 0
A39: =VLOOKUP($D39,'Prog Assums'!$N$5:$AM$294,10, FALSE) -> DAT00 | C39: =VLOOKUP($D39,'Prog Assums'!$N$5:$AM$294,8, FALSE) -> DAT02 | D39: Art rooms (general) | M39: =IF(D39="","",_xlfn.XLOOKUP(D39,'Prog Assums'!$N$7:$N$221,'Prog Assums'!$AQ$7:$AQ$221,"")) -> Art room (general) | N39: =CONCATENATE(M39,S39) -> Art room (general)83 | Q39: =ROUNDDOWN((S39-VLOOKUP(AU39,'Prog Assums'!$E$38:$I$54,2,FALSE))/VLOOKUP(AU39,'Prog Assums'!$E$38:$I$54,3,FALSE),0) -> 30 | S39: =VLOOKUP(D39,'Prog Assums'!N$5:U$271,5,FALSE) -> 83 | U39: =AK39 -> 1 | V39: 83 | AA39: 0 | AC39: =IF(D39="-",0,VLOOKUP(D39,'Prog Assums'!N$5:X$271,11,FALSE)) -> 83 | AD39: =IF(D39="-","","m2 minimum size for 30 pupils") -> m2 minimum size for 30 pupils | AI39: =IF(AK39>0,83,0) -> 83 | AK39: =DD39+DE39+DC39 -> 1 | AN39: =IF(U39>0,VLOOKUP(D39,'Prog Assums'!$N$6:$S$169,6,FALSE),0) -> 10 | AP39: =ROUNDDOWN((AQ39-VLOOKUP(AU39,'Prog Assums'!$E$38:$I$54,2,FALSE))/VLOOKUP(AU39,'Prog Assums'!$E$38:$I$54,3,FALSE),0) -> 30 | AQ39: =VLOOKUP(D39,'Prog Assums'!N$5:U$271,5,FALSE) -> 83 | AR39: =ROUNDUP(VLOOKUP(AU39,'Prog Assums'!$E$38:$I$54,4,FALSE)+(AP39*VLOOKUP(AU39,'Prog Assums'!$E$38:$I$54,5,FALSE)),0) -> 97 | AS39: 83 | AU39: F | BE39: =IF(ISERROR(AVERAGEIF('Individual Spaces'!F:F,'Secondary SoA'!$N39,'Individual Spaces'!K:K))=TRUE,"",AVERAGEIF('Individual Spaces'!F:F,'Secondary SoA'!$N39,'Individual Spaces'!K:K)) ->  | BG39: =COUNTIF('Individual Spaces'!F:F,'Secondary SoA'!$N39) -> 1 | BH39: =IF(ISERROR(BE39*BG39)=TRUE,"",BE39*BG39) ->  | BJ39: =IF(ISERROR(BH39-Y39-V39)=TRUE,"",BH39-Y39-V39) ->  | BK39: 0 | BM39: =SUM(BO39:CK39) -> 1 | CA39: =U39 -> 1 | CM39: =IF($S39>0,VLOOKUP($D39,'Prog Assums'!$N$5:$AM$294,12, FALSE),"") -> 83m2 for 30 | CN39: =IF($S39>0,VLOOKUP($D39,'Prog Assums'!$N$5:$AM$294,13, FALSE),"") -> E1 | CQ39: =VLOOKUP(D39,'Prog Assums'!$N$6:$Q$229,3,0) -> 2.5 | CR39: =VLOOKUP(D39,'Prog Assums'!$N$6:$Q$229,4,0) -> 4 | CS39: 30 | CT39: =IF(CS39>14,IF(CS39<31,CS39,ROUNDDOWN(CS39/30,0)*30),0) -> 30 | CU39: =IF(S39>0,(V39/S39)*CT39,0) -> 30 | CV39: =IF(CS39>0,(V39/S39)*CS39,0)-CU39 -> 0 | CW39: =IF(AK39=0,0,MAXA(1,ROUNDUP((AI39/CQ39)-CR39,0))) -> 30 | CX39: =IF(CW39>14,IF(CW39<31,CW39,ROUNDDOWN(CW39/30,0)*30),0) -> 30 | CY39: =IF(AK39>0,(AS39/AI39)*CX39,0) -> 30 | CZ39: =IF(CW39>0,(AS39/AI39)*CW39,0)-CY39 -> 0 | DA39: 28 | DD39: =HLOOKUP($AG$12,$DF$15:$DI$74,25,FALSE) -> 1 | DE39: =HLOOKUP($AG$12,$DJ$15:$DM$74,25,FALSE) -> 0 | DF39: =IF(DF38>1,ROUND(DF38/2,0),0) -> 2 | DG39: 1 | DH39: 1 | DI39: 1 | DJ39: 0 | DK39: 0 | DL39: 0 | DM39: 0 | DN39: =VLOOKUP($C39,'Prog Assums'!$U$5:$AI$293,11,FALSE) -> 45 | DO39: =VLOOKUP($C39,'Prog Assums'!$U$5:$AI$293,12,FALSE) -> 74.7 | DP39: =IF(VLOOKUP($C39,'Prog Assums'!$U$5:$AI$293,13,FALSE)="AS SOA",$AI39,VLOOKUP($C39,'Prog Assums'!$U$5:$AI$293,13,FALSE)) -> 83 | DQ39: =VLOOKUP($C39,'Prog Assums'!$U$5:$AI$293,14,FALSE) -> 97 | DR39: =VLOOKUP($C39,'Prog Assums'!$U$5:$AI$293,15,FALSE) -> 104 | DS39: =IF(ISERROR((SUM($EB39,$EH39,$EN39,$EU39)/SUM($EA39,$EG39,$EM39,$ET39)-$S39))=TRUE,0,IF($U39=0,0,(SUM($EB39,$EH39,$EN39,$EU39)/SUM($EA39,$EG39,$EM39,$ET39)-$S39))) -> 0 | DU39: =SUM(EA39,EG39,EM39,ET39)-U39 -> -1 | DV39: =SUM($EU39,$EN39,$EH39,$EB39)-$V39-$Y39 -> -83 | DY39: 0 | EB39: =EA39*DY39 -> 0 | EE39: 0 | EG39: 0 | EH39: =EG39*EE39 -> 0 | EK39: =IF(EN39>0,SUM(EN39/EM39),0) -> 0 | EM39: =COUNTIFS($EY$2:$YD$2,"Refurb",$EY39:$YD39,">0") -> 0 | EN39: =SUMIF($EY$2:$YD$2,"Refurb",$EY39:$YD39) -> 0 | ER39: =IF(EU39>0,SUM(EU39/ET39),0) -> 0 | ET39: =COUNTIFS($EY$2:$YD$2,'Prog Assums'!$B$130,$EY39:$YD39,">0") -> 0 | EU39: =SUMIF($EY$2:$YD$2,'Prog Assums'!$B$130,$EY39:$YD39) -> 0
A40: =VLOOKUP($D40,'Prog Assums'!$N$5:$AM$294,10, FALSE) -> DAT00 | C40: =VLOOKUP($D40,'Prog Assums'!$N$5:$AM$294,8, FALSE) -> DAT03 | D40: Art rooms (3D) | M40: =IF(D40="","",_xlfn.XLOOKUP(D40,'Prog Assums'!$N$7:$N$221,'Prog Assums'!$AQ$7:$AQ$221,"")) -> Art room (3D) | N40: Art room (3D)97 | O40: =IF(VLOOKUP(D40,'Prog Assums'!N$6:V$92,9,FALSE)>0,"retained","") ->  | Q40: =IF(S40>0,ROUNDDOWN((S40-VLOOKUP(AU40,'Prog Assums'!$E$38:$I$54,2,FALSE))/VLOOKUP(AU40,'Prog Assums'!$E$38:$I$54,3,FALSE),0),"") -> 30 | S40: =VLOOKUP(D40,'Prog Assums'!N$5:U$271,5,FALSE) -> 97 | U40: =AK40 -> 2 | V40: 194 | AA40: 0 | AC40: =IF(D40="-",0,VLOOKUP(D40,'Prog Assums'!N$5:X$271,11,FALSE)) -> 97 | AD40: =IF(D40="-","","m2 minimum size for 30 pupils") -> m2 minimum size for 30 pupils | AI40: =IF(AK40>0,97,0) -> 97 | AK40: =DD40+DE40+DC40 -> 2 | AN40: =IF(U40>0,VLOOKUP(D40,'Prog Assums'!$N$6:$S$169,6,FALSE),0) -> 10 | AP40: =ROUNDDOWN((AQ40-VLOOKUP(AU40,'Prog Assums'!$E$38:$I$54,2,FALSE))/VLOOKUP(AU40,'Prog Assums'!$E$38:$I$54,3,FALSE),0) -> 30 | AQ40: =VLOOKUP(D40,'Prog Assums'!N$5:U$271,5,FALSE) -> 97 | AR40: =ROUNDUP(VLOOKUP(AU40,'Prog Assums'!$E$38:$I$54,4,FALSE)+(AP40*VLOOKUP(AU40,'Prog Assums'!$E$38:$I$54,5,FALSE)),0) -> 116 | AS40: 194 | AU40: =VLOOKUP(D40,'Prog Assums'!$N$50:$O$62,2,FALSE) -> G | BE40: =IF(ISERROR(AVERAGEIF('Individual Spaces'!F:F,'Secondary SoA'!$N40,'Individual Spaces'!K:K))=TRUE,"",AVERAGEIF('Individual Spaces'!F:F,'Secondary SoA'!$N40,'Individual Spaces'!K:K)) ->  | BG40: =COUNTIF('Individual Spaces'!F:F,'Secondary SoA'!$N40) -> 2 | BH40: =IF(ISERROR(BE40*BG40)=TRUE,"",BE40*BG40) ->  | BJ40: =IF(ISERROR(BH40-Y40-V40)=TRUE,"",BH40-Y40-V40) ->  | BK40: 0 | BM40: =SUM(BO40:CK40) -> 2 | CA40: =U40 -> 2 | CM40: =IF($S40>0,VLOOKUP($D40,'Prog Assums'!$N$5:$AM$294,12, FALSE),"") -> 97m2 for 30 | CN40: =IF($S40>0,VLOOKUP($D40,'Prog Assums'!$N$5:$AM$294,13, FALSE),"") -> F1 | CQ40: =VLOOKUP(D40,'Prog Assums'!$N$6:$Q$229,3,0) -> 2.5 | CR40: =VLOOKUP(D40,'Prog Assums'!$N$6:$Q$229,4,0) -> 4 | CS40: 35 | CT40: =IF(CS40>14,IF(CS40<31,CS40,ROUNDDOWN(CS40/30,0)*30),0) -> 30 | CU40: =IF(S40>0,(V40/S40)*CT40,0) -> 60 | CV40: =IF(CS40>0,(V40/S40)*CS40,0)-CU40 -> 10 | CW40: 35 | CX40: 30 | CY40: 60 | CZ40: 10 | DA40: 30 | DD40: =HLOOKUP($AG$12,$DF$15:$DI$74,26,FALSE) -> 1 | DE40: =HLOOKUP($AG$12,$DJ$15:$DM$74,26,FALSE) -> 1 | DF40: =(DF38-DF41-DF39)*DF5 -> 1 | DG40: 1 | DH40: 1 | DI40: 1 | DJ40: =(DJ38-DJ41-DJ39)*DJ5 -> 1 | DK40: 1 | DL40: 1 | DM40: 1 | DN40: =VLOOKUP($C40,'Prog Assums'!$U$5:$AI$293,11,FALSE) -> 45 | DO40: =VLOOKUP($C40,'Prog Assums'!$U$5:$AI$293,12,FALSE) -> 87.3 | DP40: =IF(VLOOKUP($C40,'Prog Assums'!$U$5:$AI$293,13,FALSE)="AS SOA",$AI40,VLOOKUP($C40,'Prog Assums'!$U$5:$AI$293,13,FALSE)) -> 97 | DQ40: =VLOOKUP($C40,'Prog Assums'!$U$5:$AI$293,14,FALSE) -> 116 | DR40: =VLOOKUP($C40,'Prog Assums'!$U$5:$AI$293,15,FALSE) -> 150 | DS40: =IF(ISERROR((SUM($EB40,$EH40,$EN40,$EU40)/SUM($EA40,$EG40,$EM40,$ET40)-$S40))=TRUE,0,IF($U40=0,0,(SUM($EB40,$EH40,$EN40,$EU40)/SUM($EA40,$EG40,$EM40,$ET40)-$S40))) -> 0 | DU40: =SUM(EA40,EG40,EM40,ET40)-U40 -> -2 | DV40: =SUM($EU40,$EN40,$EH40,$EB40)-$V40-$Y40 -> -194 | DY40: 0 | EB40: =EA40*DY40 -> 0 | EE40: 0 | EG40: 0 | EH40: =EG40*EE40 -> 0 | EK40: =IF(EN40>0,SUM(EN40/EM40),0) -> 0 | EM40: =COUNTIFS($EY$2:$YD$2,"Refurb",$EY40:$YD40,">0") -> 0 | EN40: =SUMIF($EY$2:$YD$2,"Refurb",$EY40:$YD40) -> 0 | ER40: =IF(EU40>0,SUM(EU40/ET40),0) -> 0 | ET40: =COUNTIFS($EY$2:$YD$2,'Prog Assums'!$B$130,$EY40:$YD40,">0") -> 0 | EU40: =SUMIF($EY$2:$YD$2,'Prog Assums'!$B$130,$EY40:$YD40) -> 0
A41: =VLOOKUP($D41,'Prog Assums'!$N$5:$AM$294,10, FALSE) -> - | C41: =VLOOKUP($D41,'Prog Assums'!$N$5:$AM$294,8, FALSE) -> - | D41: - | M41: =IF(D41="","",_xlfn.XLOOKUP(D41,'Prog Assums'!$N$7:$N$221,'Prog Assums'!$AQ$7:$AQ$221,"")) -> - | N41: -0 | O41: =IF(VLOOKUP(D41,'Prog Assums'!N$6:V$92,9,FALSE)>0,"retained","") ->  | Q41: =IF(S41>0,ROUNDDOWN((S41-VLOOKUP(AU41,'Prog Assums'!$E$38:$I$54,2,FALSE))/VLOOKUP(AU41,'Prog Assums'!$E$38:$I$54,3,FALSE),0),"") ->  | S41: =VLOOKUP(D41,'Prog Assums'!N$5:U$271,5,FALSE) -> 0 | V41: 0 | AA41: 0 | AC41: =IF(D41="-",0,VLOOKUP(D41,'Prog Assums'!N$5:X$271,11,FALSE)) -> 0 | AD41: =IF(D41="-","","m2 minimum size for 30 pupils") ->  | AI41: =IF(AK41>0,104,0) -> 0 | AK41: =DD41+DE41+DC41 -> 0 | AN41: =IF(U41>0,VLOOKUP(D41,'Prog Assums'!$N$6:$S$169,6,FALSE),0) -> 0 | AP41: =ROUNDDOWN((AQ41-VLOOKUP(AU41,'Prog Assums'!$E$38:$I$54,2,FALSE))/VLOOKUP(AU41,'Prog Assums'!$E$38:$I$54,3,FALSE),0) ->  | AQ41: =VLOOKUP(D41,'Prog Assums'!N$5:U$271,5,FALSE) -> 0 | AR41: =ROUNDUP(VLOOKUP(AU41,'Prog Assums'!$E$38:$I$54,4,FALSE)+(AP41*VLOOKUP(AU41,'Prog Assums'!$E$38:$I$54,5,FALSE)),0) ->  | AS41: 0 | AU41: =VLOOKUP(D41,'Prog Assums'!$N$50:$O$62,2,FALSE) -> 0 | BE41: =IF(ISERROR(AVERAGEIF('Individual Spaces'!F:F,'Secondary SoA'!$N41,'Individual Spaces'!K:K))=TRUE,"",AVERAGEIF('Individual Spaces'!F:F,'Secondary SoA'!$N41,'Individual Spaces'!K:K)) ->  | BG41: =COUNTIF('Individual Spaces'!F:F,'Secondary SoA'!$N41) -> 0 | BH41: =IF(ISERROR(BE41*BG41)=TRUE,"",BE41*BG41) ->  | BJ41: =IF(ISERROR(BH41-Y41-V41)=TRUE,"",BH41-Y41-V41) ->  | BK41: 0 | BM41: =SUM(BO41:CK41) -> 0 | BY41: =U41 -> 0 | CA41: =U41 -> 0 | CM41: =IF($S41>0,VLOOKUP($D41,'Prog Assums'!$N$5:$AM$294,12, FALSE),"") ->  | CN41: =IF($S41>0,VLOOKUP($D41,'Prog Assums'!$N$5:$AM$294,13, FALSE),"") ->  | CQ41: =VLOOKUP(D41,'Prog Assums'!$N$6:$Q$229,3,0) -> 0 | CR41: =VLOOKUP(D41,'Prog Assums'!$N$6:$Q$229,4,0) -> 0 | CS41: 0 | CT41: =IF(CS41>14,IF(CS41<31,CS41,ROUNDDOWN(CS41/30,0)*30),0) -> 0 | CU41: =IF(S41>0,(V41/S41)*CT41,0) -> 0 | CV41: =IF(CS41>0,(V41/S41)*CS41,0)-CU41 -> 0 | CW41: 0 | CX41: 0 | CY41: 0 | CZ41: 0 | DA41: 28 | DN41: =VLOOKUP($C41,'Prog Assums'!$U$5:$AI$293,11,FALSE) -> 0 | DO41: =VLOOKUP($C41,'Prog Assums'!$U$5:$AI$293,12,FALSE) -> 0 | DP41: =IF(VLOOKUP($C41,'Prog Assums'!$U$5:$AI$293,13,FALSE)="AS SOA",$AI41,VLOOKUP($C41,'Prog Assums'!$U$5:$AI$293,13,FALSE)) -> 0 | DQ41: =VLOOKUP($C41,'Prog Assums'!$U$5:$AI$293,14,FALSE) -> 0 | DR41: =VLOOKUP($C41,'Prog Assums'!$U$5:$AI$293,15,FALSE) -> 0 | DS41: =IF(ISERROR((SUM($EB41,$EH41,$EN41,$EU41)/SUM($EA41,$EG41,$EM41,$ET41)-$S41))=TRUE,0,IF($U41=0,0,(SUM($EB41,$EH41,$EN41,$EU41)/SUM($EA41,$EG41,$EM41,$ET41)-$S41))) -> 0 | DU41: =SUM(EA41,EG41,EM41,ET41)-U41 -> 0 | DV41: =SUM($EU41,$EN41,$EH41,$EB41)-$V41-$Y41 -> 0 | DY41: 0 | EA41: 0 | EB41: =EA41*DY41 -> 0 | EE41: 0 | EG41: 0 | EH41: =EG41*EE41 -> 0 | EK41: =IF(EN41>0,SUM(EN41/EM41),0) -> 0 | EM41: =COUNTIFS($EY$2:$YD$2,"Refurb",$EY41:$YD41,">0") -> 0 | EN41: =SUMIF($EY$2:$YD$2,"Refurb",$EY41:$YD41) -> 0 | ER41: =IF(EU41>0,SUM(EU41/ET41),0) -> 0 | ET41: =COUNTIFS($EY$2:$YD$2,'Prog Assums'!$B$130,$EY41:$YD41,">0") -> 0 | EU41: =SUMIF($EY$2:$YD$2,'Prog Assums'!$B$130,$EY41:$YD41) -> 0
EN42: =SUM(ER42:FZ42) -> 0 | EU42: =SUM(EY42:GG42) -> 0
D43: Music and drama | K43: ='curriculum analysis (optional)'!AO136 -> 0 | U43: =U44+U46+U45+U47 -> 2 | AK43: =AK44+AK45+AK46+AK47 -> 2 | AV43: =((AW$4*AY$4)+(AV$5/AY$5/DA$2)+(AW$5*(AY$5-1))+(AW$6*AY$6)+(AW$8*AY$8))/(AY$4+AY$5+AY$6+AY$8) -> 23.42857143 | AW43: =(U43*AV43*0.8)/K$8 -> 0.03332063492 | AX43: of curriculum @ 80% use | BG43: =BG44+BG46+BG45+BG47 -> 2 | DA43: =IF(ROUND(K$5/301,0)<2,DD5,ROUND(K$5/301,0)-1) -> 2 | DC43: =DC46+DC44+DC45+DC47+DC54 -> 0 | DD43: =HLOOKUP($AG$12,$DF$15:$DI$74,29,FALSE) -> 2 | DE43: =HLOOKUP($AG$12,$DJ$15:$DM$74,29,FALSE) -> 0 | DF43: =MAXA($DA74-DF18-DF26-DF31-DF38-DF49-DF58,0) -> 1 | DG43: =MAXA($DA74-DG18-DG26-DG31-DG38-DG49-DG58,0) -> 2 | DH43: =MAXA($DA74-DH18-DH26-DH31-DH38-DH49-DH58,0) -> 2 | DI43: =MAXA($DA74-DI18-DI26-DI31-DI38-DI49-DI58,0) -> 1 | DJ43: =MAXA($DB74-DJ18-DJ26-DJ31-DJ38-DJ49-DJ58,0) -> 1 | DK43: =MAXA($DB74-DK18-DK26-DK31-DK38-DK49-DK58,0) -> 1 | DL43: =MAXA($DB74-DL18-DL26-DL31-DL38-DL49-DL58,0) -> 0 | DM43: =MAXA($DB74-DM18-DM26-DM31-DM38-DM49-DM58,0) -> 0 | DU43: =SUM(EA43,EG43,EM43,ET43)-U43 -> -2 | EA43: =SUM(EA44:EA47) -> 0 | EB43: =SUM(EB44:EB47) -> 0 | EG43: =SUM(EG44:EG47) -> 0 | EH43: =SUM(EH44:EH47) -> 0 | EM43: =SUM(EM44:EM47) -> 0 | EN43: =SUM(EN44:EN47) -> 0 | ET43: =SUM(ET44:ET47) -> 0 | EU43: =SUM(EU44:EU47) -> 0
A44: =VLOOKUP($D44,'Prog Assums'!$N$5:$AM$294,10, FALSE) -> PER02 | C44: =VLOOKUP($D44,'Prog Assums'!$N$5:$AM$294,8, FALSE) -> PER03 | D44: Music rooms (fitted, extensive) | M44: =IF(D44="","",_xlfn.XLOOKUP(D44,'Prog Assums'!$N$7:$N$221,'Prog Assums'!$AQ$7:$AQ$221,"")) -> Music room (fitted, extensive) | N44: Music room (fitted, extensive)69 | Q44: =ROUNDDOWN((S44-VLOOKUP(AU44,'Prog Assums'!$E$38:$I$54,2,FALSE))/VLOOKUP(AU44,'Prog Assums'!$E$38:$I$54,3,FALSE),0) -> 33 | S44: =VLOOKUP(D44,'Prog Assums'!N$5:U$271,5,FALSE) -> 69 | U44: =AK44 -> 1 | V44: 69 | AA44: 0 | AC44: =IF(D44="-",0,VLOOKUP(D44,'Prog Assums'!N$5:X$271,11,FALSE)) -> 69 | AD44: =IF(D44="-","","m2 minimum size for 30 pupils") -> m2 minimum size for 30 pupils | AI44: =IF(AK44>0,69,0) -> 69 | AK44: =DD44+DE44+DC44 -> 1 | AN44: =IF(U44>0,VLOOKUP(D44,'Prog Assums'!$N$6:$S$169,6,FALSE),0) -> 5 | AP44: =ROUNDDOWN((AQ44-VLOOKUP(AU44,'Prog Assums'!$E$38:$I$54,2,FALSE))/VLOOKUP(AU44,'Prog Assums'!$E$38:$I$54,3,FALSE),0) -> 33 | AQ44: =VLOOKUP(D44,'Prog Assums'!N$5:U$271,5,FALSE) -> 69 | AR44: =ROUNDUP(VLOOKUP(AU44,'Prog Assums'!$E$38:$I$54,4,FALSE)+(AP44*VLOOKUP(AU44,'Prog Assums'!$E$38:$I$54,5,FALSE)),0) -> 76 | AS44: 69 | AU44: D | BE44: =IF(ISERROR(AVERAGEIF('Individual Spaces'!F:F,'Secondary SoA'!$N44,'Individual Spaces'!K:K))=TRUE,"",AVERAGEIF('Individual Spaces'!F:F,'Secondary SoA'!$N44,'Individual Spaces'!K:K)) ->  | BG44: =COUNTIF('Individual Spaces'!F:F,'Secondary SoA'!$N44) -> 1 | BH44: =IF(ISERROR(BE44*BG44)=TRUE,"",BE44*BG44) ->  | BJ44: =IF(ISERROR(BH44-Y44-V44)=TRUE,"",BH44-Y44-V44) ->  | BK44: 0 | BM44: =SUM(BO44:CK44) -> 1 | CC44: =U44 -> 1 | CM44: =IF($S44>0,VLOOKUP($D44,'Prog Assums'!$N$5:$AM$294,12, FALSE),"") -> 69m2 for 30 | CN44: =IF($S44>0,VLOOKUP($D44,'Prog Assums'!$N$5:$AM$294,13, FALSE),"") -> C | CQ44: =VLOOKUP(D44,'Prog Assums'!$N$6:$Q$229,3,0) -> 2 | CR44: =VLOOKUP(D44,'Prog Assums'!$N$6:$Q$229,4,0) -> 4 | CS44: 31 | CT44: =IF(CS44>14,IF(CS44<31,CS44,ROUNDDOWN(CS44/30,0)*30),0) -> 30 | CU44: =IF(S44>0,(V44/S44)*CT44,0) -> 30 | CV44: =IF(CS44>0,(V44/S44)*CS44,0)-CU44 -> 1 | CW44: =IF(AK44=0,0,MAXA(1,ROUNDUP((AI44/CQ44)-CR44,0))) -> 31 | CX44: =IF(CW44>14,IF(CW44<31,CW44,ROUNDDOWN(CW44/30,0)*30),0) -> 30 | CY44: =IF(AK44>0,(AS44/AI44)*CX44,0) -> 30 | CZ44: =IF(CW44>0,(AS44/AI44)*CW44,0)-CY44 -> 1 | DA44: 30 | DD44: =IF((DD43+DE43)>0,(DD43+DE43)-DD46-DD45,0) -> 1 | DF44: =IF(DF43>0,DF43-DF46-DF45,0) -> 0 | DG44: 1 | DH44: 1 | DI44: 0 | DJ44: 1 | DK44: 1 | DL44: 0 | DM44: 0 | DN44: =VLOOKUP($C44,'Prog Assums'!$U$5:$AI$293,11,FALSE) -> 45 | DO44: =VLOOKUP($C44,'Prog Assums'!$U$5:$AI$293,12,FALSE) -> 55 | DP44: =IF(VLOOKUP($C44,'Prog Assums'!$U$5:$AI$293,13,FALSE)="AS SOA",$AI44,VLOOKUP($C44,'Prog Assums'!$U$5:$AI$293,13,FALSE)) -> 62 | DQ44: =VLOOKUP($C44,'Prog Assums'!$U$5:$AI$293,14,FALSE) -> 69 | DR44: =VLOOKUP($C44,'Prog Assums'!$U$5:$AI$293,15,FALSE) -> 75 | DS44: =IF(ISERROR((SUM($EB44,$EH44,$EN44,$EU44)/SUM($EA44,$EG44,$EM44,$ET44)-$S44))=TRUE,0,IF($U44=0,0,(SUM($EB44,$EH44,$EN44,$EU44)/SUM($EA44,$EG44,$EM44,$ET44)-$S44))) -> 0 | DU44: =SUM(EA44,EG44,EM44,ET44)-U44 -> -1 | DV44: =SUM($EU44,$EN44,$EH44,$EB44)-$V44-$Y44 -> -69 | DY44: 0 | EB44: =EA44*DY44 -> 0 | EE44: 0 | EG44: 0 | EH44: =EG44*EE44 -> 0 | EK44: =IF(EN44>0,SUM(EN44/EM44),0) -> 0 | EM44: =COUNTIFS($EY$2:$YD$2,"Refurb",$EY44:$YD44,">0") -> 0 | EN44: =SUMIF($EY$2:$YD$2,"Refurb",$EY44:$YD44) -> 0 | ER44: =IF(EU44>0,SUM(EU44/ET44),0) -> 0 | ET44: =COUNTIFS($EY$2:$YD$2,'Prog Assums'!$B$130,$EY44:$YD44,">0") -> 0 | EU44: =SUMIF($EY$2:$YD$2,'Prog Assums'!$B$130,$EY44:$YD44) -> 0
A45: =VLOOKUP($D45,'Prog Assums'!$N$5:$AM$294,10, FALSE) -> - | C45: =VLOOKUP($D45,'Prog Assums'!$N$5:$AM$294,8, FALSE) -> - | D45: =IF(AK45>0,"Music and drama classrooms","-") -> - | M45: =IF(D45="","",_xlfn.XLOOKUP(D45,'Prog Assums'!$N$7:$N$221,'Prog Assums'!$AQ$7:$AQ$221,"")) -> - | N45: -0 | O45: =IF(VLOOKUP(D45,'Prog Assums'!N$6:V$92,9,FALSE)>0,"retained","") ->  | Q45: =IF(S45>0,ROUNDDOWN((S45-VLOOKUP(AU45,'Prog Assums'!$E$38:$I$54,2,FALSE))/VLOOKUP(AU45,'Prog Assums'!$E$38:$I$54,3,FALSE),0),"") ->  | S45: =VLOOKUP(D45,'Prog Assums'!N$5:U$271,5,FALSE) -> 0 | U45: =AK45 -> 0 | V45: 0 | AA45: 0 | AC45: =IF(D45="-",0,VLOOKUP(D45,'Prog Assums'!N$5:X$271,11,FALSE)) -> 0 | AI45: =IF(AK45>0,83,0) -> 0 | AK45: =DD45+DE45+DC45 -> 0 | AN45: =IF(U45>0,VLOOKUP(D45,'Prog Assums'!$N$6:$S$169,6,FALSE),0) -> 0 | AP45: =ROUNDDOWN((AQ45-VLOOKUP(AU45,'Prog Assums'!$E$38:$I$54,2,FALSE))/VLOOKUP(AU45,'Prog Assums'!$E$38:$I$54,3,FALSE),0) ->  | AQ45: =VLOOKUP(D45,'Prog Assums'!N$5:U$271,5,FALSE) -> 0 | AR45: =ROUNDUP(VLOOKUP(AU45,'Prog Assums'!$E$38:$I$54,4,FALSE)+(AP45*VLOOKUP(AU45,'Prog Assums'!$E$38:$I$54,5,FALSE)),0) ->  | AS45: 0 | AU45: =VLOOKUP(D45,'Prog Assums'!$N$50:$O$62,2,FALSE) -> 0 | BE45: =IF(ISERROR(AVERAGEIF('Individual Spaces'!F:F,'Secondary SoA'!$N45,'Individual Spaces'!K:K))=TRUE,"",AVERAGEIF('Individual Spaces'!F:F,'Secondary SoA'!$N45,'Individual Spaces'!K:K)) ->  | BG45: =COUNTIF('Individual Spaces'!F:F,'Secondary SoA'!$N45) -> 0 | BH45: =IF(ISERROR(BE45*BG45)=TRUE,"",BE45*BG45) ->  | BJ45: =IF(ISERROR(BH45-Y45-V45)=TRUE,"",BH45-Y45-V45) ->  | BK45: 0 | BM45: =SUM(BO45:CK45) -> 0 | CC45: =U45 -> 0 | CM45: =IF($S45>0,VLOOKUP($D45,'Prog Assums'!$N$5:$AM$294,12, FALSE),"") ->  | CN45: =IF($S45>0,VLOOKUP($D45,'Prog Assums'!$N$5:$AM$294,13, FALSE),"") ->  | CQ45: =VLOOKUP(D45,'Prog Assums'!$N$6:$Q$229,3,0) -> 0 | CR45: =VLOOKUP(D45,'Prog Assums'!$N$6:$Q$229,4,0) -> 0 | CS45: 0 | CT45: =IF(CS45>14,IF(CS45<31,CS45,ROUNDDOWN(CS45/30,0)*30),0) -> 0 | CU45: =IF(S45>0,(V45/S45)*CT45,0) -> 0 | CV45: =IF(CS45>0,(V45/S45)*CS45,0)-CU45 -> 0 | CW45: 0 | CX45: 0 | CY45: 0 | CZ45: 0 | DA45: 30 | DD45: =IF((DD43+DE43)=1,1,IF((DD43+DE43)>3,1,0)) -> 0 | DF45: =IF(DF43=1,1,IF(DF43>3,1,0)) -> 1 | DG45: =IF(DG43=1,1,IF(DG43>3,1,0)) -> 0 | DH45: 0 | DI45: 1 | DJ45: =IF(DJ43>1,1,0) -> 0 | DK45: =IF(DK43>1,1,0) -> 0 | DL45: 0 | DM45: 0 | DN45: =VLOOKUP($C45,'Prog Assums'!$U$5:$AI$293,11,FALSE) -> 0 | DO45: =VLOOKUP($C45,'Prog Assums'!$U$5:$AI$293,12,FALSE) -> 0 | DP45: =IF(VLOOKUP($C45,'Prog Assums'!$U$5:$AI$293,13,FALSE)="AS SOA",$AI45,VLOOKUP($C45,'Prog Assums'!$U$5:$AI$293,13,FALSE)) -> 0 | DQ45: =VLOOKUP($C45,'Prog Assums'!$U$5:$AI$293,14,FALSE) -> 0 | DR45: =VLOOKUP($C45,'Prog Assums'!$U$5:$AI$293,15,FALSE) -> 0 | DS45: =IF(ISERROR((SUM($EB45,$EH45,$EN45,$EU45)/SUM($EA45,$EG45,$EM45,$ET45)-$S45))=TRUE,0,IF($U45=0,0,(SUM($EB45,$EH45,$EN45,$EU45)/SUM($EA45,$EG45,$EM45,$ET45)-$S45))) -> 0 | DU45: =SUM(EA45,EG45,EM45,ET45)-U45 -> 0 | DV45: =SUM($EU45,$EN45,$EH45,$EB45)-$V45-$Y45 -> 0 | DY45: 0 | EB45: =EA45*DY45 -> 0 | EE45: 0 | EG45: 0 | EH45: =EG45*EE45 -> 0 | EK45: =IF(EN45>0,SUM(EN45/EM45),0) -> 0 | EM45: =COUNTIFS($EY$2:$YD$2,"Refurb",$EY45:$YD45,">0") -> 0 | EN45: =SUMIF($EY$2:$YD$2,"Refurb",$EY45:$YD45) -> 0 | ER45: =IF(EU45>0,SUM(EU45/ET45),0) -> 0 | ET45: =COUNTIFS($EY$2:$YD$2,'Prog Assums'!$B$130,$EY45:$YD45,">0") -> 0 | EU45: =SUMIF($EY$2:$YD$2,'Prog Assums'!$B$130,$EY45:$YD45) -> 0
A46: =VLOOKUP($D46,'Prog Assums'!$N$5:$AM$294,10, FALSE) -> PER15 | C46: =VLOOKUP($D46,'Prog Assums'!$N$5:$AM$294,8, FALSE) -> PER15 | D46: Drama studios | M46: =IF(D46="","",_xlfn.XLOOKUP(D46,'Prog Assums'!$N$7:$N$221,'Prog Assums'!$AQ$7:$AQ$221,"")) -> Drama studio | N46: Drama studio97 | Q46: =IF(S46>0,ROUNDDOWN((S46-VLOOKUP(AU46,'Prog Assums'!$E$38:$I$54,2,FALSE))/VLOOKUP(AU46,'Prog Assums'!$E$38:$I$54,3,FALSE),0),"") -> 35 | S46: =VLOOKUP(D46,'Prog Assums'!N$5:U$271,5,FALSE) -> 97 | U46: =AK46 -> 1 | V46: 97 | AA46: 0 | AC46: =IF(D46="-",0,VLOOKUP(D46,'Prog Assums'!N$5:X$271,11,FALSE)) -> 90 | AD46: =IF(D46="-","","m2 minimum size for 30 pupils") -> m2 minimum size for 30 pupils | AI46: =IF(AK46>0,97,0) -> 97 | AK46: =DD46+DE46+DC46 -> 1 | AN46: =IF(U46>0,VLOOKUP(D46,'Prog Assums'!$N$6:$S$169,6,FALSE),0) -> 10 | AP46: =ROUNDDOWN((AQ46-VLOOKUP(AU46,'Prog Assums'!$E$38:$I$54,2,FALSE))/VLOOKUP(AU46,'Prog Assums'!$E$38:$I$54,3,FALSE),0) -> 35 | AQ46: =VLOOKUP(D46,'Prog Assums'!N$5:U$271,5,FALSE) -> 97 | AR46: =ROUNDUP(VLOOKUP(AU46,'Prog Assums'!$E$38:$I$54,4,FALSE)+(AP46*VLOOKUP(AU46,'Prog Assums'!$E$38:$I$54,5,FALSE)),0) -> 112 | AS46: 97 | AU46: F | BE46: =IF(ISERROR(AVERAGEIF('Individual Spaces'!F:F,'Secondary SoA'!$N46,'Individual Spaces'!K:K))=TRUE,"",AVERAGEIF('Individual Spaces'!F:F,'Secondary SoA'!$N46,'Individual Spaces'!K:K)) ->  | BG46: =COUNTIF('Individual Spaces'!F:F,'Secondary SoA'!$N46) -> 1 | BH46: =IF(ISERROR(BE46*BG46)=TRUE,"",BE46*BG46) ->  | BJ46: =IF(ISERROR(BH46-Y46-V46)=TRUE,"",BH46-Y46-V46) ->  | BK46: 0 | BM46: =SUM(BO46:CK46) -> 1 | CC46: =U46 -> 1 | CM46: =IF($S46>0,VLOOKUP($D46,'Prog Assums'!$N$5:$AM$294,12, FALSE),"") -> 90m2 for 30 | CN46: =IF($S46>0,VLOOKUP($D46,'Prog Assums'!$N$5:$AM$294,13, FALSE),"") -> E1 | CQ46: =VLOOKUP(D46,'Prog Assums'!$N$6:$Q$229,3,0) -> 12.5 | CR46: =VLOOKUP(D46,'Prog Assums'!$N$6:$Q$229,4,0) -> -20 | CS46: 28 | CT46: =IF(CS46>14,IF(CS46<31,CS46,ROUNDDOWN(CS46/30,0)*30),0) -> 28 | CU46: =IF(S46>0,(V46/S46)*CT46,0) -> 28 | CV46: =IF(CS46>0,(V46/S46)*CS46,0)-CU46 -> 0 | CW46: 28 | CX46: 28 | CY46: 28 | CZ46: 0 | DA46: 28 | DD46: =IF((DD43+DE43)>1,1,0) -> 1 | DF46: =IF(DF43>1,1,0) -> 0 | DG46: =IF(DG43>1,1,0) -> 1 | DH46: 1 | DI46: 0 | DJ46: =IF(DJ43>2,1,0) -> 0 | DK46: =IF(DK43>2,1,0) -> 0 | DL46: 0 | DM46: 0 | DN46: =VLOOKUP($C46,'Prog Assums'!$U$5:$AI$293,11,FALSE) -> 62 | DO46: =VLOOKUP($C46,'Prog Assums'!$U$5:$AI$293,12,FALSE) -> - | DP46: =IF(VLOOKUP($C46,'Prog Assums'!$U$5:$AI$293,13,FALSE)="AS SOA",$AI46,VLOOKUP($C46,'Prog Assums'!$U$5:$AI$293,13,FALSE)) -> 90 | DQ46: =VLOOKUP($C46,'Prog Assums'!$U$5:$AI$293,14,FALSE) -> - | DR46: =VLOOKUP($C46,'Prog Assums'!$U$5:$AI$293,15,FALSE) -> 150 | DS46: =IF(ISERROR((SUM($EB46,$EH46,$EN46,$EU46)/SUM($EA46,$EG46,$EM46,$ET46)-$S46))=TRUE,0,IF($U46=0,0,(SUM($EB46,$EH46,$EN46,$EU46)/SUM($EA46,$EG46,$EM46,$ET46)-$S46))) -> 0 | DU46: =SUM(EA46,EG46,EM46,ET46)-U46 -> -1 | DV46: =SUM($EU46,$EN46,$EH46,$EB46)-$V46-$Y46 -> -97 | DY46: 0 | EB46: =EA46*DY46 -> 0 | EE46: 0 | EG46: 0 | EH46: =EG46*EE46 -> 0 | EK46: =IF(EN46>0,SUM(EN46/EM46),0) -> 0 | EM46: =COUNTIFS($EY$2:$YD$2,"Refurb",$EY46:$YD46,">0") -> 0 | EN46: =SUMIF($EY$2:$YD$2,"Refurb",$EY46:$YD46) -> 0 | ER46: =IF(EU46>0,SUM(EU46/ET46),0) -> 0 | ET46: =COUNTIFS($EY$2:$YD$2,'Prog Assums'!$B$130,$EY46:$YD46,">0") -> 0 | EU46: =SUMIF($EY$2:$YD$2,'Prog Assums'!$B$130,$EY46:$YD46) -> 0
A47: =VLOOKUP($D47,'Prog Assums'!$N$5:$AM$294,10, FALSE) -> - | C47: =VLOOKUP($D47,'Prog Assums'!$N$5:$AM$294,8, FALSE) -> - | D47: - | M47: =IF(D47="","",_xlfn.XLOOKUP(D47,'Prog Assums'!$N$7:$N$221,'Prog Assums'!$AQ$7:$AQ$221,"")) -> - | N47: -0 | O47: =IF(VLOOKUP(D47,'Prog Assums'!N$6:V$92,9,FALSE)>0,"retained","") ->  | Q47: =IF(S47>0,ROUNDDOWN((S47-VLOOKUP(AU47,'Prog Assums'!$E$38:$I$54,2,FALSE))/VLOOKUP(AU47,'Prog Assums'!$E$38:$I$54,3,FALSE),0),"") ->  | S47: =VLOOKUP(D47,'Prog Assums'!N$5:U$271,5,FALSE) -> 0 | U47: =AK47 -> 0 | V47: 0 | AA47: 0 | AC47: =IF(D47="-",0,VLOOKUP(D47,'Prog Assums'!N$5:X$271,11,FALSE)) -> 0 | AD47: =IF(D47="-","","m2 minimum size for 30 pupils") ->  | AI47: =IF(AK47>0,83,0) -> 0 | AK47: =DD47+DE47+DC47 -> 0 | AN47: =IF(U47>0,VLOOKUP(D47,'Prog Assums'!$N$6:$S$169,6,FALSE),0) -> 0 | AP47: =ROUNDDOWN((AQ47-VLOOKUP(AU47,'Prog Assums'!$E$38:$I$54,2,FALSE))/VLOOKUP(AU47,'Prog Assums'!$E$38:$I$54,3,FALSE),0) ->  | AQ47: =VLOOKUP(D47,'Prog Assums'!N$5:U$271,5,FALSE) -> 0 | AR47: =ROUNDUP(VLOOKUP(AU47,'Prog Assums'!$E$38:$I$54,4,FALSE)+(AP47*VLOOKUP(AU47,'Prog Assums'!$E$38:$I$54,5,FALSE)),0) ->  | AS47: 0 | AU47: =VLOOKUP(D47,'Prog Assums'!$N$50:$O$62,2,FALSE) -> 0 | BE47: =IF(ISERROR(AVERAGEIF('Individual Spaces'!F:F,'Secondary SoA'!$N47,'Individual Spaces'!K:K))=TRUE,"",AVERAGEIF('Individual Spaces'!F:F,'Secondary SoA'!$N47,'Individual Spaces'!K:K)) ->  | BG47: =COUNTIF('Individual Spaces'!F:F,'Secondary SoA'!$N47) -> 0 | BH47: =IF(ISERROR(BE47*BG47)=TRUE,"",BE47*BG47) ->  | BJ47: =IF(ISERROR(BH47-Y47-V47)=TRUE,"",BH47-Y47-V47) ->  | BK47: 0 | BM47: =SUM(BO47:CK47) -> 0 | CC47: =U47 -> 0 | CM47: =IF($S47>0,VLOOKUP($D47,'Prog Assums'!$N$5:$AM$294,12, FALSE),"") ->  | CN47: =IF($S47>0,VLOOKUP($D47,'Prog Assums'!$N$5:$AM$294,13, FALSE),"") ->  | CQ47: =VLOOKUP(D47,'Prog Assums'!$N$6:$Q$229,3,0) -> 0 | CR47: =VLOOKUP(D47,'Prog Assums'!$N$6:$Q$229,4,0) -> 0 | CS47: 0 | CT47: =IF(CS47>14,IF(CS47<31,CS47,ROUNDDOWN(CS47/30,0)*30),0) -> 0 | CU47: =IF(S47>0,(V47/S47)*CT47,0) -> 0 | CV47: =IF(CS47>0,(V47/S47)*CS47,0)-CU47 -> 0 | CW47: 0 | CX47: 0 | CY47: 0 | CZ47: 0 | DA47: 28 | DN47: =VLOOKUP($C47,'Prog Assums'!$U$5:$AI$293,11,FALSE) -> 0 | DO47: =VLOOKUP($C47,'Prog Assums'!$U$5:$AI$293,12,FALSE) -> 0 | DP47: =IF(VLOOKUP($C47,'Prog Assums'!$U$5:$AI$293,13,FALSE)="AS SOA",$AI47,VLOOKUP($C47,'Prog Assums'!$U$5:$AI$293,13,FALSE)) -> 0 | DQ47: =VLOOKUP($C47,'Prog Assums'!$U$5:$AI$293,14,FALSE) -> 0 | DR47: =VLOOKUP($C47,'Prog Assums'!$U$5:$AI$293,15,FALSE) -> 0 | DS47: =IF(ISERROR((SUM($EB47,$EH47,$EN47,$EU47)/SUM($EA47,$EG47,$EM47,$ET47)-$S47))=TRUE,0,IF($U47=0,0,(SUM($EB47,$EH47,$EN47,$EU47)/SUM($EA47,$EG47,$EM47,$ET47)-$S47))) -> 0 | DU47: =SUM(EA47,EG47,EM47,ET47)-U47 -> 0 | DV47: =SUM($EU47,$EN47,$EH47,$EB47)-$V47-$Y47 -> 0 | DY47: 0 | EA47: 0 | EB47: =EA47*DY47 -> 0 | EE47: 0 | EG47: 0 | EH47: =EG47*EE47 -> 0 | EK47: =IF(EN47>0,SUM(EN47/EM47),0) -> 0 | EM47: =COUNTIFS($EY$2:$YD$2,"Refurb",$EY47:$YD47,">0") -> 0 | EN47: =SUMIF($EY$2:$YD$2,"Refurb",$EY47:$YD47) -> 0 | ER47: =IF(EU47>0,SUM(EU47/ET47),0) -> 0 | ET47: =COUNTIFS($EY$2:$YD$2,'Prog Assums'!$B$130,$EY47:$YD47,">0") -> 0 | EU47: =SUMIF($EY$2:$YD$2,'Prog Assums'!$B$130,$EY47:$YD47) -> 0
EN48: =SUM(ER48:FZ48) -> 0 | EU48: =SUM(EY48:GG48) -> 0
D49: Design and technology | K49: ='curriculum analysis (optional)'!AO141 -> 0 | U49: =SUM(U50:U56) -> 4 | AK49: =SUM(AK50:AK56) -> 4 | AV49: =((AX$4*AY$4)+(AX$5*AY$5)+(AX$6*AY$6)+(AX$8*AY$8))/(AY$4+AY$5+AY$6+AY$8) -> 17.85714286 | AW49: =(U49*AV49*0.8)/K$8 -> 0.05079365079 | AX49: of curriculum @ 80% use | BG49: =BG56+BG54+BG55+BG53+BG52+BG50 -> 4 | DC49: =DC56+DC54+DC53+DC52+DC50 -> 0 | DD49: =HLOOKUP($AG$12,$DF$15:$DI$74,35,FALSE) -> 3 | DE49: =HLOOKUP($AG$12,$DJ$15:$DM$74,35,FALSE) -> 1 | DF49: =ROUND(($K$5/150),0)-DF5 -> 5 | DG49: =ROUND(($K$5/300),0) -> 3 | DH49: =ROUND(($K$5/300),0) -> 3 | DI49: =ROUND(($K$5/300)-DI5,0) -> 2 | DJ49: =ROUND(($K$6/150),0)-DJ5 -> 1 | DK49: =ROUND(($K$6/300),0) -> 1 | DL49: =ROUND(($K$6/300),0) -> 1 | DM49: 1 | DU49: =SUM(EA49,EG49,EM49,ET49)-U49 -> -4 | EA49: =SUM(EA50:EA56) -> 0 | EB49: =SUM(EB50:EB56) -> 0 | EG49: =SUM(EG50:EG56) -> 0 | EH49: =SUM(EH50:EH56) -> 0 | EM49: =SUM(EM50:EM56) -> 0 | EN49: =SUM(EN50:EN56) -> 0 | ET49: =SUM(ET50:ET56) -> 0 | EU49: =SUM(EU50:EU56) -> 0
A50: =VLOOKUP($D50,'Prog Assums'!$N$5:$AM$294,10, FALSE) -> DAT43 | C50: =VLOOKUP($D50,'Prog Assums'!$N$5:$AM$294,8, FALSE) -> DAT43 | D50: DT workshops | M50: =IF(D50="","",_xlfn.XLOOKUP(D50,'Prog Assums'!$N$7:$N$221,'Prog Assums'!$AQ$7:$AQ$221,"")) -> DT workshop | N50: =CONCATENATE(M50,S50) -> DT workshop111 | Q50: =ROUNDDOWN((S50-VLOOKUP(AU50,'Prog Assums'!$E$38:$I$54,2,FALSE))/VLOOKUP(AU50,'Prog Assums'!$E$38:$I$54,3,FALSE),0) -> 28 | S50: =VLOOKUP(D50,'Prog Assums'!N$5:U$271,5,FALSE) -> 111 | U50: =AK50 -> 1 | V50: 111 | AA50: 0 | AC50: =IF(U50>1,97,104) -> 104 | AD50: =IF(AC50=104,"m2 minimum for 24 if one space","m2 minimum for 24 if 2 spaces") -> m2 minimum for 24 if one space | AI50: =IF(AK50>0,111,0) -> 111 | AK50: =DD50+DE50+DC50 -> 1 | AN50: =IF(U50>0,VLOOKUP(D50,'Prog Assums'!$N$6:$T$169,6,FALSE)+IF(U50>1,(U50-1)*VLOOKUP(D50,'Prog Assums'!$N$6:$T$169,7,FALSE),0),0) -> 34 | AP50: =ROUNDDOWN((AQ50-VLOOKUP(AU50,'Prog Assums'!$E$38:$I$54,2,FALSE))/VLOOKUP(AU50,'Prog Assums'!$E$38:$I$54,3,FALSE),0) -> 28 | AQ50: =VLOOKUP(D50,'Prog Assums'!N$5:U$271,5,FALSE) -> 111 | AR50: =ROUNDUP(VLOOKUP(AU50,'Prog Assums'!$E$38:$I$54,4,FALSE)+(AP50*VLOOKUP(AU50,'Prog Assums'!$E$38:$I$54,5,FALSE)),0) -> 128 | AS50: 111 | AU50: =VLOOKUP(D50,'Prog Assums'!$N$63:$O$86,2,FALSE) -> H | BE50: =IF(ISERROR(AVERAGEIF('Individual Spaces'!F:F,'Secondary SoA'!$N50,'Individual Spaces'!K:K))=TRUE,"",AVERAGEIF('Individual Spaces'!F:F,'Secondary SoA'!$N50,'Individual Spaces'!K:K)) ->  | BG50: =COUNTIF('Individual Spaces'!F:F,'Secondary SoA'!$N50) -> 1 | BH50: =IF(ISERROR(BE50*BG50)=TRUE,"",BE50*BG50) ->  | BJ50: =IF(ISERROR(BH50-Y50-V50)=TRUE,"",BH50-Y50-V50) ->  | BK50: 0 | BM50: =SUM(BO50:CK50) -> 1 | CA50: =U50 -> 1 | CM50: =IF($S50>0,VLOOKUP($D50,'Prog Assums'!$N$5:$AM$294,12, FALSE),"") -> 104m2 for up to 24 | CN50: =IF($S50>0,VLOOKUP($D50,'Prog Assums'!$N$5:$AM$294,13, FALSE),"") -> G1 | CQ50: =VLOOKUP(D50,'Prog Assums'!$N$6:$Q$229,3,0) -> 3.5 | CR50: =VLOOKUP(D50,'Prog Assums'!$N$6:$Q$229,4,0) -> 4 | CS50: 28 | CT50: =IF(CS50>14,IF(CS50<31,CS50,ROUNDDOWN(CS50/30,0)*30),0) -> 28 | CU50: =IF(S50>0,(V50/S50)*CT50,0) -> 28 | CV50: =IF(CS50>0,(V50/S50)*CS50,0)-CU50 -> 0 | CW50: =IF(AK50=0,0,MAXA(1,ROUNDUP((AI50/CQ50)-CR50,0))) -> 28 | CX50: =IF(CW50>14,IF(CW50<31,CW50,ROUNDDOWN(CW50/30,0)*30),0) -> 28 | CY50: =IF(AK50>0,(AS50/AI50)*CX50,0) -> 28 | CZ50: =IF(CW50>0,(AS50/AI50)*CW50,0)-CY50 -> 0 | DA50: 20 | DD50: =IF(ROUND((DD49+DE49)*0.3,0)>0,1,0) -> 1 | DF50: =IF(ROUND(DF49*0.3,0)>0,1,1) -> 1 | DG50: =IF(ROUND(DG49*0.3,0)>0,1,0) -> 1 | DH50: 1 | DI50: 1 | DJ50: =IF(ROUND(DJ49*0.3,0)>0,1,0) -> 0 | DK50: =IF(ROUND(DK49*0.3,0)>0,1,0) -> 0 | DL50: =IF(ROUND(DL49*0.3,0)>0,1,0) -> 0 | DM50: =IF(ROUND(DM49*0.3,0)>0,1,0) -> 0 | DN50: =VLOOKUP($C50,'Prog Assums'!$U$5:$AI$293,11,FALSE) -> 67 | DO50: =VLOOKUP($C50,'Prog Assums'!$U$5:$AI$293,12,FALSE) -> 85.4 | DP50: =IF(VLOOKUP($C50,'Prog Assums'!$U$5:$AI$293,13,FALSE)="AS SOA",$AI50,VLOOKUP($C50,'Prog Assums'!$U$5:$AI$293,13,FALSE)) -> 97 | DQ50: =VLOOKUP($C50,'Prog Assums'!$U$5:$AI$293,14,FALSE) -> - | DR50: =VLOOKUP($C50,'Prog Assums'!$U$5:$AI$293,15,FALSE) -> 150 | DS50: =IF(ISERROR((SUM($EB50,$EH50,$EN50,$EU50)/SUM($EA50,$EG50,$EM50,$ET50)-$S50))=TRUE,0,IF($U50=0,0,(SUM($EB50,$EH50,$EN50,$EU50)/SUM($EA50,$EG50,$EM50,$ET50)-$S50))) -> 0 | DU50: -1 | DV50: =SUM($EU50,$EN50,$EH50,$EB50)-$V50-$Y50 -> -111 | DY50: 0 | EB50: =EA50*DY50 -> 0 | EE50: 0 | EG50: 0 | EH50: =EG50*EE50 -> 0 | EK50: =IF(EN50>0,SUM(EN50/EM50),0) -> 0 | EM50: =COUNTIFS($EY$2:$YD$2,"Refurb",$EY50:$YD50,">0") -> 0 | EN50: =SUMIF($EY$2:$YD$2,"Refurb",$EY50:$YD50) -> 0 | ER50: =IF(EU50>0,SUM(EU50/ET50),0) -> 0 | ET50: =COUNTIFS($EY$2:$YD$2,'Prog Assums'!$B$130,$EY50:$YD50,">0") -> 0 | EU50: =SUMIF($EY$2:$YD$2,'Prog Assums'!$B$130,$EY50:$YD50) -> 0
A51: =VLOOKUP($D51,'Prog Assums'!$N$5:$AM$294,10, FALSE) -> - | C51: =VLOOKUP($D51,'Prog Assums'!$N$5:$AM$294,8, FALSE) -> - | D51: =IF(AK51>0,"DT workshops (2 of 2)","-") -> - | M51: =IF(D51="","",_xlfn.XLOOKUP(D51,'Prog Assums'!$N$7:$N$221,'Prog Assums'!$AQ$7:$AQ$221,"")) -> - | N51: =CONCATENATE(M51,S51) -> -0 | O51: =IF(VLOOKUP(D51,'Prog Assums'!N$6:V$92,9,FALSE)>0,"retained","") ->  | Q51: =IF(S51>0,ROUNDDOWN((S51-VLOOKUP(AU51,'Prog Assums'!$E$38:$I$54,2,FALSE))/VLOOKUP(AU51,'Prog Assums'!$E$38:$I$54,3,FALSE),0),"") ->  | S51: =VLOOKUP(D51,'Prog Assums'!N$5:U$271,5,FALSE) -> 0 | U51: =AK51 -> 0 | V51: =MAXA(0,(S51*U51)-Y51) -> 0 | AA51: =IF(O51="retained",V51+Y51,IF(O51="refurb'ed",V51+Y51,0)) -> 0 | AC51: =IF(D51="-",0,VLOOKUP(D51,'Prog Assums'!N$5:X$271,11,FALSE)) -> 0 | AD51: =IF(D51="-","","m2 minimum size for 24 pupils") ->  | AI51: =IF(AK51>0,97,0) -> 0 | AK51: 0 | AN51: =IF(U51>0,VLOOKUP(D51,'Prog Assums'!$N$6:$T$169,6,FALSE)+IF(U51>1,(U51-1)*VLOOKUP(D51,'Prog Assums'!$N$6:$T$169,7,FALSE),0),0) -> 0 | AO51: =IF(O51="existing","E","") ->  | AP51: =ROUNDDOWN((AQ51-VLOOKUP(AU51,'Prog Assums'!$E$38:$I$54,2,FALSE))/VLOOKUP(AU51,'Prog Assums'!$E$38:$I$54,3,FALSE),0) ->  | AQ51: =VLOOKUP(D51,'Prog Assums'!N$5:U$271,5,FALSE) -> 0 | AR51: =ROUNDUP(VLOOKUP(AU51,'Prog Assums'!$E$38:$I$54,4,FALSE)+(AP51*VLOOKUP(AU51,'Prog Assums'!$E$38:$I$54,5,FALSE)),0) ->  | AS51: =MAXA((AI51*AK51)-AT51,0) -> 0 | AU51: =VLOOKUP(D51,'Prog Assums'!$N$65:$O$87,2,FALSE) -> 0 | BE51: =IF(ISERROR(AVERAGEIF('Individual Spaces'!F:F,'Secondary SoA'!$N51,'Individual Spaces'!K:K))=TRUE,"",AVERAGEIF('Individual Spaces'!F:F,'Secondary SoA'!$N51,'Individual Spaces'!K:K)) ->  | BG51: =COUNTIF('Individual Spaces'!F:F,'Secondary SoA'!$N51) -> 0 | BH51: =IF(ISERROR(BE51*BG51)=TRUE,"",BE51*BG51) ->  | BJ51: =IF(ISERROR(BH51-Y51-V51)=TRUE,"",BH51-Y51-V51) ->  | BK51: =BG51-U51 -> 0 | BM51: =SUM(BO51:CK51) -> 0 | CA51: =U51 -> 0 | CQ51: =VLOOKUP(D51,'Prog Assums'!$N$6:$Q$229,3,0) -> 0 | CR51: =VLOOKUP(D51,'Prog Assums'!$N$6:$Q$229,4,0) -> 0 | CS51: 0 | CT51: =IF(CS51>14,IF(CS51<31,CS51,ROUNDDOWN(CS51/30,0)*30),0) -> 0 | CU51: =IF(S51>0,(V51/S51)*CT51,0) -> 0 | CV51: =IF(CS51>0,(V51/S51)*CS51,0)-CU51 -> 0 | CW51: 0 | CX51: 0 | CY51: 0 | CZ51: 0 | DA51: 21 | DD51: =MINA(ROUND((DD49+DE49)*0.3,0)-DD50) -> 0 | DF51: =MINA(ROUND(DF49*0.3,0)-DF50) -> 1 | DG51: =MINA(ROUND(DG49*0.3,0)-DG50) -> 0 | DH51: 0 | DI51: 0 | DJ51: =MINA(ROUND(DJ49*0.3,0)-DJ50) -> 0 | DK51: =MINA(ROUND(DK49*0.3,0)-DK50) -> 0 | DL51: =MINA(ROUND(DL49*0.3,0)-DL50) -> 0 | DM51: =MINA(ROUND(DM49*0.3,0)-DM50) -> 0 | DN51: =VLOOKUP($C51,'Prog Assums'!$U$5:$AI$293,11,FALSE) -> 0 | DO51: =VLOOKUP($C51,'Prog Assums'!$U$5:$AI$293,12,FALSE) -> 0 | DP51: =IF(VLOOKUP($C51,'Prog Assums'!$U$5:$AI$293,13,FALSE)="AS SOA",$AI51,VLOOKUP($C51,'Prog Assums'!$U$5:$AI$293,13,FALSE)) -> 0 | DQ51: =VLOOKUP($C51,'Prog Assums'!$U$5:$AI$293,14,FALSE) -> 0 | DR51: =VLOOKUP($C51,'Prog Assums'!$U$5:$AI$293,15,FALSE) -> 0 | DS51: =IF(ISERROR((SUM($EB51,$EH51,$EN51,$EU51)/SUM($EA51,$EG51,$EM51,$ET51)-$S51))=TRUE,0,IF($U51=0,0,(SUM($EB51,$EH51,$EN51,$EU51)/SUM($EA51,$EG51,$EM51,$ET51)-$S51))) -> 0 | DU51: =SUM(EA51,EG51,EM51,ET51)-U51 -> 0 | DV51: =SUM($EU51,$EN51,$EH51,$EB51)-$V51-$Y51 -> 0 | DY51: 0 | EA51: 0 | EB51: =EA51*DY51 -> 0 | EE51: 0 | EG51: 0 | EH51: =EG51*EE51 -> 0 | EK51: =IF(EN51>0,SUM(EN51/EM51),0) -> 0 | EM51: =COUNTIFS($EY$2:$YD$2,"Refurb",$EY51:$YD51,">0") -> 0 | EN51: =SUMIF($EY$2:$YD$2,"Refurb",$EY51:$YD51) -> 0 | ER51: =IF(EU51>0,SUM(EU51/ET51),0) -> 0 | ET51: =COUNTIFS($EY$2:$YD$2,'Prog Assums'!$B$130,$EY51:$YD51,">0") -> 0 | EU51: =SUMIF($EY$2:$YD$2,'Prog Assums'!$B$130,$EY51:$YD51) -> 0
A52: =VLOOKUP($D52,'Prog Assums'!$N$5:$AM$294,10, FALSE) -> DAT35 | C52: =VLOOKUP($D52,'Prog Assums'!$N$5:$AM$294,8, FALSE) -> DAT35 | D52: Food rooms | M52: =IF(D52="","",_xlfn.XLOOKUP(D52,'Prog Assums'!$N$7:$N$221,'Prog Assums'!$AQ$7:$AQ$221,"")) -> Food room | N52: Food room97 | Q52: =ROUNDDOWN((S52-VLOOKUP(AU52,'Prog Assums'!$E$38:$I$54,2,FALSE))/VLOOKUP(AU52,'Prog Assums'!$E$38:$I$54,3,FALSE),0) -> 24 | S52: =VLOOKUP(D52,'Prog Assums'!N$5:U$271,5,FALSE) -> 97 | U52: 1 | V52: 97 | AA52: 0 | AC52: =IF(D52="-",0,VLOOKUP(D52,'Prog Assums'!N$5:X$271,11,FALSE)) -> 96 | AD52: =IF(D52="-","","m2 minimum size for 24 pupils") -> m2 minimum size for 24 pupils | AI52: =IF(AK52>0,97,0) -> 97 | AK52: 1 | AN52: =IF(U52>0,VLOOKUP(D52,'Prog Assums'!$N$6:$T$169,6,FALSE)+IF(U52>1,(U52-1)*VLOOKUP(D52,'Prog Assums'!$N$6:$T$169,7,FALSE),0),0) -> 10 | AP52: =ROUNDDOWN((AQ52-VLOOKUP(AU52,'Prog Assums'!$E$38:$I$54,2,FALSE))/VLOOKUP(AU52,'Prog Assums'!$E$38:$I$54,3,FALSE),0) -> 24 | AQ52: =VLOOKUP(D52,'Prog Assums'!N$5:U$271,5,FALSE) -> 97 | AR52: =ROUNDUP(VLOOKUP(AU52,'Prog Assums'!$E$38:$I$54,4,FALSE)+(AP52*VLOOKUP(AU52,'Prog Assums'!$E$38:$I$54,5,FALSE)),0) -> 112 | AS52: 97 | AU52: =VLOOKUP(D52,'Prog Assums'!$N$63:$O$86,2,FALSE) -> H | BE52: =IF(ISERROR(AVERAGEIF('Individual Spaces'!F:F,'Secondary SoA'!$N52,'Individual Spaces'!K:K))=TRUE,"",AVERAGEIF('Individual Spaces'!F:F,'Secondary SoA'!$N52,'Individual Spaces'!K:K)) ->  | BG52: =COUNTIF('Individual Spaces'!F:F,'Secondary SoA'!$N52) -> 1 | BK52: 0 | BM52: 1 | CA52: =U52 -> 1 | CM52: =IF($S52>0,VLOOKUP($D52,'Prog Assums'!$N$5:$AM$294,12, FALSE),"") -> 97m2 for up to 24 | CN52: =IF($S52>0,VLOOKUP($D52,'Prog Assums'!$N$5:$AM$294,13, FALSE),"") -> G1 | CQ52: =VLOOKUP(D52,'Prog Assums'!$N$6:$Q$229,3,0) -> 3.5 | CR52: =VLOOKUP(D52,'Prog Assums'!$N$6:$Q$229,4,0) -> 4 | CS52: 24 | CT52: 24 | CU52: 24 | CV52: 0 | CW52: 24 | CX52: 24 | CY52: 24 | CZ52: 0 | DA52: 20 | DD52: =DD5 -> 1 | DF52: =DF5 -> 1 | DG52: =DG5 -> 1 | DH52: 1 | DI52: 1 | DJ52: =ROUNDDOWN(DJ49*0.3,0) -> 0 | DK52: =ROUNDDOWN(DK49*0.3,0) -> 0 | DL52: 0 | DM52: 0 | DN52: =VLOOKUP($C52,'Prog Assums'!$U$5:$AI$293,11,FALSE) -> 67 | DO52: =VLOOKUP($C52,'Prog Assums'!$U$5:$AI$293,12,FALSE) -> 85.4 | DP52: =IF(VLOOKUP($C52,'Prog Assums'!$U$5:$AI$293,13,FALSE)="AS SOA",$AI52,VLOOKUP($C52,'Prog Assums'!$U$5:$AI$293,13,FALSE)) -> 97 | DQ52: =VLOOKUP($C52,'Prog Assums'!$U$5:$AI$293,14,FALSE) -> - | DR52: =VLOOKUP($C52,'Prog Assums'!$U$5:$AI$293,15,FALSE) -> 150 | DS52: 0 | DU52: -1 | DV52: -97 | DY52: 0 | EB52: 0 | EE52: 0 | EG52: 0 | EH52: 0 | EK52: 0 | EM52: 0 | EN52: 0 | ER52: 0 | ET52: =COUNTIFS($EY$2:$YD$2,'Prog Assums'!$B$130,$EY52:$YD52,">0") -> 0 | EU52: =SUMIF($EY$2:$YD$2,'Prog Assums'!$B$130,$EY52:$YD52) -> 0
A53: =VLOOKUP($D53,'Prog Assums'!$N$5:$AM$294,10, FALSE) -> - | C53: =VLOOKUP($D53,'Prog Assums'!$N$5:$AM$294,8, FALSE) -> - | D53: =IF(AK53>0,"Food rooms (2 of 2)","-") -> - | M53: =IF(D53="","",_xlfn.XLOOKUP(D53,'Prog Assums'!$N$7:$N$221,'Prog Assums'!$AQ$7:$AQ$221,"")) -> - | N53: =CONCATENATE(M53,S53) -> -0 | O53: =IF(VLOOKUP(D53,'Prog Assums'!N$6:V$92,9,FALSE)>0,"retained","") ->  | Q53: =IF(S53>0,ROUNDDOWN((S53-VLOOKUP(AU53,'Prog Assums'!$E$38:$I$54,2,FALSE))/VLOOKUP(AU53,'Prog Assums'!$E$38:$I$54,3,FALSE),0),"") ->  | S53: =VLOOKUP(D53,'Prog Assums'!N$5:U$271,5,FALSE) -> 0 | U53: =AK53 -> 0 | V53: =MAXA(0,(S53*U53)-Y53) -> 0 | AA53: =IF(O53="retained",V53+Y53,IF(O53="refurb'ed",V53+Y53,0)) -> 0 | AC53: =IF(D53="-",0,VLOOKUP(D53,'Prog Assums'!N$5:X$271,11,FALSE)) -> 0 | AD53: =IF(D53="-","","m2 minimum size for 24 pupils") ->  | AI53: 0 | AK53: 0 | AN53: =IF(U53>0,VLOOKUP(D53,'Prog Assums'!$N$6:$T$169,6,FALSE)+IF(U53>1,(U53-1)*VLOOKUP(D53,'Prog Assums'!$N$6:$T$169,7,FALSE),0),0) -> 0 | AO53: =IF(O53="existing","E","") ->  | AP53: =ROUNDDOWN((AQ53-VLOOKUP(AU53,'Prog Assums'!$E$38:$I$54,2,FALSE))/VLOOKUP(AU53,'Prog Assums'!$E$38:$I$54,3,FALSE),0) ->  | AQ53: =VLOOKUP(D53,'Prog Assums'!N$5:U$271,5,FALSE) -> 0 | AR53: =ROUNDUP(VLOOKUP(AU53,'Prog Assums'!$E$38:$I$54,4,FALSE)+(AP53*VLOOKUP(AU53,'Prog Assums'!$E$38:$I$54,5,FALSE)),0) ->  | AS53: =MAXA((AI53*AK53)-AT53,0) -> 0 | AU53: =VLOOKUP(D53,'Prog Assums'!$N$65:$O$87,2,FALSE) -> 0 | BE53: =IF(ISERROR(AVERAGEIF('Individual Spaces'!F:F,'Secondary SoA'!$N53,'Individual Spaces'!K:K))=TRUE,"",AVERAGEIF('Individual Spaces'!F:F,'Secondary SoA'!$N53,'Individual Spaces'!K:K)) ->  | BG53: =COUNTIF('Individual Spaces'!F:F,'Secondary SoA'!$N53) -> 0 | BH53: =IF(ISERROR(BE53*BG53)=TRUE,"",BE53*BG53) ->  | BJ53: =IF(ISERROR(BH53-Y53-V53)=TRUE,"",BH53-Y53-V53) ->  | BK53: =BG53-U53 -> 0 | BM53: =SUM(BO53:CK53) -> 0 | CA53: =U53 -> 0 | CM53: =IF($S53>0,VLOOKUP($D53,'Prog Assums'!$N$5:$AM$294,12, FALSE),"") ->  | CN53: =IF($S53>0,VLOOKUP($D53,'Prog Assums'!$N$5:$AM$294,13, FALSE),"") ->  | CQ53: =VLOOKUP(D53,'Prog Assums'!$N$6:$Q$229,3,0) -> 0 | CR53: =VLOOKUP(D53,'Prog Assums'!$N$6:$Q$229,4,0) -> 0 | CS53: 0 | CT53: =IF(CS53>14,IF(CS53<31,CS53,ROUNDDOWN(CS53/30,0)*30),0) -> 0 | CU53: =IF(S53>0,(V53/S53)*CT53,0) -> 0 | CV53: =IF(CS53>0,(V53/S53)*CS53,0)-CU53 -> 0 | CW53: 0 | CX53: 0 | CY53: 0 | CZ53: 0 | DA53: 20 | DD53: =IF((DD49+DE49)<6,0,1) -> 0 | DF53: =IF(DF49<6,0,1) -> 0 | DG53: =IF(DG49<6,0,1) -> 0 | DH53: 0 | DI53: 0 | DN53: =VLOOKUP($C53,'Prog Assums'!$U$5:$AI$293,11,FALSE) -> 0 | DO53: =VLOOKUP($C53,'Prog Assums'!$U$5:$AI$293,12,FALSE) -> 0 | DP53: =IF(VLOOKUP($C53,'Prog Assums'!$U$5:$AI$293,13,FALSE)="AS SOA",$AI53,VLOOKUP($C53,'Prog Assums'!$U$5:$AI$293,13,FALSE)) -> 0 | DQ53: =VLOOKUP($C53,'Prog Assums'!$U$5:$AI$293,14,FALSE) -> 0 | DR53: =VLOOKUP($C53,'Prog Assums'!$U$5:$AI$293,15,FALSE) -> 0 | DS53: =IF(ISERROR((SUM($EB53,$EH53,$EN53,$EU53)/SUM($EA53,$EG53,$EM53,$ET53)-$S53))=TRUE,0,IF($U53=0,0,(SUM($EB53,$EH53,$EN53,$EU53)/SUM($EA53,$EG53,$EM53,$ET53)-$S53))) -> 0 | DU53: =SUM(EA53,EG53,EM53,ET53)-U53 -> 0 | DV53: =SUM($EU53,$EN53,$EH53,$EB53)-$V53-$Y53 -> 0 | DY53: 0 | EA53: 0 | EB53: =EA53*DY53 -> 0 | EE53: 0 | EG53: 0 | EH53: =EG53*EE53 -> 0 | EK53: =IF(EN53>0,SUM(EN53/EM53),0) -> 0 | EM53: =COUNTIFS($EY$2:$YD$2,"Refurb",$EY53:$YD53,">0") -> 0 | EN53: =SUMIF($EY$2:$YD$2,"Refurb",$EY53:$YD53) -> 0 | ER53: =IF(EU53>0,SUM(EU53/ET53),0) -> 0 | ET53: =COUNTIFS($EY$2:$YD$2,'Prog Assums'!$B$130,$EY53:$YD53,">0") -> 0 | EU53: =SUMIF($EY$2:$YD$2,'Prog Assums'!$B$130,$EY53:$YD53) -> 0
A54: =VLOOKUP($D54,'Prog Assums'!$N$5:$AM$294,10, FALSE) -> DAT20 | C54: =VLOOKUP($D54,'Prog Assums'!$N$5:$AM$294,8, FALSE) -> DAT22 | D54: DT studios (graphic products) | M54: =IF(D54="","",_xlfn.XLOOKUP(D54,'Prog Assums'!$N$7:$N$221,'Prog Assums'!$AQ$7:$AQ$221,"")) -> DT studio (graphic products) | N54: DT studio (graphic products)83 | O54: =IF(VLOOKUP(D54,'Prog Assums'!N$6:V$92,9,FALSE)>0,"retained","") ->  | Q54: =IF(S54>0,ROUNDDOWN((S54-VLOOKUP(AU54,'Prog Assums'!$E$38:$I$54,2,FALSE))/VLOOKUP(AU54,'Prog Assums'!$E$38:$I$54,3,FALSE),0),"") -> 25 | S54: =VLOOKUP(D54,'Prog Assums'!N$5:U$271,5,FALSE) -> 83 | U54: 1 | V54: 83 | AA54: 0 | AC54: =IF(D54="-",0,VLOOKUP(D54,'Prog Assums'!N$5:X$271,11,FALSE)) -> 83 | AD54: =IF(D54="-","","m2 minimum size for 24 pupils") -> m2 minimum size for 24 pupils | AI54: =IF(AK54>0,83,0) -> 83 | AK54: 1 | AN54: =IF(U54>0,VLOOKUP(D54,'Prog Assums'!$N$6:$T$169,6,FALSE)+IF(U54>1,(U54-1)*VLOOKUP(D54,'Prog Assums'!$N$6:$T$169,7,FALSE),0),0) -> 5 | AP54: =ROUNDDOWN((AQ54-VLOOKUP(AU54,'Prog Assums'!$E$38:$I$54,2,FALSE))/VLOOKUP(AU54,'Prog Assums'!$E$38:$I$54,3,FALSE),0) -> 25 | AQ54: =VLOOKUP(D54,'Prog Assums'!N$5:U$271,5,FALSE) -> 83 | AR54: =ROUNDUP(VLOOKUP(AU54,'Prog Assums'!$E$38:$I$54,4,FALSE)+(AP54*VLOOKUP(AU54,'Prog Assums'!$E$38:$I$54,5,FALSE)),0) -> 99 | AS54: 83 | AU54: =VLOOKUP(D54,'Prog Assums'!$N$65:$O$87,2,FALSE) -> G | BE54: =IF(ISERROR(AVERAGEIF('Individual Spaces'!F:F,'Secondary SoA'!$N54,'Individual Spaces'!K:K))=TRUE,"",AVERAGEIF('Individual Spaces'!F:F,'Secondary SoA'!$N54,'Individual Spaces'!K:K)) ->  | BG54: =COUNTIF('Individual Spaces'!F:F,'Secondary SoA'!$N54) -> 1 | BK54: 0 | BM54: 1 | CA54: 1 | CM54: =IF($S54>0,VLOOKUP($D54,'Prog Assums'!$N$5:$AM$294,12, FALSE),"") -> 83m2 for up to 24 | CN54: =IF($S54>0,VLOOKUP($D54,'Prog Assums'!$N$5:$AM$294,13, FALSE),"") -> F1 | CQ54: =VLOOKUP(D54,'Prog Assums'!$N$6:$Q$229,3,0) -> 2.5 | CR54: =VLOOKUP(D54,'Prog Assums'!$N$6:$Q$229,4,0) -> 4 | CS54: 30 | CT54: 30 | CU54: 30 | CV54: 0 | CW54: 30 | CX54: 30 | CY54: 30 | CZ54: 0 | DA54: 20 | DD54: =IF((DD49+DE49)<7,IF((DD49+DE49)>2,DD5,0),2) -> 1 | DF54: =IF(DF49<7,IF(DF49>2,DF5,0),2) -> 1 | DG54: =IF(DG49<7,IF(DG49>2,DG5,0),2) -> 1 | DH54: 1 | DI54: 0 | DJ54: =ROUND(DJ49*0.3,0) -> 0 | DK54: =ROUND(DK49*0.3,0) -> 0 | DL54: 0 | DM54: 0 | DN54: =VLOOKUP($C54,'Prog Assums'!$U$5:$AI$293,11,FALSE) -> 45 | DO54: =VLOOKUP($C54,'Prog Assums'!$U$5:$AI$293,12,FALSE) -> 74.7 | DP54: =IF(VLOOKUP($C54,'Prog Assums'!$U$5:$AI$293,13,FALSE)="AS SOA",$AI54,VLOOKUP($C54,'Prog Assums'!$U$5:$AI$293,13,FALSE)) -> 83 | DQ54: =VLOOKUP($C54,'Prog Assums'!$U$5:$AI$293,14,FALSE) -> - | DR54: =VLOOKUP($C54,'Prog Assums'!$U$5:$AI$293,15,FALSE) -> 150 | DS54: 0 | DU54: -1 | DV54: -83 | DY54: 0 | EB54: 0 | EE54: 0 | EG54: 0 | EH54: 0 | EK54: 0 | EM54: 0 | EN54: 0 | ER54: 0 | ET54: =COUNTIFS($EY$2:$YD$2,'Prog Assums'!$B$130,$EY54:$YD54,">0") -> 0 | EU54: =SUMIF($EY$2:$YD$2,'Prog Assums'!$B$130,$EY54:$YD54) -> 0
A55: =VLOOKUP($D55,'Prog Assums'!$N$5:$AM$294,10, FALSE) -> DAT20 | C55: =VLOOKUP($D55,'Prog Assums'!$N$5:$AM$294,8, FALSE) -> DAT25 | D55: DT studios (textiles) | M55: =IF(D55="","",_xlfn.XLOOKUP(D55,'Prog Assums'!$N$7:$N$221,'Prog Assums'!$AQ$7:$AQ$221,"")) -> DT studio (textiles) | N55: DT studio (textiles)83 | O55: =IF(VLOOKUP(D55,'Prog Assums'!N$6:V$92,9,FALSE)>0,"retained","") ->  | Q55: =IF(S55>0,ROUNDDOWN((S55-VLOOKUP(AU55,'Prog Assums'!$E$38:$I$54,2,FALSE))/VLOOKUP(AU55,'Prog Assums'!$E$38:$I$54,3,FALSE),0),"") -> 25 | S55: =VLOOKUP(D55,'Prog Assums'!N$5:U$271,5,FALSE) -> 83 | U55: 1 | V55: 83 | AA55: 0 | AC55: =IF(D55="-",0,VLOOKUP(D55,'Prog Assums'!N$5:X$271,11,FALSE)) -> 83 | AD55: m2 minimum size for 24 pupils | AI55: =IF(AK55>0,83,0) -> 83 | AK55: 1 | AN55: =IF(U55>0,VLOOKUP(D55,'Prog Assums'!$N$6:$T$169,6,FALSE)+IF(U55>1,(U55-1)*VLOOKUP(D55,'Prog Assums'!$N$6:$T$169,7,FALSE),0),0) -> 10 | AP55: =ROUNDDOWN((AQ55-VLOOKUP(AU55,'Prog Assums'!$E$38:$I$54,2,FALSE))/VLOOKUP(AU55,'Prog Assums'!$E$38:$I$54,3,FALSE),0) -> 25 | AQ55: =VLOOKUP(D55,'Prog Assums'!N$5:U$271,5,FALSE) -> 83 | AR55: =ROUNDUP(VLOOKUP(AU55,'Prog Assums'!$E$38:$I$54,4,FALSE)+(AP55*VLOOKUP(AU55,'Prog Assums'!$E$38:$I$54,5,FALSE)),0) -> 99 | AS55: 83 | AU55: =VLOOKUP(D55,'Prog Assums'!$N$65:$O$87,2,FALSE) -> G | BE55: =IF(ISERROR(AVERAGEIF('Individual Spaces'!F:F,'Secondary SoA'!$N55,'Individual Spaces'!K:K))=TRUE,"",AVERAGEIF('Individual Spaces'!F:F,'Secondary SoA'!$N55,'Individual Spaces'!K:K)) ->  | BG55: =COUNTIF('Individual Spaces'!F:F,'Secondary SoA'!$N55) -> 1 | BK55: 0 | BM55: 1 | CA55: 1 | CM55: =IF($S55>0,VLOOKUP($D55,'Prog Assums'!$N$5:$AM$294,12, FALSE),"") -> 83m2 for up to 24 | CN55: =IF($S55>0,VLOOKUP($D55,'Prog Assums'!$N$5:$AM$294,13, FALSE),"") -> F1 | CQ55: =VLOOKUP(D55,'Prog Assums'!$N$6:$Q$229,3,0) -> 2.5 | CR55: =VLOOKUP(D55,'Prog Assums'!$N$6:$Q$229,4,0) -> 4 | CS55: 30 | CT55: 30 | CU55: 30 | CV55: 0 | CW55: 30 | CX55: 30 | CY55: 30 | CZ55: 0 | DA55: 20 | DD55: =IF((DD49+DE49)>3,ROUND((DD49+DE49)/5,0),0) -> 1 | DF55: =IF(DF49>3,ROUND(DF49/5,0),0) -> 1 | DG55: 0 | DH55: 0 | DI55: 0 | DJ55: =ROUNDDOWN(DJ49/4,0) -> 0 | DK55: =ROUNDDOWN(DK49/4,0) -> 0 | DL55: 0 | DM55: 0 | DN55: =VLOOKUP($C55,'Prog Assums'!$U$5:$AI$293,11,FALSE) -> 45 | DO55: =VLOOKUP($C55,'Prog Assums'!$U$5:$AI$293,12,FALSE) -> 74.7 | DP55: =IF(VLOOKUP($C55,'Prog Assums'!$U$5:$AI$293,13,FALSE)="AS SOA",$AI55,VLOOKUP($C55,'Prog Assums'!$U$5:$AI$293,13,FALSE)) -> 83 | DQ55: =VLOOKUP($C55,'Prog Assums'!$U$5:$AI$293,14,FALSE) -> - | DR55: =VLOOKUP($C55,'Prog Assums'!$U$5:$AI$293,15,FALSE) -> 150 | DS55: 0 | DU55: -1 | DV55: -83 | DY55: 0 | EB55: 0 | EE55: 0 | EG55: 0 | EH55: 0 | EK55: 0 | EM55: 0 | EN55: 0 | ER55: 0 | ET55: =COUNTIFS($EY$2:$YD$2,'Prog Assums'!$B$130,$EY55:$YD55,">0") -> 0 | EU55: =SUMIF($EY$2:$YD$2,'Prog Assums'!$B$130,$EY55:$YD55) -> 0
A56: =VLOOKUP($D56,'Prog Assums'!$N$5:$AM$294,10, FALSE) -> - | C56: =VLOOKUP($D56,'Prog Assums'!$N$5:$AM$294,8, FALSE) -> - | D56: =IF(AK56>0,"DT studios (electronics & control)","-") -> - | M56: =IF(D56="","",_xlfn.XLOOKUP(D56,'Prog Assums'!$N$7:$N$221,'Prog Assums'!$AQ$7:$AQ$221,"")) -> - | N56: -0 | O56: =IF(VLOOKUP(D56,'Prog Assums'!N$6:V$92,9,FALSE)>0,"retained","") ->  | Q56: =IF(S56>0,ROUNDDOWN((S56-VLOOKUP(AU56,'Prog Assums'!$E$38:$I$54,2,FALSE))/VLOOKUP(AU56,'Prog Assums'!$E$38:$I$54,3,FALSE),0),"") ->  | S56: =VLOOKUP(D56,'Prog Assums'!N$5:U$271,5,FALSE) -> 0 | U56: 0 | V56: 0 | AA56: 0 | AC56: =IF(D56="-",0,VLOOKUP(D56,'Prog Assums'!N$5:X$271,11,FALSE)) -> 0 | AI56: =IF(AK56>0,83,0) -> 0 | AK56: 0 | AN56: =IF(U56>0,VLOOKUP(D56,'Prog Assums'!$N$6:$T$169,6,FALSE)+IF(U56>1,(U56-1)*VLOOKUP(D56,'Prog Assums'!$N$6:$T$169,7,FALSE),0),0) -> 0 | AP56: =ROUNDDOWN((AQ56-VLOOKUP(AU56,'Prog Assums'!$E$38:$I$54,2,FALSE))/VLOOKUP(AU56,'Prog Assums'!$E$38:$I$54,3,FALSE),0) ->  | AQ56: =VLOOKUP(D56,'Prog Assums'!N$5:U$271,5,FALSE) -> 0 | AR56: =ROUNDUP(VLOOKUP(AU56,'Prog Assums'!$E$38:$I$54,4,FALSE)+(AP56*VLOOKUP(AU56,'Prog Assums'!$E$38:$I$54,5,FALSE)),0) ->  | AS56: 0 | AU56: =VLOOKUP(D56,'Prog Assums'!$N$65:$O$87,2,FALSE) -> 0 | BE56: =IF(ISERROR(AVERAGEIF('Individual Spaces'!F:F,'Secondary SoA'!$N56,'Individual Spaces'!K:K))=TRUE,"",AVERAGEIF('Individual Spaces'!F:F,'Secondary SoA'!$N56,'Individual Spaces'!K:K)) ->  | BG56: =COUNTIF('Individual Spaces'!F:F,'Secondary SoA'!$N56) -> 0 | BK56: 0 | BM56: 0 | CA56: 0 | CM56: =IF($S56>0,VLOOKUP($D56,'Prog Assums'!$N$5:$AM$294,12, FALSE),"") ->  | CN56: =IF($S56>0,VLOOKUP($D56,'Prog Assums'!$N$5:$AM$294,13, FALSE),"") ->  | CQ56: =VLOOKUP(D56,'Prog Assums'!$N$6:$Q$229,3,0) -> 0 | CR56: =VLOOKUP(D56,'Prog Assums'!$N$6:$Q$229,4,0) -> 0 | CS56: 0 | CT56: 0 | CU56: 0 | CV56: 0 | CW56: 0 | CX56: 0 | CY56: 0 | CZ56: 0 | DA56: 20 | DD56: =MAXA(0,(DD49+DE49)-DD50-DD51-DD52-DD53-DD54-DD55) -> 0 | DF56: =MAXA(0,DF49-DF50-DF51-DF52-DF53-DF54-DF55) -> 0 | DG56: =MAXA(0,DG49-DG50-DG51-DG52-DG53-DG54-DG55) -> 0 | DH56: 0 | DI56: 0 | DJ56: =MAXA(0,DJ49-DJ50-DJ51-DJ52-DJ53-DJ54-DJ55) -> 1 | DK56: =MAXA(0,DK49-DK50-DK51-DK52-DK53-DK54-DK55) -> 1 | DL56: 1 | DM56: 1 | DN56: =VLOOKUP($C56,'Prog Assums'!$U$5:$AI$293,11,FALSE) -> 0 | DO56: =VLOOKUP($C56,'Prog Assums'!$U$5:$AI$293,12,FALSE) -> 0 | DP56: =IF(VLOOKUP($C56,'Prog Assums'!$U$5:$AI$293,13,FALSE)="AS SOA",$AI56,VLOOKUP($C56,'Prog Assums'!$U$5:$AI$293,13,FALSE)) -> 0 | DQ56: =VLOOKUP($C56,'Prog Assums'!$U$5:$AI$293,14,FALSE) -> 0 | DR56: =VLOOKUP($C56,'Prog Assums'!$U$5:$AI$293,15,FALSE) -> 0 | DS56: 0 | DU56: 0 | DV56: 0 | DY56: 0 | EB56: 0 | EE56: 0 | EG56: 0 | EH56: 0 | EK56: 0 | EM56: 0 | EN56: 0 | ER56: 0 | ET56: =COUNTIFS($EY$2:$YD$2,'Prog Assums'!$B$130,$EY56:$YD56,">0") -> 0 | EU56: =SUMIF($EY$2:$YD$2,'Prog Assums'!$B$130,$EY56:$YD56) -> 0
CM57: =IF($S57>0,VLOOKUP($D57,'Prog Assums'!$N$5:$AM$294,12, FALSE),"") ->  | CN57: =IF($S57>0,VLOOKUP($D57,'Prog Assums'!$N$5:$AM$294,13, FALSE),"") ->  | EN57: =SUM(ER57:FZ57) -> 0 | EU57: =SUM(EY57:GG57) -> 0
D58: PE basic teaching spaces | K58: ='curriculum analysis (optional)'!AO150 -> 0 | L58: All PE Spaces | U58: =U59+U60+U64+U65+U66+U67 -> 3 | AK58: =AK59+AK60+AK64+AK65+AK66+AK67 -> 3 | AV58: =((AW$4*AY$4)+(AV5/DA2)+(AW$6*AY$6)+(AW$8*AY$8))/(AY$4+AY$5+AY$6+AY$8) -> 24.65714286 | AW58: =(U58*AV58)/K$8 -> 0.06575238095 | AX58: of curriculum in all indoor PE | BG58: =BG59+BG60+BG64+BG65+BG66+BG67 -> 3 | CM58: =IF($S58>0,VLOOKUP($D58,'Prog Assums'!$N$5:$AM$294,12, FALSE),"") ->  | CN58: =IF($S58>0,VLOOKUP($D58,'Prog Assums'!$N$5:$AM$294,13, FALSE),"") ->  | DD58: =DD59+DD64+DD65+DD66 -> 3 | DF58: =DF59+DF64+DF65+DF66 -> 3 | DG58: 4 | DH58: 3 | DI58: 3 | DJ58: 0 | DK58: 0 | DL58: 0 | DM58: 0 | DS58: All PE Spaces | DU58: =SUM(EA58,EG58,EM58,ET58)-U58 -> -3 | EA58: =SUM(EA59:EA67) -> 0 | EB58: =SUM(EB59+EB60) -> 0 | EG58: =SUM(EG59:EG67) -> 0 | EH58: =SUM(EH59+EH60) -> 0 | EM58: =SUM(EM59:EM67) -> 0 | EN58: =SUM(EN59+EN60) -> 0 | ET58: =SUM(ET59:ET67) -> 0 | EU58: =SUM(EU59+EU60) -> 0
A59: =VLOOKUP($D59,'Prog Assums'!$N$5:$AM$294,10, FALSE) -> - | C59: =VLOOKUP($D59,'Prog Assums'!$N$5:$AM$294,8, FALSE) -> - | D59: =IF(U59>0,"Fitness rooms (exercise studio)","-") -> - | M59: =IF(D59="","",_xlfn.XLOOKUP(D59,'Prog Assums'!$N$7:$N$221,'Prog Assums'!$AQ$7:$AQ$221,"")) -> - | N59: =CONCATENATE(M59,S59) -> -0 | O59: =IF(VLOOKUP(D59,'Prog Assums'!N$6:V$92,9,FALSE)>0,"retained","") ->  | Q59: =IF(S59>0,ROUND((S59-VLOOKUP(AU59,'Prog Assums'!$E$38:$I$54,2,FALSE))/VLOOKUP(AU59,'Prog Assums'!$E$38:$I$54,3,FALSE),0),"") ->  | S59: =VLOOKUP(D59,'Prog Assums'!N$5:U$271,5,FALSE) -> 0 | U59: =AK59 -> 0 | V59: =MAXA(0,(S59*U59)-Y59) -> 0 | AA59: 0 | AC59: =IF(D59="-",0,VLOOKUP(D59,'Prog Assums'!N$5:X$271,11,FALSE)) -> 0 | AD59: =IF(D59="-","","m2 minimum size for 30 pupils") ->  | AI59: =IF(AK59>0,69,0) -> 0 | AK59: =DD59+DE59+DC59 -> 0 | AN59: =IF(U59>0,VLOOKUP(D59,'Prog Assums'!$N$6:$S$169,6,FALSE),0) -> 0 | AP59: =ROUNDDOWN((AQ59-VLOOKUP(AU59,'Prog Assums'!$E$38:$I$54,2,FALSE))/VLOOKUP(AU59,'Prog Assums'!$E$38:$I$54,3,FALSE),0) ->  | AQ59: =VLOOKUP(D59,'Prog Assums'!N$5:U$271,5,FALSE) -> 0 | AR59: =ROUNDUP(VLOOKUP(AU59,'Prog Assums'!$E$38:$I$54,4,FALSE)+(AP59*VLOOKUP(AU59,'Prog Assums'!$E$38:$I$54,5,FALSE)),0) ->  | AS59: 0 | AU59: =IF(D59="-","-",VLOOKUP(D59,'Prog Assums'!N90:Q92,2,FALSE)) -> - | BE59: =IF(ISERROR(AVERAGEIF('Individual Spaces'!F:F,'Secondary SoA'!$N59,'Individual Spaces'!K:K))=TRUE,"",AVERAGEIF('Individual Spaces'!F:F,'Secondary SoA'!$N59,'Individual Spaces'!K:K)) ->  | BG59: =COUNTIF('Individual Spaces'!F:F,'Secondary SoA'!$N59) -> 0 | BH59: =IF(ISERROR(BE59*BG59)=TRUE,"",BE59*BG59) ->  | BJ59: =IF(ISERROR(BH59-Y59-V59)=TRUE,"",BH59-Y59-V59) ->  | BK59: 0 | BM59: =SUM(BO59:CK59) -> 0 | CE59: =U59 -> 0 | CM59: =IF($S59>0,VLOOKUP($D59,'Prog Assums'!$N$5:$AM$294,12, FALSE),"") ->  | CN59: =IF($S59>0,VLOOKUP($D59,'Prog Assums'!$N$5:$AM$294,13, FALSE),"") ->  | CQ59: =VLOOKUP(D59,'Prog Assums'!$N$6:$Q$229,3,0) -> 0 | CR59: =VLOOKUP(D59,'Prog Assums'!$N$6:$Q$229,4,0) -> 0 | CS59: 0 | CT59: =IF(CS59>14,IF(CS59<31,CS59,ROUNDDOWN(CS59/30,0)*30),0) -> 0 | CU59: =IF(S59>0,(V59/S59)*CT59,0) -> 0 | CV59: =IF(CS59>0,(V59/S59)*CS59,0)-CU59 -> 0 | CW59: =IF(AK59=0,0,MAXA(1,ROUNDUP((AI59/CQ59)-CR59,0))) -> 0 | CX59: =IF(CW59>14,IF(CW59<31,CW59,ROUNDDOWN(CW59/30,0)*30),0) -> 0 | CY59: =IF(AK59>0,(AS59/AI59)*CX59,0) -> 0 | CZ59: =IF(CW59>0,(AS59/AI59)*CW59,0)-CY59 -> 0 | DA59: 30 | DD59: =HLOOKUP(AG$12,$DF$15:$DI$74,45,FALSE) -> 0 | DG59: 1 | DN59: =VLOOKUP($C59,'Prog Assums'!$U$5:$AI$293,11,FALSE) -> 0 | DO59: =VLOOKUP($C59,'Prog Assums'!$U$5:$AI$293,12,FALSE) -> 0 | DP59: =IF(VLOOKUP($C59,'Prog Assums'!$U$5:$AI$293,13,FALSE)="AS SOA",$AI59,VLOOKUP($C59,'Prog Assums'!$U$5:$AI$293,13,FALSE)) -> 0 | DQ59: =VLOOKUP($C59,'Prog Assums'!$U$5:$AI$293,14,FALSE) -> 0 | DR59: =VLOOKUP($C59,'Prog Assums'!$U$5:$AI$293,15,FALSE) -> 0 | DS59: =IF(ISERROR((SUM($EB59,$EH59,$EN59,$EU59)/SUM($EA59,$EG59,$EM59,$ET59)-$S59))=TRUE,0,IF($U59=0,0,(SUM($EB59,$EH59,$EN59,$EU59)/SUM($EA59,$EG59,$EM59,$ET59)-$S59))) -> 0 | DU59: =SUM(EA59,EG59,EM59,ET59)-U59 -> 0 | DV59: =SUM($EU59,$EN59,$EH59,$EB59)-$V59-$Y59 -> 0 | DY59: 0 | EA59: 0 | EB59: =EA59*DY59 -> 0 | EE59: 0 | EG59: 0 | EH59: =EG59*EE59 -> 0 | EK59: =IF(EN59>0,SUM(EN59/EM59),0) -> 0 | EM59: =COUNTIFS($EY$2:$YD$2,"Refurb",$EY59:$YD59,">0") -> 0 | EN59: =SUMIF($EY$2:$YD$2,"Refurb",$EY59:$YD59) -> 0 | ER59: =IF(EU59>0,SUM(EU59/ET59),0) -> 0 | ET59: =COUNTIFS($EY$2:$YD$2,'Prog Assums'!$B$130,$EY59:$YD59,">0") -> 0 | EU59: =SUMIF($EY$2:$YD$2,'Prog Assums'!$B$130,$EY59:$YD59) -> 0
A60: =VLOOKUP($D60,'Prog Assums'!$N$5:$AM$294,10, FALSE) -> - | C60: =VLOOKUP($D60,'Prog Assums'!$N$5:$AM$294,8, FALSE) -> - | D60: - | M60: =IF(D60="","",_xlfn.XLOOKUP(D60,'Prog Assums'!$N$7:$N$221,'Prog Assums'!$AQ$7:$AQ$221,"")) -> - | N60: =CONCATENATE(M60,S60) -> -0 | O60: =IF(VLOOKUP(D60,'Prog Assums'!N$6:V$92,9,FALSE)>0,"retained","") ->  | Q60: =IF(S60>0,ROUND((S60-VLOOKUP(AU60,'Prog Assums'!$E$38:$I$54,2,FALSE))/VLOOKUP(AU60,'Prog Assums'!$E$38:$I$54,3,FALSE),0),"") ->  | S60: =VLOOKUP(D60,'Prog Assums'!N$5:U$271,5,FALSE) -> 0 | U60: =AK60 -> 0 | V60: =MAXA(0,(S60*U60)-Y60) -> 0 | AA60: 0 | AC60: =IF(D60="-",0,VLOOKUP(D60,'Prog Assums'!N$5:X$271,11,FALSE)) -> 0 | AN60: =IF(U60>0,VLOOKUP(D60,'Prog Assums'!$N$6:$S$169,6,FALSE),0) -> 0 | AP60: =ROUNDDOWN((AQ60-VLOOKUP(AU60,'Prog Assums'!$E$38:$I$54,2,FALSE))/VLOOKUP(AU60,'Prog Assums'!$E$38:$I$54,3,FALSE),0) ->  | AQ60: =VLOOKUP(D60,'Prog Assums'!N$5:U$271,5,FALSE) -> 0 | AR60: =ROUNDUP(VLOOKUP(AU60,'Prog Assums'!$E$38:$I$54,4,FALSE)+(AP60*VLOOKUP(AU60,'Prog Assums'!$E$38:$I$54,5,FALSE)),0) ->  | AS60: 0 | AU60: =IF(D60="-","-",VLOOKUP(D60,'Prog Assums'!N90:Q92,2,FALSE)) -> - | BE60: =IF(ISERROR(AVERAGEIF('Individual Spaces'!F:F,'Secondary SoA'!$N60,'Individual Spaces'!K:K))=TRUE,"",AVERAGEIF('Individual Spaces'!F:F,'Secondary SoA'!$N60,'Individual Spaces'!K:K)) ->  | BG60: =COUNTIF('Individual Spaces'!F:F,'Secondary SoA'!$N60) -> 0 | BH60: =IF(ISERROR(BE60*BG60)=TRUE,"",BE60*BG60) ->  | BJ60: =IF(ISERROR(BH60-Y60-V60)=TRUE,"",BH60-Y60-V60) ->  | BK60: 0 | BM60: =SUM(BO60:CK60) -> 0 | CE60: =U60 -> 0 | CM60: =IF($S60>0,VLOOKUP($D60,'Prog Assums'!$N$5:$AM$294,12, FALSE),"") ->  | CN60: =IF($S60>0,VLOOKUP($D60,'Prog Assums'!$N$5:$AM$294,13, FALSE),"") ->  | CQ60: =VLOOKUP(D60,'Prog Assums'!$N$6:$Q$229,3,0) -> 0 | CR60: =VLOOKUP(D60,'Prog Assums'!$N$6:$Q$229,4,0) -> 0 | CS60: 0 | CT60: =IF(CS60>14,IF(CS60<31,CS60,ROUNDDOWN(CS60/30,0)*30),0) -> 0 | CU60: =IF(S60>0,(V60/S60)*CT60,0) -> 0 | CV60: =IF(CS60>0,(V60/S60)*CS60,0)-CU60 -> 0 | CW60: 0 | CX60: 0 | CY60: 0 | CZ60: 0 | DA60: 25 | DN60: =VLOOKUP($C60,'Prog Assums'!$U$5:$AI$293,11,FALSE) -> 0 | DO60: =VLOOKUP($C60,'Prog Assums'!$U$5:$AI$293,12,FALSE) -> 0 | DP60: =IF(VLOOKUP($C60,'Prog Assums'!$U$5:$AI$293,13,FALSE)="AS SOA",$AI60,VLOOKUP($C60,'Prog Assums'!$U$5:$AI$293,13,FALSE)) -> 0 | DQ60: =VLOOKUP($C60,'Prog Assums'!$U$5:$AI$293,14,FALSE) -> 0 | DR60: =VLOOKUP($C60,'Prog Assums'!$U$5:$AI$293,15,FALSE) -> 0 | DS60: =IF(ISERROR((SUM($EB60,$EH60,$EN60,$EU60)/SUM($EA60,$EG60,$EM60,$ET60)-$S60))=TRUE,0,IF($U60=0,0,(SUM($EB60,$EH60,$EN60,$EU60)/SUM($EA60,$EG60,$EM60,$ET60)-$S60))) -> 0 | DU60: =SUM(EA60,EG60,EM60,ET60)-U60 -> 0 | DV60: =SUM($EU60,$EN60,$EH60,$EB60)-$V60-$Y60 -> 0 | DY60: 0 | EA60: 0 | EB60: =EA60*DY60 -> 0 | EE60: 0 | EG60: 0 | EH60: =EG60*EE60 -> 0 | EK60: =IF(EN60>0,SUM(EN60/EM60),0) -> 0 | EM60: =COUNTIFS($EY$2:$YD$2,"Refurb",$EY60:$YD60,">0") -> 0 | EN60: =SUMIF($EY$2:$YD$2,"Refurb",$EY60:$YD60) -> 0 | ER60: =IF(EU60>0,SUM(EU60/ET60),0) -> 0 | ET60: =COUNTIFS($EY$2:$YD$2,'Prog Assums'!$B$130,$EY60:$YD60,">0") -> 0 | EU60: =SUMIF($EY$2:$YD$2,'Prog Assums'!$B$130,$EY60:$YD60) -> 0
D61: TOTAL AREA | L61: BB103 range | O61: =ROUND(IF(AR$8>0,0,0)+IF(K$6>0,0,0)+(K$4*2)+(K$5*2.9)+(K$6*3.2),0) -> 3330 | P61: to | Q61: =ROUND(IF(AR$8>0,100,150)+IF(K$5>0,100,0)+(K$4*2.2)+(K$5*3.2)+(K$6*3.5),0) -> 3918 | V61: =SUM(V20:V60) -> 3573 | Y61: =SUM(Y20:Y60) -> 0 | AA61: =SUM(AA20:AA60) -> 0 | AC61: =IF(V61<O61,"ERROR: total area for category is too low",IF(V61>Q61,"WARNING: total area for category is high","OK: area within BB103 range")) -> OK: area within BB103 range | AI61: =SUM(AS20:AS60) -> 3573 | AK61: =SUM(AT20:AT60) -> 0 | BH61: =SUM(BH20:BH60) -> 0 | BJ61: =BH61-Y61-V61 -> -3573 | BO61: =SUM(BO20:BO60) -> 9 | BQ61: =SUM(BQ20:BQ60) -> 9 | BS61: =SUM(BS20:BS60) -> 7 | BU61: =SUM(BU20:BU60) -> 5 | BW61: =SUM(BW20:BW60) -> 4 | BY61: =SUM(BY20:BY60) -> 10 | CA61: =SUM(CA20:CA60) -> 7 | CC61: =SUM(CC20:CC60) -> 2 | CE61: =SUM(CE20:CE60) -> 0 | CG61: =SUM(CG20:CG60) -> 0 | CI61: =SUM(CI20:CI60) -> 0 | CK61: =SUM(CK20:CK60) -> 0 | CM61: =IF($S61>0,VLOOKUP($D61,'Prog Assums'!$N$5:$AM$294,12, FALSE),"") ->  | DV61: =SUM(EU61,EN61,EH61,EB61)-SUM(Y61,V61) -> -3573 | EB61: =SUM(EB58,EB49,EB43,EB38,EB31,EB26,EB19) -> 0 | EH61: =SUM(EH58,EH49,EH43,EH38,EH31,EH26,EH19) -> 0 | EN61: =SUM(EN58,EN49,EN43,EN38,EN31,EN26,EN19) -> 0 | EU61: =SUM(EU58,EU49,EU43,EU38,EU31,EU26,EU19) -> 0
CM62: =IF($S62>0,VLOOKUP($D62,'Prog Assums'!$N$5:$AM$294,12, FALSE),"") ->  | CN62: =IF($S62>0,VLOOKUP($D62,'Prog Assums'!$N$5:$AM$294,13, FALSE),"") -> 
D63: Large spaces: halls and indoor PE | AC63: main hall options | AG63: =IF(K8<900,"hall including stage","hall with bleacher seating") -> hall with bleacher seating | AN63: =VLOOKUP(AG67,'Prog Assums'!B98:E103,3,FALSE) -> 2.67 | AO63: sittings | CM63: =IF($S63>0,VLOOKUP($D63,'Prog Assums'!$N$5:$AM$294,12, FALSE),"") ->  | CN63: =IF($S63>0,VLOOKUP($D63,'Prog Assums'!$N$5:$AM$294,13, FALSE),"") ->  | DD63: =IF(AN10="hall",ROUND((AI64-2)*AN63,0)/(K8*0.95),1-AC69) -> 0.5204444444
A64: =VLOOKUP($D64,'Prog Assums'!$N$5:$AM$294,10, FALSE) -> HAL01 | C64: =VLOOKUP($D64,'Prog Assums'!$N$5:$AM$294,8, FALSE) -> HAL03 | D64: =VLOOKUP(AG63,'Prog Assums'!B107:C108,2,FALSE) -> Assembly halls, secondary (with bleachers) | M64: =D64 -> Assembly halls, secondary (with bleachers) | N64: =CONCATENATE(M64,S64) -> Assembly halls, secondary (with bleachers)197 | Q64: =IF(S64>0,IF(D64="main hall (secondary, including stage)",ROUNDUP((S64-45)/0.6,0),ROUNDUP((S64-25)/0.55,0)),0) -> 313 | S64: =AI64 -> 197 | U64: 1 | V64: =MAXA((S64*U64)-Y64,0) -> 197 | AA64: =IF(O64="retained",V64+Y64,IF(O64="refurb'ed",V64+Y64,0)) -> 0 | AC64: =IF(AN10="hall",ROUND((S64-2)*AN63,0)/(K8*0.95),MAXA(0,1-AC69)) -> 0.5204444444 | AD64: =IF(AN10="hall","of pupils incl 33% eating hot food","of pupils eating cold food at lunch") -> of pupils eating cold food at lunch | AI64: =IF(AN10="hall",MAXA(AC68,DB64),DB64) -> 197 | AK64: 1 | AQ64: 180 | AR64: 320 | AS64: 197 | BE64: =IF(ISERROR(AVERAGEIF('Individual Spaces'!F:F,'Secondary SoA'!$N64,'Individual Spaces'!K:K))=TRUE,"",AVERAGEIF('Individual Spaces'!F:F,'Secondary SoA'!$N64,'Individual Spaces'!K:K)) ->  | BG64: =COUNTIF('Individual Spaces'!F:F,'Secondary SoA'!$N64) -> 1 | BH64: =IF(ISERROR(BE64*BG64)=TRUE,"",BE64*BG64) ->  | BJ64: =IF(ISERROR(BH64-Y64-V64)=TRUE,"",BH64-Y64-V64) ->  | BK64: =BG64-U64 -> 0 | BM64: =SUM(BO64:CK64) -> 1 | CC64: 1 | CM64: =IF($S64>0,VLOOKUP($D64,'Prog Assums'!$N$5:$AM$294,12, FALSE),"") -> 0 | CN64: =IF($S64>0,VLOOKUP($D64,'Prog Assums'!$N$5:$AM$294,13, FALSE),"") -> 0 | CQ64: =IF(S64<75,2.5,12.5) -> 12.5 | CR64: =IF(S64<75,4,-20) -> -20 | CS64: 36 | CT64: =IF(CS64>14,IF(CS64<31,CS64,ROUNDDOWN(CS64/30,0)*30),0) -> 30 | CU64: =IF(S64>0,(V64/S64)*CT64,0) -> 30 | CV64: =IF(CS64>0,(V64/S64)*CS64,0)-CU64 -> 6 | CW64: =IF(AK64=0,0,MAXA(1,ROUNDUP((AI64/CQ64)-CR64,0))) -> 36 | CX64: =IF(CW64>14,IF(CW64<31,CW64,ROUNDDOWN(CW64/30,0)*30),0) -> 30 | CY64: =IF(AK64>0,(AS64/AI64)*CX64,0) -> 30 | CZ64: =IF(CW64>0,(AS64/AI64)*CW64,0)-CY64 -> 6 | DB64: =VLOOKUP(DA2,'Prog Assums'!E58:I71,5,FALSE) -> 197 | DC64: =VLOOKUP(DA2+1,'Prog Assums'!E57:I71,5,FALSE) -> 226 | DD64: 1 | DE64: =IF(K7>0,"add",0) -> 0 | DF64: 1 | DG64: 1 | DH64: 1 | DI64: 1 | DN64: =VLOOKUP($C64,'Prog Assums'!$U$5:$AI$293,11,FALSE) -> 120 | DO64: =VLOOKUP($C64,'Prog Assums'!$U$5:$AI$293,12,FALSE) -> - | DP64: =IF(VLOOKUP($C64,'Prog Assums'!$U$5:$AI$293,13,FALSE)="AS SOA",$AI64,VLOOKUP($C64,'Prog Assums'!$U$5:$AI$293,13,FALSE)) -> 197 | DQ64: =VLOOKUP($C64,'Prog Assums'!$U$5:$AI$293,14,FALSE) -> - | DR64: =VLOOKUP($C64,'Prog Assums'!$U$5:$AI$293,15,FALSE) -> 600 | DS64: =IF(ISERROR((SUM($EB64,$EH64,$EN64,$EU64)/SUM($EA64,$EG64,$EM64,$ET64)-$S64))=TRUE,0,IF($U64=0,0,(SUM($EB64,$EH64,$EN64,$EU64)/SUM($EA64,$EG64,$EM64,$ET64)-$S64))) -> 0 | DU64: =SUM(EA64,EG64,EM64,ET64)-U64 -> -1 | DV64: =SUM($EU64,$EN64,$EH64,$EB64)-$V64-$Y64 -> -197 | DY64: 0 | EB64: =EA64*DY64 -> 0 | EE64: 0 | EG64: 0 | EH64: =EG64*EE64 -> 0 | EK64: =IF(EN64>0,SUM(EN64/EM64),0) -> 0 | EM64: =COUNTIFS($EY$2:$YD$2,"Refurb",$EY64:$YD64,">0") -> 0 | EN64: =SUMIF($EY$2:$YD$2,"Refurb",$EY64:$YD64) -> 0 | ER64: =IF(EU64>0,SUM(EU64/ET64),0) -> 0 | ET64: =COUNTIFS($EY$2:$YD$2,'Prog Assums'!$B$130,$EY64:$YD64,">0") -> 0 | EU64: =SUMIF($EY$2:$YD$2,'Prog Assums'!$B$130,$EY64:$YD64) -> 0
A65: =VLOOKUP($D65,'Prog Assums'!$N$5:$AM$294,10, FALSE) -> SPH00 | C65: =VLOOKUP($D65,'Prog Assums'!$N$5:$AM$294,8, FALSE) -> SPH04 | D65: =AF65 -> Sports halls, school (4-court) | M65: =IF(D65="","",_xlfn.XLOOKUP(D65,'Prog Assums'!$N$7:$N$221,'Prog Assums'!$AQ$7:$AQ$221,"")) -> Sports hall, school (4-court) | N65: =CONCATENATE(M65,S65) -> Sports hall, school (4-court)594 | O65: =IF(VLOOKUP(D65,'Prog Assums'!N$92:V$133,9,FALSE)>0,"retained","") ->  | Q65: =IF(S65>0,IF((S65-15)/1.75>(K5/O5),ROUNDUP((K5*1.033/O5),0),ROUNDDOWN((S65-15)/1.75,0)),0) -> 186 | S65: =VLOOKUP(D65,'Prog Assums'!N$5:U$271,5,FALSE) -> 594 | U65: =AK65 -> 1 | V65: =MAXA((S65*U65)-Y65,0) -> 594 | Y65: =IF((S65*U65)>594,(S65*U65)-594,0) -> 0 | AA65: =IF(O65="retained",V65+Y65,IF(O65="refurb'ed",V65+Y65,0)) -> 0 | AC65: recommended: | AF65: =VLOOKUP(AI65,'Prog Assums'!M119:N124,2) -> Sports halls, school (4-court) | AI65: =IF(K8>599,MAXA(504,DB65),DB65) -> 594 | AK65: 1 | AN65: =IF(U65>0,VLOOKUP(D65,'Prog Assums'!$N$6:$S$169,6,FALSE),0) -> 0 | AO65: =IF(O65="existing","E","") ->  | AQ65: =VLOOKUP(D65,'Prog Assums'!N$5:U$271,5,FALSE) -> 594 | AR65: 900 | AS65: 594 | AV65: =DK65 -> 0 | BE65: =IF(ISERROR(AVERAGEIF('Individual Spaces'!F:F,'Secondary SoA'!$N65,'Individual Spaces'!K:K))=TRUE,"",AVERAGEIF('Individual Spaces'!F:F,'Secondary SoA'!$N65,'Individual Spaces'!K:K)) ->  | BG65: =COUNTIF('Individual Spaces'!F:F,'Secondary SoA'!$N65) -> 1 | BH65: =IF(ISERROR(BE65*BG65)=TRUE,"",BE65*BG65) ->  | BJ65: =IF(ISERROR(BH65-Y65-V65)=TRUE,"",BH65-Y65-V65) ->  | BK65: 0 | BM65: =SUM(BO65:CK65) -> 1 | CE65: =U65 -> 1 | CM65: =IF($S65>0,VLOOKUP($D65,'Prog Assums'!$N$5:$AM$294,12, FALSE),"") -> 594m2 | CN65: =IF($S65>0,VLOOKUP($D65,'Prog Assums'!$N$5:$AM$294,13, FALSE),"") -> 0 | CQ65: =IF(S65<75,2.5,12.5) -> 12.5 | CR65: =IF(S65<75,4,-20) -> -20 | CS65: 68 | CT65: =IF(CS65>14,IF(CS65<31,CS65,ROUNDDOWN(CS65/30,0)*30),0) -> 60 | CU65: =IF(S65>0,(V65/S65)*CT65,0) -> 60 | CV65: =IF(CS65>0,(V65/S65)*CS65,0)-CU65 -> 8 | CW65: 68 | CX65: 60 | CY65: 60 | CZ65: 8 | DA65: 60 | DB65: =VLOOKUP(DA2+DC65,'Prog Assums'!E58:I71,4,FALSE) -> 594 | DC65: =IF(VLOOKUP(AG67,'Prog Assums'!B98:G103,6,FALSE)="space",0,1) -> 0 | DD65: 1 | DF65: 1 | DG65: 1 | DH65: 1 | DI65: 1 | DN65: =VLOOKUP($C65,'Prog Assums'!$U$5:$AI$293,11,FALSE) -> 594 | DO65: =VLOOKUP($C65,'Prog Assums'!$U$5:$AI$293,12,FALSE) -> - | DP65: =IF(VLOOKUP($C65,'Prog Assums'!$U$5:$AI$293,13,FALSE)="AS SOA",$AI65,VLOOKUP($C65,'Prog Assums'!$U$5:$AI$293,13,FALSE)) -> 594 | DQ65: =VLOOKUP($C65,'Prog Assums'!$U$5:$AI$293,14,FALSE) -> - | DR65: =VLOOKUP($C65,'Prog Assums'!$U$5:$AI$293,15,FALSE) -> 690 | DS65: =IF(ISERROR((SUM($EB65,$EH65,$EN65,$EU65)/SUM($EA65,$EG65,$EM65,$ET65)-$S65))=TRUE,0,IF($U65=0,0,(SUM($EB65,$EH65,$EN65,$EU65)/SUM($EA65,$EG65,$EM65,$ET65)-$S65))) -> 0 | DU65: =SUM(EA65,EG65,EM65,ET65)-U65 -> -1 | DV65: =SUM($EU65,$EN65,$EH65,$EB65)-$V65-$Y65 -> -594 | DY65: 0 | EB65: =EA65*DY65 -> 0 | EE65: 0 | EG65: 0 | EH65: =EG65*EE65 -> 0 | EK65: =IF(EN65>0,SUM(EN65/EM65),0) -> 0 | EM65: =COUNTIFS($EY$2:$YD$2,"Refurb",$EY65:$YD65,">0") -> 0 | EN65: =SUMIF($EY$2:$YD$2,"Refurb",$EY65:$YD65) -> 0 | ER65: =IF(EU65>0,SUM(EU65/ET65),0) -> 0 | ET65: =COUNTIFS($EY$2:$YD$2,'Prog Assums'!$B$130,$EY65:$YD65,">0") -> 0 | EU65: =SUMIF($EY$2:$YD$2,'Prog Assums'!$B$130,$EY65:$YD65) -> 0
A66: =VLOOKUP($D66,'Prog Assums'!$N$5:$AM$294,10, FALSE) -> ACT05 | C66: =VLOOKUP($D66,'Prog Assums'!$N$5:$AM$294,8, FALSE) -> ACT07 | D66: =AF66 -> Activity studios (10 x 15) | M66: =IF(D66="","",_xlfn.XLOOKUP(D66,'Prog Assums'!$N$7:$N$221,'Prog Assums'!$AQ$7:$AQ$221,"")) -> Activity studio (10 x 15) | N66: =CONCATENATE(M66,S66) -> Activity studio (10 x 15)150 | O66: =IF(VLOOKUP(D66,'Prog Assums'!N$92:V$133,9,FALSE)>0,"retained","") ->  | Q66: =IF(S66>0,CT66,0) -> 30 | S66: =VLOOKUP(D66,'Prog Assums'!N$5:U$271,5,FALSE) -> 150 | U66: =AK66 -> 1 | V66: =MAXA((S66*U66)-Y66,0) -> 150 | Y66: =IF(D66="swimming pool (existing)",S66,0) -> 0 | AA66: 0 | AC66: =IF(AK66>0,"recommended:","") -> recommended: | AF66: =IF(AK66>0,IF(K8>1100,IF(K8>1750,"Activity studios, 1-court","Activity studios (10 x 15)"),"Activity studios (10 x 12)"),"-") -> Activity studios (10 x 15) | AI66: =VLOOKUP('Secondary SoA'!AF66,'Prog Assums'!N103:R116,5,FALSE) -> 150 | AK66: =DD66 -> 1 | AN66: =IF(U66>0,VLOOKUP(D66,'Prog Assums'!$N$6:$S$169,6,FALSE),0) -> 0 | AQ66: 144 | AR66: 180 | AS66: 150 | AV66: =DK66 -> 0 | BE66: =IF(ISERROR(AVERAGEIF('Individual Spaces'!F:F,'Secondary SoA'!$N66,'Individual Spaces'!K:K))=TRUE,"",AVERAGEIF('Individual Spaces'!F:F,'Secondary SoA'!$N66,'Individual Spaces'!K:K)) ->  | BG66: =COUNTIF('Individual Spaces'!F:F,'Secondary SoA'!$N66) -> 1 | BH66: =IF(ISERROR(BE66*BG66)=TRUE,"",BE66*BG66) ->  | BJ66: =IF(ISERROR(BH66-Y66-V66)=TRUE,"",BH66-Y66-V66) ->  | BK66: 0 | BM66: =SUM(BO66:CK66) -> 1 | CE66: =U66 -> 1 | CM66: =IF($S66>0,VLOOKUP($D66,'Prog Assums'!$N$5:$AM$294,12, FALSE),"") -> 150m2 for 30 | CN66: =IF($S66>0,VLOOKUP($D66,'Prog Assums'!$N$5:$AM$294,13, FALSE),"") -> 0 | CQ66: 12.5 | CR66: -20 | CS66: 32 | CT66: =IF(CS66>14,IF(CS66<31,CS66,ROUNDDOWN(CS66/30,0)*30),0) -> 30 | CU66: =IF(S66>0,(V66/S66)*CT66,0) -> 30 | CV66: =IF(CS66>0,(V66/S66)*CS66,0)-CU66 -> 2 | CW66: 32 | CX66: 30 | CY66: 30 | CZ66: 2 | DA66: 30 | DB66: =VLOOKUP('Secondary SoA'!DA2,'Prog Assums'!E58:I71,3,FALSE) -> 120 | DD66: =HLOOKUP(AG$12,$DF$15:$DI$74,52,FALSE) -> 1 | DF66: =IF($K7+$K8>801,IF($K7+$K8>1600,2,1),0) -> 1 | DG66: =IF($K8>675,IF($K8>1600,2,1),0) -> 1 | DH66: =IF($K8>675,IF($K8>1600,2,1),0) -> 1 | DI66: =IF($K7+$K8>901,IF($K8>1600,2,1),0) -> 1 | DN66: =VLOOKUP($C66,'Prog Assums'!$U$5:$AI$293,11,FALSE) -> 150 | DO66: =VLOOKUP($C66,'Prog Assums'!$U$5:$AI$293,12,FALSE) -> - | DP66: =IF(VLOOKUP($C66,'Prog Assums'!$U$5:$AI$293,13,FALSE)="AS SOA",$AI66,VLOOKUP($C66,'Prog Assums'!$U$5:$AI$293,13,FALSE)) -> 150 | DQ66: =VLOOKUP($C66,'Prog Assums'!$U$5:$AI$293,14,FALSE) -> - | DR66: =VLOOKUP($C66,'Prog Assums'!$U$5:$AI$293,15,FALSE) -> 180 | DS66: =IF(ISERROR((SUM($EB66,$EH66,$EN66,$EU66)/SUM($EA66,$EG66,$EM66,$ET66)-$S66))=TRUE,0,IF($U66=0,0,(SUM($EB66,$EH66,$EN66,$EU66)/SUM($EA66,$EG66,$EM66,$ET66)-$S66))) -> 0 | DU66: =SUM(EA66,EG66,EM66,ET66)-U66 -> -1 | DV66: =SUM($EU66,$EN66,$EH66,$EB66)-$V66-$Y66 -> -150 | DY66: 0 | EB66: =EA66*DY66 -> 0 | EE66: 0 | EG66: 0 | EH66: =EG66*EE66 -> 0 | EK66: =IF(EN66>0,SUM(EN66/EM66),0) -> 0 | EM66: =COUNTIFS($EY$2:$YD$2,"Refurb",$EY66:$YD66,">0") -> 0 | EN66: =SUMIF($EY$2:$YD$2,"Refurb",$EY66:$YD66) -> 0 | ER66: =IF(EU66>0,SUM(EU66/ET66),0) -> 0 | ET66: =COUNTIFS($EY$2:$YD$2,'Prog Assums'!$B$130,$EY66:$YD66,">0") -> 0 | EU66: =SUMIF($EY$2:$YD$2,'Prog Assums'!$B$130,$EY66:$YD66) -> 0
A67: =VLOOKUP($D67,'Prog Assums'!$N$5:$AM$294,10, FALSE) -> - | C67: =VLOOKUP($D67,'Prog Assums'!$N$5:$AM$294,8, FALSE) -> - | D67: - | M67: =IF(D67="","",_xlfn.XLOOKUP(D67,'Prog Assums'!$N$7:$N$221,'Prog Assums'!$AQ$7:$AQ$221,"")) -> - | N67: =CONCATENATE(M67,S67) -> -0 | O67: =IF(VLOOKUP(D67,'Prog Assums'!N$92:V$133,9,FALSE)>0,"retained","") ->  | Q67: =IF(S67>0,CT67,0) -> 0 | S67: =VLOOKUP(D67,'Prog Assums'!N$5:U$271,5,FALSE) -> 0 | V67: =MAXA((S67*U67)-Y67,0) -> 0 | Y67: =IF(D67="swimming pool (existing)",S67,0) -> 0 | AA67: 0 | AC67: dining | AG67: 40 mins in dining area and hall | AN67: =IF(U67>0,VLOOKUP(D67,'Prog Assums'!$N$6:$S$169,6,FALSE),0) -> 0 | AS67: 0 | AV67: =IF(#REF!>1,DK67,0) ->  | BE67: =IF(ISERROR(AVERAGEIF('Individual Spaces'!F:F,'Secondary SoA'!$N67,'Individual Spaces'!K:K))=TRUE,"",AVERAGEIF('Individual Spaces'!F:F,'Secondary SoA'!$N67,'Individual Spaces'!K:K)) ->  | BG67: =COUNTIF('Individual Spaces'!F:F,'Secondary SoA'!$N67) -> 0 | BH67: =IF(ISERROR(BE67*BG67)=TRUE,"",BE67*BG67) ->  | BJ67: =IF(ISERROR(BH67-Y67-V67)=TRUE,"",BH67-Y67-V67) ->  | BK67: 0 | BM67: =SUM(BO67:CK67) -> 0 | CE67: =U67 -> 0 | CM67: =IF($S67>0,VLOOKUP($D67,'Prog Assums'!$N$5:$AM$294,12, FALSE),"") ->  | CN67: =IF($S67>0,VLOOKUP($D67,'Prog Assums'!$N$5:$AM$294,13, FALSE),"") ->  | CQ67: 2.5 | CR67: 4 | CS67: 0 | CT67: =IF(CS67>14,IF(CS67<31,CS67,ROUNDDOWN(CS67/30,0)*30),0) -> 0 | CU67: =IF(S67>0,(V67/S67)*CT67,0) -> 0 | CV67: =IF(CS67>0,(V67/S67)*CS67,0)-CU67 -> 0 | CW67: 0 | CX67: 0 | CY67: 0 | CZ67: 0 | DN67: =VLOOKUP($C67,'Prog Assums'!$U$5:$AI$293,11,FALSE) -> 0 | DO67: =VLOOKUP($C67,'Prog Assums'!$U$5:$AI$293,12,FALSE) -> 0 | DP67: =IF(VLOOKUP($C67,'Prog Assums'!$U$5:$AI$293,13,FALSE)="AS SOA",$AI67,VLOOKUP($C67,'Prog Assums'!$U$5:$AI$293,13,FALSE)) -> 0 | DQ67: =VLOOKUP($C67,'Prog Assums'!$U$5:$AI$293,14,FALSE) -> 0 | DR67: =VLOOKUP($C67,'Prog Assums'!$U$5:$AI$293,15,FALSE) -> 0 | DS67: =IF(ISERROR((SUM($EB67,$EH67,$EN67,$EU67)/SUM($EA67,$EG67,$EM67,$ET67)-$S67))=TRUE,0,IF($U67=0,0,(SUM($EB67,$EH67,$EN67,$EU67)/SUM($EA67,$EG67,$EM67,$ET67)-$S67))) -> 0 | DU67: =SUM(EA67,EG67,EM67,ET67)-U67 -> 0 | DV67: =SUM($EU67,$EN67,$EH67,$EB67)-$V67-$Y67 -> 0 | DY67: 0 | EB67: =EA67*DY67 -> 0 | EE67: 0 | EG67: 0 | EH67: =EG67*EE67 -> 0 | EK67: =IF(EN67>0,SUM(EN67/EM67),0) -> 0 | EM67: =COUNTIFS($EY$2:$YD$2,"Refurb",$EY67:$YD67,">0") -> 0 | EN67: =SUMIF($EY$2:$YD$2,"Refurb",$EY67:$YD67) -> 0 | ER67: =IF(EU67>0,SUM(EU67/ET67),0) -> 0 | ET67: =COUNTIFS($EY$2:$YD$2,'Prog Assums'!$B$130,$EY67:$YD67,">0") -> 0 | EU67: =SUMIF($EY$2:$YD$2,'Prog Assums'!$B$130,$EY67:$YD67) -> 0
D68: Dining and Social Areas | AC68: =ROUNDUP(K8*(0.95/AN63),0)+10 -> 411 | AD68: m2 min. recom'd for all pupils dining | AU68: =AC68*0.4 -> 164.4 | AV68: needed for 1/3 of pupils to eat hot meals | CM68: =IF($S68>0,VLOOKUP($D68,'Prog Assums'!$N$5:$AM$294,12, FALSE),"") ->  | CN68: =IF($S68>0,VLOOKUP($D68,'Prog Assums'!$N$5:$AM$294,13, FALSE),"") -> 
A69: =VLOOKUP($D69,'Prog Assums'!$N$5:$AM$294,10, FALSE) -> DIN01 | C69: =VLOOKUP($D69,'Prog Assums'!$N$5:$AM$294,8, FALSE) -> DIN01 | D69: =VLOOKUP(AG67,'Prog Assums'!B98:E103,4,FALSE) -> Dining halls | M69: =IF(D69="","",_xlfn.XLOOKUP(D69,'Prog Assums'!$N$7:$N$221,'Prog Assums'!$AQ$7:$AQ$221,"")) -> Dining hall | N69: =CONCATENATE(M69,S69) -> Dining hall214 | Q69: =IF(S69>0,ROUND((S69-2)/0.95,0),0) -> 223 | S69: =AI69 -> 214 | U69: =AK69 -> 1 | V69: =MAXA((S69*U69)-Y69,0) -> 214 | AA69: 0 | AC69: =IF(AN10="hall","",IF(V69>AU68,0.34+ROUND((V69-AU68)/(0.95/ROUNDUP(AN63,0)),0)/K8,0)) -> 0.4795555556 | AD69: =IF(D69="Dining halls",IF(V69>AU68,"of pupils incl 33% eating hot food","too small for 1/3 of pupils to eat hot food"),"for pupil access to servery") -> of pupils incl 33% eating hot food | AI69: =IF(AN10="hall",20,ROUND(MAXA(0,O73-AS64-AS65-AS66-AS70,5+IF(AI70>1,0,(K8*0.2)),MINA(AC68,O168-AI61-AI95-AI130-AI165-AS64-AS65-AS66-AS70,Q73-AS64-AS65-AS66-AS70)),0)) -> 214 | AK69: =IF(AI69>0,1,0) -> 1 | AN69: =IF(U69>0,VLOOKUP(D69,'Prog Assums'!$N$6:$S$169,6,FALSE),0) -> 0 | AQ69: =5+ROUND((K5+K6)*0.25,0) -> 286 | AR69: =10+ROUND((K5+K6)*0.35,0) -> 404 | AS69: 214 | AU69: =AC68*0.6 -> 246.6 | AV69: needed for 2/3 of pupils to eat cold meals | BE69: =IF(ISERROR(AVERAGEIF('Individual Spaces'!F:F,'Secondary SoA'!$N69,'Individual Spaces'!K:K))=TRUE,"",AVERAGEIF('Individual Spaces'!F:F,'Secondary SoA'!$N69,'Individual Spaces'!K:K)) ->  | BG69: =COUNTIF('Individual Spaces'!F:F,'Secondary SoA'!$N69) -> 0 | BH69: =IF(ISERROR(BE69*BG69)=TRUE,"",BE69*BG69) ->  | BJ69: =IF(ISERROR(BH69-Y69-V69)=TRUE,"",BH69-Y69-V69) ->  | BK69: -1 | BM69: =SUM(BO69:CK69) -> 1 | CC69: =U69 -> 1 | CM69: =IF($S69>0,VLOOKUP($D69,'Prog Assums'!$N$5:$AM$294,12, FALSE),"") -> 0 | CN69: =IF($S69>0,VLOOKUP($D69,'Prog Assums'!$N$5:$AM$294,13, FALSE),"") -> 0 | CQ69: =IF(D69="Dining halls",IF(S69<75,2.5,12.5),IF(S70>90,2.5,1.5)) -> 12.5 | CR69: =IF(D69="Dining halls",IF(S69<75,4,-20),IF(S70>90,-20,4)) -> -20 | CS69: 38 | CT69: =IF(CS69>14,IF(CS69<31,CS69,ROUNDDOWN(CS69/30,0)*30),0) -> 30 | CU69: =IF(S69>0,(V69/S69)*CT69,0) -> 30 | CV69: =IF(CS69>0,(V69/S69)*CS69,0)-CU69 -> 8 | CW69: =IF(AK69=0,0,MAXA(1,ROUNDUP((AI69/CQ69)-CR69,0))) -> 38 | CX69: =IF(CW69>14,IF(CW69<31,CW69,ROUNDDOWN(CW69/30,0)*30),0) -> 30 | CY69: =IF(AK69>0,(AS69/AI69)*CX69,0) -> 30 | CZ69: =IF(CW69>0,(AS69/AI69)*CW69,0)-CY69 -> 8 | DA69: N/4 | DB69: =70+ROUND(K8*0.2,0)-DB70 -> 256 | DD69: =IF(AN10="hall","",IF(AI69>AU68,0.33+ROUND((AI69-AU68)/(0.95/ROUNDUP(AN63,0)),0)/K8,0)) -> 0.4695555556 | DE69: add | DN69: =VLOOKUP($C69,'Prog Assums'!$U$5:$AI$293,11,FALSE) -> 12 | DO69: =VLOOKUP($C69,'Prog Assums'!$U$5:$AI$293,12,FALSE) -> - | DP69: =IF(VLOOKUP($C69,'Prog Assums'!$U$5:$AI$293,13,FALSE)="AS SOA",$AI69,VLOOKUP($C69,'Prog Assums'!$U$5:$AI$293,13,FALSE)) -> 214 | DQ69: =VLOOKUP($C69,'Prog Assums'!$U$5:$AI$293,14,FALSE) -> - | DR69: =VLOOKUP($C69,'Prog Assums'!$U$5:$AI$293,15,FALSE) -> 600 | DS69: =IF(ISERROR((SUM($EB69,$EH69,$EN69,$EU69)/SUM($EA69,$EG69,$EM69,$ET69)-$S69))=TRUE,0,IF($U69=0,0,(SUM($EB69,$EH69,$EN69,$EU69)/SUM($EA69,$EG69,$EM69,$ET69)-$S69))) -> 0 | DU69: =SUM(EA69,EG69,EM69,ET69)-U69 -> -1 | DV69: =SUM($EU69,$EN69,$EH69,$EB69)-$V69-$Y69 -> -214 | DY69: 0 | EB69: =EA69*DY69 -> 0 | EE69: 0 | EG69: 0 | EH69: =EG69*EE69 -> 0 | EK69: =IF(EN69>0,SUM(EN69/EM69),0) -> 0 | EM69: =COUNTIFS($EY$2:$YD$2,"Refurb",$EY69:$YD69,">0") -> 0 | EN69: =SUMIF($EY$2:$YD$2,"Refurb",$EY69:$YD69) -> 0 | ER69: =IF(EU69>0,SUM(EU69/ET69),0) -> 0 | ET69: =COUNTIFS($EY$2:$YD$2,'Prog Assums'!$B$130,$EY69:$YD69,">0") -> 0 | EU69: =SUMIF($EY$2:$YD$2,'Prog Assums'!$B$130,$EY69:$YD69) -> 0
A70: =VLOOKUP($D70,'Prog Assums'!$N$5:$AM$294,10, FALSE) -> DIN02 | C70: =VLOOKUP($D70,'Prog Assums'!$N$5:$AM$294,8, FALSE) -> DIN02 | D70: Informal dining spaces | M70: =IF(D70="","",_xlfn.XLOOKUP(D70,'Prog Assums'!$N$7:$N$221,'Prog Assums'!$AQ$7:$AQ$221,"")) -> Informal dining space | N70: =CONCATENATE(M70,S70) -> Informal dining space111 | O70: =IF(VLOOKUP(D70,'Prog Assums'!N$92:V$133,9,FALSE)>0,"retained","") ->  | Q70: =IF(S70>0,ROUND((S70-VLOOKUP(AU70,'Prog Assums'!$E$38:$I$54,2,FALSE))/VLOOKUP(AU70,'Prog Assums'!$E$38:$I$54,3,FALSE),0),"-") -> 99 | S70: =AI70 -> 111 | U70: =AK70 -> 1 | V70: =MAXA((S70*U70)-Y70,0) -> 111 | AA70: 0 | AC70: =IF(AK70>0,"recommended:","") -> recommended: | AF70: =IF(AK70>0,"Social spaces (sixth form)","-") -> Social spaces (sixth form) | AI70: =IF(K6>0,41+ROUND((K6*0.3)/7,0)*7,0) -> 111 | AK70: =IF(K6>0,1,0) -> 1 | AN70: =IF(U70>0,VLOOKUP(D70,'Prog Assums'!$N$6:$S$169,6,FALSE),0) -> 0 | AQ70: 0 | AS70: 111 | AU70: =VLOOKUP(D70,'Prog Assums'!$N$92:$O$99,2,FALSE) -> A | AV70: =IF(AD70>1,DK70,0) -> 0 | BE70: =IF(ISERROR(AVERAGEIF('Individual Spaces'!F:F,'Secondary SoA'!$N70,'Individual Spaces'!K:K))=TRUE,"",AVERAGEIF('Individual Spaces'!F:F,'Secondary SoA'!$N70,'Individual Spaces'!K:K)) ->  | BG70: =COUNTIF('Individual Spaces'!F:F,'Secondary SoA'!$N70) -> 1 | BH70: =IF(ISERROR(BE70*BG70)=TRUE,"",BE70*BG70) ->  | BJ70: =IF(ISERROR(BH70-Y70-V70)=TRUE,"",BH70-Y70-V70) ->  | BK70: 0 | BM70: =SUM(BO70:CK70) -> 1 | CK70: =U70 -> 1 | CM70: =IF($S70>0,VLOOKUP($D70,'Prog Assums'!$N$5:$AM$294,12, FALSE),"") -> 0 | CN70: =IF($S70>0,VLOOKUP($D70,'Prog Assums'!$N$5:$AM$294,13, FALSE),"") -> 0 | CQ70: =IF(S70>90,2.5,1.5) -> 2.5 | CR70: =IF(S70>90,-20,4) -> -20 | CS70: 65 | CT70: =IF(CS70>14,IF(CS70<31,CS70,ROUNDDOWN(CS70/30,0)*30),0) -> 60 | CU70: =IF(S70>0,(V70/S70)*CT70,0) -> 60 | CV70: =IF(CS70>0,(V70/S70)*CS70,0)-CU70 -> 5 | CW70: 65 | CX70: 60 | CY70: 60 | CZ70: 5 | DB70: =20+ROUND(K8/60,0) -> 39 | DN70: =VLOOKUP($C70,'Prog Assums'!$U$5:$AI$293,11,FALSE) -> 12 | DO70: =VLOOKUP($C70,'Prog Assums'!$U$5:$AI$293,12,FALSE) -> - | DP70: =IF(VLOOKUP($C70,'Prog Assums'!$U$5:$AI$293,13,FALSE)="AS SOA",$AI70,VLOOKUP($C70,'Prog Assums'!$U$5:$AI$293,13,FALSE)) -> 55 | DQ70: =VLOOKUP($C70,'Prog Assums'!$U$5:$AI$293,14,FALSE) -> - | DR70: =VLOOKUP($C70,'Prog Assums'!$U$5:$AI$293,15,FALSE) -> 600 | DS70: =IF(ISERROR((SUM($EB70,$EH70,$EN70,$EU70)/SUM($EA70,$EG70,$EM70,$ET70)-$S70))=TRUE,0,IF($U70=0,0,(SUM($EB70,$EH70,$EN70,$EU70)/SUM($EA70,$EG70,$EM70,$ET70)-$S70))) -> 0 | DU70: =SUM(EA70,EG70,EM70,ET70)-U70 -> -1 | DV70: =SUM($EU70,$EN70,$EH70,$EB70)-$V70-$Y70 -> -111 | DY70: 0 | EB70: =EA70*DY70 -> 0 | EE70: 0 | EG70: 0 | EH70: =EG70*EE70 -> 0 | EK70: =IF(EN70>0,SUM(EN70/EM70),0) -> 0 | EM70: =COUNTIFS($EY$2:$YD$2,"Refurb",$EY70:$YD70,">0") -> 0 | EN70: =SUMIF($EY$2:$YD$2,"Refurb",$EY70:$YD70) -> 0 | ER70: =IF(EU70>0,SUM(EU70/ET70),0) -> 0 | ET70: =COUNTIFS($EY$2:$YD$2,'Prog Assums'!$B$130,$EY70:$YD70,">0") -> 0 | EU70: =SUMIF($EY$2:$YD$2,'Prog Assums'!$B$130,$EY70:$YD70) -> 0
A71: =VLOOKUP($D71,'Prog Assums'!$N$5:$AM$294,10, FALSE) -> - | C71: =VLOOKUP($D71,'Prog Assums'!$N$5:$AM$294,8, FALSE) -> - | D71: - | M71: =IF(D71="","",_xlfn.XLOOKUP(D71,'Prog Assums'!$N$7:$N$221,'Prog Assums'!$AQ$7:$AQ$221,"")) -> - | N71: =CONCATENATE(M71,S71) -> - | O71: =IF(VLOOKUP(D71,'Prog Assums'!N$92:V$133,9,FALSE)>0,"retained","") ->  | Q71: =IF(S71>0,ROUND((S71-VLOOKUP(AU71,'Prog Assums'!$E$38:$I$54,2,FALSE))/VLOOKUP(AU71,'Prog Assums'!$E$38:$I$54,3,FALSE),0),"-") -> - | V71: =MAXA((S71*U71)-Y71,0) -> 0 | AA71: 0 | AN71: =IF(U71>0,VLOOKUP(D71,'Prog Assums'!$N$6:$S$169,6,FALSE),0) -> 0 | AS71: 0 | AU71: =VLOOKUP(D71,'Prog Assums'!$N$92:$O$99,2,FALSE) -> - | BE71: =IF(ISERROR(AVERAGEIF('Individual Spaces'!F:F,'Secondary SoA'!$N71,'Individual Spaces'!K:K))=TRUE,"",AVERAGEIF('Individual Spaces'!F:F,'Secondary SoA'!$N71,'Individual Spaces'!K:K)) ->  | BG71: =COUNTIF('Individual Spaces'!F:F,'Secondary SoA'!$N71) -> 0 | BH71: =IF(ISERROR(BE71*BG71)=TRUE,"",BE71*BG71) ->  | BJ71: =IF(ISERROR(BH71-Y71-V71)=TRUE,"",BH71-Y71-V71) ->  | BK71: 0 | BM71: =SUM(BO71:CK71) -> 0 | CK71: =U71 -> 0 | CM71: =IF($S71>0,VLOOKUP($D71,'Prog Assums'!$N$5:$AM$294,12, FALSE),"") ->  | CN71: =IF($S71>0,VLOOKUP($D71,'Prog Assums'!$N$5:$AM$294,13, FALSE),"") ->  | CQ71: =IF(S71>90,2.5,1.5) -> 1.5 | CR71: =IF(S71>90,-20,4) -> 4 | CS71: 0 | CT71: =IF(CS71>14,IF(CS71<31,CS71,ROUNDDOWN(CS71/30,0)*30),0) -> 0 | CU71: =IF(S71>0,(V71/S71)*CT71,0) -> 0 | CV71: =IF(CS71>0,(V71/S71)*CS71,0)-CU71 -> 0 | CW71: 0 | CX71: 0 | CY71: 0 | CZ71: 0 | DN71: =VLOOKUP($C71,'Prog Assums'!$U$5:$AI$293,11,FALSE) -> 0 | DO71: =VLOOKUP($C71,'Prog Assums'!$U$5:$AI$293,12,FALSE) -> 0 | DP71: =IF(VLOOKUP($C71,'Prog Assums'!$U$5:$AI$293,13,FALSE)="AS SOA",$AI71,VLOOKUP($C71,'Prog Assums'!$U$5:$AI$293,13,FALSE)) -> 0 | DQ71: =VLOOKUP($C71,'Prog Assums'!$U$5:$AI$293,14,FALSE) -> 0 | DR71: =VLOOKUP($C71,'Prog Assums'!$U$5:$AI$293,15,FALSE) -> 0 | DS71: =IF(ISERROR((SUM($EB71,$EH71,$EN71,$EU71)/SUM($EA71,$EG71,$EM71,$ET71)-$S71))=TRUE,0,IF($U71=0,0,(SUM($EB71,$EH71,$EN71,$EU71)/SUM($EA71,$EG71,$EM71,$ET71)-$S71))) -> 0 | DU71: =SUM(EA71,EG71,EM71,ET71)-U71 -> 0 | DV71: =SUM($EU71,$EN71,$EH71,$EB71)-$V71-$Y71 -> 0 | DY71: 0 | EA71: 0 | EB71: =EA71*DY71 -> 0 | EE71: 0 | EG71: 0 | EH71: =EG71*EE71 -> 0 | EK71: =IF(EN71>0,SUM(EN71/EM71),0) -> 0 | EM71: =COUNTIFS($EY$2:$YD$2,"Refurb",$EY71:$YD71,">0") -> 0 | EN71: =SUMIF($EY$2:$YD$2,"Refurb",$EY71:$YD71) -> 0 | ER71: =IF(EU71>0,SUM(EU71/ET71),0) -> 0 | ET71: =COUNTIFS($EY$2:$YD$2,'Prog Assums'!$B$130,$EY71:$YD71,">0") -> 0 | EU71: =SUMIF($EY$2:$YD$2,'Prog Assums'!$B$130,$EY71:$YD71) -> 0
A72: =VLOOKUP($D72,'Prog Assums'!$N$5:$AM$294,10, FALSE) -> - | C72: =VLOOKUP($D72,'Prog Assums'!$N$5:$AM$294,8, FALSE) -> - | D72: - | M72: =IF(D72="","",_xlfn.XLOOKUP(D72,'Prog Assums'!$N$7:$N$221,'Prog Assums'!$AQ$7:$AQ$221,"")) -> - | N72: =CONCATENATE(M72,S72) -> - | O72: =IF(VLOOKUP(D72,'Prog Assums'!N$92:V$133,9,FALSE)>0,"retained","") ->  | Q72: =IF(S72>0,ROUND((S72-VLOOKUP(AU72,'Prog Assums'!$E$38:$I$54,2,FALSE))/VLOOKUP(AU72,'Prog Assums'!$E$38:$I$54,3,FALSE),0),"-") -> - | V72: =MAXA((S72*U72)-Y72,0) -> 0 | AA72: 0 | AN72: =IF(U72>0,VLOOKUP(D72,'Prog Assums'!$N$6:$S$169,6,FALSE),0) -> 0 | AQ72: =IF(K6>0,50+ROUND(K6*0.3,0),0) -> 118 | AS72: 0 | AU72: =VLOOKUP(D72,'Prog Assums'!$N$92:$O$99,2,FALSE) -> - | AV72: =IF(AD72>1,DK72,0) -> 0 | BE72: =IF(ISERROR(AVERAGEIF('Individual Spaces'!F:F,'Secondary SoA'!$N72,'Individual Spaces'!K:K))=TRUE,"",AVERAGEIF('Individual Spaces'!F:F,'Secondary SoA'!$N72,'Individual Spaces'!K:K)) ->  | BG72: =COUNTIF('Individual Spaces'!F:F,'Secondary SoA'!$N72) -> 0 | BH72: =IF(ISERROR(BE72*BG72)=TRUE,"",BE72*BG72) ->  | BJ72: =IF(ISERROR(BH72-Y72-V72)=TRUE,"",BH72-Y72-V72) ->  | BK72: 0 | BM72: =SUM(BO72:CK72) -> 0 | CK72: 0 | CM72: =IF($S72>0,VLOOKUP($D72,'Prog Assums'!$N$5:$AM$294,12, FALSE),"") ->  | CN72: =IF($S72>0,VLOOKUP($D72,'Prog Assums'!$N$5:$AM$294,13, FALSE),"") ->  | CQ72: 1.5 | CR72: 4 | CS72: 0 | CT72: =IF(CS72>14,IF(CS72<31,CS72,ROUNDDOWN(CS72/30,0)*30),0) -> 0 | CU72: =IF(S72>0,(V72/S72)*CT72,0) -> 0 | CV72: =IF(CS72>0,(V72/S72)*CS72,0)-CU72 -> 0 | CW72: 0 | CX72: 0 | CY72: 0 | CZ72: 0 | DB72: =IF(K6>0,50+ROUND(K6*0.3,0),0) -> 118 | DE72: =IF(K$6>0,1,0) -> 1 | DN72: =VLOOKUP($C72,'Prog Assums'!$U$5:$AI$293,11,FALSE) -> 0 | DO72: =VLOOKUP($C72,'Prog Assums'!$U$5:$AI$293,12,FALSE) -> 0 | DP72: =IF(VLOOKUP($C72,'Prog Assums'!$U$5:$AI$293,13,FALSE)="AS SOA",$AI72,VLOOKUP($C72,'Prog Assums'!$U$5:$AI$293,13,FALSE)) -> 0 | DQ72: =VLOOKUP($C72,'Prog Assums'!$U$5:$AI$293,14,FALSE) -> 0 | DR72: =VLOOKUP($C72,'Prog Assums'!$U$5:$AI$293,15,FALSE) -> 0 | DS72: =IF(ISERROR((SUM($EB72,$EH72,$EN72,$EU72)/SUM($EA72,$EG72,$EM72,$ET72)-$S72))=TRUE,0,IF($U72=0,0,(SUM($EB72,$EH72,$EN72,$EU72)/SUM($EA72,$EG72,$EM72,$ET72)-$S72))) -> 0 | DU72: =SUM(EA72,EG72,EM72,ET72)-U72 -> 0 | DV72: =SUM($EU72,$EN72,$EH72,$EB72)-$V72-$Y72 -> 0 | DY72: 0 | EA72: 0 | EB72: =EA72*DY72 -> 0 | EE72: 0 | EG72: 0 | EH72: =EG72*EE72 -> 0 | EK72: =IF(EN72>0,SUM(EN72/EM72),0) -> 0 | EM72: =COUNTIFS($EY$2:$YD$2,"Refurb",$EY72:$YD72,">0") -> 0 | EN72: =SUMIF($EY$2:$YD$2,"Refurb",$EY72:$YD72) -> 0 | ER72: =IF(EU72>0,SUM(EU72/ET72),0) -> 0 | ET72: =COUNTIFS($EY$2:$YD$2,'Prog Assums'!$B$130,$EY72:$YD72,">0") -> 0 | EU72: =SUMIF($EY$2:$YD$2,'Prog Assums'!$B$130,$EY72:$YD72) -> 0
D73: TOTAL AREA | L73: BB103 range | M73: BB103 range | N73: BB103 range | O73: =ROUND(IF(K$4>0,200,300)+IF(K$6>0,75,0)+(K$4*0.3)+((K$5+K$6)*0.6),0) -> 1050 | P73: to | Q73: =ROUND(IF(K$4>0,450,600)+IF(K$6>0,50,0)+(K$4*0.35)+(K5*0.7)+(K6*0.8),0) -> 1460 | V73: =SUM(V64:V72) -> 1266 | Y73: =SUM(Y64:Y72) -> 0 | AA73: =SUM(AA64:AA72) -> 0 | AC73: =IF(V73<O73,"ERROR: total area for category is too low",IF(V73>Q73,"WARNING: total area for category is high","OK: area within BB103 range")) -> OK: area within BB103 range | AI73: =SUM(AS64:AS72) -> 1266 | AK73: =SUM(AT64:AT72) -> 0 | BH73: =SUM(BH64:BH72) -> 0 | BJ73: =BH73-Y73-V73 -> -1266 | BO73: =SUM(BO64:BO72) -> 0 | BQ73: =SUM(BQ64:BQ72) -> 0 | BS73: =SUM(BS64:BS72) -> 0 | BU73: =SUM(BU64:BU72) -> 0 | BW73: =SUM(BW64:BW72) -> 0 | BY73: =SUM(BY64:BY72) -> 0 | CA73: =SUM(CA64:CA72) -> 0 | CC73: =SUM(CC64:CC72) -> 2 | CE73: =SUM(CE64:CE72) -> 2 | CG73: =SUM(CG64:CG72) -> 0 | CI73: =SUM(CI64:CI72) -> 0 | CK73: =SUM(CK64:CK72) -> 1 | CM73: =IF($S73>0,VLOOKUP($D73,'Prog Assums'!$N$5:$AM$294,12, FALSE),"") ->  | CN73: =IF($S73>0,VLOOKUP($D73,'Prog Assums'!$N$5:$AM$294,13, FALSE),"") ->  | DV73: =SUM(EU73,EN73,EH73,EB73)-SUM(Y73,V73) -> -1266 | EB73: =SUM(EB63:EB72) -> 0 | EH73: =SUM(EH63:EH72) -> 0 | EN73: =SUM(EN63:EN72) -> 0 | EU73: =SUM(EU63:EU72) -> 0
D74: Total timetabled spaces | K74: =IF(K19+K26+K31+K38+K43+K49+K58>0,K19+K26+K31+K38+K43+K49+K58,"") ->  | U74: =U19+U26+U31+U38+U43+U49+U58 -> 56 | AI74: =AK19+AK26+AK31+AK38+AK43+AK49+AK58 -> 56 | AR74: =ROUND(K8*7/150,0)+1 -> 54 | BG74: =BG19+BG26+BG31+BG38+BG43+BG49+BG58 -> 56 | BK74: =BG74-U74 -> 0 | BM74: =SUM(BO74:CK74) -> 56 | BO74: =SUM(BO61:BO67) -> 9 | BQ74: =SUM(BQ61:BQ67) -> 9 | BS74: =SUM(BS61:BS67) -> 7 | BU74: =SUM(BU61:BU67) -> 5 | BW74: =SUM(BW61:BW67) -> 4 | BY74: =SUM(BY61:BY67) -> 10 | CA74: =SUM(CA61:CA67) -> 7 | CC74: =SUM(CC61:CC67) -> 3 | CE74: =SUM(CE61:CE67) -> 2 | CG74: =SUM(CG61:CG67) -> 0 | CI74: =SUM(CI61:CI67) -> 0 | CK74: =SUM(CK61:CK67) -> 0 | CM74: =IF($S74>0,VLOOKUP($D74,'Prog Assums'!$N$5:$AM$294,12, FALSE),"") ->  | CN74: =IF($S74>0,VLOOKUP($D74,'Prog Assums'!$N$5:$AM$294,13, FALSE),"") ->  | DA74: =ROUND(K5*7/150,0)+IF(K5>450,1,0) -> 43 | DB74: =IF(K6>0,ROUND(K6*8/150,0)+IF(K6<75,2,1),0) -> 13 | DC74: =DD20+DD27+DD32+DD59+DD50+DD44+DD64+DD65+DD66 -> 9 | DD74: =DD18+DD26+DD31+DD38+DD43+DD49+DD58 -> 43 | DE74: 13 | DF74: 43 | DG74: 43 | DH74: 43 | DI74: 43 | DJ74: 13 | DK74: 13 | DL74: 13 | DM74: 14 | DU74: =SUM(EA74,EG74,EM74,ET74)-U74 -> -56 | EA74: =SUM(EA58+EA49+EA43+EA38+EA31+EA26+EA19) -> 0 | EG74: =SUM(EG58+EG49+EG43+EG38+EG31+EG26+EG19) -> 0 | EM74: =SUM(EM58+EM49+EM43+EM38+EM31+EM26+EM19) -> 0 | ET74: =SUM(ET58+ET49+ET43+ET38+ET31+ET26+ET19) -> 0
D75: Learning Resource Areas | CM75: =IF($S75>0,VLOOKUP($D75,'Prog Assums'!$N$5:$AM$294,12, FALSE),"") ->  | CN75: =IF($S75>0,VLOOKUP($D75,'Prog Assums'!$N$5:$AM$294,13, FALSE),"") -> 
A76: =VLOOKUP($D76,'Prog Assums'!$N$5:$AM$294,10, FALSE) -> LIB05 | C76: =VLOOKUP($D76,'Prog Assums'!$N$5:$AM$294,8, FALSE) -> LIB05 | D76: Library resource centres (LRC) | M76: =IF(D76="","",_xlfn.XLOOKUP(D76,'Prog Assums'!$N$7:$N$221,'Prog Assums'!$AQ$7:$AQ$221,"")) -> Library resource centre (LRC) | N76: =CONCATENATE(M76,S76) -> Library resource centre (LRC)146 | Q76: =ROUNDDOWN((S76-VLOOKUP(AU76,'Prog Assums'!$E$38:$I$54,2,FALSE))/VLOOKUP(AU76,'Prog Assums'!$E$38:$I$54,3,FALSE),0) -> 55 | S76: =AI76 -> 146 | U76: =AK76 -> 1 | V76: =MAXA((S76*U76)-Y76,0) -> 146 | AA76: =IF(O76="retained",V76+Y76,IF(O76="refurb'ed",V76+Y76,0)) -> 0 | AC76: =ROUND(9+(K8*0.12),0) -> 144 | AD76: m2 minimum recommended | AI76: =MAXA((ROUNDUP(AC76/7,0)*7)-1,O95-SUM(AS77:AS94)) -> 146 | AK76: 1 | AN76: =IF(U76>0,VLOOKUP(D76,'Prog Assums'!$N$6:$S$169,6,FALSE),0) -> 0 | AQ76: =20+(K8*0.1) -> 132.5 | AR76: =50+(K8*0.15) -> 218.75 | AS76: 146 | AU76: F | BE76: =IF(ISERROR(AVERAGEIF('Individual Spaces'!F:F,'Secondary SoA'!$N76,'Individual Spaces'!K:K))=TRUE,"",AVERAGEIF('Individual Spaces'!F:F,'Secondary SoA'!$N76,'Individual Spaces'!K:K)) ->  | BG76: =COUNTIF('Individual Spaces'!F:F,'Secondary SoA'!$N76) -> 1 | BH76: =IF(ISERROR(BE76*BG76)=TRUE,"",BE76*BG76) ->  | BJ76: =IF(ISERROR(BH76-Y76-V76)=TRUE,"",BH76-Y76-V76) ->  | BK76: =BG76-U76 -> 0 | BM76: =SUM(BO76:CK76) -> 1 | CK76: =U76 -> 1 | CM76: =IF($S76>0,VLOOKUP($D76,'Prog Assums'!$N$5:$AM$294,12, FALSE),"") -> [41m2] | CN76: =IF($S76>0,VLOOKUP($D76,'Prog Assums'!$N$5:$AM$294,13, FALSE),"") -> 0 | CQ76: =IF(S76>120,3,2) -> 3 | CR76: =IF(S76>120,-16,4) -> -16 | CS76: 65 | CT76: =IF(CS76>14,IF(CS76<31,CS76,ROUNDDOWN(CS76/30,0)*30),0) -> 60 | CU76: =IF(S76>0,(V76/S76)*CT76,0) -> 60 | CV76: =IF(CS76>0,(V76/S76)*CS76,0)-CU76 -> 5 | CW76: =IF(AK76=0,0,MAXA(1,ROUNDUP((AI76/CQ76)-CR76,0))) -> 65 | CX76: =IF(CW76>14,IF(CW76<31,CW76,ROUNDDOWN(CW76/30,0)*30),0) -> 60 | CY76: =IF(AK76>0,(AS76/AI76)*CX76,0) -> 60 | CZ76: =IF(CW76>0,(AS76/AI76)*CW76,0)-CY76 -> 5 | DA76: N/10 | DB76: =ROUND(9+($K8*0.12),0) -> 144 | DE76: add | DN76: =VLOOKUP($C76,'Prog Assums'!$U$5:$AI$293,11,FALSE) -> 12 | DO76: =VLOOKUP($C76,'Prog Assums'!$U$5:$AI$293,12,FALSE) -> - | DP76: =IF(VLOOKUP($C76,'Prog Assums'!$U$5:$AI$293,13,FALSE)="AS SOA",$AI76,VLOOKUP($C76,'Prog Assums'!$U$5:$AI$293,13,FALSE)) -> 146 | DQ76: =VLOOKUP($C76,'Prog Assums'!$U$5:$AI$293,14,FALSE) -> - | DR76: =VLOOKUP($C76,'Prog Assums'!$U$5:$AI$293,15,FALSE) -> 250 | DS76: =IF(ISERROR((SUM($EB76,$EH76,$EN76,$EU76)/SUM($EA76,$EG76,$EM76,$ET76)-$S76))=TRUE,0,IF($U76=0,0,(SUM($EB76,$EH76,$EN76,$EU76)/SUM($EA76,$EG76,$EM76,$ET76)-$S76))) -> 0 | DU76: =SUM(EA76,EG76,EM76,ET76)-U76 -> -1 | DV76: =SUM($EU76,$EN76,$EH76,$EB76)-$V76-$Y76 -> -146 | DY76: 0 | EB76: =EA76*DY76 -> 0 | EE76: 0 | EG76: 0 | EH76: =EG76*EE76 -> 0 | EK76: =IF(EN76>0,SUM(EN76/EM76),0) -> 0 | EM76: =COUNTIFS($EY$2:$YD$2,"Refurb",$EY76:$YD76,">0") -> 0 | EN76: =SUMIF($EY$2:$YD$2,"Refurb",$EY76:$YD76) -> 0 | ER76: =IF(EU76>0,SUM(EU76/ET76),0) -> 0 | ET76: =COUNTIFS($EY$2:$YD$2,'Prog Assums'!$B$130,$EY76:$YD76,">0") -> 0 | EU76: =SUMIF($EY$2:$YD$2,'Prog Assums'!$B$130,$EY76:$YD76) -> 0
A77: =VLOOKUP($D77,'Prog Assums'!$N$5:$AM$294,10, FALSE) -> LIB07 | C77: =VLOOKUP($D77,'Prog Assums'!$N$5:$AM$294,8, FALSE) -> LIB06 | D77: =IF(K6>0,"Study spaces, rooms (sixth form)","-") -> Study spaces, rooms (sixth form) | M77: =IF(D77="","",_xlfn.XLOOKUP(D77,'Prog Assums'!$N$7:$N$221,'Prog Assums'!$AQ$7:$AQ$221,"")) -> Study space, room (sixth form) | N77: =CONCATENATE(M77,S77) -> Study space, room (sixth form)69 | O77: =IF(VLOOKUP(D77,'Prog Assums'!N$128:V$174,9,FALSE)>0,"retained","") ->  | Q77: =IF(S77>0,ROUNDDOWN((S77-VLOOKUP(AU77,'Prog Assums'!$E$38:$I$54,2,FALSE))/VLOOKUP(AU77,'Prog Assums'!$E$38:$I$54,3,FALSE),0),"-") -> 41 | S77: =AI77 -> 69 | U77: =AK77 -> 1 | V77: =MAXA((S77*U77)-Y77,0) -> 69 | AA77: =IF(O77="retained",V77+Y77,IF(O77="refurb'ed",V77+Y77,0)) -> 0 | AC77: =IF(K6>0,ROUND(20+(K6*0.2),0),0) -> 65 | AD77: =IF(K6>0,"m2 minimum recommended","options for further study areas") -> m2 minimum recommended | AI77: =IF(K6>0,-DE6+ROUNDUP((AC77+1)/7,0)*7,0) -> 69 | AK77: =DE77 -> 1 | AN77: =IF(U77>0,VLOOKUP(D77,'Prog Assums'!$N$6:$S$169,6,FALSE),0) -> 0 | AQ77: =ROUNDDOWN(VLOOKUP(AU77,'Prog Assums'!$E$38:$I$54,2,FALSE)+(AP77*VLOOKUP(AU77,'Prog Assums'!$E$38:$I$54,3,FALSE)),0) -> 2 | AR77: =ROUNDUP(VLOOKUP(AU77,'Prog Assums'!$E$38:$I$54,4,FALSE)+(AP77*VLOOKUP(AU77,'Prog Assums'!$E$38:$I$54,5,FALSE)),0) -> 4 | AS77: 69 | AU77: =VLOOKUP(D77,'Prog Assums'!$N$132:$O$172,2,FALSE) -> B | BE77: =IF(ISERROR(AVERAGEIF('Individual Spaces'!F:F,'Secondary SoA'!$N77,'Individual Spaces'!K:K))=TRUE,"",AVERAGEIF('Individual Spaces'!F:F,'Secondary SoA'!$N77,'Individual Spaces'!K:K)) ->  | BG77: =COUNTIF('Individual Spaces'!F:F,'Secondary SoA'!$N77) -> 1 | BH77: =IF(ISERROR(BE77*BG77)=TRUE,"",BE77*BG77) ->  | BJ77: =IF(ISERROR(BH77-Y77-V77)=TRUE,"",BH77-Y77-V77) ->  | BK77: 0 | BM77: =SUM(BO77:CK77) -> 1 | CK77: =U77 -> 1 | CM77: =IF($S77>0,VLOOKUP($D77,'Prog Assums'!$N$5:$AM$294,12, FALSE),"") -> 9m2 for up to 4 | CN77: =IF($S77>0,VLOOKUP($D77,'Prog Assums'!$N$5:$AM$294,13, FALSE),"") -> 0 | CQ77: =IF(S77>120,3,2) -> 2 | CR77: =IF(S77>120,-16,4) -> 4 | CS77: 31 | CT77: =IF(CS77>14,IF(CS77<31,CS77,ROUNDDOWN(CS77/30,0)*30),0) -> 30 | CU77: =IF(S77>0,(V77/S77)*CT77,0) -> 30 | CV77: =IF(CS77>0,(V77/S77)*CS77,0)-CU77 -> 1 | CW77: 31 | CX77: 30 | CY77: 30 | CZ77: 1 | DA77: =ROUND(K6/5,0) -> 45 | DB77: =ROUND(($DE6*25)+($K6*0.2),0) -> 70 | DE77: =DE6 -> 1 | DN77: =VLOOKUP($C77,'Prog Assums'!$U$5:$AI$293,11,FALSE) -> 12 | DO77: =VLOOKUP($C77,'Prog Assums'!$U$5:$AI$293,12,FALSE) -> - | DP77: =IF(VLOOKUP($C77,'Prog Assums'!$U$5:$AI$293,13,FALSE)="AS SOA",$AI77,VLOOKUP($C77,'Prog Assums'!$U$5:$AI$293,13,FALSE)) -> 69 | DQ77: =VLOOKUP($C77,'Prog Assums'!$U$5:$AI$293,14,FALSE) -> - | DR77: =VLOOKUP($C77,'Prog Assums'!$U$5:$AI$293,15,FALSE) -> 250 | DS77: =IF(ISERROR((SUM($EB77,$EH77,$EN77,$EU77)/SUM($EA77,$EG77,$EM77,$ET77)-$S77))=TRUE,0,IF($U77=0,0,(SUM($EB77,$EH77,$EN77,$EU77)/SUM($EA77,$EG77,$EM77,$ET77)-$S77))) -> 0 | DU77: =SUM(EA77,EG77,EM77,ET77)-U77 -> -1 | DV77: =SUM($EU77,$EN77,$EH77,$EB77)-$V77-$Y77 -> -69 | DY77: 0 | EA77: 0 | EB77: =EA77*DY77 -> 0 | EE77: 0 | EG77: 0 | EH77: =EG77*EE77 -> 0 | EK77: =IF(EN77>0,SUM(EN77/EM77),0) -> 0 | EM77: =COUNTIFS($EY$2:$YD$2,"Refurb",$EY77:$YD77,">0") -> 0 | EN77: =SUMIF($EY$2:$YD$2,"Refurb",$EY77:$YD77) -> 0 | ER77: =IF(EU77>0,SUM(EU77/ET77),0) -> 0 | ET77: =COUNTIFS($EY$2:$YD$2,'Prog Assums'!$B$130,$EY77:$YD77,">0") -> 0 | EU77: =SUMIF($EY$2:$YD$2,'Prog Assums'!$B$130,$EY77:$YD77) -> 0
A78: =VLOOKUP($D78,'Prog Assums'!$N$5:$AM$294,10, FALSE) -> - | C78: =VLOOKUP($D78,'Prog Assums'!$N$5:$AM$294,8, FALSE) -> - | D78: - | M78: =IF(D78="","",_xlfn.XLOOKUP(D78,'Prog Assums'!$N$7:$N$221,'Prog Assums'!$AQ$7:$AQ$221,"")) -> - | N78: =CONCATENATE(M78,S78) -> - | O78: =IF(VLOOKUP(D78,'Prog Assums'!N$128:V$174,9,FALSE)>0,"retained","") ->  | Q78: =IF(S78>0,ROUNDDOWN((S78-VLOOKUP(AU78,'Prog Assums'!$E$38:$I$54,2,FALSE))/VLOOKUP(AU78,'Prog Assums'!$E$38:$I$54,3,FALSE),0),"-") -> - | V78: =MAXA((S78*U78)-Y78,0) -> 0 | AA78: =IF(O78="retained",V78+Y78,IF(O78="refurb'ed",V78+Y78,0)) -> 0 | AN78: =IF(U78>0,VLOOKUP(D78,'Prog Assums'!$N$6:$S$169,6,FALSE),0) -> 0 | AO78: =IF(O78="existing","E","") ->  | AQ78: =ROUNDDOWN(VLOOKUP(AU78,'Prog Assums'!$E$38:$I$54,2,FALSE)+(AP78*VLOOKUP(AU78,'Prog Assums'!$E$38:$I$54,3,FALSE)),0) ->  | AR78: =ROUNDUP(VLOOKUP(AU78,'Prog Assums'!$E$38:$I$54,4,FALSE)+(AP78*VLOOKUP(AU78,'Prog Assums'!$E$38:$I$54,5,FALSE)),0) ->  | AS78: =MAXA((AI78*AK78)-AT78,0) -> 0 | AU78: =VLOOKUP(D78,'Prog Assums'!$N$132:$O$172,2,FALSE) -> 0 | BE78: =IF(ISERROR(AVERAGEIF('Individual Spaces'!F:F,'Secondary SoA'!$N78,'Individual Spaces'!K:K))=TRUE,"",AVERAGEIF('Individual Spaces'!F:F,'Secondary SoA'!$N78,'Individual Spaces'!K:K)) ->  | BG78: =COUNTIF('Individual Spaces'!F:F,'Secondary SoA'!$N78) -> 0 | BH78: =IF(ISERROR(BE78*BG78)=TRUE,"",BE78*BG78) ->  | BJ78: =IF(ISERROR(BH78-Y78-V78)=TRUE,"",BH78-Y78-V78) ->  | BK78: =BG78-U78 -> 0 | BM78: =SUM(BO78:CK78) -> 0 | CK78: =U78 -> 0 | CM78: =IF($S78>0,VLOOKUP($D78,'Prog Assums'!$N$5:$AM$294,12, FALSE),"") ->  | CN78: =IF($S78>0,VLOOKUP($D78,'Prog Assums'!$N$5:$AM$294,13, FALSE),"") ->  | CQ78: =IF(S78>120,3,2) -> 2 | CR78: =IF(S78>120,-16,4) -> 4 | CS78: =IF(S78=0,0,MAXA(1,ROUNDUP((S78/CQ78)-CR78,0))) -> 0 | CT78: =IF(CS78>14,IF(CS78<31,CS78,ROUNDDOWN(CS78/30,0)*30),0) -> 0 | CU78: =IF(S78>0,(V78/S78)*CT78,0) -> 0 | CV78: =IF(CS78>0,(V78/S78)*CS78,0)-CU78 -> 0 | CW78: =IF(AK78=0,0,MAXA(1,ROUNDUP((AI78/CQ78)-CR78,0))) -> 0 | CX78: =IF(CW78>14,IF(CW78<31,CW78,ROUNDDOWN(CW78/30,0)*30),0) -> 0 | CY78: =IF(AK78>0,(AS78/AI78)*CX78,0) -> 0 | CZ78: =IF(CW78>0,(AS78/AI78)*CW78,0)-CY78 -> 0 | DA78: =ROUND(K6/5,0) -> 45 | DN78: =VLOOKUP($C78,'Prog Assums'!$U$5:$AI$293,11,FALSE) -> 0 | DO78: =VLOOKUP($C78,'Prog Assums'!$U$5:$AI$293,12,FALSE) -> 0 | DP78: =IF(VLOOKUP($C78,'Prog Assums'!$U$5:$AI$293,13,FALSE)="AS SOA",$AI78,VLOOKUP($C78,'Prog Assums'!$U$5:$AI$293,13,FALSE)) -> 0 | DQ78: =VLOOKUP($C78,'Prog Assums'!$U$5:$AI$293,14,FALSE) -> 0 | DR78: =VLOOKUP($C78,'Prog Assums'!$U$5:$AI$293,15,FALSE) -> 0 | DS78: =IF(ISERROR((SUM($EB78,$EH78,$EN78,$EU78)/SUM($EA78,$EG78,$EM78,$ET78)-$S78))=TRUE,0,IF($U78=0,0,(SUM($EB78,$EH78,$EN78,$EU78)/SUM($EA78,$EG78,$EM78,$ET78)-$S78))) -> 0 | DU78: =SUM(EA78,EG78,EM78,ET78)-U78 -> 0 | DV78: =SUM($EU78,$EN78,$EH78,$EB78)-$V78-$Y78 -> 0 | DY78: 0 | EA78: 0 | EB78: =EA78*DY78 -> 0 | EE78: 0 | EG78: 0 | EH78: =EG78*EE78 -> 0 | EK78: =IF(EN78>0,SUM(EN78/EM78),0) -> 0 | EM78: =COUNTIFS($EY$2:$YD$2,"Refurb",$EY78:$YD78,">0") -> 0 | EN78: =SUMIF($EY$2:$YD$2,"Refurb",$EY78:$YD78) -> 0 | ER78: =IF(EU78>0,SUM(EU78/ET78),0) -> 0 | ET78: =COUNTIFS($EY$2:$YD$2,'Prog Assums'!$B$130,$EY78:$YD78,">0") -> 0 | EU78: =SUMIF($EY$2:$YD$2,'Prog Assums'!$B$130,$EY78:$YD78) -> 0
A79: =VLOOKUP($D79,'Prog Assums'!$N$5:$AM$294,10, FALSE) -> - | C79: =VLOOKUP($D79,'Prog Assums'!$N$5:$AM$294,8, FALSE) -> - | D79: - | M79: =IF(D79="","",_xlfn.XLOOKUP(D79,'Prog Assums'!$N$7:$N$221,'Prog Assums'!$AQ$7:$AQ$221,"")) -> - | N79: =CONCATENATE(M79,S79) -> - | O79: =IF(VLOOKUP(D79,'Prog Assums'!N$128:V$174,9,FALSE)>0,"retained","") ->  | Q79: =IF(S79>0,ROUNDDOWN((S79-VLOOKUP(AU79,'Prog Assums'!$E$38:$I$54,2,FALSE))/VLOOKUP(AU79,'Prog Assums'!$E$38:$I$54,3,FALSE),0),"-") -> - | V79: =MAXA((S79*U79)-Y79,0) -> 0 | AA79: 0 | AN79: =IF(U79>0,VLOOKUP(D79,'Prog Assums'!$N$6:$S$169,6,FALSE),0) -> 0 | AQ79: =ROUNDDOWN(VLOOKUP(AU79,'Prog Assums'!$E$38:$I$54,2,FALSE)+(AP79*VLOOKUP(AU79,'Prog Assums'!$E$38:$I$54,3,FALSE)),0) ->  | AR79: =ROUNDUP(VLOOKUP(AU79,'Prog Assums'!$E$38:$I$54,4,FALSE)+(AP79*VLOOKUP(AU79,'Prog Assums'!$E$38:$I$54,5,FALSE)),0) ->  | AS79: 0 | AU79: =VLOOKUP(D79,'Prog Assums'!$N$132:$O$172,2,FALSE) -> 0 | BE79: =IF(ISERROR(AVERAGEIF('Individual Spaces'!F:F,'Secondary SoA'!$N79,'Individual Spaces'!K:K))=TRUE,"",AVERAGEIF('Individual Spaces'!F:F,'Secondary SoA'!$N79,'Individual Spaces'!K:K)) ->  | BG79: =COUNTIF('Individual Spaces'!F:F,'Secondary SoA'!$N79) -> 0 | BH79: =IF(ISERROR(BE79*BG79)=TRUE,"",BE79*BG79) ->  | BJ79: =IF(ISERROR(BH79-Y79-V79)=TRUE,"",BH79-Y79-V79) ->  | BK79: 0 | BM79: =SUM(BO79:CK79) -> 0 | CK79: =U79 -> 0 | CM79: =IF($S79>0,VLOOKUP($D79,'Prog Assums'!$N$5:$AM$294,12, FALSE),"") ->  | CN79: =IF($S79>0,VLOOKUP($D79,'Prog Assums'!$N$5:$AM$294,13, FALSE),"") ->  | CQ79: 2 | CR79: 4 | CS79: 0 | CT79: =IF(CS79>14,IF(CS79<31,CS79,ROUNDDOWN(CS79/30,0)*30),0) -> 0 | CU79: =IF(S79>0,(V79/S79)*CT79,0) -> 0 | CV79: =IF(CS79>0,(V79/S79)*CS79,0)-CU79 -> 0 | CW79: 0 | CX79: 0 | CY79: 0 | CZ79: 0 | DA79: =ROUND(K7/5,0) -> 0 | DN79: =VLOOKUP($C79,'Prog Assums'!$U$5:$AI$293,11,FALSE) -> 0 | DO79: =VLOOKUP($C79,'Prog Assums'!$U$5:$AI$293,12,FALSE) -> 0 | DP79: =IF(VLOOKUP($C79,'Prog Assums'!$U$5:$AI$293,13,FALSE)="AS SOA",$AI79,VLOOKUP($C79,'Prog Assums'!$U$5:$AI$293,13,FALSE)) -> 0 | DQ79: =VLOOKUP($C79,'Prog Assums'!$U$5:$AI$293,14,FALSE) -> 0 | DR79: =VLOOKUP($C79,'Prog Assums'!$U$5:$AI$293,15,FALSE) -> 0 | DS79: =IF(ISERROR((SUM($EB79,$EH79,$EN79,$EU79)/SUM($EA79,$EG79,$EM79,$ET79)-$S79))=TRUE,0,IF($U79=0,0,(SUM($EB79,$EH79,$EN79,$EU79)/SUM($EA79,$EG79,$EM79,$ET79)-$S79))) -> 0 | DU79: =SUM(EA79,EG79,EM79,ET79)-U79 -> 0 | DV79: =SUM($EU79,$EN79,$EH79,$EB79)-$V79-$Y79 -> 0 | DY79: 0 | EA79: 0 | EB79: =EA79*DY79 -> 0 | EE79: 0 | EG79: 0 | EH79: =EG79*EE79 -> 0 | EK79: =IF(EN79>0,SUM(EN79/EM79),0) -> 0 | EM79: =COUNTIFS($EY$2:$YD$2,"Refurb",$EY79:$YD79,">0") -> 0 | EN79: =SUMIF($EY$2:$YD$2,"Refurb",$EY79:$YD79) -> 0 | ER79: =IF(EU79>0,SUM(EU79/ET79),0) -> 0 | ET79: =COUNTIFS($EY$2:$YD$2,'Prog Assums'!$B$130,$EY79:$YD79,">0") -> 0 | EU79: =SUMIF($EY$2:$YD$2,'Prog Assums'!$B$130,$EY79:$YD79) -> 0
D80: Creative art | CM80: =IF($S80>0,VLOOKUP($D80,'Prog Assums'!$N$5:$AM$294,12, FALSE),"") ->  | CN80: =IF($S80>0,VLOOKUP($D80,'Prog Assums'!$N$5:$AM$294,13, FALSE),"") -> 
A81: =VLOOKUP($D81,'Prog Assums'!$N$5:$AM$294,10, FALSE) -> RES21 | C81: =VLOOKUP($D81,'Prog Assums'!$N$5:$AM$294,8, FALSE) -> RES21 | D81: Heavy practical resource (kiln) | M81: =IF(D81="","",_xlfn.XLOOKUP(D81,'Prog Assums'!$N$7:$N$221,'Prog Assums'!$AQ$7:$AQ$221,"")) -> Heavy practical resource (kiln) | N81: =CONCATENATE(M81,S81) -> Heavy practical resource (kiln)4 | Q81: - | S81: =VLOOKUP(D81,'Prog Assums'!N$5:U$271,5,FALSE) -> 4 | U81: =AK81 -> 1 | V81: =MAXA((S81*U81)-Y81,0) -> 4 | AA81: 0 | AC81: 4 | AD81: m2 minimum in new build | AI81: =IF(AK81>0,4,0) -> 4 | AK81: =IF(AK40+AK41>0,1,0) -> 1 | AN81: =IF(U81>0,VLOOKUP(D81,'Prog Assums'!$N$6:$S$169,6,FALSE),0) -> 0 | AQ81: 4 | AR81: 8 | AS81: 4 | AU81: =VLOOKUP(D81,'Prog Assums'!$N$132:$O$172,2,FALSE) -> - | BE81: =IF(ISERROR(AVERAGEIF('Individual Spaces'!F:F,'Secondary SoA'!$N81,'Individual Spaces'!K:K))=TRUE,"",AVERAGEIF('Individual Spaces'!F:F,'Secondary SoA'!$N81,'Individual Spaces'!K:K)) ->  | BG81: =COUNTIF('Individual Spaces'!F:F,'Secondary SoA'!$N81) -> 1 | BH81: =IF(ISERROR(BE81*BG81)=TRUE,"",BE81*BG81) ->  | BJ81: =IF(ISERROR(BH81-Y81-V81)=TRUE,"",BH81-Y81-V81) ->  | BK81: 0 | BM81: =SUM(BO81:CK81) -> 1 | CA81: =U81 -> 1 | CM81: =IF($S81>0,VLOOKUP($D81,'Prog Assums'!$N$5:$AM$294,12, FALSE),"") -> 4m2 | CN81: =IF($S81>0,VLOOKUP($D81,'Prog Assums'!$N$5:$AM$294,13, FALSE),"") -> - | CQ81: =VLOOKUP(D81,'Prog Assums'!$N$6:$Q$229,3,0) -> 3.5 | CR81: =VLOOKUP(D81,'Prog Assums'!$N$6:$Q$229,4,0) -> 4 | CS81: 1 | CT81: =IF(CS81>14,IF(CS81<31,CS81,ROUNDDOWN(CS81/30,0)*30),0) -> 0 | CU81: =IF(S81>0,(V81/S81)*CT81,0) -> 0 | CV81: =IF(CS81>0,(V81/S81)*CS81,0)-CU81 -> 1 | CW81: =IF(AK81=0,0,MAXA(1,ROUNDUP((AI81/CQ81)-CR81,0))) -> 1 | CX81: =IF(CW81>14,IF(CW81<31,CW81,ROUNDDOWN(CW81/30,0)*30),0) -> 0 | CY81: =IF(AK81>0,(AS81/AI81)*CX81,0) -> 0 | CZ81: =IF(CW81>0,(AS81/AI81)*CW81,0)-CY81 -> 1 | DA81: 1 | DB81: 4 | DD81: =HLOOKUP(AG$12,$DF$15:$DI$165,66,FALSE) -> 0 | DF81: =IF(DF42>0,1,0) -> 0 | DG81: 0 | DH81: 0 | DI81: 0 | DJ81: 0 | DK81: 0 | DL81: 0 | DM81: 0 | DN81: =VLOOKUP($C81,'Prog Assums'!$U$5:$AI$293,11,FALSE) -> 4 | DO81: =VLOOKUP($C81,'Prog Assums'!$U$5:$AI$293,12,FALSE) -> - | DP81: =IF(VLOOKUP($C81,'Prog Assums'!$U$5:$AI$293,13,FALSE)="AS SOA",$AI81,VLOOKUP($C81,'Prog Assums'!$U$5:$AI$293,13,FALSE)) -> 4 | DQ81: =VLOOKUP($C81,'Prog Assums'!$U$5:$AI$293,14,FALSE) -> - | DR81: =VLOOKUP($C81,'Prog Assums'!$U$5:$AI$293,15,FALSE) -> 25 | DS81: =IF(ISERROR((SUM($EB81,$EH81,$EN81,$EU81)/SUM($EA81,$EG81,$EM81,$ET81)-$S81))=TRUE,0,IF($U81=0,0,(SUM($EB81,$EH81,$EN81,$EU81)/SUM($EA81,$EG81,$EM81,$ET81)-$S81))) -> 0 | DU81: =SUM(EA81,EG81,EM81,ET81)-U81 -> -1 | DV81: =SUM($EU81,$EN81,$EH81,$EB81)-$V81-$Y81 -> -4 | DY81: 0 | EA81: 0 | EB81: =EA81*DY81 -> 0 | EE81: 0 | EG81: 0 | EH81: =EG81*EE81 -> 0 | EK81: =IF(EN81>0,SUM(EN81/EM81),0) -> 0 | EM81: =COUNTIFS($EY$2:$YD$2,"Refurb",$EY81:$YD81,">0") -> 0 | EN81: =SUMIF($EY$2:$YD$2,"Refurb",$EY81:$YD81) -> 0 | ER81: =IF(EU81>0,SUM(EU81/ET81),0) -> 0 | ET81: =COUNTIFS($EY$2:$YD$2,'Prog Assums'!$B$130,$EY81:$YD81,">0") -> 0 | EU81: =SUMIF($EY$2:$YD$2,'Prog Assums'!$B$130,$EY81:$YD81) -> 0
A82: =VLOOKUP($D82,'Prog Assums'!$N$5:$AM$294,10, FALSE) -> RES12 | C82: =VLOOKUP($D82,'Prog Assums'!$N$5:$AM$294,8, FALSE) -> RES12 | D82: Music practice rooms | M82: =IF(D82="","",_xlfn.XLOOKUP(D82,'Prog Assums'!$N$7:$N$221,'Prog Assums'!$AQ$7:$AQ$221,"")) -> Music practice room | N82: Music practice room8 | Q82: =IF(S82>0,ROUNDDOWN((S82-VLOOKUP(AU82,'Prog Assums'!$E$38:$I$54,2,FALSE))/VLOOKUP(AU82,'Prog Assums'!$E$38:$I$54,3,FALSE),0),"-") -> 3 | S82: =VLOOKUP(D82,'Prog Assums'!N$5:U$271,5,FALSE) -> 8 | U82: =(3*(U44+U45))-IF((U44+U45)>0,U83,0) -> 1 | V82: 8 | AA82: 0 | AC82: 8 | AD82: m2 standard size | AI82: =IF(AK82>0,8,0) -> 8 | AK82: =(3*(AK44+AK45))-IF((AK44+AK45)>0,AK83,0) -> 1 | AN82: =IF(U82>0,VLOOKUP(D82,'Prog Assums'!$N$6:$S$169,6,FALSE),0) -> 0 | AP82: =VLOOKUP(D82,'Prog Assums'!N$139:T$210,7, FALSE) -> 3 | AQ82: =ROUNDDOWN(VLOOKUP(AU82,'Prog Assums'!$E$38:$I$54,2,FALSE)+(AP82*VLOOKUP(AU82,'Prog Assums'!$E$38:$I$54,3,FALSE)),0) -> 6 | AR82: =ROUNDUP(VLOOKUP(AU82,'Prog Assums'!$E$38:$I$54,4,FALSE)+(AP82*VLOOKUP(AU82,'Prog Assums'!$E$38:$I$54,5,FALSE)),0) -> 10 | AS82: 8 | AU82: =VLOOKUP(D82,'Prog Assums'!$N$132:$O$172,2,FALSE) -> B | BE82: =IF(ISERROR(AVERAGEIF('Individual Spaces'!F:F,'Secondary SoA'!$N82,'Individual Spaces'!K:K))=TRUE,"",AVERAGEIF('Individual Spaces'!F:F,'Secondary SoA'!$N82,'Individual Spaces'!K:K)) ->  | BG82: =COUNTIF('Individual Spaces'!F:F,'Secondary SoA'!$N82) -> 1 | BK82: 0 | BM82: 1 | CC82: =U82 -> 1 | CM82: =IF($S82>0,VLOOKUP($D82,'Prog Assums'!$N$5:$AM$294,12, FALSE),"") -> 8m2 for up to 3 | CN82: =IF($S82>0,VLOOKUP($D82,'Prog Assums'!$N$5:$AM$294,13, FALSE),"") -> A | CQ82: =VLOOKUP(D82,'Prog Assums'!$N$6:$Q$229,3,0) -> 2 | CR82: =VLOOKUP(D82,'Prog Assums'!$N$6:$Q$229,4,0) -> 4 | CS82: 1 | CT82: 0 | CU82: 0 | CV82: 1 | CW82: 1 | CX82: 0 | CY82: 0 | CZ82: 1 | DA82: 3 | DB82: 8 | DD82: =HLOOKUP(AG$12,$DF$15:$DI$165,67,FALSE) -> 0 | DE82: =3*(DE44+DE45)-IF((DE44+DE45)>2,2,0)-IF(DE84>0,DE84,0) -> 0 | DF82: =(3*(DF44+DF45))-IF((DF44+DF45)>0,DF83,0) -> 2 | DG82: =(4*(DG44+DG45))-IF((DG44+DG45)>0,DG83,0) -> 3 | DH82: =(3*(DH44+DH45))-IF((DH44+DH45)>0,DH83,0) -> 2 | DI82: =(3*(DI44+DI45))-IF((DI44+DI45)>0,DI83,0) -> 2 | DJ82: =(3*(DJ44+DJ45))-IF((DJ44+DJ45)>0,DJ83,0) -> 2 | DK82: =(4*(DK44+DK45))-IF((DK44+DK45)>0,DK83,0) -> 3 | DL82: =(3*(DL44+DL45))-IF((DL44+DL45)>0,DL83,0) -> 0 | DM82: =(3*(DM44+DM45))-IF((DM44+DM45)>0,DM83,0) -> 0 | DN82: =VLOOKUP($C82,'Prog Assums'!$U$5:$AI$293,11,FALSE) -> 6 | DO82: =VLOOKUP($C82,'Prog Assums'!$U$5:$AI$293,12,FALSE) -> - | DP82: =IF(VLOOKUP($C82,'Prog Assums'!$U$5:$AI$293,13,FALSE)="AS SOA",$AI82,VLOOKUP($C82,'Prog Assums'!$U$5:$AI$293,13,FALSE)) -> 8 | DQ82: =VLOOKUP($C82,'Prog Assums'!$U$5:$AI$293,14,FALSE) -> 9.1 | DR82: =VLOOKUP($C82,'Prog Assums'!$U$5:$AI$293,15,FALSE) -> 12 | DS82: 0 | DU82: -1 | DV82: -8 | DY82: 0 | EA82: 0 | EB82: 0 | EE82: 0 | EG82: 0 | EH82: 0 | EK82: 0 | EM82: 0 | EN82: 0 | ER82: 0 | ET82: =COUNTIFS($EY$2:$YD$2,'Prog Assums'!$B$130,$EY82:$YD82,">0") -> 0 | EU82: =SUMIF($EY$2:$YD$2,'Prog Assums'!$B$130,$EY82:$YD82) -> 0
A83: =VLOOKUP($D83,'Prog Assums'!$N$5:$AM$294,10, FALSE) -> RES12 | C83: =VLOOKUP($D83,'Prog Assums'!$N$5:$AM$294,8, FALSE) -> RES13 | D83: Music practice rooms (extensive) | M83: =IF(D83="","",_xlfn.XLOOKUP(D83,'Prog Assums'!$N$7:$N$221,'Prog Assums'!$AQ$7:$AQ$221,"")) -> Music practice room (extensive) | N83: Music practice room (extensive)16 | Q83: =IF(S83>0,ROUNDDOWN((S83-VLOOKUP(AU83,'Prog Assums'!$E$38:$I$54,2,FALSE))/VLOOKUP(AU83,'Prog Assums'!$E$38:$I$54,3,FALSE),0),"-") -> 7 | S83: =VLOOKUP(D83,'Prog Assums'!N$5:U$271,5,FALSE) -> 16 | U83: =AK83 -> 2 | V83: 32 | AA83: 0 | AC83: =IF(S83>0,VLOOKUP(D83,'Prog Assums'!$N$138:$R$150,5,FALSE),0) -> 16 | AD83: =IF(S83>0,"m2 minimum in new build","") -> m2 minimum in new build | AI83: =IF(AK83>0,16,0) -> 16 | AK83: =DD83 -> 2 | AN83: =IF(U83>0,VLOOKUP(D83,'Prog Assums'!$N$6:$S$169,6,FALSE),0) -> 0 | AP83: =VLOOKUP(D83,'Prog Assums'!N$139:T$210,7, FALSE) -> 7 | AQ83: =ROUNDDOWN(VLOOKUP(AU83,'Prog Assums'!$E$38:$I$54,2,FALSE)+(AP83*VLOOKUP(AU83,'Prog Assums'!$E$38:$I$54,3,FALSE)),0) -> 15 | AR83: =ROUNDUP(VLOOKUP(AU83,'Prog Assums'!$E$38:$I$54,4,FALSE)+(AP83*VLOOKUP(AU83,'Prog Assums'!$E$38:$I$54,5,FALSE)),0) -> 19 | AS83: 32 | AU83: =VLOOKUP(D83,'Prog Assums'!$N$132:$O$172,2,FALSE) -> C | BE83: =IF(ISERROR(AVERAGEIF('Individual Spaces'!F:F,'Secondary SoA'!$N83,'Individual Spaces'!K:K))=TRUE,"",AVERAGEIF('Individual Spaces'!F:F,'Secondary SoA'!$N83,'Individual Spaces'!K:K)) ->  | BG83: =COUNTIF('Individual Spaces'!F:F,'Secondary SoA'!$N83) -> 2 | BK83: 0 | BM83: 2 | CC83: =U83 -> 2 | CM83: =IF($S83>0,VLOOKUP($D83,'Prog Assums'!$N$5:$AM$294,12, FALSE),"") -> 16m2 for up to 7 | CN83: =IF($S83>0,VLOOKUP($D83,'Prog Assums'!$N$5:$AM$294,13, FALSE),"") -> A | CQ83: =VLOOKUP(D83,'Prog Assums'!$N$6:$Q$229,3,0) -> 2 | CR83: =VLOOKUP(D83,'Prog Assums'!$N$6:$Q$229,4,0) -> 4 | CS83: 4 | CT83: 0 | CU83: 0 | CV83: 8 | CW83: 4 | CX83: 0 | CY83: 0 | CZ83: 8 | DA83: 10 | DB83: 16 | DD83: =HLOOKUP(AG$12,$DF$15:$DI$165,68,FALSE) -> 2 | DF83: 1 | DG83: 1 | DH83: 1 | DI83: 1 | DJ83: 1 | DK83: 1 | DL83: 1 | DM83: 1 | DN83: =VLOOKUP($C83,'Prog Assums'!$U$5:$AI$293,11,FALSE) -> 12 | DO83: =VLOOKUP($C83,'Prog Assums'!$U$5:$AI$293,12,FALSE) -> - | DP83: =IF(VLOOKUP($C83,'Prog Assums'!$U$5:$AI$293,13,FALSE)="AS SOA",$AI83,VLOOKUP($C83,'Prog Assums'!$U$5:$AI$293,13,FALSE)) -> 13.2 | DQ83: =VLOOKUP($C83,'Prog Assums'!$U$5:$AI$293,14,FALSE) -> 16 | DR83: =VLOOKUP($C83,'Prog Assums'!$U$5:$AI$293,15,FALSE) -> 45 | DS83: 0 | DU83: -2 | DV83: -32 | DY83: 0 | EA83: 0 | EB83: 0 | EE83: 0 | EG83: 0 | EH83: 0 | EK83: 0 | EM83: 0 | EN83: 0 | ER83: 0 | ET83: =COUNTIFS($EY$2:$YD$2,'Prog Assums'!$B$130,$EY83:$YD83,">0") -> 0 | EU83: =SUMIF($EY$2:$YD$2,'Prog Assums'!$B$130,$EY83:$YD83) -> 0
A84: =VLOOKUP($D84,'Prog Assums'!$N$5:$AM$294,10, FALSE) -> RES14 | C84: =VLOOKUP($D84,'Prog Assums'!$N$5:$AM$294,8, FALSE) -> RES14 | D84: Recording control spaces | M84: =IF(D84="","",_xlfn.XLOOKUP(D84,'Prog Assums'!$N$7:$N$221,'Prog Assums'!$AQ$7:$AQ$221,"")) -> Recording control space | N84: Recording control space8 | O84: =IF(VLOOKUP(D84,'Prog Assums'!N$128:V$174,9,FALSE)>0,"retained","") ->  | Q84: =IF(S84>0,ROUNDDOWN((S84-VLOOKUP(AU84,'Prog Assums'!$E$38:$I$54,2,FALSE))/VLOOKUP(AU84,'Prog Assums'!$E$38:$I$54,3,FALSE),0),"-") -> 3 | S84: =VLOOKUP(D84,'Prog Assums'!N$5:U$271,5,FALSE) -> 8 | U84: =AK84 -> 1 | V84: 8 | AA84: 0 | AC84: =IF(S84>0,VLOOKUP(D84,'Prog Assums'!$N$138:$R$150,5,FALSE),0) -> 8 | AD84: =IF(S84>0,"m2 minimum in new build","") -> m2 minimum in new build | AI84: =IF(AK84>0,8,0) -> 8 | AK84: =DD84 -> 1 | AN84: =IF(U84>0,VLOOKUP(D84,'Prog Assums'!$N$6:$S$169,6,FALSE),0) -> 0 | AP84: =VLOOKUP(D84,'Prog Assums'!N$139:T$210,7, FALSE) -> 3 | AQ84: =ROUNDDOWN(VLOOKUP(AU84,'Prog Assums'!$E$38:$I$54,2,FALSE)+(AP84*VLOOKUP(AU84,'Prog Assums'!$E$38:$I$54,3,FALSE)),0) -> 6 | AR84: =ROUNDUP(VLOOKUP(AU84,'Prog Assums'!$E$38:$I$54,4,FALSE)+(AP84*VLOOKUP(AU84,'Prog Assums'!$E$38:$I$54,5,FALSE)),0) -> 10 | AS84: 8 | AU84: =VLOOKUP(D84,'Prog Assums'!$N$132:$O$172,2,FALSE) -> B | BE84: =IF(ISERROR(AVERAGEIF('Individual Spaces'!F:F,'Secondary SoA'!$N84,'Individual Spaces'!K:K))=TRUE,"",AVERAGEIF('Individual Spaces'!F:F,'Secondary SoA'!$N84,'Individual Spaces'!K:K)) ->  | BG84: =COUNTIF('Individual Spaces'!F:F,'Secondary SoA'!$N84) -> 1 | BK84: 0 | BM84: 1 | CC84: =U84 -> 1 | CM84: =IF($S84>0,VLOOKUP($D84,'Prog Assums'!$N$5:$AM$294,12, FALSE),"") -> 8m2 for up to 3 | CN84: =IF($S84>0,VLOOKUP($D84,'Prog Assums'!$N$5:$AM$294,13, FALSE),"") -> A | CQ84: =VLOOKUP(D84,'Prog Assums'!$N$6:$Q$229,3,0) -> 2 | CR84: =VLOOKUP(D84,'Prog Assums'!$N$6:$Q$229,4,0) -> 4 | CS84: 1 | CT84: 0 | CU84: 0 | CV84: 1 | CW84: 1 | CX84: 0 | CY84: 0 | CZ84: 1 | DA84: 6 | DB84: 12 | DD84: =HLOOKUP(AG$12,$DF$15:$DI$165,69,FALSE) -> 1 | DE84: =IF(K5=0,DE6,0) -> 0 | DF84: 0 | DG84: =DG7 -> 0 | DH84: 0 | DI84: 0 | DJ84: 0 | DK84: =DK7 -> 0 | DL84: 0 | DM84: 0 | DN84: =VLOOKUP($C84,'Prog Assums'!$U$5:$AI$293,11,FALSE) -> 6 | DO84: =VLOOKUP($C84,'Prog Assums'!$U$5:$AI$293,12,FALSE) -> - | DP84: =IF(VLOOKUP($C84,'Prog Assums'!$U$5:$AI$293,13,FALSE)="AS SOA",$AI84,VLOOKUP($C84,'Prog Assums'!$U$5:$AI$293,13,FALSE)) -> 8 | DQ84: =VLOOKUP($C84,'Prog Assums'!$U$5:$AI$293,14,FALSE) -> - | DR84: =VLOOKUP($C84,'Prog Assums'!$U$5:$AI$293,15,FALSE) -> 45 | DS84: 0 | DU84: -1 | DV84: -8 | DY84: 0 | EA84: 0 | EB84: 0 | EE84: 0 | EG84: 0 | EH84: 0 | EK84: 0 | EM84: 0 | EN84: 0 | ER84: 0 | ET84: =COUNTIFS($EY$2:$YD$2,'Prog Assums'!$B$130,$EY84:$YD84,">0") -> 0 | EU84: =SUMIF($EY$2:$YD$2,'Prog Assums'!$B$130,$EY84:$YD84) -> 0
A85: =VLOOKUP($D85,'Prog Assums'!$N$5:$AM$294,10, FALSE) -> RES16 | C85: =VLOOKUP($D85,'Prog Assums'!$N$5:$AM$294,8, FALSE) -> RES16 | D85: Lighting and audio control spaces | M85: =IF(D85="","",_xlfn.XLOOKUP(D85,'Prog Assums'!$N$7:$N$221,'Prog Assums'!$AQ$7:$AQ$221,"")) -> Lighting and audio control space | N85: Lighting and audio control space6 | O85: =IF(VLOOKUP(D85,'Prog Assums'!N$128:V$174,9,FALSE)>0,"retained","") ->  | Q85: =IF(S85>0,ROUNDDOWN((S85-VLOOKUP(AU85,'Prog Assums'!$E$38:$I$54,2,FALSE))/VLOOKUP(AU85,'Prog Assums'!$E$38:$I$54,3,FALSE),0),"-") -> 2 | S85: =VLOOKUP(D85,'Prog Assums'!N$5:U$271,5,FALSE) -> 6 | U85: =AK85 -> 1 | V85: 6 | AA85: 0 | AC85: =IF(S85>0,VLOOKUP(D85,'Prog Assums'!$N$138:$R$150,5,FALSE),0) -> 6 | AD85: =IF(S85>0,"m2 minimum in new build","") -> m2 minimum in new build | AI85: =IF(AK85>0,6,0) -> 6 | AK85: 1 | AN85: =IF(U85>0,VLOOKUP(D85,'Prog Assums'!$N$6:$S$169,6,FALSE),0) -> 0 | AP85: =VLOOKUP(D85,'Prog Assums'!N$139:T$210,7, FALSE) -> 2 | AQ85: =ROUNDDOWN(VLOOKUP(AU85,'Prog Assums'!$E$38:$I$54,2,FALSE)+(AP85*VLOOKUP(AU85,'Prog Assums'!$E$38:$I$54,3,FALSE)),0) -> 5 | AR85: =ROUNDUP(VLOOKUP(AU85,'Prog Assums'!$E$38:$I$54,4,FALSE)+(AP85*VLOOKUP(AU85,'Prog Assums'!$E$38:$I$54,5,FALSE)),0) -> 8 | AS85: 6 | AU85: =VLOOKUP(D85,'Prog Assums'!$N$132:$O$172,2,FALSE) -> B | BE85: =IF(ISERROR(AVERAGEIF('Individual Spaces'!F:F,'Secondary SoA'!$N85,'Individual Spaces'!K:K))=TRUE,"",AVERAGEIF('Individual Spaces'!F:F,'Secondary SoA'!$N85,'Individual Spaces'!K:K)) ->  | BG85: =COUNTIF('Individual Spaces'!F:F,'Secondary SoA'!$N85) -> 1 | BK85: 0 | BM85: 1 | CC85: =U85 -> 1 | CM85: =IF($S85>0,VLOOKUP($D85,'Prog Assums'!$N$5:$AM$294,12, FALSE),"") -> 6m2 for up to 2 | CN85: =IF($S85>0,VLOOKUP($D85,'Prog Assums'!$N$5:$AM$294,13, FALSE),"") -> A | CQ85: =VLOOKUP(D85,'Prog Assums'!$N$6:$Q$229,3,0) -> 2 | CR85: =VLOOKUP(D85,'Prog Assums'!$N$6:$Q$229,4,0) -> 4 | CS85: 1 | CT85: 0 | CU85: 0 | CV85: 1 | CW85: 1 | CX85: 0 | CY85: 0 | CZ85: 1 | DN85: =VLOOKUP($C85,'Prog Assums'!$U$5:$AI$293,11,FALSE) -> 4 | DO85: =VLOOKUP($C85,'Prog Assums'!$U$5:$AI$293,12,FALSE) -> - | DP85: =IF(VLOOKUP($C85,'Prog Assums'!$U$5:$AI$293,13,FALSE)="AS SOA",$AI85,VLOOKUP($C85,'Prog Assums'!$U$5:$AI$293,13,FALSE)) -> 6 | DQ85: =VLOOKUP($C85,'Prog Assums'!$U$5:$AI$293,14,FALSE) -> - | DR85: =VLOOKUP($C85,'Prog Assums'!$U$5:$AI$293,15,FALSE) -> 45 | DS85: 0 | DU85: -1 | DV85: -6 | DY85: 0 | EA85: 0 | EB85: 0 | EE85: 0 | EG85: 0 | EH85: 0 | EK85: 0 | EM85: 0 | EN85: 0 | ER85: 0 | ET85: =COUNTIFS($EY$2:$YD$2,'Prog Assums'!$B$130,$EY85:$YD85,">0") -> 0 | EU85: =SUMIF($EY$2:$YD$2,'Prog Assums'!$B$130,$EY85:$YD85) -> 0
A86: =VLOOKUP($D86,'Prog Assums'!$N$5:$AM$294,10, FALSE) -> - | C86: =VLOOKUP($D86,'Prog Assums'!$N$5:$AM$294,8, FALSE) -> - | D86: - | M86: =IF(D86="","",_xlfn.XLOOKUP(D86,'Prog Assums'!$N$7:$N$221,'Prog Assums'!$AQ$7:$AQ$221,"")) -> - | N86: -0 | O86: =IF(VLOOKUP(D86,'Prog Assums'!N$128:V$174,9,FALSE)>0,"retained","") ->  | Q86: =IF(S86>0,ROUND((S86-VLOOKUP(AU86,'Prog Assums'!$E$38:$I$54,2,FALSE))/VLOOKUP(AU86,'Prog Assums'!$E$38:$I$54,3,FALSE),0),"-") -> - | S86: =VLOOKUP(D86,'Prog Assums'!N$5:U$271,5,FALSE) -> 0 | U86: =AK86 -> 0 | V86: 0 | AA86: 0 | AC86: =IF(S86>0,VLOOKUP(D86,'Prog Assums'!$N$138:$R$150,5,FALSE),0) -> 0 | AD86: =IF(S86>0,"m2 minimum in new build","") ->  | AN86: =IF(U86>0,VLOOKUP(D86,'Prog Assums'!$N$6:$S$169,6,FALSE),0) -> 0 | AP86: =VLOOKUP(D86,'Prog Assums'!N$139:T$210,7, FALSE) -> size | AQ86: =ROUNDDOWN(VLOOKUP(AU86,'Prog Assums'!$E$38:$I$54,2,FALSE)+(AP86*VLOOKUP(AU86,'Prog Assums'!$E$38:$I$54,3,FALSE)),0) ->  | AR86: =ROUNDUP(VLOOKUP(AU86,'Prog Assums'!$E$38:$I$54,4,FALSE)+(AP86*VLOOKUP(AU86,'Prog Assums'!$E$38:$I$54,5,FALSE)),0) ->  | AS86: 0 | AU86: =VLOOKUP(D86,'Prog Assums'!$N$132:$O$172,2,FALSE) -> 0 | BE86: =IF(ISERROR(AVERAGEIF('Individual Spaces'!F:F,'Secondary SoA'!$N86,'Individual Spaces'!K:K))=TRUE,"",AVERAGEIF('Individual Spaces'!F:F,'Secondary SoA'!$N86,'Individual Spaces'!K:K)) ->  | BG86: =COUNTIF('Individual Spaces'!F:F,'Secondary SoA'!$N86) -> 0 | BK86: 0 | BM86: 0 | CM86: =IF($S86>0,VLOOKUP($D86,'Prog Assums'!$N$5:$AM$294,12, FALSE),"") ->  | CN86: =IF($S86>0,VLOOKUP($D86,'Prog Assums'!$N$5:$AM$294,13, FALSE),"") ->  | CQ86: =VLOOKUP(D86,'Prog Assums'!$N$6:$Q$229,3,0) -> 0 | CR86: =VLOOKUP(D86,'Prog Assums'!$N$6:$Q$229,4,0) -> 0 | CS86: =IF(S86=0,0,MAXA(1,ROUNDUP((S86/CQ86)-CR86,0))) -> 0 | CT86: 0 | CU86: 0 | CV86: 0 | CW86: 0 | CX86: 0 | CY86: 0 | CZ86: 0 | DN86: =VLOOKUP($C86,'Prog Assums'!$U$5:$AI$293,11,FALSE) -> 0 | DO86: =VLOOKUP($C86,'Prog Assums'!$U$5:$AI$293,12,FALSE) -> 0 | DP86: =IF(VLOOKUP($C86,'Prog Assums'!$U$5:$AI$293,13,FALSE)="AS SOA",$AI86,VLOOKUP($C86,'Prog Assums'!$U$5:$AI$293,13,FALSE)) -> 0 | DQ86: =VLOOKUP($C86,'Prog Assums'!$U$5:$AI$293,14,FALSE) -> 0 | DR86: =VLOOKUP($C86,'Prog Assums'!$U$5:$AI$293,15,FALSE) -> 0 | DS86: 0 | DU86: 0 | DV86: 0 | DY86: 0 | EA86: 0 | EB86: 0 | EE86: 0 | EG86: 0 | EH86: 0 | EK86: 0 | EM86: 0 | EN86: 0 | ER86: 0 | ET86: =COUNTIFS($EY$2:$YD$2,'Prog Assums'!$B$130,$EY86:$YD86,">0") -> 0 | EU86: =SUMIF($EY$2:$YD$2,'Prog Assums'!$B$130,$EY86:$YD86) -> 0
D87: SEN and support spaces | CM87: =IF($S87>0,VLOOKUP($D87,'Prog Assums'!$N$5:$AM$294,12, FALSE),"") ->  | CN87: =IF($S87>0,VLOOKUP($D87,'Prog Assums'!$N$5:$AM$294,13, FALSE),"") -> 
A88: =VLOOKUP($D88,'Prog Assums'!$N$5:$AM$294,10, FALSE) -> SEN02 | C88: =VLOOKUP($D88,'Prog Assums'!$N$5:$AM$294,8, FALSE) -> SEN02 | D88: Medical treatment (MI) rooms | M88: =IF(D88="","",_xlfn.XLOOKUP(D88,'Prog Assums'!$N$7:$N$221,'Prog Assums'!$AQ$7:$AQ$221,"")) -> Medical treatment (MI) room | N88: =CONCATENATE(M88,S88) -> Medical treatment (MI) room12 | Q88: =ROUNDDOWN((AI88-VLOOKUP(AU88,'Prog Assums'!$E$38:$I$54,2,FALSE))/VLOOKUP(AU88,'Prog Assums'!$E$38:$I$54,3,FALSE),0) -> 4 | S88: =VLOOKUP(D88,'Prog Assums'!N$5:U$271,5,FALSE) -> 12 | U88: =AK88 -> 1 | V88: =MAXA((S88*U88)-Y88,0) -> 12 | Y88: =MAXA(0,(U88-1)*S88) -> 0 | AA88: 0 | AC88: =IF(U88>0,"12","NOTE") -> 12 | AD88: =IF(V88>0,"m2 min recommended","MI room must be provided") -> m2 min recommended | AI88: 12 | AK88: =1+IF(K12>0,1,0) -> 1 | AN88: =IF(U88>0,VLOOKUP(D88,'Prog Assums'!$N$6:$S$169,6,FALSE),0) -> 0 | AP88: =VLOOKUP(D88,'Prog Assums'!N$139:T$210,7, FALSE) -> 4 | AQ88: =ROUNDDOWN(VLOOKUP(AU88,'Prog Assums'!$E$38:$I$54,2,FALSE)+(AP88*VLOOKUP(AU88,'Prog Assums'!$E$38:$I$54,3,FALSE)),0) -> 10 | AR88: =ROUNDUP(VLOOKUP(AU88,'Prog Assums'!$E$38:$I$54,4,FALSE)+(AP88*VLOOKUP(AU88,'Prog Assums'!$E$38:$I$54,5,FALSE)),0) -> 13 | AS88: =MAXA((AI88*AK88)-AT88,0) -> 12 | AT88: =(AK88-1)*AI88 -> 0 | AU88: =VLOOKUP(D88,'Prog Assums'!$N$132:$O$172,2,FALSE) -> C | BE88: =IF(ISERROR(AVERAGEIF('Individual Spaces'!F:F,'Secondary SoA'!$N88,'Individual Spaces'!K:K))=TRUE,"",AVERAGEIF('Individual Spaces'!F:F,'Secondary SoA'!$N88,'Individual Spaces'!K:K)) ->  | BG88: =COUNTIF('Individual Spaces'!F:F,'Secondary SoA'!$N88) -> 1 | BH88: =IF(ISERROR(BE88*BG88)=TRUE,"",BE88*BG88) ->  | BJ88: =IF(ISERROR(BH88-Y88-V88)=TRUE,"",BH88-Y88-V88) ->  | BK88: 0 | BM88: =SUM(BO88:CK88) -> 1 | CI88: =IF(K12>0,1,0) -> 0 | CK88: =U88-CI88 -> 1 | CM88: =IF($S88>0,VLOOKUP($D88,'Prog Assums'!$N$5:$AM$294,12, FALSE),"") -> 12m2 for up to 4 | CN88: =IF($S88>0,VLOOKUP($D88,'Prog Assums'!$N$5:$AM$294,13, FALSE),"") -> B | CQ88: =VLOOKUP(D88,'Prog Assums'!$N$6:$Q$229,3,0) -> 1.5 | CR88: =VLOOKUP(D88,'Prog Assums'!$N$6:$Q$229,4,0) -> 4 | CS88: 4 | CT88: =IF(CS88>14,IF(CS88<31,CS88,ROUNDDOWN(CS88/30,0)*30),0) -> 0 | CU88: =IF(S88>0,(V88/S88)*CT88,0) -> 0 | CV88: =IF(CS88>0,(V88/S88)*CS88,0)-CU88 -> 4 | CW88: =IF(AK88=0,0,MAXA(1,ROUNDUP((AI88/CQ88)-CR88,0))) -> 4 | CX88: =IF(CW88>14,IF(CW88<31,CW88,ROUNDDOWN(CW88/30,0)*30),0) -> 0 | CY88: =IF(AK88>0,(AS88/AI88)*CX88,0) -> 0 | CZ88: =IF(CW88>0,(AS88/AI88)*CW88,0)-CY88 -> 4 | DA88: =ROUND(((DB88-4.5)/1.6),0) -> 5 | DB88: 12 | DD88: 1 | DN88: =VLOOKUP($C88,'Prog Assums'!$U$5:$AI$293,11,FALSE) -> 6 | DO88: =VLOOKUP($C88,'Prog Assums'!$U$5:$AI$293,12,FALSE) -> - | DP88: =IF(VLOOKUP($C88,'Prog Assums'!$U$5:$AI$293,13,FALSE)="AS SOA",$AI88,VLOOKUP($C88,'Prog Assums'!$U$5:$AI$293,13,FALSE)) -> 12 | DQ88: =VLOOKUP($C88,'Prog Assums'!$U$5:$AI$293,14,FALSE) -> - | DR88: =VLOOKUP($C88,'Prog Assums'!$U$5:$AI$293,15,FALSE) -> 41 | DS88: =IF(ISERROR((SUM($EB88,$EH88,$EN88,$EU88)/SUM($EA88,$EG88,$EM88,$ET88)-$S88))=TRUE,0,IF($U88=0,0,(SUM($EB88,$EH88,$EN88,$EU88)/SUM($EA88,$EG88,$EM88,$ET88)-$S88))) -> 0 | DU88: =SUM(EA88,EG88,EM88,ET88)-U88 -> -1 | DV88: =SUM($EU88,$EN88,$EH88,$EB88)-$V88-$Y88 -> -12 | DY88: 0 | EA88: 0 | EB88: =EA88*DY88 -> 0 | EE88: 0 | EG88: 0 | EH88: =EG88*EE88 -> 0 | EK88: =IF(EN88>0,SUM(EN88/EM88),0) -> 0 | EM88: =COUNTIFS($EY$2:$YD$2,"Refurb",$EY88:$YD88,">0") -> 0 | EN88: =SUMIF($EY$2:$YD$2,"Refurb",$EY88:$YD88) -> 0 | ER88: =IF(EU88>0,SUM(EU88/ET88),0) -> 0 | ET88: =COUNTIFS($EY$2:$YD$2,'Prog Assums'!$B$130,$EY88:$YD88,">0") -> 0 | EU88: =SUMIF($EY$2:$YD$2,'Prog Assums'!$B$130,$EY88:$YD88) -> 0
A89: =VLOOKUP($D89,'Prog Assums'!$N$5:$AM$294,10, FALSE) -> SEN20 | C89: =VLOOKUP($D89,'Prog Assums'!$N$5:$AM$294,8, FALSE) -> SEN20 | D89: SEN resource spaces | M89: =IF(D89="","",_xlfn.XLOOKUP(D89,'Prog Assums'!$N$7:$N$221,'Prog Assums'!$AQ$7:$AQ$221,"")) -> SEN resource space | N89: =CONCATENATE(M89,S89) -> SEN resource space16 | Q89: =ROUNDDOWN((AI89-VLOOKUP(AU89,'Prog Assums'!$E$38:$I$54,2,FALSE))/VLOOKUP(AU89,'Prog Assums'!$E$38:$I$54,3,FALSE),0) -> 7 | S89: =VLOOKUP(D89,'Prog Assums'!N$5:U$271,5,FALSE) -> 16 | U89: =AK89 -> 1 | V89: =MAXA((S89*U89)-Y89,0) -> 16 | Y89: =MAXA(0,IF(K$14>0,(U89-1)*S89,0)) -> 0 | AA89: 0 | AC89: Group room suitable for SEN/ multi-agency | AI89: 16 | AK89: =1+IF(K12>0,ROUNDUP(K12/30,0),0) -> 1 | AN89: =IF(U89>0,VLOOKUP(D89,'Prog Assums'!$N$6:$S$169,6,FALSE),0) -> 0 | AO89: =IF(O89="existing","E","") ->  | AP89: =VLOOKUP(D89,'Prog Assums'!N$139:T$210,7, FALSE) -> 7 | AQ89: =ROUNDDOWN(VLOOKUP(AU89,'Prog Assums'!$E$38:$I$54,2,FALSE)+(AP89*VLOOKUP(AU89,'Prog Assums'!$E$38:$I$54,3,FALSE)),0) -> 15 | AR89: =ROUNDUP(VLOOKUP(AU89,'Prog Assums'!$E$38:$I$54,4,FALSE)+(AP89*VLOOKUP(AU89,'Prog Assums'!$E$38:$I$54,5,FALSE)),0) -> 19 | AS89: =MAXA((AI89*AK89)-AT89,0) -> 16 | AT89: =(AK89-1)*AI89 -> 0 | AU89: =VLOOKUP(D89,'Prog Assums'!$N$132:$O$172,2,FALSE) -> C | BE89: =IF(ISERROR(AVERAGEIF('Individual Spaces'!F:F,'Secondary SoA'!$N89,'Individual Spaces'!K:K))=TRUE,"",AVERAGEIF('Individual Spaces'!F:F,'Secondary SoA'!$N89,'Individual Spaces'!K:K)) ->  | BG89: =COUNTIF('Individual Spaces'!F:F,'Secondary SoA'!$N89) -> 1 | BH89: =IF(ISERROR(BE89*BG89)=TRUE,"",BE89*BG89) ->  | BJ89: =IF(ISERROR(BH89-Y89-V89)=TRUE,"",BH89-Y89-V89) ->  | BK89: =BG89-U89 -> 0 | BM89: =SUM(BO89:CK89) -> 1 | CI89: =IF(K12>0,ROUNDUP(K12/30,0),0) -> 0 | CK89: =U89-CI89 -> 1 | CM89: =IF($S89>0,VLOOKUP($D89,'Prog Assums'!$N$5:$AM$294,12, FALSE),"") -> 16m2 for up to 7 | CN89: =IF($S89>0,VLOOKUP($D89,'Prog Assums'!$N$5:$AM$294,13, FALSE),"") -> B | CQ89: =VLOOKUP(D89,'Prog Assums'!$N$6:$Q$229,3,0) -> 1.5 | CR89: =VLOOKUP(D89,'Prog Assums'!$N$6:$Q$229,4,0) -> 4 | CS89: 7 | CT89: =IF(CS89>14,IF(CS89<31,CS89,ROUNDDOWN(CS89/30,0)*30),0) -> 0 | CU89: 0 | CV89: 7 | CW89: 7 | CX89: 0 | CY89: 0 | CZ89: 7 | DA89: 8 | DB89: 16 | DD89: 1 | DN89: =VLOOKUP($C89,'Prog Assums'!$U$5:$AI$293,11,FALSE) -> 12 | DO89: =VLOOKUP($C89,'Prog Assums'!$U$5:$AI$293,12,FALSE) -> - | DP89: =IF(VLOOKUP($C89,'Prog Assums'!$U$5:$AI$293,13,FALSE)="AS SOA",$AI89,VLOOKUP($C89,'Prog Assums'!$U$5:$AI$293,13,FALSE)) -> 16 | DQ89: =VLOOKUP($C89,'Prog Assums'!$U$5:$AI$293,14,FALSE) -> - | DR89: =VLOOKUP($C89,'Prog Assums'!$U$5:$AI$293,15,FALSE) -> 41 | DS89: 0 | DU89: -1 | DV89: -16 | DY89: 0 | EA89: 0 | EB89: 0 | EE89: 0 | EG89: 0 | EH89: 0 | EK89: 0 | EM89: 0 | EN89: 0 | ER89: 0 | ET89: =COUNTIFS($EY$2:$YD$2,'Prog Assums'!$B$130,$EY89:$YD89,">0") -> 0 | EU89: =SUMIF($EY$2:$YD$2,'Prog Assums'!$B$130,$EY89:$YD89) -> 0
A90: =VLOOKUP($D90,'Prog Assums'!$N$5:$AM$294,10, FALSE) -> RES00 | C90: =VLOOKUP($D90,'Prog Assums'!$N$5:$AM$294,8, FALSE) -> RES00 | D90: Small group rooms | M90: =IF(D90="","",_xlfn.XLOOKUP(D90,'Prog Assums'!$N$7:$N$221,'Prog Assums'!$AQ$7:$AQ$221,"")) -> Small group room | N90: Small group room9 | Q90: =ROUNDDOWN((AI90-VLOOKUP(AU90,'Prog Assums'!$E$38:$I$54,2,FALSE))/VLOOKUP(AU90,'Prog Assums'!$E$38:$I$54,3,FALSE),0) -> 4 | S90: =VLOOKUP(D90,'Prog Assums'!N$5:U$271,5,FALSE) -> 9 | U90: =AK90 -> 4 | V90: 36 | AA90: 0 | AI90: 9 | AK90: =ROUND(K8/300,0) -> 4 | AN90: =IF(U90>0,VLOOKUP(D90,'Prog Assums'!$N$6:$S$169,6,FALSE),0) -> 0 | AP90: =VLOOKUP(D90,'Prog Assums'!N$139:T$210,7, FALSE) -> 4 | AQ90: =ROUNDDOWN(VLOOKUP(AU90,'Prog Assums'!$E$38:$I$54,2,FALSE)+(AP90*VLOOKUP(AU90,'Prog Assums'!$E$38:$I$54,3,FALSE)),0) -> 8 | AR90: =ROUNDUP(VLOOKUP(AU90,'Prog Assums'!$E$38:$I$54,4,FALSE)+(AP90*VLOOKUP(AU90,'Prog Assums'!$E$38:$I$54,5,FALSE)),0) -> 11 | AS90: 36 | AU90: =VLOOKUP(D90,'Prog Assums'!$N$132:$O$172,2,FALSE) -> B | BE90: =IF(ISERROR(AVERAGEIF('Individual Spaces'!F:F,'Secondary SoA'!$N90,'Individual Spaces'!K:K))=TRUE,"",AVERAGEIF('Individual Spaces'!F:F,'Secondary SoA'!$N90,'Individual Spaces'!K:K)) ->  | BG90: =COUNTIF('Individual Spaces'!F:F,'Secondary SoA'!$N90) -> 4 | BK90: 0 | BM90: =SUM(BO90:CK90) -> 4 | CK90: =U90-CI90 -> 4 | CM90: =IF($S90>0,VLOOKUP($D90,'Prog Assums'!$N$5:$AM$294,12, FALSE),"") -> 9m2 for up to 4 | CN90: =IF($S90>0,VLOOKUP($D90,'Prog Assums'!$N$5:$AM$294,13, FALSE),"") -> A | CQ90: =VLOOKUP(D90,'Prog Assums'!$N$6:$Q$229,3,0) -> 1.5 | CR90: =VLOOKUP(D90,'Prog Assums'!$N$6:$Q$229,4,0) -> 4 | CS90: 2 | CT90: 0 | CU90: 0 | CV90: 8 | CW90: 2 | CX90: 0 | CY90: 0 | CZ90: 8 | DA90: 4 | DB90: 9 | DD90: =ROUND($K5/300,0) -> 3 | DE90: =ROUND(K$6/300,0) -> 1 | DN90: =VLOOKUP($C90,'Prog Assums'!$U$5:$AI$293,11,FALSE) -> 6 | DO90: =VLOOKUP($C90,'Prog Assums'!$U$5:$AI$293,12,FALSE) -> - | DP90: =IF(VLOOKUP($C90,'Prog Assums'!$U$5:$AI$293,13,FALSE)="AS SOA",$AI90,VLOOKUP($C90,'Prog Assums'!$U$5:$AI$293,13,FALSE)) -> 9 | DQ90: =VLOOKUP($C90,'Prog Assums'!$U$5:$AI$293,14,FALSE) -> - | DR90: =VLOOKUP($C90,'Prog Assums'!$U$5:$AI$293,15,FALSE) -> 25 | DS90: 0 | DU90: -4 | DV90: -36 | DY90: 0 | EA90: 0 | EB90: 0 | EE90: 0 | EG90: 0 | EH90: 0 | EK90: 0 | EM90: 0 | EN90: 0 | ER90: 0 | ET90: =COUNTIFS($EY$2:$YD$2,'Prog Assums'!$B$130,$EY90:$YD90,">0") -> 0 | EU90: =SUMIF($EY$2:$YD$2,'Prog Assums'!$B$130,$EY90:$YD90) -> 0
A91: =VLOOKUP($D91,'Prog Assums'!$N$5:$AM$294,10, FALSE) -> RES00 | C91: =VLOOKUP($D91,'Prog Assums'!$N$5:$AM$294,8, FALSE) -> RES03 | D91: Small group rooms (medium) | M91: =IF(D91="","",_xlfn.XLOOKUP(D91,'Prog Assums'!$N$7:$N$221,'Prog Assums'!$AQ$7:$AQ$221,"")) -> Small group room (medium) | N91: Small group room (medium)12 | O91: =IF(VLOOKUP(D91,'Prog Assums'!N$128:V$174,9,FALSE)>0,"retained","") ->  | Q91: =IF(S91>0,ROUNDDOWN((S91-VLOOKUP(AU91,'Prog Assums'!$E$38:$I$54,2,FALSE))/VLOOKUP(AU91,'Prog Assums'!$E$38:$I$54,3,FALSE),0),"-") -> 6 | S91: =VLOOKUP(D91,'Prog Assums'!N$5:U$271,5,FALSE) -> 12 | U91: =AK91 -> 0 | V91: 0 | Y91: =AT91 -> 0 | AA91: 0 | AI91: =IF(K12>0,12,0) -> 0 | AK91: =IF(K12>0,ROUNDDOWN(K12/10,0),0) -> 0 | AN91: =IF(U91>0,VLOOKUP(D91,'Prog Assums'!$N$6:$S$169,6,FALSE),0) -> 0 | AP91: =VLOOKUP(D91,'Prog Assums'!N$139:T$210,7, FALSE) -> 6 | AQ91: =ROUNDDOWN(VLOOKUP(AU91,'Prog Assums'!$E$38:$I$54,2,FALSE)+(AP91*VLOOKUP(AU91,'Prog Assums'!$E$38:$I$54,3,FALSE)),0) -> 11 | AR91: =ROUNDUP(VLOOKUP(AU91,'Prog Assums'!$E$38:$I$54,4,FALSE)+(AP91*VLOOKUP(AU91,'Prog Assums'!$E$38:$I$54,5,FALSE)),0) -> 15 | AS91: 0 | AT91: =AK91*AI91 -> 0 | AU91: =VLOOKUP(D91,'Prog Assums'!$N$132:$O$172,2,FALSE) -> B | BE91: =IF(ISERROR(AVERAGEIF('Individual Spaces'!F:F,'Secondary SoA'!$N91,'Individual Spaces'!K:K))=TRUE,"",AVERAGEIF('Individual Spaces'!F:F,'Secondary SoA'!$N91,'Individual Spaces'!K:K)) ->  | BG91: =COUNTIF('Individual Spaces'!F:F,'Secondary SoA'!$N91) -> 0 | BK91: 0 | BM91: =SUM(BO91:CJ91) -> 0 | CI91: =U91 -> 0 | CK91: =U91-CI91 -> 0 | CM91: =IF($S91>0,VLOOKUP($D91,'Prog Assums'!$N$5:$AM$294,12, FALSE),"") -> 12m2 for up to 6 | CN91: =IF($S91>0,VLOOKUP($D91,'Prog Assums'!$N$5:$AM$294,13, FALSE),"") -> A | CQ91: =VLOOKUP(D91,'Prog Assums'!$N$6:$Q$229,3,0) -> 1.5 | CR91: =VLOOKUP(D91,'Prog Assums'!$N$6:$Q$229,4,0) -> 4 | CS91: 4 | CT91: 0 | CU91: 0 | CV91: 0 | CW91: 0 | CX91: 0 | CY91: 0 | CZ91: 0 | DN91: =VLOOKUP($C91,'Prog Assums'!$U$5:$AI$293,11,FALSE) -> 12 | DO91: =VLOOKUP($C91,'Prog Assums'!$U$5:$AI$293,12,FALSE) -> - | DP91: =IF(VLOOKUP($C91,'Prog Assums'!$U$5:$AI$293,13,FALSE)="AS SOA",$AI91,VLOOKUP($C91,'Prog Assums'!$U$5:$AI$293,13,FALSE)) -> 12 | DQ91: =VLOOKUP($C91,'Prog Assums'!$U$5:$AI$293,14,FALSE) -> - | DR91: =VLOOKUP($C91,'Prog Assums'!$U$5:$AI$293,15,FALSE) -> 25 | DS91: 0 | DU91: 0 | DV91: 0 | DY91: 0 | EA91: 0 | EB91: 0 | EE91: 0 | EG91: 0 | EH91: 0 | EK91: 0 | EM91: 0 | EN91: 0 | ER91: 0 | ET91: =COUNTIFS($EY$2:$YD$2,'Prog Assums'!$B$130,$EY91:$YD91,">0") -> 0 | EU91: =SUMIF($EY$2:$YD$2,'Prog Assums'!$B$130,$EY91:$YD91) -> 0
A92: =VLOOKUP($D92,'Prog Assums'!$N$5:$AM$294,10, FALSE) -> RES00 | C92: =VLOOKUP($D92,'Prog Assums'!$N$5:$AM$294,8, FALSE) -> RES04 | D92: Small group rooms (large SEN etc.) | M92: =IF(D92="","",_xlfn.XLOOKUP(D92,'Prog Assums'!$N$7:$N$221,'Prog Assums'!$AQ$7:$AQ$221,"")) -> Small group room (large SEN etc.) | N92: Small group room (large SEN etc.)16 | O92: =IF(VLOOKUP(D92,'Prog Assums'!N$128:V$174,9,FALSE)>0,"retained","") ->  | Q92: =IF(S92>0,ROUNDDOWN((S92-VLOOKUP(AU92,'Prog Assums'!$E$38:$I$54,2,FALSE))/VLOOKUP(AU92,'Prog Assums'!$E$38:$I$54,3,FALSE),0),"-") -> 8 | S92: =VLOOKUP(D92,'Prog Assums'!N$5:U$271,5,FALSE) -> 16 | U92: =AK92 -> 1 | V92: 16 | AA92: 0 | AI92: 16 | AK92: 1 | AN92: =IF(U92>0,VLOOKUP(D92,'Prog Assums'!$N$6:$S$169,6,FALSE),0) -> 0 | AP92: =VLOOKUP(D92,'Prog Assums'!N$139:T$210,7, FALSE) -> 9 | AQ92: =ROUNDDOWN(VLOOKUP(AU92,'Prog Assums'!$E$38:$I$54,2,FALSE)+(AP92*VLOOKUP(AU92,'Prog Assums'!$E$38:$I$54,3,FALSE)),0) -> 16 | AR92: =ROUNDUP(VLOOKUP(AU92,'Prog Assums'!$E$38:$I$54,4,FALSE)+(AP92*VLOOKUP(AU92,'Prog Assums'!$E$38:$I$54,5,FALSE)),0) -> 20 | AS92: 16 | AU92: =VLOOKUP(D92,'Prog Assums'!$N$132:$O$172,2,FALSE) -> B | BE92: =IF(ISERROR(AVERAGEIF('Individual Spaces'!F:F,'Secondary SoA'!$N92,'Individual Spaces'!K:K))=TRUE,"",AVERAGEIF('Individual Spaces'!F:F,'Secondary SoA'!$N92,'Individual Spaces'!K:K)) ->  | BG92: =COUNTIF('Individual Spaces'!F:F,'Secondary SoA'!$N92) -> 1 | BK92: 0 | BM92: =SUM(BO92:CK92) -> 1 | CK92: =U92-CI92 -> 1 | CM92: =IF($S92>0,VLOOKUP($D92,'Prog Assums'!$N$5:$AM$294,12, FALSE),"") -> 16m2 for up to 9 | CN92: =IF($S92>0,VLOOKUP($D92,'Prog Assums'!$N$5:$AM$294,13, FALSE),"") -> A | CQ92: =VLOOKUP(D92,'Prog Assums'!$N$6:$Q$229,3,0) -> 1.5 | CR92: =VLOOKUP(D92,'Prog Assums'!$N$6:$Q$229,4,0) -> 4 | CS92: 7 | CT92: 0 | CU92: 0 | CV92: 7 | CW92: 7 | CX92: 0 | CY92: 0 | CZ92: 7 | DA92: 8 | DB92: 16 | DD92: =IF($K5>1000,2,DD5) -> 1 | DN92: =VLOOKUP($C92,'Prog Assums'!$U$5:$AI$293,11,FALSE) -> 16 | DO92: =VLOOKUP($C92,'Prog Assums'!$U$5:$AI$293,12,FALSE) -> - | DP92: =IF(VLOOKUP($C92,'Prog Assums'!$U$5:$AI$293,13,FALSE)="AS SOA",$AI92,VLOOKUP($C92,'Prog Assums'!$U$5:$AI$293,13,FALSE)) -> 16 | DQ92: =VLOOKUP($C92,'Prog Assums'!$U$5:$AI$293,14,FALSE) -> - | DR92: =VLOOKUP($C92,'Prog Assums'!$U$5:$AI$293,15,FALSE) -> 41 | DS92: 0 | DU92: -1 | DV92: -16 | DY92: 0 | EA92: 0 | EB92: 0 | EE92: 0 | EG92: 0 | EH92: 0 | EK92: 0 | EM92: 0 | EN92: 0 | ER92: 0 | ET92: =COUNTIFS($EY$2:$YD$2,'Prog Assums'!$B$130,$EY92:$YD92,">0") -> 0 | EU92: =SUMIF($EY$2:$YD$2,'Prog Assums'!$B$130,$EY92:$YD92) -> 0
A93: =VLOOKUP($D93,'Prog Assums'!$N$5:$AM$294,10, FALSE) -> - | C93: =VLOOKUP($D93,'Prog Assums'!$N$5:$AM$294,8, FALSE) -> - | D93: - | M93: =IF(D93="","",_xlfn.XLOOKUP(D93,'Prog Assums'!$N$7:$N$221,'Prog Assums'!$AQ$7:$AQ$221,"")) -> - | N93: -0 | O93: =IF(VLOOKUP(D93,'Prog Assums'!N$128:V$174,9,FALSE)>0,"retained","") ->  | Q93: =IF(S93>0,ROUNDDOWN((S93-VLOOKUP(AU93,'Prog Assums'!$E$38:$I$54,2,FALSE))/VLOOKUP(AU93,'Prog Assums'!$E$38:$I$54,3,FALSE),0),"-") -> - | S93: =VLOOKUP(D93,'Prog Assums'!N$5:U$271,5,FALSE) -> 0 | V93: 0 | AA93: 0 | AN93: =IF(U93>0,VLOOKUP(D93,'Prog Assums'!$N$6:$S$169,6,FALSE),0) -> 0 | AP93: =VLOOKUP(D93,'Prog Assums'!N$139:T$210,7, FALSE) -> size | AQ93: =ROUNDDOWN(VLOOKUP(AU93,'Prog Assums'!$E$38:$I$54,2,FALSE)+(AP93*VLOOKUP(AU93,'Prog Assums'!$E$38:$I$54,3,FALSE)),0) ->  | AR93: =ROUNDUP(VLOOKUP(AU93,'Prog Assums'!$E$38:$I$54,4,FALSE)+(AP93*VLOOKUP(AU93,'Prog Assums'!$E$38:$I$54,5,FALSE)),0) ->  | AS93: 0 | AU93: =VLOOKUP(D93,'Prog Assums'!$N$132:$O$172,2,FALSE) -> 0 | BE93: =IF(ISERROR(AVERAGEIF('Individual Spaces'!F:F,'Secondary SoA'!$N93,'Individual Spaces'!K:K))=TRUE,"",AVERAGEIF('Individual Spaces'!F:F,'Secondary SoA'!$N93,'Individual Spaces'!K:K)) ->  | BG93: =COUNTIF('Individual Spaces'!F:F,'Secondary SoA'!$N93) -> 0 | BK93: 0 | BM93: =SUM(BO93:CK93) -> 0 | CK93: =U93 -> 0 | CM93: =IF($S93>0,VLOOKUP($D93,'Prog Assums'!$N$5:$AM$294,12, FALSE),"") ->  | CN93: =IF($S93>0,VLOOKUP($D93,'Prog Assums'!$N$5:$AM$294,13, FALSE),"") ->  | CQ93: =VLOOKUP(D93,'Prog Assums'!$N$6:$Q$229,3,0) -> 0 | CR93: =VLOOKUP(D93,'Prog Assums'!$N$6:$Q$229,4,0) -> 0 | CS93: 0 | CT93: 0 | CU93: 0 | CV93: 0 | CW93: 0 | CX93: 0 | CY93: 0 | CZ93: 0 | DA93: - | DN93: =VLOOKUP($C93,'Prog Assums'!$U$5:$AI$293,11,FALSE) -> 0 | DO93: =VLOOKUP($C93,'Prog Assums'!$U$5:$AI$293,12,FALSE) -> 0 | DP93: =IF(VLOOKUP($C93,'Prog Assums'!$U$5:$AI$293,13,FALSE)="AS SOA",$AI93,VLOOKUP($C93,'Prog Assums'!$U$5:$AI$293,13,FALSE)) -> 0 | DQ93: =VLOOKUP($C93,'Prog Assums'!$U$5:$AI$293,14,FALSE) -> 0 | DR93: =VLOOKUP($C93,'Prog Assums'!$U$5:$AI$293,15,FALSE) -> 0 | DS93: 0 | DU93: 0 | DV93: 0 | DY93: 0 | EA93: 0 | EB93: 0 | EE93: 0 | EG93: 0 | EH93: 0 | EK93: 0 | EM93: 0 | EN93: 0 | ER93: 0 | ET93: =COUNTIFS($EY$2:$YD$2,'Prog Assums'!$B$130,$EY93:$YD93,">0") -> 0 | EU93: =SUMIF($EY$2:$YD$2,'Prog Assums'!$B$130,$EY93:$YD93) -> 0
A94: =VLOOKUP($D94,'Prog Assums'!$N$5:$AM$294,10, FALSE) -> - | C94: =VLOOKUP($D94,'Prog Assums'!$N$5:$AM$294,8, FALSE) -> - | D94: - | M94: =IF(D94="","",_xlfn.XLOOKUP(D94,'Prog Assums'!$N$7:$N$221,'Prog Assums'!$AQ$7:$AQ$221,"")) -> - | N94: -0 | O94: =IF(VLOOKUP(D94,'Prog Assums'!N$128:V$174,9,FALSE)>0,"retained","") ->  | Q94: - | S94: =VLOOKUP(D94,'Prog Assums'!N$5:U$271,5,FALSE) -> 0 | V94: 0 | AA94: 0 | AN94: =IF(U94>0,VLOOKUP(D94,'Prog Assums'!$N$6:$S$169,6,FALSE),0) -> 0 | AP94: =VLOOKUP(D94,'Prog Assums'!N$139:T$210,7, FALSE) -> size | AQ94: =ROUNDDOWN(VLOOKUP(AU94,'Prog Assums'!$E$38:$I$54,2,FALSE)+(AP94*VLOOKUP(AU94,'Prog Assums'!$E$38:$I$54,3,FALSE)),0) ->  | AR94: =ROUNDUP(VLOOKUP(AU94,'Prog Assums'!$E$38:$I$54,4,FALSE)+(AP94*VLOOKUP(AU94,'Prog Assums'!$E$38:$I$54,5,FALSE)),0) ->  | AS94: 0 | AT94: =IF(K$12>0,AI94*AK94,0) -> 0 | AU94: =VLOOKUP(D94,'Prog Assums'!$N$132:$O$172,2,FALSE) -> 0 | BE94: =IF(ISERROR(AVERAGEIF('Individual Spaces'!F:F,'Secondary SoA'!$N94,'Individual Spaces'!K:K))=TRUE,"",AVERAGEIF('Individual Spaces'!F:F,'Secondary SoA'!$N94,'Individual Spaces'!K:K)) ->  | BG94: =COUNTIF('Individual Spaces'!F:F,'Secondary SoA'!$N94) -> 0 | BK94: 0 | BM94: =SUM(BO94:CK94) -> 0 | CK94: =U94 -> 0 | CM94: =IF($S94>0,VLOOKUP($D94,'Prog Assums'!$N$5:$AM$294,12, FALSE),"") ->  | CN94: =IF($S94>0,VLOOKUP($D94,'Prog Assums'!$N$5:$AM$294,13, FALSE),"") ->  | CQ94: =VLOOKUP(D94,'Prog Assums'!$N$6:$Q$229,3,0) -> 0 | CR94: =VLOOKUP(D94,'Prog Assums'!$N$6:$Q$229,4,0) -> 0 | CS94: 0 | CT94: 0 | CU94: 0 | CV94: 0 | CW94: 0 | CX94: 0 | CY94: 0 | CZ94: 0 | DN94: =VLOOKUP($C94,'Prog Assums'!$U$5:$AI$293,11,FALSE) -> 0 | DO94: =VLOOKUP($C94,'Prog Assums'!$U$5:$AI$293,12,FALSE) -> 0 | DP94: =IF(VLOOKUP($C94,'Prog Assums'!$U$5:$AI$293,13,FALSE)="AS SOA",$AI94,VLOOKUP($C94,'Prog Assums'!$U$5:$AI$293,13,FALSE)) -> 0 | DQ94: =VLOOKUP($C94,'Prog Assums'!$U$5:$AI$293,14,FALSE) -> 0 | DR94: =VLOOKUP($C94,'Prog Assums'!$U$5:$AI$293,15,FALSE) -> 0 | DS94: 0 | DU94: 0 | DV94: 0 | DY94: 0 | EA94: 0 | EB94: 0 | EE94: 0 | EG94: 0 | EH94: 0 | EK94: 0 | EM94: 0 | EN94: 0 | ER94: 0 | ET94: =COUNTIFS($EY$2:$YD$2,'Prog Assums'!$B$130,$EY94:$YD94,">0") -> 0 | EU94: =SUMIF($EY$2:$YD$2,'Prog Assums'!$B$130,$EY94:$YD94) -> 0
D95: TOTAL AREA | L95: BB103 range | M95: BB103 range | N95: BB103 range | O95: =ROUND(IF(K$4>0,50,75)+IF(K$6>0,50,0)+((K$4+K$5)*0.15)+(K$6*0.4),0) -> 350 | P95: to | Q95: =IF(AR$8>0,75,125)+(IF(K6>0,75,0)+(K4*0.25)+(K$5*0.25)+(K$6*0.5)) -> 537.5 | V95: =SUM(V76:V94) -> 353 | Y95: =SUM(Y76:Y94) -> 0 | AA95: =SUM(AA76:AA94) -> 0 | AC95: =IF(V95<O95,"ERROR: total area for category is too low",IF(V95>Q95,"WARNING: total area for category is high","OK: area within BB103 range")) -> OK: area within BB103 range | AI95: =SUM(AS76:AS94) -> 353 | AK95: =SUM(AT76:AT94) -> 0 | BH95: =SUM(BH76:BH94) -> 0 | BJ95: =BH95-Y95-V95 -> -353 | BO95: =SUM(BO76:BO94) -> 0 | BQ95: =SUM(BQ76:BQ94) -> 0 | BS95: =SUM(BS76:BS94) -> 0 | BU95: =SUM(BU76:BU94) -> 0 | BW95: =SUM(BW76:BW94) -> 0 | BY95: =SUM(BY76:BY94) -> 0 | CA95: =SUM(CA76:CA94) -> 1 | CC95: =SUM(CC76:CC94) -> 5 | CE95: =SUM(CE76:CE94) -> 0 | CG95: =SUM(CG76:CG94) -> 0 | CI95: =SUM(CI76:CI94) -> 0 | CK95: =SUM(CK76:CK94) -> 9 | DV95: =SUM(EU95,EN95,EH95,EB95)-SUM(Y95,V95) -> -353 | EB95: =SUM(EB76:EB94) -> 0 | EH95: =SUM(EH76:EH94) -> 0 | EN95: =SUM(EN76:EN94) -> 0 | EU95: =SUM(EU76:EU94) -> 0
D97: SoA FOR MAINSTREAM SECONDARY (cont.) | S97: average | AA97: AREA | AJ97: recommended | AQ97: area range | BE97: average area of space (m2) | BG97: TOTAL no. of spaces | BH97: TOTAL AREA (incl supp) | CT97: work | CV97: re- | CW97: basic | CX97: work | CZ97: re- | DS97: DIFFERENCES | DY97: =DY13 -> 0 | EE97: =EE13 -> 0 | EK97: =EK13 -> 0 | ER97: =ER13 -> 0
S98: area of | U98: TOTAL | V98: TOTAL | Y98: SUPP | AA98: OF RE- | AI98: area of | AP98: max. group size | AQ98: min for min group | AR98: max for max group | BO98: =BO15 -> Mathematics | BQ98: =BQ15 -> English | BS98: =BS15 -> MFL | BU98: =BU15 -> Humanities | BW98: =BW15 -> ICT and Business Studies | BY98: =BY15 -> Science | CA98: =CA15 -> DT/ Art | CC98: =CC15 -> Perf arts, hall and dining | CE98: =CE15 -> Sports/ PE | CG98: =CG15 -> Admin | CI98: =CI15 -> - | CK98: =CK15 -> Balance | CT98: places | CU98: basic | CV98: source | CW98: wkpl'ce | CX98: places | CY98: basic | CZ98: source | DA98: max.
D99: =S2 -> [Insert Project Code and Scheme Name here in title sheet] | S99: space | U99: no. of | V99: AREA | Y99: AREA | AA99: TAINED | AI99: space | AK99: no. of | CT99: per | CU99: work | CV99: work | CW99: allow- | CX99: per | CY99: work | CZ99: work | DA99: group | DS99: average | DU99: TOTAL | DV99: TOTAL | DY99: average | EA99: TOTAL | EB99: TOTAL | EE99: average | EG99: TOTAL | EH99: TOTAL | EK99: average | EM99: TOTAL | EN99: TOTAL | ER99: average | ET99: TOTAL | EU99: TOTAL
S100: (m2) | U100: spaces | V100: (m2) | Y100: (m2) | AA100: SPACES | AI100: (m2) | AK100: spaces | CT100: room | CU100: places | CV100: places | CW100: ance | CX100: room | CY100: places | CZ100: places | DA100: size | DS100: area of | DU100: no.of | DV100: AREA | DY100: area of | EA100: no.of | EB100: AREA | EE100: area of | EG100: no.of | EH100: AREA | EK100: area of | EM100: no.of | EN100: AREA | ER100: area of | ET100: no.of | EU100: AREA
DS101: space | DU101: spaces | DY101: space | EA101: spaces | EE101: space | EG101: spaces | EK101: space | EM101: spaces | ER101: space | ET101: spaces
D103: Staff and Administration Areas | BC103: staff prep size based on rooms | BO103: =ROUND(6+(BO61*2.1),0) -> 25 | BQ103: =ROUND(6+(BQ61*2.1),0) -> 25 | BS103: =ROUND(6+(BS61*2.1),0) -> 21 | BU103: =ROUND(6+(BU61*2.1),0) -> 17 | BW103: =ROUND(6+(BW61*2.1),0) -> 14 | BY103: =ROUND(6+(BY61*2.1),0) -> 27 | CA103: =ROUND(6+(CA61*2.1),0) -> 21 | CC103: =ROUND(6+(CC61*2.1),0) -> 10 | CE103: =ROUND(6+(CE61*2.1),0) -> 6 | CG103: =ROUND(6+(CG61*2.1),0) -> 6 | CI103: =ROUND(6+(CI61*2.1),0) -> 6 | CK103: =ROUND(6+(CK61*2.1),0) -> 6
A104: =VLOOKUP($D104,'Prog Assums'!$N$5:$AM$294,10, FALSE) -> OFF30 | C104: =VLOOKUP($D104,'Prog Assums'!$N$5:$AM$294,8, FALSE) -> OFF33 | D104: Staff workrooms (teaching staff) | M104: =IF(D104="","",_xlfn.XLOOKUP(D104,'Prog Assums'!$N$7:$N$221,'Prog Assums'!$AQ$7:$AQ$221,"")) -> Staff workrooms (teaching staff) | N104: =CONCATENATE(M104,S104) -> Staff workrooms (teaching staff)19 | Q104: =IF(S104>0,ROUND((S104-VLOOKUP(AU104,'Prog Assums'!$E$38:$I$54,2,FALSE))/VLOOKUP(AU104,'Prog Assums'!$E$38:$I$54,3,FALSE),0),"-") -> 7 | S104: =AI104 -> 19 | U104: =AK104 -> 5 | V104: =MAXA((S104*U104)-Y104,0) -> 95 | AA104: =IF(O104="retained",V104+Y104,IF(O104="refurb'ed",V104+Y104,0)) -> 0 | AI104: =(ROUNDUP(K8/100,0)*2)-4-IF(K8/50>10,1,0) -> 19 | AK104: 5 | AO104: =IF(P104="existing","E","") ->  | AQ104: 12 | AR104: 35 | AS104: =MAXA((AI104*AK104)-AT104,0) -> 95 | AU104: =VLOOKUP(D104,'Prog Assums'!$N$173:$O$211,2,FALSE) -> D | BE104: =IF(ISERROR(AVERAGEIF('Individual Spaces'!F:F,'Secondary SoA'!$N104,'Individual Spaces'!K:K))=TRUE,"",AVERAGEIF('Individual Spaces'!F:F,'Secondary SoA'!$N104,'Individual Spaces'!K:K)) ->  | BG104: =COUNTIF('Individual Spaces'!F:F,'Secondary SoA'!$N104) -> 5 | BH104: =IF(ISERROR(BE104*BG104)=TRUE,"",BE104*BG104) ->  | BJ104: =IF(ISERROR(BH104-Y104-V104)=TRUE,"",BH104-Y104-V104) ->  | BK104: =BG104-U104 -> 0 | BM104: =SUM(BO104:CK104) -> 5 | BO104: 1 | BQ104: 1 | BS104: 1 | BY104: 1 | CA104: 1 | CM104: =IF($S104>0,VLOOKUP($D104,'Prog Assums'!$N$5:$AM$294,12, FALSE),"") -> varies | CN104: =IF($S104>0,VLOOKUP($D104,'Prog Assums'!$N$5:$AM$294,13, FALSE),"") -> 0 | CQ104: =VLOOKUP(D104,'Prog Assums'!$N$6:$Q$229,3,0) -> 1.5 | CR104: =VLOOKUP(D104,'Prog Assums'!$N$6:$Q$229,4,0) -> 4 | CS104: 9 | CT104: =IF(CS104>14,IF(CS104<31,CS104,ROUNDDOWN(CS104/30,0)*30),0) -> 0 | CU104: =IF(S104>0,(V104/S104)*CT104,0) -> 0 | CV104: =IF(CS104>0,(V104/S104)*CS104,0)-CU104 -> 45 | CW104: =IF(AK104=0,0,MAXA(1,ROUNDUP((AI104/CQ104)-CR104,0))) -> 9 | CX104: =IF(CW104>14,IF(CW104<31,CW104,ROUNDDOWN(CW104/30,0)*30),0) -> 0 | CY104: =IF(AK104>0,(AS104/AI104)*CX104,0) -> 0 | CZ104: =IF(CW104>0,(AS104/AI104)*CW104,0)-CY104 -> 45 | DA104: - | DN104: =VLOOKUP($C104,'Prog Assums'!$U$5:$AI$293,11,FALSE) -> 9 | DO104: =VLOOKUP($C104,'Prog Assums'!$U$5:$AI$293,12,FALSE) -> - | DP104: =IF(VLOOKUP($C104,'Prog Assums'!$U$5:$AI$293,13,FALSE)="AS SOA",$AI104,VLOOKUP($C104,'Prog Assums'!$U$5:$AI$293,13,FALSE)) -> 19 | DQ104: =VLOOKUP($C104,'Prog Assums'!$U$5:$AI$293,14,FALSE) -> - | DR104: =VLOOKUP($C104,'Prog Assums'!$U$5:$AI$293,15,FALSE) -> 50 | DS104: =IF(ISERROR((SUM($EB104,$EH104,$EN104,$EU104)/SUM($EA104,$EG104,$EM104,$ET104)-$S104))=TRUE,0,IF($U104=0,0,(SUM($EB104,$EH104,$EN104,$EU104)/SUM($EA104,$EG104,$EM104,$ET104)-$S104))) -> 0 | DU104: =SUM(EA104,EG104,EM104,ET104)-U104 -> -5 | DV104: =SUM($EU104,$EN104,$EH104,$EB104)-$V104-$Y104 -> -95 | DY104: 0 | EB104: =EA104*DY104 -> 0 | EE104: 0 | EG104: 0 | EH104: =EG104*EE104 -> 0 | EK104: =IF(EN104>0,SUM(EN104/EM104),0) -> 0 | EM104: =COUNTIFS($EY$2:$YD$2,"Refurb",$EY104:$YD104,">0") -> 0 | EN104: =SUMIF($EY$2:$YD$2,"Refurb",$EY104:$YD104) -> 0 | ER104: =IF(EU104>0,SUM(EU104/ET104),0) -> 0 | ET104: =COUNTIFS($EY$2:$YD$2,'Prog Assums'!$B$130,$EY104:$YD104,">0") -> 0 | EU104: =SUMIF($EY$2:$YD$2,'Prog Assums'!$B$130,$EY104:$YD104) -> 0
A105: =VLOOKUP($D105,'Prog Assums'!$N$5:$AM$294,10, FALSE) -> OFF30 | C105: =VLOOKUP($D105,'Prog Assums'!$N$5:$AM$294,8, FALSE) -> OFF32 | D105: Staff workrooms (smaller teaching team) | M105: =IF(D105="","",_xlfn.XLOOKUP(D105,'Prog Assums'!$N$7:$N$221,'Prog Assums'!$AQ$7:$AQ$221,"")) -> Staff workrooms (smaller teaching team) | N105: Staff workrooms (smaller teaching team)15 | Q105: =IF(S105>0,ROUND((S105-VLOOKUP(AU105,'Prog Assums'!$E$38:$I$54,2,FALSE))/VLOOKUP(AU105,'Prog Assums'!$E$38:$I$54,3,FALSE),0),"-") -> 5 | S105: 15 | U105: 3 | V105: 45 | AA105: =IF(O105="retained",V105+Y105,IF(O105="refurb'ed",V105+Y105,0)) -> 0 | AI105: =MAXA(ROUND((AI104+3)*2/3,0),9) -> 15 | AK105: =IF(K6>0,3,1) -> 3 | AO105: =IF(P105="existing","E","") ->  | AQ105: 12 | AR105: 35 | AS105: 45 | AU105: =VLOOKUP(D105,'Prog Assums'!$N$173:$O$211,2,FALSE) -> D | BE105: =IF(ISERROR(AVERAGEIF('Individual Spaces'!F:F,'Secondary SoA'!$N105,'Individual Spaces'!K:K))=TRUE,"",AVERAGEIF('Individual Spaces'!F:F,'Secondary SoA'!$N105,'Individual Spaces'!K:K)) ->  | BG105: =COUNTIF('Individual Spaces'!F:F,'Secondary SoA'!$N105) -> 3 | BK105: 0 | BM105: 3 | BU105: 1 | BW105: =IF(K6>0,1,0) -> 1 | CC105: =IF(K6>0,1,0) -> 1 | CM105: =IF($S105>0,VLOOKUP($D105,'Prog Assums'!$N$5:$AM$294,12, FALSE),"") -> varies | CN105: =IF($S105>0,VLOOKUP($D105,'Prog Assums'!$N$5:$AM$294,13, FALSE),"") -> 0 | CQ105: =VLOOKUP(D105,'Prog Assums'!$N$6:$Q$229,3,0) -> 1.5 | CR105: =VLOOKUP(D105,'Prog Assums'!$N$6:$Q$229,4,0) -> 4 | CS105: 6 | CT105: 0 | CU105: 0 | CV105: 18 | CW105: 6 | CX105: 0 | CY105: 0 | CZ105: 18 | DN105: =VLOOKUP($C105,'Prog Assums'!$U$5:$AI$293,11,FALSE) -> 9 | DO105: =VLOOKUP($C105,'Prog Assums'!$U$5:$AI$293,12,FALSE) -> - | DP105: =IF(VLOOKUP($C105,'Prog Assums'!$U$5:$AI$293,13,FALSE)="AS SOA",$AI105,VLOOKUP($C105,'Prog Assums'!$U$5:$AI$293,13,FALSE)) -> 15 | DQ105: =VLOOKUP($C105,'Prog Assums'!$U$5:$AI$293,14,FALSE) -> - | DR105: =VLOOKUP($C105,'Prog Assums'!$U$5:$AI$293,15,FALSE) -> 50 | DS105: 0 | DU105: -3 | DV105: -45 | DY105: 0 | EA105: 0 | EB105: 0 | EE105: 0 | EG105: 0 | EH105: 0 | EK105: 0 | EM105: 0 | EN105: 0 | ER105: 0 | ET105: =COUNTIFS($EY$2:$YD$2,'Prog Assums'!$B$130,$EY105:$YD105,">0") -> 0 | EU105: =SUMIF($EY$2:$YD$2,'Prog Assums'!$B$130,$EY105:$YD105) -> 0
A106: =VLOOKUP($D106,'Prog Assums'!$N$5:$AM$294,10, FALSE) -> OFF50 | C106: =VLOOKUP($D106,'Prog Assums'!$N$5:$AM$294,8, FALSE) -> OFF52 | D106: =IF(AD103="central staff room","Staff rooms (prep and social)","Staff rooms (social)") -> Staff rooms (social) | M106: =IF(D106="","",_xlfn.XLOOKUP(D106,'Prog Assums'!$N$7:$N$221,'Prog Assums'!$AQ$7:$AQ$221,"")) -> Staff room (social) | N106: Staff room (social)41 | Q106: =IF(S106>0,ROUND((S106-VLOOKUP(AU106,'Prog Assums'!$E$38:$I$54,2,FALSE))/VLOOKUP(AU106,'Prog Assums'!$E$38:$I$54,3,FALSE),0),"-") -> 24 | S106: 41 | U106: 1 | V106: 41 | AA106: 0 | AC106: including kitchenette and pigeon holes | AI106: =(ROUND(MAX(34,ROUND(K8/25,0),O130-SUM(AS104:AS105)-SUM(AS107:AS129),0)/7,0)*7)-1 -> 41 | AK106: 1 | AQ106: 30 | AR106: 140 | AS106: 41 | AU106: =VLOOKUP(D106,'Prog Assums'!$N$173:$O$211,2,FALSE) -> B | BE106: =IF(ISERROR(AVERAGEIF('Individual Spaces'!F:F,'Secondary SoA'!$N106,'Individual Spaces'!K:K))=TRUE,"",AVERAGEIF('Individual Spaces'!F:F,'Secondary SoA'!$N106,'Individual Spaces'!K:K)) ->  | BG106: =COUNTIF('Individual Spaces'!F:F,'Secondary SoA'!$N106) -> 1 | BK106: 0 | BM106: 1 | CG106: =U106 -> 1 | CM106: =IF($S106>0,VLOOKUP($D106,'Prog Assums'!$N$5:$AM$294,12, FALSE),"") -> varies | CN106: =IF($S106>0,VLOOKUP($D106,'Prog Assums'!$N$5:$AM$294,13, FALSE),"") -> 0 | CQ106: =VLOOKUP(D106,'Prog Assums'!$N$6:$Q$229,3,0) -> 1.5 | CR106: =VLOOKUP(D106,'Prog Assums'!$N$6:$Q$229,4,0) -> 4 | CS106: 24 | CT106: 24 | CU106: 24 | CV106: 0 | CW106: 24 | CX106: 24 | CY106: 24 | CZ106: 0 | DA106: - | DN106: =VLOOKUP($C106,'Prog Assums'!$U$5:$AI$293,11,FALSE) -> 12 | DO106: =VLOOKUP($C106,'Prog Assums'!$U$5:$AI$293,12,FALSE) -> - | DP106: =IF(VLOOKUP($C106,'Prog Assums'!$U$5:$AI$293,13,FALSE)="AS SOA",$AI106,VLOOKUP($C106,'Prog Assums'!$U$5:$AI$293,13,FALSE)) -> 41 | DQ106: =VLOOKUP($C106,'Prog Assums'!$U$5:$AI$293,14,FALSE) -> - | DR106: =VLOOKUP($C106,'Prog Assums'!$U$5:$AI$293,15,FALSE) -> 150 | DS106: 0 | DU106: -1 | DV106: -41 | DY106: 0 | EA106: 0 | EB106: 0 | EE106: 0 | EG106: 0 | EH106: 0 | EK106: 0 | EM106: 0 | EN106: 0 | ER106: 0 | ET106: =COUNTIFS($EY$2:$YD$2,'Prog Assums'!$B$130,$EY106:$YD106,">0") -> 0 | EU106: =SUMIF($EY$2:$YD$2,'Prog Assums'!$B$130,$EY106:$YD106) -> 0
A107: =VLOOKUP($D107,'Prog Assums'!$N$5:$AM$294,10, FALSE) -> OFF40 | C107: =VLOOKUP($D107,'Prog Assums'!$N$5:$AM$294,8, FALSE) -> OFF40 | D107: Meeting rooms (conference) | M107: =IF(D107="","",_xlfn.XLOOKUP(D107,'Prog Assums'!$N$7:$N$221,'Prog Assums'!$AQ$7:$AQ$221,"")) -> Meeting room (conference) | N107: Meeting room (conference)19 | Q107: =IF(S107>0,ROUND((S107-VLOOKUP(AU107,'Prog Assums'!$E$38:$I$54,2,FALSE))/VLOOKUP(AU107,'Prog Assums'!$E$38:$I$54,3,FALSE),0),"-") -> 9 | S107: 19 | U107: 1 | V107: 19 | AA107: 0 | AI107: =MAXA(16,ROUND(K8/60,0)) -> 19 | AK107: =IF($K8>750,1,0) -> 1 | AQ107: 16 | AR107: 48 | AS107: 19 | AU107: =VLOOKUP(D107,'Prog Assums'!$N$173:$O$211,2,FALSE) -> C | BE107: =IF(ISERROR(AVERAGEIF('Individual Spaces'!F:F,'Secondary SoA'!$N107,'Individual Spaces'!K:K))=TRUE,"",AVERAGEIF('Individual Spaces'!F:F,'Secondary SoA'!$N107,'Individual Spaces'!K:K)) ->  | BG107: =COUNTIF('Individual Spaces'!F:F,'Secondary SoA'!$N107) -> 1 | BK107: 0 | BM107: 1 | CG107: =U107 -> 1 | CM107: =IF($S107>0,VLOOKUP($D107,'Prog Assums'!$N$5:$AM$294,12, FALSE),"") -> varies | CN107: =IF($S107>0,VLOOKUP($D107,'Prog Assums'!$N$5:$AM$294,13, FALSE),"") -> 0 | CQ107: =VLOOKUP(D107,'Prog Assums'!$N$6:$Q$229,3,0) -> 1.5 | CR107: =VLOOKUP(D107,'Prog Assums'!$N$6:$Q$229,4,0) -> 4 | CS107: 9 | CT107: 0 | CU107: 0 | CV107: 9 | CW107: 9 | CX107: 0 | CY107: 0 | CZ107: 9 | DA107: =ROUNDUP(((DB108-4)/1.6),0) -> -3 | DN107: =VLOOKUP($C107,'Prog Assums'!$U$5:$AI$293,11,FALSE) -> 12 | DO107: =VLOOKUP($C107,'Prog Assums'!$U$5:$AI$293,12,FALSE) -> - | DP107: =IF(VLOOKUP($C107,'Prog Assums'!$U$5:$AI$293,13,FALSE)="AS SOA",$AI107,VLOOKUP($C107,'Prog Assums'!$U$5:$AI$293,13,FALSE)) -> 19 | DQ107: =VLOOKUP($C107,'Prog Assums'!$U$5:$AI$293,14,FALSE) -> - | DR107: =VLOOKUP($C107,'Prog Assums'!$U$5:$AI$293,15,FALSE) -> 50 | DS107: 0 | DU107: -1 | DV107: -19 | DY107: 0 | EA107: 0 | EB107: 0 | EE107: 0 | EG107: 0 | EH107: 0 | EK107: 0 | EM107: 0 | EN107: 0 | ER107: 0 | ET107: =COUNTIFS($EY$2:$YD$2,'Prog Assums'!$B$130,$EY107:$YD107,">0") -> 0 | EU107: =SUMIF($EY$2:$YD$2,'Prog Assums'!$B$130,$EY107:$YD107) -> 0
A108: =VLOOKUP($D108,'Prog Assums'!$N$5:$AM$294,10, FALSE) -> ADM32 | C108: =VLOOKUP($D108,'Prog Assums'!$N$5:$AM$294,8, FALSE) -> ADM32 | D108: Reception areas, community (50% circulation) | M108: =IF(D108="","",_xlfn.XLOOKUP(D108,'Prog Assums'!$N$7:$N$221,'Prog Assums'!$AQ$7:$AQ$221,"")) -> Reception area, community (50% circulation) | N108: Reception area, community (50% circulation)8 | Q108: - | S108: =AI108+AJ108 -> 8 | U108: 1 | V108: =MAXA((S108*U108)-Y108,0)-W108 -> 4 | W108: =(S108*U108)/2 -> 4 | AA108: 0 | AC108: for community use outside core hours | AI108: 4 | AJ108: 4 | AK108: 1 | AS108: 4 | AU108: =VLOOKUP(D108,'Prog Assums'!$N$173:$O$211,2,FALSE) -> - | BE108: =IF(ISERROR(AVERAGEIF('Individual Spaces'!F:F,'Secondary SoA'!$N108,'Individual Spaces'!K:K))=TRUE,"",AVERAGEIF('Individual Spaces'!F:F,'Secondary SoA'!$N108,'Individual Spaces'!K:K)) ->  | BG108: =COUNTIF('Individual Spaces'!F:F,'Secondary SoA'!$N108) -> 1 | BK108: 0 | BM108: 1 | CE108: =U108 -> 1 | CM108: =IF($S108>0,VLOOKUP($D108,'Prog Assums'!$N$5:$AM$294,12, FALSE),"") -> [4m2] | CN108: =IF($S108>0,VLOOKUP($D108,'Prog Assums'!$N$5:$AM$294,13, FALSE),"") -> 0 | CQ108: =VLOOKUP(D108,'Prog Assums'!$N$6:$Q$229,3,0) -> 1.5 | CR108: =VLOOKUP(D108,'Prog Assums'!$N$6:$Q$229,4,0) -> 4 | CS108: 2 | CT108: 0 | CU108: 0 | CV108: 1 | CW108: 1 | CX108: 0 | CY108: 0 | CZ108: 1 | DN108: =VLOOKUP($C108,'Prog Assums'!$U$5:$AI$293,11,FALSE) -> 4 | DO108: =VLOOKUP($C108,'Prog Assums'!$U$5:$AI$293,12,FALSE) -> - | DP108: =IF(VLOOKUP($C108,'Prog Assums'!$U$5:$AI$293,13,FALSE)="AS SOA",$AI108,VLOOKUP($C108,'Prog Assums'!$U$5:$AI$293,13,FALSE)) -> 4 | DQ108: =VLOOKUP($C108,'Prog Assums'!$U$5:$AI$293,14,FALSE) -> - | DR108: =VLOOKUP($C108,'Prog Assums'!$U$5:$AI$293,15,FALSE) -> 25 | DS108: 0 | DU108: -1 | DV108: -4 | DY108: 0 | EA108: 0 | EB108: 0 | EE108: 0 | EG108: 0 | EH108: 0 | EK108: 0 | EM108: 0 | EN108: 0 | ER108: 0 | ET108: =COUNTIFS($EY$2:$YD$2,'Prog Assums'!$B$130,$EY108:$YD108,">0") -> 0 | EU108: =SUMIF($EY$2:$YD$2,'Prog Assums'!$B$130,$EY108:$YD108) -> 0
A109: =VLOOKUP($D109,'Prog Assums'!$N$5:$AM$294,10, FALSE) -> ADM22 | C109: =VLOOKUP($D109,'Prog Assums'!$N$5:$AM$294,8, FALSE) -> ADM22 | D109: Kitchenettes, bay | M109: =IF(D109="","",_xlfn.XLOOKUP(D109,'Prog Assums'!$N$7:$N$221,'Prog Assums'!$AQ$7:$AQ$221,"")) -> Kitchenette, bay | N109: Kitchenette, bay3 | O109: =IF(VLOOKUP(D109,'Prog Assums'!N$173:V$306,9,FALSE)>0,"retained","") ->  | Q109: =IF(S109>0,ROUND((S109-VLOOKUP(AU109,'Prog Assums'!$E$38:$I$54,2,FALSE))/VLOOKUP(AU109,'Prog Assums'!$E$38:$I$54,3,FALSE),0),"-") -> 1 | S109: 3 | U109: 5 | V109: 15 | AA109: 0 | AC109: =IF(D109="Kitchenettes, bay","off each Staff workroom (teaching staff)","") -> off each Staff workroom (teaching staff) | AI109: 3 | AK109: =AK104 -> 5 | AS109: 15 | AU109: =VLOOKUP(D109,'Prog Assums'!$N$173:$O$211,2,FALSE) -> B | BE109: =IF(ISERROR(AVERAGEIF('Individual Spaces'!F:F,'Secondary SoA'!$N109,'Individual Spaces'!K:K))=TRUE,"",AVERAGEIF('Individual Spaces'!F:F,'Secondary SoA'!$N109,'Individual Spaces'!K:K)) ->  | BG109: =COUNTIF('Individual Spaces'!F:F,'Secondary SoA'!$N109) -> 5 | BK109: 0 | BM109: 5 | CG109: =U109 -> 5 | CM109: =IF($S109>0,VLOOKUP($D109,'Prog Assums'!$N$5:$AM$294,12, FALSE),"") -> 4m2 | CN109: =IF($S109>0,VLOOKUP($D109,'Prog Assums'!$N$5:$AM$294,13, FALSE),"") -> 0 | CQ109: =VLOOKUP(D109,'Prog Assums'!$N$6:$Q$229,3,0) -> 2.5 | CR109: =VLOOKUP(D109,'Prog Assums'!$N$6:$Q$229,4,0) -> 4 | CS109: 1 | CT109: 0 | CU109: 0 | CV109: 5 | CW109: 1 | CX109: 0 | CY109: 0 | CZ109: 5 | DN109: =VLOOKUP($C109,'Prog Assums'!$U$5:$AI$293,11,FALSE) -> 4 | DO109: =VLOOKUP($C109,'Prog Assums'!$U$5:$AI$293,12,FALSE) -> - | DP109: =IF(VLOOKUP($C109,'Prog Assums'!$U$5:$AI$293,13,FALSE)="AS SOA",$AI109,VLOOKUP($C109,'Prog Assums'!$U$5:$AI$293,13,FALSE)) -> 4 | DQ109: =VLOOKUP($C109,'Prog Assums'!$U$5:$AI$293,14,FALSE) -> - | DR109: =VLOOKUP($C109,'Prog Assums'!$U$5:$AI$293,15,FALSE) -> 12 | DS109: 0 | DU109: -5 | DV109: -15 | DY109: 0 | EA109: 0 | EB109: 0 | EE109: 0 | EG109: 0 | EH109: 0 | EK109: 0 | EM109: 0 | EN109: 0 | ER109: 0 | ET109: =COUNTIFS($EY$2:$YD$2,'Prog Assums'!$B$130,$EY109:$YD109,">0") -> 0 | EU109: =SUMIF($EY$2:$YD$2,'Prog Assums'!$B$130,$EY109:$YD109) -> 0
A110: =VLOOKUP($D110,'Prog Assums'!$N$5:$AM$294,10, FALSE) -> - | C110: =VLOOKUP($D110,'Prog Assums'!$N$5:$AM$294,8, FALSE) -> - | D110: =IF(K12>0,"Staff workrooms (specially resourced)","-") -> - | M110: =IF(D110="","",_xlfn.XLOOKUP(D110,'Prog Assums'!$N$7:$N$221,'Prog Assums'!$AQ$7:$AQ$221,"")) -> - | N110: -0 | O110: =IF(VLOOKUP(D110,'Prog Assums'!N$173:V$306,9,FALSE)>0,"retained","") ->  | Q110: =IF(S110>0,ROUND((S110-VLOOKUP(AU110,'Prog Assums'!$E$38:$I$54,2,FALSE))/VLOOKUP(AU110,'Prog Assums'!$E$38:$I$54,3,FALSE),0),"-") -> - | S110: 0 | U110: 0 | V110: 0 | Y110: =AT110 -> 0 | AA110: 0 | AI110: =IF(K12>0,4+ROUND(K12*0.4,0),0) -> 0 | AK110: =IF(K12>0,1,0) -> 0 | AS110: 0 | AT110: =IF(D$11>0,AI110*AK110,0) -> 0 | AU110: =VLOOKUP(D110,'Prog Assums'!$N$173:$O$211,2,FALSE) -> - | BE110: =IF(ISERROR(AVERAGEIF('Individual Spaces'!F:F,'Secondary SoA'!$N110,'Individual Spaces'!K:K))=TRUE,"",AVERAGEIF('Individual Spaces'!F:F,'Secondary SoA'!$N110,'Individual Spaces'!K:K)) ->  | BG110: =COUNTIF('Individual Spaces'!F:F,'Secondary SoA'!$N110) -> 0 | BK110: 0 | BM110: 0 | CI110: =IF(K12>0,1,0) -> 0 | CM110: =IF($S110>0,VLOOKUP($D110,'Prog Assums'!$N$5:$AM$294,12, FALSE),"") ->  | CN110: =IF($S110>0,VLOOKUP($D110,'Prog Assums'!$N$5:$AM$294,13, FALSE),"") ->  | CQ110: =VLOOKUP(D110,'Prog Assums'!$N$6:$Q$229,3,0) -> 0 | CR110: =VLOOKUP(D110,'Prog Assums'!$N$6:$Q$229,4,0) -> 0 | CS110: 0 | CT110: =IF(CS110>14,IF(CS110<31,CS110,ROUNDDOWN(CS110/30,0)*30),0) -> 0 | CU110: 0 | CV110: 0 | CW110: 0 | CX110: 0 | CY110: 0 | CZ110: 0 | DA110: - | DN110: =VLOOKUP($C110,'Prog Assums'!$U$5:$AI$293,11,FALSE) -> 0 | DO110: =VLOOKUP($C110,'Prog Assums'!$U$5:$AI$293,12,FALSE) -> 0 | DP110: =IF(VLOOKUP($C110,'Prog Assums'!$U$5:$AI$293,13,FALSE)="AS SOA",$AI110,VLOOKUP($C110,'Prog Assums'!$U$5:$AI$293,13,FALSE)) -> 0 | DQ110: =VLOOKUP($C110,'Prog Assums'!$U$5:$AI$293,14,FALSE) -> 0 | DR110: =VLOOKUP($C110,'Prog Assums'!$U$5:$AI$293,15,FALSE) -> 0 | DS110: 0 | DU110: 0 | DV110: 0 | DY110: 0 | EA110: 0 | EB110: 0 | EE110: 0 | EG110: 0 | EH110: 0 | EK110: 0 | EM110: 0 | EN110: 0 | ER110: 0 | ET110: =COUNTIFS($EY$2:$YD$2,'Prog Assums'!$B$130,$EY110:$YD110,">0") -> 0 | EU110: =SUMIF($EY$2:$YD$2,'Prog Assums'!$B$130,$EY110:$YD110) -> 0
CM111: =IF($S111>0,VLOOKUP($D111,'Prog Assums'!$N$5:$AM$294,12, FALSE),"") ->  | CN111: =IF($S111>0,VLOOKUP($D111,'Prog Assums'!$N$5:$AM$294,13, FALSE),"") -> 
D112: Admin suite | AC112: reception desk options | AG112: office with 2 recep desks | CM112: =IF($S112>0,VLOOKUP($D112,'Prog Assums'!$N$5:$AM$294,12, FALSE),"") ->  | CN112: =IF($S112>0,VLOOKUP($D112,'Prog Assums'!$N$5:$AM$294,13, FALSE),"") -> 
A113: =VLOOKUP($D113,'Prog Assums'!$N$5:$AM$294,10, FALSE) -> ADM10 | C113: =VLOOKUP($D113,'Prog Assums'!$N$5:$AM$294,8, FALSE) -> ADM11 | D113: Enclosed offices, admin (head) | M113: =IF(D113="","",_xlfn.XLOOKUP(D113,'Prog Assums'!$N$7:$N$221,'Prog Assums'!$AQ$7:$AQ$221,"")) -> Enclosed office, admin (head) | N113: =CONCATENATE(M113,S113) -> Enclosed office, admin (head)16 | Q113: =IF(S113>0,ROUND((S113-VLOOKUP(AU113,'Prog Assums'!$E$38:$I$54,2,FALSE))/VLOOKUP(AU113,'Prog Assums'!$E$38:$I$54,3,FALSE),0),"-") -> 6 | S113: =AI113 -> 16 | U113: =AK113 -> 1 | V113: =MAXA((S113*U113)-Y113,0) -> 16 | AA113: 0 | AI113: 16 | AK113: 1 | AP113: =VLOOKUP(D113,'Prog Assums'!N$139:T$210,7, FALSE) -> 5 | AQ113: 10 | AR113: 25 | AS113: 16 | AU113: =VLOOKUP(D113,'Prog Assums'!$N$173:$O$211,2,FALSE) -> D | BE113: =IF(ISERROR(AVERAGEIF('Individual Spaces'!F:F,'Secondary SoA'!$N113,'Individual Spaces'!K:K))=TRUE,"",AVERAGEIF('Individual Spaces'!F:F,'Secondary SoA'!$N113,'Individual Spaces'!K:K)) ->  | BG113: =COUNTIF('Individual Spaces'!F:F,'Secondary SoA'!$N113) -> 1 | BH113: =IF(ISERROR(BE113*BG113)=TRUE,"",BE113*BG113) ->  | BJ113: =IF(ISERROR(BH113-Y113-V113)=TRUE,"",BH113-Y113-V113) ->  | BK113: 0 | BM113: =SUM(BO113:CK113) -> 1 | CG113: 1 | CM113: =IF($S113>0,VLOOKUP($D113,'Prog Assums'!$N$5:$AM$294,12, FALSE),"") -> 16m2 | CN113: =IF($S113>0,VLOOKUP($D113,'Prog Assums'!$N$5:$AM$294,13, FALSE),"") -> 0 | CQ113: =VLOOKUP(D113,'Prog Assums'!$N$6:$Q$229,3,0) -> 1.5 | CR113: =VLOOKUP(D113,'Prog Assums'!$N$6:$Q$229,4,0) -> 4 | CS113: 7 | CT113: =IF(CS113>14,IF(CS113<31,CS113,ROUNDDOWN(CS113/30,0)*30),0) -> 0 | CU113: =IF(S113>0,(V113/S113)*CT113,0) -> 0 | CV113: =IF(CS113>0,(V113/S113)*CS113,0)-CU113 -> 7 | CW113: =IF(AK113=0,0,MAXA(1,ROUNDUP((AI113/CQ113)-CR113,0))) -> 7 | CX113: =IF(CW113>14,IF(CW113<31,CW113,ROUNDDOWN(CW113/30,0)*30),0) -> 0 | CY113: =IF(AK113>0,(AS113/AI113)*CX113,0) -> 0 | CZ113: =IF(CW113>0,(AS113/AI113)*CW113,0)-CY113 -> 7 | DA113: - | DN113: =VLOOKUP($C113,'Prog Assums'!$U$5:$AI$293,11,FALSE) -> 9 | DO113: =VLOOKUP($C113,'Prog Assums'!$U$5:$AI$293,12,FALSE) -> - | DP113: =IF(VLOOKUP($C113,'Prog Assums'!$U$5:$AI$293,13,FALSE)="AS SOA",$AI113,VLOOKUP($C113,'Prog Assums'!$U$5:$AI$293,13,FALSE)) -> 16 | DQ113: =VLOOKUP($C113,'Prog Assums'!$U$5:$AI$293,14,FALSE) -> - | DR113: =VLOOKUP($C113,'Prog Assums'!$U$5:$AI$293,15,FALSE) -> 41 | DS113: =IF(ISERROR((SUM($EB113,$EH113,$EN113,$EU113)/SUM($EA113,$EG113,$EM113,$ET113)-$S113))=TRUE,0,IF($U113=0,0,(SUM($EB113,$EH113,$EN113,$EU113)/SUM($EA113,$EG113,$EM113,$ET113)-$S113))) -> 0 | DU113: =SUM(EA113,EG113,EM113,ET113)-U113 -> -1 | DV113: =SUM($EU113,$EN113,$EH113,$EB113)-$V113-$Y113 -> -16 | DY113: 0 | EA113: 0 | EB113: =EA113*DY113 -> 0 | EE113: 0 | EG113: 0 | EH113: =EG113*EE113 -> 0 | EK113: =IF(EN113>0,SUM(EN113/EM113),0) -> 0 | EM113: =COUNTIFS($EY$2:$YD$2,"Refurb",$EY113:$YD113,">0") -> 0 | EN113: =SUMIF($EY$2:$YD$2,"Refurb",$EY113:$YD113) -> 0 | ER113: =IF(EU113>0,SUM(EU113/ET113),0) -> 0 | ET113: =COUNTIFS($EY$2:$YD$2,'Prog Assums'!$B$130,$EY113:$YD113,">0") -> 0 | EU113: =SUMIF($EY$2:$YD$2,'Prog Assums'!$B$130,$EY113:$YD113) -> 0
A114: =VLOOKUP($D114,'Prog Assums'!$N$5:$AM$294,10, FALSE) -> ADM10 | C114: =VLOOKUP($D114,'Prog Assums'!$N$5:$AM$294,8, FALSE) -> ADM13 | D114: Enclosed offices, admin (PA) | M114: =IF(D114="","",_xlfn.XLOOKUP(D114,'Prog Assums'!$N$7:$N$221,'Prog Assums'!$AQ$7:$AQ$221,"")) -> Enclosed office, admin (PA) | N114: Enclosed office, admin (PA)8 | O114: =IF(VLOOKUP(D114,'Prog Assums'!N$173:V$306,9,FALSE)>0,"retained","") ->  | Q114: =IF(S114>0,MAXA(0,ROUND((S114-VLOOKUP(AU114,'Prog Assums'!$E$38:$I$54,2,FALSE))/VLOOKUP(AU114,'Prog Assums'!$E$38:$I$54,3,FALSE),0)),"-") -> 1 | S114: =AI114 -> 8 | U114: 1 | V114: 8 | AA114: 0 | AI114: 8 | AK114: 1 | AP114: =VLOOKUP(D114,'Prog Assums'!N$139:T$210,7, FALSE) -> 1 | AQ114: 6 | AR114: 10 | AS114: 8 | AU114: =VLOOKUP(D114,'Prog Assums'!$N$173:$O$211,2,FALSE) -> K | BE114: =IF(ISERROR(AVERAGEIF('Individual Spaces'!F:F,'Secondary SoA'!$N114,'Individual Spaces'!K:K))=TRUE,"",AVERAGEIF('Individual Spaces'!F:F,'Secondary SoA'!$N114,'Individual Spaces'!K:K)) ->  | BG114: =COUNTIF('Individual Spaces'!F:F,'Secondary SoA'!$N114) -> 1 | BK114: 0 | BM114: 1 | CG114: =U114 -> 1 | CM114: =IF($S114>0,VLOOKUP($D114,'Prog Assums'!$N$5:$AM$294,12, FALSE),"") -> 8m2 | CN114: =IF($S114>0,VLOOKUP($D114,'Prog Assums'!$N$5:$AM$294,13, FALSE),"") -> 0 | CQ114: =VLOOKUP(D114,'Prog Assums'!$N$6:$Q$229,3,0) -> 1.5 | CR114: =VLOOKUP(D114,'Prog Assums'!$N$6:$Q$229,4,0) -> 4 | CS114: 2 | CT114: 0 | CU114: 0 | CV114: 2 | CW114: 2 | CX114: 0 | CY114: 0 | CZ114: 2 | DA114: - | DN114: =VLOOKUP($C114,'Prog Assums'!$U$5:$AI$293,11,FALSE) -> 7 | DO114: =VLOOKUP($C114,'Prog Assums'!$U$5:$AI$293,12,FALSE) -> - | DP114: =IF(VLOOKUP($C114,'Prog Assums'!$U$5:$AI$293,13,FALSE)="AS SOA",$AI114,VLOOKUP($C114,'Prog Assums'!$U$5:$AI$293,13,FALSE)) -> 8 | DQ114: =VLOOKUP($C114,'Prog Assums'!$U$5:$AI$293,14,FALSE) -> - | DR114: =VLOOKUP($C114,'Prog Assums'!$U$5:$AI$293,15,FALSE) -> 12 | DS114: 0 | DU114: -1 | DV114: -8 | DY114: 0 | EA114: 0 | EB114: 0 | EE114: 0 | EG114: 0 | EH114: 0 | EK114: 0 | EM114: 0 | EN114: 0 | ER114: 0 | ET114: =COUNTIFS($EY$2:$YD$2,'Prog Assums'!$B$130,$EY114:$YD114,">0") -> 0 | EU114: =SUMIF($EY$2:$YD$2,'Prog Assums'!$B$130,$EY114:$YD114) -> 0
A115: =VLOOKUP($D115,'Prog Assums'!$N$5:$AM$294,10, FALSE) -> ADM08 | C115: =VLOOKUP($D115,'Prog Assums'!$N$5:$AM$294,8, FALSE) -> ADM08 | D115: Reprographics rooms | M115: =IF(D115="","",_xlfn.XLOOKUP(D115,'Prog Assums'!$N$7:$N$221,'Prog Assums'!$AQ$7:$AQ$221,"")) -> Reprographics room | N115: Reprographics room20 | O115: =IF(VLOOKUP(D115,'Prog Assums'!N$173:V$306,9,FALSE)>0,"retained","") ->  | Q115: =IF(S115>0,MAXA(0,ROUND((S115-VLOOKUP(AU115,'Prog Assums'!$E$38:$I$54,2,FALSE))/VLOOKUP(AU115,'Prog Assums'!$E$38:$I$54,3,FALSE),0)),"-") -> 4 | S115: =AI115 -> 20 | U115: 1 | V115: 20 | AA115: 0 | AI115: =(ROUND((K8/60)/7,0)*7)-1 -> 20 | AK115: 1 | AS115: 20 | AU115: =VLOOKUP(D115,'Prog Assums'!$N$173:$O$211,2,FALSE) -> K | BE115: =IF(ISERROR(AVERAGEIF('Individual Spaces'!F:F,'Secondary SoA'!$N115,'Individual Spaces'!K:K))=TRUE,"",AVERAGEIF('Individual Spaces'!F:F,'Secondary SoA'!$N115,'Individual Spaces'!K:K)) ->  | BG115: =COUNTIF('Individual Spaces'!F:F,'Secondary SoA'!$N115) -> 1 | BK115: 0 | BM115: 1 | CG115: 1 | CM115: =IF($S115>0,VLOOKUP($D115,'Prog Assums'!$N$5:$AM$294,12, FALSE),"") -> varies | CN115: =IF($S115>0,VLOOKUP($D115,'Prog Assums'!$N$5:$AM$294,13, FALSE),"") -> 0 | CQ115: =VLOOKUP(D115,'Prog Assums'!$N$6:$Q$229,3,0) -> 2 | CR115: =VLOOKUP(D115,'Prog Assums'!$N$6:$Q$229,4,0) -> 4 | CS115: 6 | CT115: 0 | CU115: 0 | CV115: 6 | CW115: 6 | CX115: 0 | CY115: 0 | CZ115: 6 | DA115: - | DN115: =VLOOKUP($C115,'Prog Assums'!$U$5:$AI$293,11,FALSE) -> 6 | DO115: =VLOOKUP($C115,'Prog Assums'!$U$5:$AI$293,12,FALSE) -> - | DP115: =IF(VLOOKUP($C115,'Prog Assums'!$U$5:$AI$293,13,FALSE)="AS SOA",$AI115,VLOOKUP($C115,'Prog Assums'!$U$5:$AI$293,13,FALSE)) -> 20 | DQ115: =VLOOKUP($C115,'Prog Assums'!$U$5:$AI$293,14,FALSE) -> - | DR115: =VLOOKUP($C115,'Prog Assums'!$U$5:$AI$293,15,FALSE) -> 100 | DS115: 0 | DU115: -1 | DV115: -20 | DY115: 0 | EA115: 0 | EB115: 0 | EE115: 0 | EG115: 0 | EH115: 0 | EK115: 0 | EM115: 0 | EN115: 0 | ER115: 0 | ET115: =COUNTIFS($EY$2:$YD$2,'Prog Assums'!$B$130,$EY115:$YD115,">0") -> 0 | EU115: =SUMIF($EY$2:$YD$2,'Prog Assums'!$B$130,$EY115:$YD115) -> 0
A116: =VLOOKUP($D116,'Prog Assums'!$N$5:$AM$294,10, FALSE) -> ADM05 | C116: =VLOOKUP($D116,'Prog Assums'!$N$5:$AM$294,8, FALSE) -> ADM07 | D116: =IF(AG112="office with 2 recep desks","Enclosed offices, with recep desk (and window)","Enclosed offices, with recep desk (only)") -> Enclosed offices, with recep desk (and window) | M116: =IF(D116="","",_xlfn.XLOOKUP(D116,'Prog Assums'!$N$7:$N$221,'Prog Assums'!$AQ$7:$AQ$221,"")) -> Enclosed office, with recep desk (and window) | N116: Enclosed office, with recep desk (and window)41 | O116: =IF(VLOOKUP(D116,'Prog Assums'!N$173:V$306,9,FALSE)>0,"retained","") ->  | Q116: =IF(S116>0,MAXA(0,ROUND((S116-VLOOKUP(AU116,'Prog Assums'!$E$38:$I$54,2,FALSE))/VLOOKUP(AU116,'Prog Assums'!$E$38:$I$54,3,FALSE),0)),"-") -> 10 | S116: 41 | U116: 1 | V116: 41 | AA116: 0 | AC116: to match option above | AI116: =(ROUNDUP((K8/30)/7,0)*7)-1-IF(AI117>0,AI117+1,0) -> 41 | AK116: 1 | AS116: 41 | AU116: =VLOOKUP(D116,'Prog Assums'!$N$173:$O$211,2,FALSE) -> K | BE116: =IF(ISERROR(AVERAGEIF('Individual Spaces'!F:F,'Secondary SoA'!$N116,'Individual Spaces'!K:K))=TRUE,"",AVERAGEIF('Individual Spaces'!F:F,'Secondary SoA'!$N116,'Individual Spaces'!K:K)) ->  | BG116: =COUNTIF('Individual Spaces'!F:F,'Secondary SoA'!$N116) -> 1 | BK116: 0 | BM116: 1 | CG116: 1 | CM116: =IF($S116>0,VLOOKUP($D116,'Prog Assums'!$N$5:$AM$294,12, FALSE),"") -> varies | CN116: =IF($S116>0,VLOOKUP($D116,'Prog Assums'!$N$5:$AM$294,13, FALSE),"") -> 0 | CQ116: =VLOOKUP(D116,'Prog Assums'!$N$6:$Q$229,3,0) -> 1.5 | CR116: =VLOOKUP(D116,'Prog Assums'!$N$6:$Q$229,4,0) -> 4 | CS116: 24 | CT116: =IF(CS116>14,IF(CS116<31,CS116,ROUNDDOWN(CS116/30,0)*30),0) -> 24 | CU116: 24 | CV116: 0 | CW116: 24 | CX116: 24 | CY116: 24 | CZ116: 0 | DA116: - | DN116: =VLOOKUP($C116,'Prog Assums'!$U$5:$AI$293,11,FALSE) -> 8 | DO116: =VLOOKUP($C116,'Prog Assums'!$U$5:$AI$293,12,FALSE) -> - | DP116: =IF(VLOOKUP($C116,'Prog Assums'!$U$5:$AI$293,13,FALSE)="AS SOA",$AI116,VLOOKUP($C116,'Prog Assums'!$U$5:$AI$293,13,FALSE)) -> 41 | DQ116: =VLOOKUP($C116,'Prog Assums'!$U$5:$AI$293,14,FALSE) -> - | DR116: =VLOOKUP($C116,'Prog Assums'!$U$5:$AI$293,15,FALSE) -> 100 | DS116: 0 | DU116: -1 | DV116: -41 | DY116: 0 | EA116: 0 | EB116: 0 | EE116: 0 | EG116: 0 | EH116: 0 | EK116: 0 | EM116: 0 | EN116: 0 | ER116: 0 | ET116: =COUNTIFS($EY$2:$YD$2,'Prog Assums'!$B$130,$EY116:$YD116,">0") -> 0 | EU116: =SUMIF($EY$2:$YD$2,'Prog Assums'!$B$130,$EY116:$YD116) -> 0
A117: =VLOOKUP($D117,'Prog Assums'!$N$5:$AM$294,10, FALSE) -> - | C117: =VLOOKUP($D117,'Prog Assums'!$N$5:$AM$294,8, FALSE) -> - | D117: =IF(AG112="office and finance/student support","Enclosed offices, with recep window","-") -> - | M117: =IF(D117="","",_xlfn.XLOOKUP(D117,'Prog Assums'!$N$7:$N$221,'Prog Assums'!$AQ$7:$AQ$221,"")) -> - | N117: -0 | O117: =IF(VLOOKUP(D117,'Prog Assums'!N$173:V$306,9,FALSE)>0,"retained","") ->  | Q117: =IF(S117>0,MAXA(0,ROUND((S117-VLOOKUP(AU117,'Prog Assums'!$E$38:$I$54,2,FALSE))/VLOOKUP(AU117,'Prog Assums'!$E$38:$I$54,3,FALSE),0)),"-") -> - | S117: 0 | U117: 0 | V117: 0 | AA117: 0 | AI117: =IF(AG112="office and finance/student support",(ROUNDUP((K8/60)/7,0)*7)-1,0) -> 0 | AK117: =IF(AG112="office and finance/student support",1,0) -> 0 | AS117: 0 | AU117: =VLOOKUP(D117,'Prog Assums'!$N$173:$O$211,2,FALSE) -> - | BE117: =IF(ISERROR(AVERAGEIF('Individual Spaces'!F:F,'Secondary SoA'!$N117,'Individual Spaces'!K:K))=TRUE,"",AVERAGEIF('Individual Spaces'!F:F,'Secondary SoA'!$N117,'Individual Spaces'!K:K)) ->  | BG117: =COUNTIF('Individual Spaces'!F:F,'Secondary SoA'!$N117) -> 0 | BK117: 0 | BM117: 0 | CG117: 0 | CM117: =IF($S117>0,VLOOKUP($D117,'Prog Assums'!$N$5:$AM$294,12, FALSE),"") ->  | CN117: =IF($S117>0,VLOOKUP($D117,'Prog Assums'!$N$5:$AM$294,13, FALSE),"") ->  | CQ117: =VLOOKUP(D117,'Prog Assums'!$N$6:$Q$229,3,0) -> 0 | CR117: =VLOOKUP(D117,'Prog Assums'!$N$6:$Q$229,4,0) -> 0 | CS117: 0 | CT117: 0 | CU117: 0 | CV117: 0 | CW117: 0 | CX117: 0 | CY117: 0 | CZ117: 0 | DA117: - | DN117: =VLOOKUP($C117,'Prog Assums'!$U$5:$AI$293,11,FALSE) -> 0 | DO117: =VLOOKUP($C117,'Prog Assums'!$U$5:$AI$293,12,FALSE) -> 0 | DP117: =IF(VLOOKUP($C117,'Prog Assums'!$U$5:$AI$293,13,FALSE)="AS SOA",$AI117,VLOOKUP($C117,'Prog Assums'!$U$5:$AI$293,13,FALSE)) -> 0 | DQ117: =VLOOKUP($C117,'Prog Assums'!$U$5:$AI$293,14,FALSE) -> 0 | DR117: =VLOOKUP($C117,'Prog Assums'!$U$5:$AI$293,15,FALSE) -> 0 | DS117: 0 | DU117: 0 | DV117: 0 | DY117: 0 | EA117: 0 | EB117: 0 | EE117: 0 | EG117: 0 | EH117: 0 | EK117: 0 | EM117: 0 | EN117: 0 | ER117: 0 | ET117: =COUNTIFS($EY$2:$YD$2,'Prog Assums'!$B$130,$EY117:$YD117,">0") -> 0 | EU117: =SUMIF($EY$2:$YD$2,'Prog Assums'!$B$130,$EY117:$YD117) -> 0
A118: =VLOOKUP($D118,'Prog Assums'!$N$5:$AM$294,10, FALSE) -> ADM31 | C118: =VLOOKUP($D118,'Prog Assums'!$N$5:$AM$294,8, FALSE) -> ADM31 | D118: Reception areas, entrance (50% circulation) | M118: =IF(D118="","",_xlfn.XLOOKUP(D118,'Prog Assums'!$N$7:$N$221,'Prog Assums'!$AQ$7:$AQ$221,"")) -> Reception area, entrance (50% circulation) | N118: Reception area, entrance (50% circulation)16 | Q118: - | S118: =AI118+AJ118 -> 16 | U118: 1 | V118: =MAXA((S118*U118)-Y118,0)-W118 -> 8 | W118: =(S118*U118)/2 -> 8 | AA118: 0 | AC118: net area of this space only | AI118: 8 | AJ118: 8 | AK118: 1 | AQ118: 3 | AR118: 15 | AS118: 8 | AU118: =VLOOKUP(D118,'Prog Assums'!$N$173:$O$211,2,FALSE) -> - | BE118: =IF(ISERROR(AVERAGEIF('Individual Spaces'!F:F,'Secondary SoA'!$N118,'Individual Spaces'!K:K))=TRUE,"",AVERAGEIF('Individual Spaces'!F:F,'Secondary SoA'!$N118,'Individual Spaces'!K:K)) ->  | BG118: =COUNTIF('Individual Spaces'!F:F,'Secondary SoA'!$N118) -> 0 | BK118: -1 | BM118: 1 | CG118: 1 | CM118: =IF($S118>0,VLOOKUP($D118,'Prog Assums'!$N$5:$AM$294,12, FALSE),"") -> [6m2] | CN118: =IF($S118>0,VLOOKUP($D118,'Prog Assums'!$N$5:$AM$294,13, FALSE),"") -> 0 | CQ118: =VLOOKUP(D118,'Prog Assums'!$N$6:$Q$229,3,0) -> 1.5 | CR118: =VLOOKUP(D118,'Prog Assums'!$N$6:$Q$229,4,0) -> 4 | CS118: 7 | CT118: 0 | CU118: 0 | CV118: 3.5 | CW118: 2 | CX118: 0 | CY118: 0 | CZ118: 2 | DA118: - | DN118: =VLOOKUP($C118,'Prog Assums'!$U$5:$AI$293,11,FALSE) -> 4 | DO118: =VLOOKUP($C118,'Prog Assums'!$U$5:$AI$293,12,FALSE) -> - | DP118: =IF(VLOOKUP($C118,'Prog Assums'!$U$5:$AI$293,13,FALSE)="AS SOA",$AI118,VLOOKUP($C118,'Prog Assums'!$U$5:$AI$293,13,FALSE)) -> 8 | DQ118: =VLOOKUP($C118,'Prog Assums'!$U$5:$AI$293,14,FALSE) -> - | DR118: =VLOOKUP($C118,'Prog Assums'!$U$5:$AI$293,15,FALSE) -> 25 | DS118: 0 | DU118: -1 | DV118: -8 | DY118: 0 | EA118: 0 | EB118: 0 | EE118: 0 | EG118: 0 | EH118: 0 | EK118: 0 | EM118: 0 | EN118: 0 | ER118: 0 | ET118: =COUNTIFS($EY$2:$YD$2,'Prog Assums'!$B$130,$EY118:$YD118,">0") -> 0 | EU118: =SUMIF($EY$2:$YD$2,'Prog Assums'!$B$130,$EY118:$YD118) -> 0
A119: =VLOOKUP($D119,'Prog Assums'!$N$5:$AM$294,10, FALSE) -> ADM02 | C119: =VLOOKUP($D119,'Prog Assums'!$N$5:$AM$294,8, FALSE) -> ADM02 | D119: Confidential meetings rooms (interview) | M119: =IF(D119="","",_xlfn.XLOOKUP(D119,'Prog Assums'!$N$7:$N$221,'Prog Assums'!$AQ$7:$AQ$221,"")) -> Confidential meeting room (interview) | N119: Confidential meeting room (interview)6 | Q119: =IF(S119>0,ROUND((S119-VLOOKUP(AU119,'Prog Assums'!$E$38:$I$54,2,FALSE))/VLOOKUP(AU119,'Prog Assums'!$E$38:$I$54,3,FALSE),0),"-") -> 4 | S119: 6 | U119: 1 | V119: 6 | AA119: 0 | AC119: adjacent to entrance/reception | AI119: 6 | AK119: 1 | AQ119: 6 | AR119: 9 | AS119: 6 | AU119: =VLOOKUP(D119,'Prog Assums'!$N$173:$O$211,2,FALSE) -> A | BE119: =IF(ISERROR(AVERAGEIF('Individual Spaces'!F:F,'Secondary SoA'!$N119,'Individual Spaces'!K:K))=TRUE,"",AVERAGEIF('Individual Spaces'!F:F,'Secondary SoA'!$N119,'Individual Spaces'!K:K)) ->  | BG119: =COUNTIF('Individual Spaces'!F:F,'Secondary SoA'!$N119) -> 1 | BK119: 0 | BM119: 1 | CG119: 1 | CM119: =IF($S119>0,VLOOKUP($D119,'Prog Assums'!$N$5:$AM$294,12, FALSE),"") -> 6m2 for 3 | CN119: =IF($S119>0,VLOOKUP($D119,'Prog Assums'!$N$5:$AM$294,13, FALSE),"") -> 0 | CQ119: =VLOOKUP(D119,'Prog Assums'!$N$6:$Q$229,3,0) -> 1.5 | CR119: =VLOOKUP(D119,'Prog Assums'!$N$6:$Q$229,4,0) -> 4 | CS119: 1 | CT119: 0 | CU119: 0 | CV119: 1 | CW119: 1 | CX119: 0 | CY119: 0 | CZ119: 1 | DN119: =VLOOKUP($C119,'Prog Assums'!$U$5:$AI$293,11,FALSE) -> 4 | DO119: =VLOOKUP($C119,'Prog Assums'!$U$5:$AI$293,12,FALSE) -> - | DP119: =IF(VLOOKUP($C119,'Prog Assums'!$U$5:$AI$293,13,FALSE)="AS SOA",$AI119,VLOOKUP($C119,'Prog Assums'!$U$5:$AI$293,13,FALSE)) -> 6 | DQ119: =VLOOKUP($C119,'Prog Assums'!$U$5:$AI$293,14,FALSE) -> - | DR119: =VLOOKUP($C119,'Prog Assums'!$U$5:$AI$293,15,FALSE) -> 25 | DS119: 0 | DU119: -1 | DV119: -6 | DY119: 0 | EA119: 0 | EB119: 0 | EE119: 0 | EG119: 0 | EH119: 0 | EK119: 0 | EM119: 0 | EN119: 0 | ER119: 0 | ET119: =COUNTIFS($EY$2:$YD$2,'Prog Assums'!$B$130,$EY119:$YD119,">0") -> 0 | EU119: =SUMIF($EY$2:$YD$2,'Prog Assums'!$B$130,$EY119:$YD119) -> 0
A120: =VLOOKUP($D120,'Prog Assums'!$N$5:$AM$294,10, FALSE) -> ADM03 | C120: =VLOOKUP($D120,'Prog Assums'!$N$5:$AM$294,8, FALSE) -> ADM03 | D120: First aid posts (sick bay) | M120: =IF(D120="","",_xlfn.XLOOKUP(D120,'Prog Assums'!$N$7:$N$221,'Prog Assums'!$AQ$7:$AQ$221,"")) -> First aid post (sick bay) | N120: First aid post (sick bay)6 | Q120: =IF(S120>0,ROUND((S120-VLOOKUP(AU120,'Prog Assums'!$E$38:$I$54,2,FALSE))/VLOOKUP(AU120,'Prog Assums'!$E$38:$I$54,3,FALSE),0),"-") -> 3 | S120: 6 | U120: 1 | V120: 6 | AA120: 0 | AC120: adjacent to entrance/reception | AI120: =IF(K8>1200,9,6) -> 6 | AK120: 1 | AQ120: 6 | AR120: 9 | AS120: 6 | AU120: =VLOOKUP(D120,'Prog Assums'!$N$173:$O$211,2,FALSE) -> B | BE120: =IF(ISERROR(AVERAGEIF('Individual Spaces'!F:F,'Secondary SoA'!$N120,'Individual Spaces'!K:K))=TRUE,"",AVERAGEIF('Individual Spaces'!F:F,'Secondary SoA'!$N120,'Individual Spaces'!K:K)) ->  | BG120: =COUNTIF('Individual Spaces'!F:F,'Secondary SoA'!$N120) -> 1 | BK120: 0 | BM120: 1 | CG120: 1 | CM120: =IF($S120>0,VLOOKUP($D120,'Prog Assums'!$N$5:$AM$294,12, FALSE),"") -> 6m2 | CN120: =IF($S120>0,VLOOKUP($D120,'Prog Assums'!$N$5:$AM$294,13, FALSE),"") -> 0 | CQ120: =VLOOKUP(D120,'Prog Assums'!$N$6:$Q$229,3,0) -> 1.5 | CR120: =VLOOKUP(D120,'Prog Assums'!$N$6:$Q$229,4,0) -> 4 | CS120: 1 | CT120: =IF(CS120>14,IF(CS120<31,CS120,ROUNDDOWN(CS120/30,0)*30),0) -> 0 | CU120: 0 | CV120: 1 | CW120: 1 | CX120: 0 | CY120: 0 | CZ120: 1 | DN120: =VLOOKUP($C120,'Prog Assums'!$U$5:$AI$293,11,FALSE) -> 4 | DO120: =VLOOKUP($C120,'Prog Assums'!$U$5:$AI$293,12,FALSE) -> - | DP120: =IF(VLOOKUP($C120,'Prog Assums'!$U$5:$AI$293,13,FALSE)="AS SOA",$AI120,VLOOKUP($C120,'Prog Assums'!$U$5:$AI$293,13,FALSE)) -> 6 | DQ120: =VLOOKUP($C120,'Prog Assums'!$U$5:$AI$293,14,FALSE) -> - | DR120: =VLOOKUP($C120,'Prog Assums'!$U$5:$AI$293,15,FALSE) -> 25 | DS120: 0 | DU120: -1 | DV120: -6 | DY120: 0 | EA120: 0 | EB120: 0 | EE120: 0 | EG120: 0 | EH120: 0 | EK120: 0 | EM120: 0 | EN120: 0 | ER120: 0 | ET120: =COUNTIFS($EY$2:$YD$2,'Prog Assums'!$B$130,$EY120:$YD120,">0") -> 0 | EU120: =SUMIF($EY$2:$YD$2,'Prog Assums'!$B$130,$EY120:$YD120) -> 0
D121: Offices | AE121: (no. of offices | AF121: =U113+U114+SUM(U122:U129) -> 19 | AG121: ) | CM121: =IF($S121>0,VLOOKUP($D121,'Prog Assums'!$N$5:$AM$294,12, FALSE),"") ->  | CN121: =IF($S121>0,VLOOKUP($D121,'Prog Assums'!$N$5:$AM$294,13, FALSE),"") -> 
A122: =VLOOKUP($D122,'Prog Assums'!$N$5:$AM$294,10, FALSE) -> OFF00 | C122: =VLOOKUP($D122,'Prog Assums'!$N$5:$AM$294,8, FALSE) -> OFF01 | D122: Offices (1-person) | M122: =IF(D122="","",_xlfn.XLOOKUP(D122,'Prog Assums'!$N$7:$N$221,'Prog Assums'!$AQ$7:$AQ$221,"")) -> Office (1-person) | N122: =CONCATENATE(M122,S122) -> Office (1-person)7 | Q122: =IF(S122>0,ROUND((S122-VLOOKUP(AU122,'Prog Assums'!$E$38:$I$54,2,FALSE))/VLOOKUP(AU122,'Prog Assums'!$E$38:$I$54,3,FALSE),0),"-") -> 1 | S122: 7 | U122: =AK122 -> 5 | V122: =MAXA((S122*U122)-Y122,0) -> 35 | AA122: 0 | AC122: e.g. assistant head or pastoral head | AI122: 7 | AK122: =ROUND(($K8/300),0)+IF(K6>0,1,0) -> 5 | AP122: =VLOOKUP(D122,'Prog Assums'!N$139:T$210,7, FALSE) -> 1 | AQ122: =ROUNDDOWN(VLOOKUP(AU122,'Prog Assums'!$E$38:$I$54,2,FALSE)+(AP122*VLOOKUP(AU122,'Prog Assums'!$E$38:$I$54,3,FALSE)),0) -> 6 | AR122: =ROUNDUP(VLOOKUP(AU122,'Prog Assums'!$E$38:$I$54,4,FALSE)+(AP122*VLOOKUP(AU122,'Prog Assums'!$E$38:$I$54,5,FALSE)),0) -> 9 | AS122: 35 | AU122: =VLOOKUP(D122,'Prog Assums'!$N$173:$O$211,2,FALSE) -> D | BE122: =IF(ISERROR(AVERAGEIF('Individual Spaces'!F:F,'Secondary SoA'!$N122,'Individual Spaces'!K:K))=TRUE,"",AVERAGEIF('Individual Spaces'!F:F,'Secondary SoA'!$N122,'Individual Spaces'!K:K)) ->  | BG122: =COUNTIF('Individual Spaces'!F:F,'Secondary SoA'!$N122) -> 5 | BH122: =IF(ISERROR(BE122*BG122)=TRUE,"",BE122*BG122) ->  | BJ122: =IF(ISERROR(BH122-Y122-V122)=TRUE,"",BH122-Y122-V122) ->  | BK122: 0 | BM122: =SUM(BO122:CK122) -> 5 | CK122: =U122 -> 5 | CM122: =IF($S122>0,VLOOKUP($D122,'Prog Assums'!$N$5:$AM$294,12, FALSE),"") -> 7m2 for 1 | CN122: =IF($S122>0,VLOOKUP($D122,'Prog Assums'!$N$5:$AM$294,13, FALSE),"") -> 0 | CQ122: =VLOOKUP(D122,'Prog Assums'!$N$6:$Q$229,3,0) -> 1.5 | CR122: =VLOOKUP(D122,'Prog Assums'!$N$6:$Q$229,4,0) -> 4 | CS122: 1 | CT122: =IF(CS122>14,IF(CS122<31,CS122,ROUNDDOWN(CS122/30,0)*30),0) -> 0 | CU122: =IF(S122>0,(V122/S122)*CT122,0) -> 0 | CV122: =IF(CS122>0,(V122/S122)*CS122,0)-CU122 -> 5 | CW122: =IF(AK122=0,0,MAXA(1,ROUNDUP((AI122/CQ122)-CR122,0))) -> 1 | CX122: =IF(CW122>14,IF(CW122<31,CW122,ROUNDDOWN(CW122/30,0)*30),0) -> 0 | CY122: =IF(AK122>0,(AS122/AI122)*CX122,0) -> 0 | CZ122: =IF(CW122>0,(AS122/AI122)*CW122,0)-CY122 -> 5 | DA122: - | DN122: =VLOOKUP($C122,'Prog Assums'!$U$5:$AI$293,11,FALSE) -> 6 | DO122: =VLOOKUP($C122,'Prog Assums'!$U$5:$AI$293,12,FALSE) -> - | DP122: =IF(VLOOKUP($C122,'Prog Assums'!$U$5:$AI$293,13,FALSE)="AS SOA",$AI122,VLOOKUP($C122,'Prog Assums'!$U$5:$AI$293,13,FALSE)) -> 7 | DQ122: =VLOOKUP($C122,'Prog Assums'!$U$5:$AI$293,14,FALSE) -> - | DR122: =VLOOKUP($C122,'Prog Assums'!$U$5:$AI$293,15,FALSE) -> 9 | DS122: =IF(ISERROR((SUM($EB122,$EH122,$EN122,$EU122)/SUM($EA122,$EG122,$EM122,$ET122)-$S122))=TRUE,0,IF($U122=0,0,(SUM($EB122,$EH122,$EN122,$EU122)/SUM($EA122,$EG122,$EM122,$ET122)-$S122))) -> 0 | DU122: =SUM(EA122,EG122,EM122,ET122)-U122 -> -5 | DV122: =SUM($EU122,$EN122,$EH122,$EB122)-$V122-$Y122 -> -35 | DY122: 0 | EA122: 0 | EB122: =EA122*DY122 -> 0 | EE122: 0 | EG122: 0 | EH122: =EG122*EE122 -> 0 | EK122: =IF(EN122>0,SUM(EN122/EM122),0) -> 0 | EM122: =COUNTIFS($EY$2:$YD$2,"Refurb",$EY122:$YD122,">0") -> 0 | EN122: =SUMIF($EY$2:$YD$2,"Refurb",$EY122:$YD122) -> 0 | ER122: =IF(EU122>0,SUM(EU122/ET122),0) -> 0 | ET122: =COUNTIFS($EY$2:$YD$2,'Prog Assums'!$B$130,$EY122:$YD122,">0") -> 0 | EU122: =SUMIF($EY$2:$YD$2,'Prog Assums'!$B$130,$EY122:$YD122) -> 0
A123: =VLOOKUP($D123,'Prog Assums'!$N$5:$AM$294,10, FALSE) -> OFF00 | C123: =VLOOKUP($D123,'Prog Assums'!$N$5:$AM$294,8, FALSE) -> OFF11 | D123: Offices (with meeting area, 1-person) | M123: =IF(D123="","",_xlfn.XLOOKUP(D123,'Prog Assums'!$N$7:$N$221,'Prog Assums'!$AQ$7:$AQ$221,"")) -> Office (with meeting area, 1-person) | N123: Office (with meeting area, 1-person)9 | Q123: =IF(S123>0,ROUND((S123-VLOOKUP(AU123,'Prog Assums'!$E$38:$I$54,2,FALSE))/VLOOKUP(AU123,'Prog Assums'!$E$38:$I$54,3,FALSE),0),"-") -> 3 | S123: 9 | U123: =AK123 -> 8 | V123: 72 | AA123: 0 | AI123: 9 | AK123: =ROUND(($K5/600),0)+5+IF(K6>0,1,0) -> 8 | AP123: =VLOOKUP(D123,'Prog Assums'!N$139:T$210,7, FALSE) -> 3 | AQ123: =ROUNDDOWN(VLOOKUP(AU123,'Prog Assums'!$E$38:$I$54,2,FALSE)+(AP123*VLOOKUP(AU123,'Prog Assums'!$E$38:$I$54,3,FALSE)),0) -> 9 | AR123: =ROUNDUP(VLOOKUP(AU123,'Prog Assums'!$E$38:$I$54,4,FALSE)+(AP123*VLOOKUP(AU123,'Prog Assums'!$E$38:$I$54,5,FALSE)),0) -> 11 | AS123: 72 | AU123: =VLOOKUP(D123,'Prog Assums'!$N$173:$O$211,2,FALSE) -> C | BE123: =IF(ISERROR(AVERAGEIF('Individual Spaces'!F:F,'Secondary SoA'!$N123,'Individual Spaces'!K:K))=TRUE,"",AVERAGEIF('Individual Spaces'!F:F,'Secondary SoA'!$N123,'Individual Spaces'!K:K)) ->  | BG123: =COUNTIF('Individual Spaces'!F:F,'Secondary SoA'!$N123) -> 8 | BK123: 0 | BM123: 8 | CK123: =U123 -> 8 | CM123: =IF($S123>0,VLOOKUP($D123,'Prog Assums'!$N$5:$AM$294,12, FALSE),"") -> 9m2 for 1+2 | CN123: =IF($S123>0,VLOOKUP($D123,'Prog Assums'!$N$5:$AM$294,13, FALSE),"") -> 0 | CQ123: =VLOOKUP(D123,'Prog Assums'!$N$6:$Q$229,3,0) -> 1.5 | CR123: =VLOOKUP(D123,'Prog Assums'!$N$6:$Q$229,4,0) -> 4 | CS123: 2 | CT123: 0 | CU123: 0 | CV123: 16 | CW123: 2 | CX123: 0 | CY123: 0 | CZ123: 16 | DA123: - | DN123: =VLOOKUP($C123,'Prog Assums'!$U$5:$AI$293,11,FALSE) -> 6 | DO123: =VLOOKUP($C123,'Prog Assums'!$U$5:$AI$293,12,FALSE) -> - | DP123: =IF(VLOOKUP($C123,'Prog Assums'!$U$5:$AI$293,13,FALSE)="AS SOA",$AI123,VLOOKUP($C123,'Prog Assums'!$U$5:$AI$293,13,FALSE)) -> 9 | DQ123: =VLOOKUP($C123,'Prog Assums'!$U$5:$AI$293,14,FALSE) -> - | DR123: =VLOOKUP($C123,'Prog Assums'!$U$5:$AI$293,15,FALSE) -> 13 | DS123: 0 | DU123: -8 | DV123: -72 | DY123: 0 | EA123: 0 | EB123: 0 | EE123: 0 | EG123: 0 | EH123: 0 | EK123: 0 | EM123: 0 | EN123: 0 | ER123: 0 | ET123: =COUNTIFS($EY$2:$YD$2,'Prog Assums'!$B$130,$EY123:$YD123,">0") -> 0 | EU123: =SUMIF($EY$2:$YD$2,'Prog Assums'!$B$130,$EY123:$YD123) -> 0
A124: =VLOOKUP($D124,'Prog Assums'!$N$5:$AM$294,10, FALSE) -> OFF00 | C124: =VLOOKUP($D124,'Prog Assums'!$N$5:$AM$294,8, FALSE) -> OFF02 | D124: Offices (2-person) | M124: =IF(D124="","",_xlfn.XLOOKUP(D124,'Prog Assums'!$N$7:$N$221,'Prog Assums'!$AQ$7:$AQ$221,"")) -> Office (2-person) | N124: Office (2-person)9 | O124: =IF(VLOOKUP(D124,'Prog Assums'!N$173:V$306,9,FALSE)>0,"retained","") ->  | Q124: =IF(S124>0,ROUND((S124-VLOOKUP(AU124,'Prog Assums'!$E$38:$I$54,2,FALSE))/VLOOKUP(AU124,'Prog Assums'!$E$38:$I$54,3,FALSE),0),"-") -> 2 | S124: =VLOOKUP(D124,'Prog Assums'!N$173:T$212,5,FALSE) -> 9 | U124: 0 | V124: 0 | AA124: 0 | AI124: 9 | AP124: =VLOOKUP(D124,'Prog Assums'!N$139:T$210,7, FALSE) -> 2 | AQ124: =ROUNDDOWN(VLOOKUP(AU124,'Prog Assums'!$E$38:$I$54,2,FALSE)+(AP124*VLOOKUP(AU124,'Prog Assums'!$E$38:$I$54,3,FALSE)),0) -> 8 | AR124: =ROUNDUP(VLOOKUP(AU124,'Prog Assums'!$E$38:$I$54,4,FALSE)+(AP124*VLOOKUP(AU124,'Prog Assums'!$E$38:$I$54,5,FALSE)),0) -> 11 | AS124: 0 | AU124: =VLOOKUP(D124,'Prog Assums'!$N$173:$O$211,2,FALSE) -> D | BE124: =IF(ISERROR(AVERAGEIF('Individual Spaces'!F:F,'Secondary SoA'!$N124,'Individual Spaces'!K:K))=TRUE,"",AVERAGEIF('Individual Spaces'!F:F,'Secondary SoA'!$N124,'Individual Spaces'!K:K)) ->  | BG124: =COUNTIF('Individual Spaces'!F:F,'Secondary SoA'!$N124) -> 0 | BK124: 0 | BM124: 0 | CK124: =U124 -> 0 | CM124: =IF($S124>0,VLOOKUP($D124,'Prog Assums'!$N$5:$AM$294,12, FALSE),"") -> 9m2 for 2 | CN124: =IF($S124>0,VLOOKUP($D124,'Prog Assums'!$N$5:$AM$294,13, FALSE),"") -> 0 | CQ124: =VLOOKUP(D124,'Prog Assums'!$N$6:$Q$229,3,0) -> 1.5 | CR124: =VLOOKUP(D124,'Prog Assums'!$N$6:$Q$229,4,0) -> 4 | CS124: 2 | CT124: 0 | CU124: 0 | CV124: 0 | CW124: 0 | CX124: 0 | CY124: 0 | CZ124: 0 | DN124: =VLOOKUP($C124,'Prog Assums'!$U$5:$AI$293,11,FALSE) -> 6 | DO124: =VLOOKUP($C124,'Prog Assums'!$U$5:$AI$293,12,FALSE) -> - | DP124: =IF(VLOOKUP($C124,'Prog Assums'!$U$5:$AI$293,13,FALSE)="AS SOA",$AI124,VLOOKUP($C124,'Prog Assums'!$U$5:$AI$293,13,FALSE)) -> 9 | DQ124: =VLOOKUP($C124,'Prog Assums'!$U$5:$AI$293,14,FALSE) -> - | DR124: =VLOOKUP($C124,'Prog Assums'!$U$5:$AI$293,15,FALSE) -> 11 | DS124: 0 | DU124: 0 | DV124: 0 | DY124: 0 | EA124: 0 | EB124: 0 | EE124: 0 | EG124: 0 | EH124: 0 | EK124: 0 | EM124: 0 | EN124: 0 | ER124: 0 | ET124: =COUNTIFS($EY$2:$YD$2,'Prog Assums'!$B$130,$EY124:$YD124,">0") -> 0 | EU124: =SUMIF($EY$2:$YD$2,'Prog Assums'!$B$130,$EY124:$YD124) -> 0
A125: =VLOOKUP($D125,'Prog Assums'!$N$5:$AM$294,10, FALSE) -> OFF00 | C125: =VLOOKUP($D125,'Prog Assums'!$N$5:$AM$294,8, FALSE) -> OFF12 | D125: Offices (with meeting area, 2-person) | M125: =IF(D125="","",_xlfn.XLOOKUP(D125,'Prog Assums'!$N$7:$N$221,'Prog Assums'!$AQ$7:$AQ$221,"")) -> Office (with meeting area, 2-person) | N125: Office (with meeting area, 2-person)11 | O125: =IF(VLOOKUP(D125,'Prog Assums'!N$173:V$306,9,FALSE)>0,"retained","") ->  | Q125: =IF(S125>0,ROUND((S125-VLOOKUP(AU125,'Prog Assums'!$E$38:$I$54,2,FALSE))/VLOOKUP(AU125,'Prog Assums'!$E$38:$I$54,3,FALSE),0),"-") -> 4 | S125: =VLOOKUP(D125,'Prog Assums'!N$173:T$212,5,FALSE) -> 11 | U125: 0 | V125: 0 | AA125: 0 | AI125: 13 | AP125: =VLOOKUP(D125,'Prog Assums'!N$139:T$210,7, FALSE) -> 5 | AQ125: =ROUNDDOWN(VLOOKUP(AU125,'Prog Assums'!$E$38:$I$54,2,FALSE)+(AP125*VLOOKUP(AU125,'Prog Assums'!$E$38:$I$54,3,FALSE)),0) -> 12 | AR125: =ROUNDUP(VLOOKUP(AU125,'Prog Assums'!$E$38:$I$54,4,FALSE)+(AP125*VLOOKUP(AU125,'Prog Assums'!$E$38:$I$54,5,FALSE)),0) -> 15 | AS125: 0 | AU125: =VLOOKUP(D125,'Prog Assums'!$N$173:$O$211,2,FALSE) -> C | BE125: =IF(ISERROR(AVERAGEIF('Individual Spaces'!F:F,'Secondary SoA'!$N125,'Individual Spaces'!K:K))=TRUE,"",AVERAGEIF('Individual Spaces'!F:F,'Secondary SoA'!$N125,'Individual Spaces'!K:K)) ->  | BG125: =COUNTIF('Individual Spaces'!F:F,'Secondary SoA'!$N125) -> 0 | BK125: 0 | BM125: 0 | CK125: =U125 -> 0 | CM125: =IF($S125>0,VLOOKUP($D125,'Prog Assums'!$N$5:$AM$294,12, FALSE),"") -> 13m2 for 2+3 | CN125: =IF($S125>0,VLOOKUP($D125,'Prog Assums'!$N$5:$AM$294,13, FALSE),"") -> 0 | CQ125: =VLOOKUP(D125,'Prog Assums'!$N$6:$Q$229,3,0) -> 1.5 | CR125: =VLOOKUP(D125,'Prog Assums'!$N$6:$Q$229,4,0) -> 4 | CS125: 4 | CT125: 0 | CU125: 0 | CV125: 0 | CW125: 0 | CX125: 0 | CY125: 0 | CZ125: 0 | DA125: - | DN125: =VLOOKUP($C125,'Prog Assums'!$U$5:$AI$293,11,FALSE) -> 6 | DO125: =VLOOKUP($C125,'Prog Assums'!$U$5:$AI$293,12,FALSE) -> - | DP125: =IF(VLOOKUP($C125,'Prog Assums'!$U$5:$AI$293,13,FALSE)="AS SOA",$AI125,VLOOKUP($C125,'Prog Assums'!$U$5:$AI$293,13,FALSE)) -> 13 | DQ125: =VLOOKUP($C125,'Prog Assums'!$U$5:$AI$293,14,FALSE) -> - | DR125: =VLOOKUP($C125,'Prog Assums'!$U$5:$AI$293,15,FALSE) -> 16 | DS125: 0 | DU125: 0 | DV125: 0 | DY125: 0 | EA125: 0 | EB125: 0 | EE125: 0 | EG125: 0 | EH125: 0 | EK125: 0 | EM125: 0 | EN125: 0 | ER125: 0 | ET125: =COUNTIFS($EY$2:$YD$2,'Prog Assums'!$B$130,$EY125:$YD125,">0") -> 0 | EU125: =SUMIF($EY$2:$YD$2,'Prog Assums'!$B$130,$EY125:$YD125) -> 0
A126: =VLOOKUP($D126,'Prog Assums'!$N$5:$AM$294,10, FALSE) -> OFF00 | C126: =VLOOKUP($D126,'Prog Assums'!$N$5:$AM$294,8, FALSE) -> OFF06 | D126: Offices (exams) | M126: =IF(D126="","",_xlfn.XLOOKUP(D126,'Prog Assums'!$N$7:$N$221,'Prog Assums'!$AQ$7:$AQ$221,"")) -> Office (exams) | N126: =CONCATENATE(M126,S126) -> Office (exams)9 | O126: =IF(VLOOKUP(D126,'Prog Assums'!N$173:V$306,9,FALSE)>0,"retained","") ->  | Q126: =IF(S126>0,ROUND((S126-VLOOKUP(AU126,'Prog Assums'!$E$38:$I$54,2,FALSE))/VLOOKUP(AU126,'Prog Assums'!$E$38:$I$54,3,FALSE),0),"-") -> 2 | S126: =VLOOKUP(D126,'Prog Assums'!N$173:T$212,5,FALSE) -> 9 | U126: =AK126 -> 1 | V126: =MAXA((S126*U126)-Y126,0) -> 9 | AA126: =IF(O126="retained",V126+Y126,IF(O126="refurb'ed",V126+Y126,0)) -> 0 | AI126: 9 | AK126: 1 | AO126: =IF(P126="existing","E","") ->  | AP126: =VLOOKUP(D126,'Prog Assums'!N$139:T$210,7, FALSE) -> 2 | AQ126: =ROUNDDOWN(VLOOKUP(AU126,'Prog Assums'!$E$38:$I$54,2,FALSE)+(AP126*VLOOKUP(AU126,'Prog Assums'!$E$38:$I$54,3,FALSE)),0) -> 8 | AR126: =ROUNDUP(VLOOKUP(AU126,'Prog Assums'!$E$38:$I$54,4,FALSE)+(AP126*VLOOKUP(AU126,'Prog Assums'!$E$38:$I$54,5,FALSE)),0) -> 11 | AS126: =MAXA((AI126*AK126)-AT126,0) -> 9 | AU126: =VLOOKUP(D126,'Prog Assums'!$N$173:$O$211,2,FALSE) -> D | BE126: =IF(ISERROR(AVERAGEIF('Individual Spaces'!F:F,'Secondary SoA'!$N126,'Individual Spaces'!K:K))=TRUE,"",AVERAGEIF('Individual Spaces'!F:F,'Secondary SoA'!$N126,'Individual Spaces'!K:K)) ->  | BG126: =COUNTIF('Individual Spaces'!F:F,'Secondary SoA'!$N126) -> 1 | BH126: =IF(ISERROR(BE126*BG126)=TRUE,"",BE126*BG126) ->  | BJ126: =IF(ISERROR(BH126-Y126-V126)=TRUE,"",BH126-Y126-V126) ->  | BK126: =BG126-U126 -> 0 | BM126: =SUM(BO126:CK126) -> 1 | CI126: =U126 -> 1 | CM126: =IF($S126>0,VLOOKUP($D126,'Prog Assums'!$N$5:$AM$294,12, FALSE),"") -> 9m2 for 2 | CN126: =IF($S126>0,VLOOKUP($D126,'Prog Assums'!$N$5:$AM$294,13, FALSE),"") -> 0 | CQ126: =VLOOKUP(D126,'Prog Assums'!$N$6:$Q$229,3,0) -> 1.5 | CR126: =VLOOKUP(D126,'Prog Assums'!$N$6:$Q$229,4,0) -> 4 | CS126: =IF(S126=0,0,MAXA(1,ROUNDUP((S126/CQ126)-CR126,0))) -> 2 | CT126: =IF(CS126>14,IF(CS126<31,CS126,ROUNDDOWN(CS126/30,0)*30),0) -> 0 | CU126: =IF(S126>0,(V126/S126)*CT126,0) -> 0 | CV126: =IF(CS126>0,(V126/S126)*CS126,0)-CU126 -> 2 | CW126: =IF(AK126=0,0,MAXA(1,ROUNDUP((AI126/CQ126)-CR126,0))) -> 2 | CX126: =IF(CW126>14,IF(CW126<31,CW126,ROUNDDOWN(CW126/30,0)*30),0) -> 0 | CY126: =IF(AK126>0,(AS126/AI126)*CX126,0) -> 0 | CZ126: =IF(CW126>0,(AS126/AI126)*CW126,0)-CY126 -> 2 | DN126: =VLOOKUP($C126,'Prog Assums'!$U$5:$AI$293,11,FALSE) -> 6 | DO126: =VLOOKUP($C126,'Prog Assums'!$U$5:$AI$293,12,FALSE) -> - | DP126: =IF(VLOOKUP($C126,'Prog Assums'!$U$5:$AI$293,13,FALSE)="AS SOA",$AI126,VLOOKUP($C126,'Prog Assums'!$U$5:$AI$293,13,FALSE)) -> 9 | DQ126: =VLOOKUP($C126,'Prog Assums'!$U$5:$AI$293,14,FALSE) -> - | DR126: =VLOOKUP($C126,'Prog Assums'!$U$5:$AI$293,15,FALSE) -> 25 | DS126: 0 | DU126: =SUM(EA126,EG126,EM126,ET126)-U126 -> -1 | DV126: -9 | DY126: 0 | EA126: 0 | EB126: =EA126*DY126 -> 0 | EE126: 0 | EG126: 0 | EH126: =EG126*EE126 -> 0 | EK126: =IF(EN126>0,SUM(EN126/EM126),0) -> 0 | EM126: 0 | EN126: 0 | ER126: =IF(EU126>0,SUM(EU126/ET126),0) -> 0 | ET126: =COUNTIFS($EY$2:$YD$2,'Prog Assums'!$B$130,$EY126:$YD126,">0") -> 0 | EU126: =SUMIF($EY$2:$YD$2,'Prog Assums'!$B$130,$EY126:$YD126) -> 0
A127: =VLOOKUP($D127,'Prog Assums'!$N$5:$AM$294,10, FALSE) -> OFF00 | C127: =VLOOKUP($D127,'Prog Assums'!$N$5:$AM$294,8, FALSE) -> OFF23 | D127: Offices (SENco, learning support) | M127: =IF(D127="","",_xlfn.XLOOKUP(D127,'Prog Assums'!$N$7:$N$221,'Prog Assums'!$AQ$7:$AQ$221,"")) -> Office (SENco, learning support) | N127: Office (SENco, learning support)11 | O127: =IF(VLOOKUP(D127,'Prog Assums'!N$173:V$306,9,FALSE)>0,"retained","") ->  | Q127: =IF(S127>0,ROUND((S127-VLOOKUP(AU127,'Prog Assums'!$E$38:$I$54,2,FALSE))/VLOOKUP(AU127,'Prog Assums'!$E$38:$I$54,3,FALSE),0),"-") -> 4 | S127: =VLOOKUP(D127,'Prog Assums'!N$173:T$212,5,FALSE) -> 11 | U127: 1 | V127: 11 | AA127: 0 | AC127: e.g. SENco and learning support | AI127: 11 | AK127: 1 | AP127: =VLOOKUP(D127,'Prog Assums'!N$139:T$210,7, FALSE) -> 4 | AQ127: =ROUNDDOWN(VLOOKUP(AU127,'Prog Assums'!$E$38:$I$54,2,FALSE)+(AP127*VLOOKUP(AU127,'Prog Assums'!$E$38:$I$54,3,FALSE)),0) -> 10 | AR127: =ROUNDUP(VLOOKUP(AU127,'Prog Assums'!$E$38:$I$54,4,FALSE)+(AP127*VLOOKUP(AU127,'Prog Assums'!$E$38:$I$54,5,FALSE)),0) -> 13 | AS127: 11 | AU127: =VLOOKUP(D127,'Prog Assums'!$N$173:$O$211,2,FALSE) -> C | BE127: =IF(ISERROR(AVERAGEIF('Individual Spaces'!F:F,'Secondary SoA'!$N127,'Individual Spaces'!K:K))=TRUE,"",AVERAGEIF('Individual Spaces'!F:F,'Secondary SoA'!$N127,'Individual Spaces'!K:K)) ->  | BG127: =COUNTIF('Individual Spaces'!F:F,'Secondary SoA'!$N127) -> 1 | BK127: 0 | BM127: 1 | CI127: =U127 -> 1 | CM127: =IF($S127>0,VLOOKUP($D127,'Prog Assums'!$N$5:$AM$294,12, FALSE),"") -> 12m2 for 1+3 | CN127: =IF($S127>0,VLOOKUP($D127,'Prog Assums'!$N$5:$AM$294,13, FALSE),"") -> 0 | CQ127: =VLOOKUP(D127,'Prog Assums'!$N$6:$Q$229,3,0) -> 1.5 | CR127: =VLOOKUP(D127,'Prog Assums'!$N$6:$Q$229,4,0) -> 4 | CS127: 4 | CT127: =IF(CS127>14,IF(CS127<31,CS127,ROUNDDOWN(CS127/30,0)*30),0) -> 0 | CU127: 0 | CV127: 4 | CW127: 4 | CX127: 0 | CY127: 0 | CZ127: 4 | DN127: =VLOOKUP($C127,'Prog Assums'!$U$5:$AI$293,11,FALSE) -> 6 | DO127: =VLOOKUP($C127,'Prog Assums'!$U$5:$AI$293,12,FALSE) -> - | DP127: =IF(VLOOKUP($C127,'Prog Assums'!$U$5:$AI$293,13,FALSE)="AS SOA",$AI127,VLOOKUP($C127,'Prog Assums'!$U$5:$AI$293,13,FALSE)) -> 11 | DQ127: =VLOOKUP($C127,'Prog Assums'!$U$5:$AI$293,14,FALSE) -> - | DR127: =VLOOKUP($C127,'Prog Assums'!$U$5:$AI$293,15,FALSE) -> 25 | DS127: 0 | DU127: -1 | DV127: -11 | DY127: 0 | EA127: 0 | EB127: 0 | EE127: 0 | EG127: 0 | EH127: 0 | EK127: 0 | EM127: 0 | EN127: 0 | ER127: 0 | ET127: =COUNTIFS($EY$2:$YD$2,'Prog Assums'!$B$130,$EY127:$YD127,">0") -> 0 | EU127: =SUMIF($EY$2:$YD$2,'Prog Assums'!$B$130,$EY127:$YD127) -> 0
A128: =VLOOKUP($D128,'Prog Assums'!$N$5:$AM$294,10, FALSE) -> OFF30 | C128: =VLOOKUP($D128,'Prog Assums'!$N$5:$AM$294,8, FALSE) -> OFF37 | D128: Staff workrooms (ICT technicians) | M128: =IF(D128="","",_xlfn.XLOOKUP(D128,'Prog Assums'!$N$7:$N$221,'Prog Assums'!$AQ$7:$AQ$221,"")) -> Staff workroom (ICT technicians) | N128: Staff workroom (ICT technicians)11 | O128: =IF(VLOOKUP(D128,'Prog Assums'!N$173:V$306,9,FALSE)>0,"retained","") ->  | Q128: =IF(S128>0,ROUND((S128-VLOOKUP(AU128,'Prog Assums'!$E$38:$I$54,2,FALSE))/VLOOKUP(AU128,'Prog Assums'!$E$38:$I$54,3,FALSE),0),"-") -> 2 | S128: =VLOOKUP(D128,'Prog Assums'!N$173:T$212,5,FALSE) -> 11 | U128: 1 | V128: 11 | AA128: 0 | AI128: 11 | AK128: 1 | AP128: =VLOOKUP(D128,'Prog Assums'!N$139:T$210,7, FALSE) -> 2 | AQ128: =ROUNDDOWN(VLOOKUP(AU128,'Prog Assums'!$E$38:$I$54,2,FALSE)+(AP128*VLOOKUP(AU128,'Prog Assums'!$E$38:$I$54,3,FALSE)),0) -> 10 | AR128: =ROUNDUP(VLOOKUP(AU128,'Prog Assums'!$E$38:$I$54,4,FALSE)+(AP128*VLOOKUP(AU128,'Prog Assums'!$E$38:$I$54,5,FALSE)),0) -> 12 | AS128: 11 | AU128: =VLOOKUP(D128,'Prog Assums'!$N$173:$O$211,2,FALSE) -> E | BE128: =IF(ISERROR(AVERAGEIF('Individual Spaces'!F:F,'Secondary SoA'!$N128,'Individual Spaces'!K:K))=TRUE,"",AVERAGEIF('Individual Spaces'!F:F,'Secondary SoA'!$N128,'Individual Spaces'!K:K)) ->  | BG128: =COUNTIF('Individual Spaces'!F:F,'Secondary SoA'!$N128) -> 1 | BK128: 0 | BM128: 1 | CK128: =U128 -> 1 | CM128: =IF($S128>0,VLOOKUP($D128,'Prog Assums'!$N$5:$AM$294,12, FALSE),"") -> 11m2 for 2 | CN128: =IF($S128>0,VLOOKUP($D128,'Prog Assums'!$N$5:$AM$294,13, FALSE),"") -> 0 | CQ128: =VLOOKUP(D128,'Prog Assums'!$N$6:$Q$229,3,0) -> 1.5 | CR128: =VLOOKUP(D128,'Prog Assums'!$N$6:$Q$229,4,0) -> 4 | CS128: 4 | CT128: 0 | CU128: 0 | CV128: 4 | CW128: 4 | CX128: 0 | CY128: 0 | CZ128: 4 | DA128: - | DN128: =VLOOKUP($C128,'Prog Assums'!$U$5:$AI$293,11,FALSE) -> 8 | DO128: =VLOOKUP($C128,'Prog Assums'!$U$5:$AI$293,12,FALSE) -> - | DP128: =IF(VLOOKUP($C128,'Prog Assums'!$U$5:$AI$293,13,FALSE)="AS SOA",$AI128,VLOOKUP($C128,'Prog Assums'!$U$5:$AI$293,13,FALSE)) -> 11 | DQ128: =VLOOKUP($C128,'Prog Assums'!$U$5:$AI$293,14,FALSE) -> - | DR128: =VLOOKUP($C128,'Prog Assums'!$U$5:$AI$293,15,FALSE) -> 25 | DS128: 0 | DU128: -1 | DV128: -11 | DY128: 0 | EA128: 0 | EB128: 0 | EE128: 0 | EG128: 0 | EH128: 0 | EK128: 0 | EM128: 0 | EN128: 0 | ER128: 0 | ET128: =COUNTIFS($EY$2:$YD$2,'Prog Assums'!$B$130,$EY128:$YD128,">0") -> 0 | EU128: =SUMIF($EY$2:$YD$2,'Prog Assums'!$B$130,$EY128:$YD128) -> 0
